Workbook

Sheet メイン
A1: 2023-08-01T07:10:46 | B1: 0 | H1: 11 | U1: 持ち株会含む | AX1: カード枠積立設定 | AZ1: キャッシュ積立 | BB1: カード以外積立設定
A2: 個人 /資産クラス | D2: レバ有 PF | E2: レバ無 PF | F2: ←100% 換算 | G2: グロ3 | H2: グロ3 | I2: レバレッジ換算後 評価額 | J2: 比率 | K2: 乖離 | L2: レバレッジ換算前 評価額 | M2: 比率 | N2: 評価 損益 税引前 | O2: 比率 | P2: 非課税 損益 | Q2: 評価 損益 実税引 | R2: 損益率 | S2: 評価 損益 理論税引 | T2: 損益率 | U2: レバレッジ換算後 評価額 | V2: 比率 | W2: レバレッジ換算前 評価額 | X2: 比率 | Y2: 評価 損益 実税引 | Z2: 損益率 | AA2: 評価 損益 理論税引 | AB2: 損益率 | AC2: レバ無 リバランス | AD2: グロ3 積立額レバ無 | AE2: 積立額 レバ無 グロ有 | AF2: 積立額 レバ無 グロ無 | AG2: 期間 | AH2: GAP分散ﾘﾊﾞﾗﾝｽ(ｸﾞﾛ3) | AI2: 積立額/月(ｸﾞﾛ3) | AJ2: GAP ﾘﾊﾞﾗﾝｽ結果(グロ3分) | AK2: GAP 分散ﾘﾊﾞﾗﾝｽ | AL2: 月当たり 積立額 | AN2: 月当たり積立額（調整後) | AQ2: カード枠積立設定 | AT2: キャッシュ枠積立設定 | AV2: カード以外積立設定 | AX2: 現在値 | AY2: URL | AZ2: 現在値 | BA2: URL | BB2: 現在値 | BC2: URL | BF2: スポット 購入設定 | BG2: URL
A3: 国内債券 | B3: 0.35 | C3: =VLOOKUP(1,株比率!A:G,7,FALSE)/100*(100%-B7) -> 0.1636912548 | D3: =B3*C3 -> 0.05729193918 | E3: =D3-D$6/G$6*G3+E$6/H$6*H3 -> 0.04267739859 | F3: =E3*(100%/E$17) -> 0.04694513845 | G3: 0.4 | H3: =G3/1/H1 -> 0.03636363636 | I3: =L3-VLOOKUP("グローバル3倍3分法ファンド(1年決算型)特定保有中再投資型",'楽天ﾄｰﾀﾙ（VLOOKUP）'!A:L,6,FALSE)*H3+VLOOKUP("グローバル3倍3分法ファンド(1年決算型)特定保有中再投資型",'楽天ﾄｰﾀﾙ（VLOOKUP）'!A:L,6,FALSE)*G3 -> 2950657 | J3: =I3/I$17 -> 0.04302039528 | K3: =J3-D3 -> -0.0142715439 | L3: =VLOOKUP("eMAXIS Slim 国内債券インデックス特定保有中再投資型",'楽天ﾄｰﾀﾙ（VLOOKUP）'!A:L,6,FALSE)+VLOOKUP("eMAXIS Slim 国内債券インデックス特定保有中受取型",'楽天ﾄｰﾀﾙ（VLOOKUP）'!A:L,6,FALSE)+VLOOKUP("個人国債 変動10年 第111回",'元(楽天)'!C:R,13,FALSE)+VLOOKUP("グローバル3倍3分法ファンド(1年決算型)特定保有中再投資型",'楽天ﾄｰﾀﾙ（VLOOKUP）'!A:L,6,FALSE)*H3+1500000 -> 2019638.818 | M3: =L3/L$17 -> 0.03234836208 | N3: =VLOOKUP("eMAXIS Slim 国内債券インデックス特定すべて再投資型",'楽天ﾄｰﾀﾙ（VLOOKUP）'!A:L,12,FALSE)+VLOOKUP("eMAXIS Slim 国内債券インデックス特定すべて受取型",'楽天ﾄｰﾀﾙ（VLOOKUP）'!A:L,12,FALSE)+VLOOKUP("個人国債 変動10年 第111回",'元(楽天)'!C:R,15,FALSE)+VLOOKUP("グローバル3倍3分法ファンド(1年決算型)特定すべて再投資型",'楽天ﾄｰﾀﾙ（VLOOKUP）'!A:L,12,FALSE)*G3/3 -> -44459.06667 | O3: =IF(税金!B$3<メイン!N$18,IF(N3>0,N3/N$18,0),メイン!N3/メイン!N$17) -> 0 | P3: 0 | Q3: =N3+P3-税金!B$3*メイン!O3 -> -44459.06667 | R3: =Q3/($L3-Q3) -> -0.02153922398 | S3: =IF(AND(N3>0,N$17>0),N3-N$17*20.315%*O3,N3)+P3 -> -44459.06667 | T3: =S3/($L3-S3) -> -0.02153922398 | U3: =I3 -> 2950657 | V3: =U3/U$17 -> 0.04302039528 | W3: =L3 -> 2019638.818 | X3: =W3/W$17 -> 0.03234836208 | Y3: =Q3 -> -44459.06667 | Z3: =Y3/(W3-AA3) -> -0.02153922398 | AA3: =S3 -> -44459.06667 | AB3: =AA3/(W3-AA3) -> -0.02153922398 | AC3: =L$17*F3 -> 2930974.486 | AD3: =ROUND(AD$17*H3,0) -> 259 | AE3: =ROUND(AE$17*$F3,0) -> 7563 | AF3: =AE3-AD3 -> 7304 | AG3: 1 | AH3: =ROUND(AH$17*H3,0) -> 7267 | AI3: =AH3+AD3 -> 7526 | AJ3: =L3+AH3*AG3 -> 2026905.818 | AK3: =ROUND((AC3-AJ3)/AG3,0) -> 904069 | AL3: =AK3+AF3 -> 911373 | AM3: =IF(AL3<300,AL3*-1+300,0) -> 0 | AN3: =IF(AL3>300,AL3-(AL3-300)/AL$18*AM$18,300) -> 45932.94851 | AO3: =IF(AN3>300,IF(AN3>50300,50000,AN3-300),0) -> 45632.94851 | AP3: =IF(AO3>50000-1100,50000-1100,AO3) -> 45632.94851 | AQ3: =ROUND(AP3+100,0) -> 45733 | AR3: =IF(AN3-AQ3>200,IF(AN3-AQ3>50200,50000,AN3-AQ3-200),0) -> 0 | AS3: =IF(AR3>50000-1100,50000-1100,AR3) -> 0 | AT3: =ROUND(AS3+100,0) -> 100 | AV3: =ROUND(AN3-AQ3-AT3,0) -> 100 | AX3: 23982 | AY3: ?eventType=init&contractNo=701890900&reserveViewRoot=1&type=order&sub_type=fu&local=null&gmn=F&smn=06&lmn=03&fmn=01#anchor | AZ3: 100 | BA3: ?eventType=init&contractNo=701952147&reserveViewRoot=1&type=order&sub_type=fu&local=null#anchor | BB3: 100 | BC3: ?eventType=init&contractNo=701028775&reserveViewRoot=1&type=null&sub_type=null&local=null&gmn=F&smn=06&lmn=03&fmn=01#anchor | BE3: =IF(AL3<0,AL3*-1,0) -> 0 | BF3: =ROUND(IF(AL3>0,AL3-AL3/AL$18*BE$18,0),0) -> 53395 | BG3: ?eventType=init&dscrCd=5602886&SS_URL=detail/index.html&gmn=F&smn=01&lmn=&fmn=
A4: 外国債券ﾍｯｼﾞ | B4: =D4/C4 -> 0.2571630174 | C4: =C3 -> 0.1636912548 | D4: =C3-D3-D6 -> 0.04209533701 | E4: =D4 -> 0.04209533701 | F4: 0.04630487071 | I4: =L4 -> 1330592 | J4: =I4/I$17 -> 0.01939994849 | K4: =J4-D4 -> -0.02269538852 | L4: =VLOOKUP("Smart-i 先進国債券インデックス(為替ヘッジあり)特定保有中再投資型",'楽天ﾄｰﾀﾙ（VLOOKUP）'!A:L,6,FALSE)+VLOOKUP("Smart-i 先進国債券インデックス(為替ヘッジあり)特定保有中受取型",'楽天ﾄｰﾀﾙ（VLOOKUP）'!A:L,6,FALSE)+VLOOKUP("たわらノーロード 先進国債券特定保有中再投資型",'楽天ﾄｰﾀﾙ（VLOOKUP）'!A:L,6,FALSE)+VLOOKUP("eMAXIS Slim 先進国債券インデックス特定保有中再投資型",'楽天ﾄｰﾀﾙ（VLOOKUP）'!A:L,6,FALSE)+VLOOKUP("米国国債 米ドル建ストリップス債券 2029/8/15",'元(楽天)'!C:R,13,FALSE)+VLOOKUP("外貨預り金",'元(楽天)'!A:B,2,FALSE) -> 1330592 | M4: 0.021311965 | N4: =VLOOKUP("Smart-i 先進国債券インデックス(為替ヘッジあり)特定すべて再投資型",'楽天ﾄｰﾀﾙ（VLOOKUP）'!A:L,12,FALSE)+VLOOKUP("Smart-i 先進国債券インデックス(為替ヘッジあり)特定すべて受取型",'楽天ﾄｰﾀﾙ（VLOOKUP）'!A:L,12,FALSE)+VLOOKUP("たわらノーロード 先進国債券特定すべて再投資型",'楽天ﾄｰﾀﾙ（VLOOKUP）'!A:L,12,FALSE)+VLOOKUP("eMAXIS Slim 先進国債券インデックス特定すべて再投資型",'楽天ﾄｰﾀﾙ（VLOOKUP）'!A:L,12,FALSE)+VLOOKUP("米国国債 米ドル建ストリップス債券 2029/8/15",'元(楽天)'!C:R,15,FALSE) -> -474090 | O4: =IF(税金!B$3<メイン!N$18,IF(N4>0,N4/N$18,0),メイン!N4/メイン!N$17) -> 0 | P4: 0 | Q4: =N4+P4-税金!B$3*メイン!O4 -> -474090 | R4: -0.2627000214 | S4: -474090 | T4: =S4/($L4-S4) -> -0.2627000214 | U4: =I4 -> 1330592 | V4: 0.01939994849 | W4: 1330592 | X4: 0.021311965 | Y4: -474090 | Z4: =Y4/(W4-AA4) -> -0.2627000214 | AA4: -474090 | AB4: -0.2627000214 | AC4: =L$17*F4 -> 2890999.987 | AE4: =ROUND(AE$17*$F4,0) -> 7460 | AF4: =AE4-AD4 -> 7460 | AG4: =AG3 -> 1 | AI4: 0 | AJ4: 1330592 | AK4: =ROUND((AC4-AJ4)/AG4,0) -> 1560408 | AL4: =AK4+AF4 -> 1567868 | AM4: =IF(AL4<300,AL4*-1+300,0) -> 0 | AN4: =IF(AL4>300,AL4-(AL4-300)/AL$18*AM$18,300) -> 78814.83892 | AO4: =IF(AN4>300,IF(AN4>50300,50000,AN4-300),0) -> 50000 | AP4: =IF(SUM(AO$3:AO3)>50000-1100,0,IF(SUM(AO$3:AO4)>50000-1100,50000-1100-SUM(AO$3:AO3),AO4)) -> 3267.051486 | AQ4: =ROUND(AP4+100,0) -> 3367 | AR4: =IF(AN4-AQ4>200,IF(AN4-AQ4>50200,50000,AN4-AQ4-200),0) -> 50000 | AS4: =IF(SUM(AR$3:AR3)>50000-1100,0,IF(SUM(AR$3:AR4)>50000-1100,50000-1100-SUM(AR$3:AR3),AR4)) -> 48900 | AT4: =ROUND(AS4+100,0) -> 49000 | AV4: =ROUND(AN4-AQ4-AT4,0) -> 26448 | AX4: 25118 | AY4: ?eventType=init&contractNo=701902781&reserveViewRoot=1&type=order&sub_type=fu&local=null&gmn=F&smn=06&lmn=03&fmn=01#anchor | AZ4: 30922 | BA4: ?eventType=init&contractNo=701952144&reserveViewRoot=1&type=order&sub_type=fu&local=null#anchor | BB4: 100 | BC4: ?eventType=init&contractNo=701783734&reserveViewRoot=1&type=null&sub_type=null&local=null&gmn=F&smn=06&lmn=03&fmn=01#anchor | BE4: =IF(AL4<0,AL4*-1,0) -> 0 | BF4: =ROUND(IF(AL4>0,AL4-AL4/AL$18*BE$18,0),0) -> 91858 | BG4: ?eventType=init&dscrCd=1110819&SS_URL=detail/index.html&gmn=S&smn=01&lmn=01&fmn=01
A5: 外国債券 | B5: =100%-B3-B4-B6 -> 0 | C5: =C4 -> 0.1636912548 | D5: =B5*C5 -> 0 | E5: =D5 -> 0 | F5: 0 | I5: =L5 -> 0 | J5: 0 | K5: 0 | M5: 0 | O5: =IF(税金!B$3<メイン!N$18,IF(N5>0,N5/N$18,0),メイン!N5/メイン!N$17) -> 0 | P5: 0 | Q5: =N5+P5-税金!B$3*メイン!O5 -> 0 | S5: 0 | T5: =S5/($L5-S5) ->  | U5: 0 | V5: 0 | W5: 0 | X5: 0 | Y5: 0 | AA5: 0 | AC5: 0 | AE5: =ROUND(AE$17*$F5,0) -> 0 | AF5: 0 | AG5: 1 | AI5: 0 | AJ5: 0 | AK5: 0 | AL5: =AK5+AF5 -> 0 | AM5: =IF(AL5<0,AL5*-1+200,0) -> 0 | AN5: =IF(AL5>0,AL5-AL5/AL$18*AM$18,0) -> 0 | AO5: =IF(AN5>200,IF(AN5>50200,50000,AN5),0) -> 0 | AP5: =IF(SUM(AO4:AO4)>50000-1100,0,IF(SUM(AO4:AO5)>50000-1100,50000-1100-SUM(AO4:AO4),0)) -> 0 | AQ5: =AP5+100 -> 100 | AV5: =AN5-AQ5 -> -100
A6: 外国債券ﾚﾊﾞ | B6: =D6/C6 -> 0.3928369826 | C6: =C5 -> 0.1636912548 | D6: =IF(((1-100%/(100%+10%))-(D9-E9))<=VLOOKUP(1,株比率!A:G,7,FALSE)/100,((1-100%/(100%+10%))-(D9-E9))/200%*G6,VLOOKUP(1,株比率!A:G,7,FALSE)/100/(G6+G3)*G6) -> 0.06430397862 | E6: =D6/1/H1 -> 0.005845816238 | F6: 0.006430397862 | G6: 1.6 | H6: =G6/1/H1 -> 0.1454545455 | I6: =L6-VLOOKUP("グローバル3倍3分法ファンド(1年決算型)特定保有中再投資型",'楽天ﾄｰﾀﾙ（VLOOKUP）'!A:L,6,FALSE)*H6+VLOOKUP("グローバル3倍3分法ファンド(1年決算型)特定保有中再投資型",'楽天ﾄｰﾀﾙ（VLOOKUP）'!A:L,6,FALSE)*G6 -> 4096480 | J6: 0.05972642326 | K6: -0.004577555361 | L6: =+VLOOKUP("グローバル3倍3分法ファンド(1年決算型)特定保有中再投資型",'楽天ﾄｰﾀﾙ（VLOOKUP）'!A:L,6,FALSE)*H6 -> 372407.2727 | M6: 0.005964811724 | N6: =VLOOKUP("グローバル3倍3分法ファンド(1年決算型)特定すべて再投資型",'楽天ﾄｰﾀﾙ（VLOOKUP）'!A:L,12,FALSE)*G6/3 -> -24284.26667 | O6: =IF(税金!B$3<メイン!N$18,IF(N6>0,N6/N$18,0),メイン!N6/メイン!N$17) -> 0 | P6: 0 | Q6: =N6+P6-税金!B$3*メイン!O6 -> -24284.26667 | R6: -0.06121700176 | S6: -24284.26667 | T6: =S6/($L6-S6) -> -0.06121700176 | U6: 4096480 | V6: 0.05972642326 | W6: 372407.2727 | X6: 0.005964811724 | Y6: -24284.26667 | Z6: -0.06121700176 | AA6: -24284.26667 | AB6: -0.06121700176 | AC6: 401475.6946 | AD6: =ROUND(AD$17*H6,0) -> 1036 | AE6: =AD6 -> 1036 | AF6: 0 | AG6: 1 | AH6: =ROUND((AC6-L6)/AG6,0) -> 29068 | AI6: 30104 | AJ6: 401475.2727 | AK6: 0 | AL6: =AK6+AF6 -> 0
A7: ゴールド | B7: 0.03 | C7: =C3/(100%-B7)*B7 -> 0.005062616128 | D7: =VLOOKUP(1,株比率!A:G,7,FALSE)/100-D3-D4-D6 -> 0.005062616128 | E7: =D7 -> 0.005062616128 | F7: 0.005568877741 | I7: =L7 -> 895543 | J7: 0.01305696116 | K7: 0.007994345035 | L7: =VLOOKUP("ゴールド・ファンド(為替ヘッジあり)特定保有中再投資型",'楽天ﾄｰﾀﾙ（VLOOKUP）'!A:L,6,FALSE)+VLOOKUP("ゴールド・ファンド(為替ヘッジあり)特定保有中受取型",'楽天ﾄｰﾀﾙ（VLOOKUP）'!A:L,6,FALSE)+VLOOKUP("SMT ゴールドインデックス・オープン(為替ヘッジあり)特定保有中再投資型",'楽天ﾄｰﾀﾙ（VLOOKUP）'!A:L,6,FALSE) -> 895543 | M7: 0.01434382671 | N7: =VLOOKUP("ゴールド・ファンド(為替ヘッジあり)特定すべて再投資型",'楽天ﾄｰﾀﾙ（VLOOKUP）'!A:L,12,FALSE)+VLOOKUP("ゴールド・ファンド(為替ヘッジあり)特定すべて受取型",'楽天ﾄｰﾀﾙ（VLOOKUP）'!A:L,12,FALSE)+VLOOKUP("SMT ゴールドインデックス・オープン(為替ヘッジあり)特定すべて再投資型",'楽天ﾄｰﾀﾙ（VLOOKUP）'!A:L,12,FALSE) -> 50326 | O7: =IF(税金!B$3<メイン!N$18,IF(N7>0,N7/N$18,0),メイン!N7/メイン!N$17) -> 0.0025673211 | P7: 0 | Q7: =N7+P7-税金!B$3*メイン!O7 -> 49902.06854 | R7: 0.05901094268 | S7: 40385.38852 | T7: =S7/($L7-S7) -> 0.04722566692 | U7: 895543 | V7: 0.01305696116 | W7: 895543 | X7: 0.01434382671 | Y7: 49902.06854 | Z7: 0.05835423537 | AA7: 40385.38852 | AB7: 0.04722566692 | AC7: 347687.516 | AE7: =ROUND(AE$17*$F7,0) -> 897 | AF7: 897 | AG7: 1 | AI7: 0 | AJ7: 895543 | AK7: -547855 | AL7: -546958 | AM7: =IF(AL7<300,AL7*-1+300,0) -> 547258 | AN7: =IF(AL7>300,AL7-(AL7-300)/AL$18*AM$18,300) -> 300 | AO7: =IF(AN7>300,IF(AN7>50300,50000,AN7-300),0) -> 0 | AP7: =IF(SUM(AO$3:AO6)>50000-1100,0,IF(SUM(AO$3:AO7)>50000-1100,50000-1100-SUM(AO$3:AO6),AO7)) -> 0 | AQ7: =ROUND(AP7+100,0) -> 100 | AR7: =IF(AN7-AQ7>200,IF(AN7-AQ7>50200,50000,AN7-AQ7-200),0) -> 0 | AS7: =IF(SUM(AR$3:AR6)>50000-1100,0,IF(SUM(AR$3:AR7)>50000-1100,50000-1100-SUM(AR$3:AR6),AR7)) -> 0 | AT7: =ROUND(AS7+100,0) -> 100 | AV7: =ROUND(AN7-AQ7-AT7,0) -> 100 | AX7: 100 | AY7: ?eventType=init&contractNo=701902783&reserveViewRoot=1&type=order&sub_type=fu&local=null&gmn=F&smn=06&lmn=03&fmn=01 | AZ7: 16366 | BA7: ?eventType=init&contractNo=701952142&reserveViewRoot=1&type=order&sub_type=fu&local=null#anchor | BB7: 100 | BC7: ?eventType=init&contractNo=701902767&reserveViewRoot=1&type=order&sub_type=fu&local=null&gmn=F&smn=06&lmn=03&fmn=01#anchor | BE7: =IF(AL7<0,AL7*-1,0) -> 546958 | BF7: =ROUND(IF(AL7>0,AL7-AL7/AL$18*BE$18,0),0) -> 0 | BG7: ?eventType=init&dscrCd=7913807&SS_URL=detail/index.html&gmn=F&smn=01&lmn=&fmn=
A8: 米国株 | B8: =5%-B9 -> 0.03 | C8: =100%-C3-C7-C15 -> 0.7896838226 | D8: 0.02369051468 | E8: =D8 -> 0.02369051468 | F8: 0.02605956615 | I8: =L8 -> 1662736 | J8: 0.02424258732 | K8: 0.0005520726414 | L8: =VLOOKUP("eMAXIS Slim 米国株式(S&P500)つみたてNISA保有中再投資型",'楽天ﾄｰﾀﾙ（VLOOKUP）'!A:L,6,FALSE)+VLOOKUP("eMAXIS Slim 米国株式(S&P500)特定保有中再投資型",'楽天ﾄｰﾀﾙ（VLOOKUP）'!A:L,6,FALSE)+VLOOKUP("eMAXIS Slim 米国株式(S&P500)特定保有中受取型",'楽天ﾄｰﾀﾙ（VLOOKUP）'!A:L,6,FALSE) -> 1662736 | M8: 0.02663188373 | N8: =VLOOKUP("eMAXIS Slim 米国株式(S&P500)特定すべて再投資型",'楽天ﾄｰﾀﾙ（VLOOKUP）'!A:L,12,FALSE)+VLOOKUP("eMAXIS Slim 米国株式(S&P500)特定すべて受取型",'楽天ﾄｰﾀﾙ（VLOOKUP）'!A:L,12,FALSE)+VLOOKUP("楽天・全米株式インデックス・ファンド(楽天・VTI)特定すべて再投資型",'楽天ﾄｰﾀﾙ（VLOOKUP）'!A:L,12,FALSE)+VLOOKUP("米国株式",'元(楽天)'!A:J,10,FALSE) -> 1139050 | O8: =IF(税金!B$3<メイン!N$18,IF(N8>0,N8/N$18,0),メイン!N8/メイン!N$17) -> 0.05810728249 | P8: =VLOOKUP("eMAXIS Slim 米国株式(S&P500)つみたてNISAすべて再投資型",'楽天ﾄｰﾀﾙ（VLOOKUP）'!A:L,12,FALSE)+SUMIF('元(楽天(夫)分配金)'!D:D,"VYM",'元(楽天(夫)分配金)'!J:J)*VLOOKUP("米ドル",'元(楽天)'!A:B,2,FALSE) -> 65521 | Q8: =N8+P8-税金!B$3*メイン!O8 -> 1194975.977 | R8: 2.554677437 | S8: 979580.8656 | T8: =S8/($L8-S8) -> 1.433906907 | U8: 1662736 | V8: 0.02424258732 | W8: 1662736 | X8: 0.02663188373 | Y8: 1194975.977 | Z8: 1.749201487 | AA8: 979580.8656 | AB8: =AA8/(W8-AA8) -> 1.433906907 | AC8: 1627003.903 | AE8: =ROUND(AE$17*$F8,0) -> 4198 | AF8: 4198 | AG8: =AG7 -> 1 | AI8: 0 | AJ8: 1662736 | AK8: -35732 | AL8: =AF8+AF9+AK8+AK9 -> -185426 | AM8: =IF(AL8<300,AL8*-1+300,0) -> 185726 | AN8: =IF(AL8>300,AL8-(AL8-300)/AL$18*AM$18,300) -> 300 | AO8: =IF(AN8>300,IF(AN8>50300,50000,AN8-300),0) -> 0 | AP8: =IF(SUM(AO$3:AO7)>50000-1100,0,IF(SUM(AO$3:AO8)>50000-1100,50000-1100-SUM(AO$3:AO7),AO8)) -> 0 | AQ8: =ROUND(AP8+100,0) -> 100 | AR8: =IF(AN8-AQ8>200,IF(AN8-AQ8>50200,50000,AN8-AQ8-200),0) -> 0 | AS8: =IF(SUM(AR$3:AR7)>50000-1100,0,IF(SUM(AR$3:AR8)>50000-1100,50000-1100-SUM(AR$3:AR7),AR8)) -> 0 | AT8: =ROUND(AS8+100,0) -> 100 | AV8: =ROUND(AN8-AQ8-AT8,0) -> 100 | AX8: 100 | AY8: ?eventType=init&contractNo=701902787&reserveViewRoot=1&type=order&sub_type=fu&local=null&gmn=F&smn=06&lmn=03&fmn=01#anchor | AZ8: 100 | BA8: ?eventType=init&contractNo=701952153&reserveViewRoot=1&type=order&sub_type=fu&local=null#anchor | BB8: 100 | BC8: ?eventType=init&contractNo=701902768&reserveViewRoot=1&type=order&sub_type=fu&local=null&gmn=F&smn=06&lmn=03&fmn=01#anchor | BE8: =IF(AL8<0,AL8*-1,0) -> 185426 | BF8: =ROUND(IF(AL8>0,AL8-AL8/AL$18*BE$18,0),0) -> 0 | BG8: ?eventType=init&dscrCd=5613854&SS_URL=detail/index.html&gmn=F&smn=01&lmn=&fmn=
A9: 米国株ﾚﾊﾞ | B9: 0.02 | C9: =C8 -> 0.7896838226 | D9: 0.01579367645 | E9: =D9/3 -> 0.005264558817 | F9: 0.005791014699 | I9: =L9*3 -> 1549143.217 | J9: 0.02258641162 | K9: 0.006792735169 | L9: =VLOOKUP("SPXL",'元(楽天)'!B:O,4,FALSE)*VLOOKUP("SPXL",'元(楽天)'!B:O,8,FALSE)*VLOOKUP("米ドル",'元(楽天)'!A:B,2,FALSE) -> 516381.0724 | M9: 0.008270826324 | N9: =IF(VLOOKUP("SPXL",'元(楽天)'!B:Z,16,FALSE)="-",(VLOOKUP("SPXL",'元(楽天)'!B:O,8,FALSE)-VLOOKUP("SPXL",'元(楽天)'!B:O,6,FALSE))*VLOOKUP("SPXL",'元(楽天)'!B:O,4,FALSE)*VLOOKUP("米ドル",'元(楽天)'!A:B,2,FALSE),VLOOKUP("SPXL",'元(楽天)'!B:Z,16,FALSE)) -> 209556 | O9: =IF(税金!B$3<メイン!N$18,IF(N9>0,N9/N$18,0),メイン!N9/メイン!N$17) -> 0.01069025037 | P9: =SUM(個別履歴!O:O)*VLOOKUP("米ドル",'元(楽天)'!A:B,2,FALSE) -> 269735.8468 | Q9: =N9+P9-税金!B$3*メイン!O9 -> 477526.6085 | R9: 12.29013505 | S9: 437899.4298 | T9: 5.579641495 | U9: 1549143.217 | V9: 0.02258641162 | W9: =L9 -> 516381.0724 | X9: 0.008270826324 | Y9: 477526.6085 | Z9: 6.084564397 | AA9: 437899.4298 | AB9: =AA9/(W9-AA9) -> 5.579641495 | AC9: 361556.4229 | AE9: =ROUND(AE$17*$F9,0) -> 933 | AF9: 933 | AG9: 1 | AI9: 0 | AJ9: 516381.0724 | AK9: -154825
A10: 先進国株 | B10: =100%-B12-B14-B8-B11-B9-B13 -> 0.5703240764 | C10: =C8 -> 0.7896838226 | D10: 0.4503756968 | E10: =D10-D$6/G$6*G10+E$6/H$6*H10 -> 0.4503756968 | F10: 0.4954132664 | G10: 0.2 | H10: =G10 -> 0.2 | I10: =L10-VLOOKUP("グローバル3倍3分法ファンド(1年決算型)特定保有中再投資型",'楽天ﾄｰﾀﾙ（VLOOKUP）'!A:L,6,FALSE)*H10+VLOOKUP("グローバル3倍3分法ファンド(1年決算型)特定保有中再投資型",'楽天ﾄｰﾀﾙ（VLOOKUP）'!A:L,6,FALSE)*G10 -> 31353824 | J10: 0.4571368011 | K10: 0.006761104336 | L10: =VLOOKUP("eMAXIS Slim 先進国株式インデックス特定保有中再投資型",'楽天ﾄｰﾀﾙ（VLOOKUP）'!A:L,6,FALSE)+VLOOKUP("たわらノーロード 先進国株式特定保有中再投資型",'楽天ﾄｰﾀﾙ（VLOOKUP）'!A:L,6,FALSE)+VLOOKUP("eMAXIS Slim 先進国株式インデックス特定保有中受取型",'楽天ﾄｰﾀﾙ（VLOOKUP）'!A:L,6,FALSE)+VLOOKUP("eMAXIS Slim 先進国株式インデックスつみたてNISA保有中再投資型",'楽天ﾄｰﾀﾙ（VLOOKUP）'!A:L,6,FALSE)+VLOOKUP("三菱UFJ DC海外株式インデックスファンド",'元(DC)'!A:D,3,FALSE)+VLOOKUP("グローバル3倍3分法ファンド(1年決算型)特定保有中再投資型",'楽天ﾄｰﾀﾙ（VLOOKUP）'!A:L,6,FALSE)*H10 -> 31353824 | M10: 0.5021912049 | N10: =VLOOKUP("eMAXIS Slim 先進国株式インデックス特定すべて再投資型",'楽天ﾄｰﾀﾙ（VLOOKUP）'!A:L,12,FALSE)+VLOOKUP("たわらノーロード 先進国株式特定すべて再投資型",'楽天ﾄｰﾀﾙ（VLOOKUP）'!A:L,12,FALSE)+VLOOKUP("eMAXIS Slim 先進国株式インデックス特定すべて受取型",'楽天ﾄｰﾀﾙ（VLOOKUP）'!A:L,12,FALSE)+VLOOKUP("グローバル3倍3分法ファンド(1年決算型)特定すべて再投資型",'楽天ﾄｰﾀﾙ（VLOOKUP）'!A:L,12,FALSE)*G10/3 -> 12676804.47 | O10: =IF(税金!B$3<メイン!N$18,IF(N10>0,N10/N$18,0),メイン!N10/メイン!N$17) -> 0.646692119 | P10: =VLOOKUP("eMAXIS Slim 先進国株式インデックスつみたてNISAすべて再投資型",'楽天ﾄｰﾀﾙ（VLOOKUP）'!A:L,12,FALSE)+VLOOKUP("三菱UFJ DC海外株式インデックスファンド",'元(DC)'!A:D,4,FALSE) -> 1726345 | Q10: =N10+P10-税金!B$3*メイン!O10 -> 14296363.78 | R10: 0.8381296865 | S10: 11899171.64 | T10: 0.6116363029 | U10: 31353824 | V10: 0.4571368011 | W10: 31353824 | X10: 0.5021912049 | Y10: 14296363.78 | Z10: 0.7348557826 | AA10: 11899171.64 | AB10: 0.6116363029 | AC10: 30930649.95 | AD10: =ROUND(AD$17*H10,0) -> 1424 | AE10: =AE17-AE3-AE5-AE12-AE14-AE8-AE15-AE16-AE4-AE6-AE7-AE11-AE9-AE13 -> 79811 | AF10: =AF17-AF3-AF5-AF12-AF14-AF8-AF15-AF16-AF4-AF6-AF7-AF11-AF9-AF13 -> 78385 | AG10: =AG9 -> 1 | AH10: =ROUND(AH$17*H10,0) -> 39969 | AI10: 41393 | AJ10: 31393793 | AK10: =AK17-AK3-AK5-AK12-AK14-AK8-AK15-AK16-AK4-AK6-AK7-AK11-AK9-AK13 -> -463141 | AL10: =AK10+AF10 -> -384756 | AM10: =IF(AL10<21400,AL10*-1+21400,0) -> 406156 | AN10: =IF(AL10>21400,AL10-(AL10-21400)/AL$18*AM$18,21400) -> 21400 | AO10: =IF(AN10>21400,IF(AN10>50000+21400,50000,AN10-21400),0) -> 0 | AP10: =IF(SUM(AO$3:AO9)>50000-1100,0,IF(SUM(AO$3:AO10)>50000-1100,50000-1100-SUM(AO$3:AO9),AO10)) -> 0 | AQ10: =ROUND(AP10+100,0) -> 100 | AR10: =IF(AN10-AQ10>200+21100,IF(AN10-AQ10>50200+21100+200,50000,AN10-AQ10-21100-200),0) -> 0 | AS10: =IF(SUM(AR$3:AR9)>50000-1100,0,IF(SUM(AR$3:AR10)>50000-1100,50000-1100-SUM(AR$3:AR9),AR10)) -> 0 | AT10: =ROUND(AS10+100,0) -> 100 | AV10: =ROUND(AN10-AQ10-AT10-21100,0) -> 100 | AX10: 100 | AY10: ?eventType=init&contractNo=701902789&reserveViewRoot=1&type=order&sub_type=fu&local=null&gmn=F&smn=06&lmn=03&fmn=01 | AZ10: 100 | BA10: ?eventType=init&contractNo=701952152&reserveViewRoot=1&type=order&sub_type=fu&local=null#anchor | BB10: 100 | BC10: ?eventType=init&contractNo=701902769&reserveViewRoot=1&type=null&sub_type=null&local=null&gmn=F&smn=06&lmn=03&fmn=01#anchor | BE10: =IF(AL10<0,AL10*-1,0) -> 384756 | BF10: =ROUND(IF(AL10>0,AL10-AL10/AL$18*BE$18,0),0) -> 0 | BG10: ?eventType=init&dscrCd=5612887&SS_URL=detail/index.html&gmn=F&smn=01&lmn=&fmn=
A11: 先進国株ﾍｯｼﾞ | B11: =(40%-D3-D4-D6-D7-D12-D16-D13)/C11 -> 0.1296759236 | C11: =C10 -> 0.7896838226 | D11: =B11*C11 -> 0.1024029791 | E11: 0.1024029791 | F11: 0.112643277 | I11: =L11 -> 8232236 | J11: 0.1200254882 | K11: =J11-D11 -> 0.01762250909 | L11: =VLOOKUP("たわらノーロード 先進国株式＜為替ヘッジあり＞特定保有中再投資型",'楽天ﾄｰﾀﾙ（VLOOKUP）'!A:L,6,FALSE) -> 8232236 | M11: 0.1318549379 | N11: =VLOOKUP("たわらノーロード 先進国株式＜為替ヘッジあり＞特定すべて再投資型",'楽天ﾄｰﾀﾙ（VLOOKUP）'!A:L,12,FALSE) -> 2364645 | O11: =IF(税金!B$3<メイン!N$18,IF(N11>0,N11/N$18,0),メイン!N11/メイン!N$17) -> 0.1206295553 | P11: 0 | Q11: =N11+P11-税金!B$3*メイン!O11 -> 2344725.924 | R11: =Q11/($L11-Q11) -> 0.3982542524 | S11: 1897569.984 | T11: =S11/($L11-S11) -> 0.2995532803 | U11: =I11 -> 8232236 | V11: 0.1200254882 | W11: =L11 -> 8232236 | X11: 0.1318549379 | Y11: 2344725.924 | Z11: 0.3701419962 | AA11: =S11 -> 1897569.984 | AB11: =AA11/(W11-AA11) -> 0.2995532803 | AC11: 7032774.462 | AD11: =ROUND(AD$17*H11,0) -> 0 | AE11: =ROUND(AE$17*$F11,0) -> 18147 | AF11: 18147 | AG11: 1 | AH11: 0 | AI11: =AH11+AD11 -> 0 | AJ11: =L11+AH11*AG11 -> 8232236 | AK11: -1199462 | AL11: =AK11+AF11 -> -1181315 | AM11: =IF(AL11<300,AL11*-1+300,0) -> 1181615 | AN11: =IF(AL11>300,AL11-(AL11-300)/AL$18*AM$18,300) -> 300 | AO11: =IF(AN11>300,IF(AN11>50300,50000,AN11-300),0) -> 0 | AP11: =IF(SUM(AO$3:AO10)>50000-1100,0,IF(SUM(AO$3:AO11)>50000-1100,50000-1100-SUM(AO$3:AO10),AO11)) -> 0 | AQ11: =ROUND(AP11+100,0) -> 100 | AR11: =IF(AN11-AQ11>200,IF(AN11-AQ11>50200,50000,AN11-AQ11-200),0) -> 0 | AS11: =IF(SUM(AR$3:AR10)>50000-1100,0,IF(SUM(AR$3:AR11)>50000-1100,50000-1100-SUM(AR$3:AR10),AR11)) -> 0 | AT11: =ROUND(AS11+100,0) -> 100 | AV11: =ROUND(AN11-AQ11-AT11,0) -> 100 | AX11: 100 | AY11: ?eventType=init&contractNo=701859509&reserveViewRoot=1&type=order&sub_type=fu&local=null&gmn=F&smn=06&lmn=03&fmn=01#anchor | AZ11: 100 | BA11: ?eventType=init&contractNo=701952155&reserveViewRoot=1&type=order&sub_type=fu&local=null#anchor | BB11: 100 | BC11: ?eventType=init&contractNo=701859499&reserveViewRoot=1&type=&sub_type=&local=&gmn=F&smn=06&lmn=03&fmn=01#anchor | BE11: =IF(AL11<0,AL11*-1,0) -> 1181315 | BF11: =ROUND(IF(AL11>0,AL11-AL11/AL$18*BE$18,0),0) -> 0 | BG11: ?eventType=init&dscrCd=2312808&SS_URL=detail/index.html&gmn=F&smn=01&lmn=&fmn=
A12: 日本株指数 | B12: 0.1 | C12: =C10 -> 0.7896838226 | D12: 0.07896838226 | E12: 0.07166111196 | F12: 0.07882722316 | G12: 0.2 | H12: =G12/1/H1 -> 0.01818181818 | I12: =L12-VLOOKUP("グローバル3倍3分法ファンド(1年決算型)特定保有中再投資型",'楽天ﾄｰﾀﾙ（VLOOKUP）'!A:L,6,FALSE)*H12+VLOOKUP("グローバル3倍3分法ファンド(1年決算型)特定保有中再投資型",'楽天ﾄｰﾀﾙ（VLOOKUP）'!A:L,6,FALSE)*G12 -> 5818543 | J12: 0.08483399454 | K12: 0.005865612282 | L12: =VLOOKUP("＜購入・換金手数料なし＞ニッセイＴＯＰＩＸインデックスファンド特定保有中再投資型",'楽天ﾄｰﾀﾙ（VLOOKUP）'!A:L,6,FALSE)+VLOOKUP("eMAXIS Slim 国内株式(TOPIX)特定保有中再投資型",'楽天ﾄｰﾀﾙ（VLOOKUP）'!A:L,6,FALSE)+VLOOKUP("グローバル3倍3分法ファンド(1年決算型)特定保有中再投資型",'楽天ﾄｰﾀﾙ（VLOOKUP）'!A:L,6,FALSE)*H12 -> 5353033.909 | M12: 0.08573903293 | N12: =VLOOKUP("＜購入・換金手数料なし＞ニッセイＴＯＰＩＸインデックスファンド特定すべて再投資型",'楽天ﾄｰﾀﾙ（VLOOKUP）'!A:L,12,FALSE)+VLOOKUP("eMAXIS Slim 国内株式(TOPIX)特定すべて再投資型",'楽天ﾄｰﾀﾙ（VLOOKUP）'!A:L,12,FALSE)+VLOOKUP("グローバル3倍3分法ファンド(1年決算型)特定すべて再投資型",'楽天ﾄｰﾀﾙ（VLOOKUP）'!A:L,12,FALSE)*G12/3 -> 1470227.467 | O12: =IF(税金!B$3<メイン!N$18,IF(N12>0,N12/N$18,0),メイン!N12/メイン!N$17) -> 0.07500190749 | P12: 0 | Q12: =N12+P12-税金!B$3*メイン!O12 -> 1457842.702 | R12: 0.3742673014 | S12: 1179821.712 | T12: 0.282713089 | U12: 5818543 | V12: 0.08483399454 | W12: 5353033.909 | X12: 0.08573903293 | Y12: 1457842.702 | Z12: 0.3493334709 | AA12: 1179821.712 | AB12: 0.282713089 | AC12: 4921501.726 | AD12: =ROUND(AD$17*H12,0) -> 129 | AE12: 12699 | AF12: 12570 | AG12: 1 | AH12: 3634 | AI12: 3763 | AJ12: 5356667.909 | AK12: -435166 | AL12: =AF12+AF13+AK12+AK13 -> -242199 | AM12: =IF(AL12<300,AL12*-1+300,0) -> 242499 | AN12: =IF(AL12>300,AL12-(AL12-300)/AL$18*AM$18,300) -> 300 | AO12: =IF(AN12>300,IF(AN12>50300,50000,AN12-300),0) -> 0 | AP12: =IF(SUM(AO$3:AO11)>50000-1100,0,IF(SUM(AO$3:AO12)>50000-1100,50000-1100-SUM(AO$3:AO11),AO12)) -> 0 | AQ12: =ROUND(AP12+100,0) -> 100 | AR12: =IF(AN12-AQ12>200,IF(AN12-AQ12>50200,50000,AN12-AQ12-200),0) -> 0 | AS12: =IF(SUM(AR$3:AR11)>50000-1100,0,IF(SUM(AR$3:AR12)>50000-1100,50000-1100-SUM(AR$3:AR11),AR12)) -> 0 | AT12: =ROUND(AS12+100,0) -> 100 | AV12: =ROUND(AN12-AQ12-AT12,0) -> 100 | AX12: 100 | AY12: ?eventType=init&contractNo=701902790&reserveViewRoot=1&type=order&sub_type=fu&local=null&gmn=F&smn=06&lmn=03&fmn=01 | AZ12: 100 | BA12: ?eventType=init&contractNo=701952146&reserveViewRoot=1&type=order&sub_type=fu&local=null#anchor | BB12: 100 | BC12: ?eventType=init&contractNo=701859500&reserveViewRoot=1&type=null&sub_type=null&local=null&gmn=F&smn=06&lmn=03&fmn=01#anchor | BE12: =IF(AL12<0,AL12*-1,0) -> 242199 | BF12: =ROUND(IF(AL12>0,AL12-AL12/AL$18*BE$18,0),0) -> 0 | BG12: ?eventType=init&dscrCd=5612885&SS_URL=detail/index.html&gmn=F&smn=01&lmn=&fmn=
A13: 日本株個別 | B13: 0.05 | C13: =C11 -> 0.7896838226 | D13: 0.03948419113 | E13: 0.03948419113 | F13: 0.04343261024 | I13: =L13 -> 2538273.4 | J13: 0.03700786808 | K13: -0.00247632305 | L13: =SUM(ﾈｵﾓﾊﾞ一覧!C:C) -> 2538273.4 | M13: 0.04065528265 | N13: =SUM(ﾈｵﾓﾊﾞ一覧!D:D) -> 834592 | P13: =SUM(個別履歴!L:L) -> 34793 | Q13: =N13+P13 -> 869385 | R13: 0.5209365707 | S13: =IF(N13>0,N13-N13*20.315%,N13)+P13 -> 699837.6352 | T13: 0.3806701592 | U13: 2538273.4 | V13: 0.03700786808 | W13: 2538273.4 | X13: 0.04065528265 | Y13: 869385 | Z13: 0.4728938681 | AA13: 699837.6352 | AB13: 0.3806701592 | AC13: 2711673.172 | AE13: 6997 | AF13: 6997 | AG13: 1 | AH13: 0 | AI13: 0 | AJ13: 2538273.4 | AK13: 173400
A14: 新興国株 | B14: 0.1 | C14: =C12 -> 0.7896838226 | D14: 0.07896838226 | E14: 0.07896838226 | F14: 0.08686522049 | G14: 0.2 | H14: =G14 -> 0.2 | I14: =L14-VLOOKUP("グローバル3倍3分法ファンド(1年決算型)特定保有中再投資型",'楽天ﾄｰﾀﾙ（VLOOKUP）'!A:L,6,FALSE)*H14+VLOOKUP("グローバル3倍3分法ファンド(1年決算型)特定保有中再投資型",'楽天ﾄｰﾀﾙ（VLOOKUP）'!A:L,6,FALSE)*G14 -> 5420986 | J14: 0.07903763824 | K14: 6.925598326e-05 | L14: =VLOOKUP("eMAXIS Slim 新興国株式インデックス特定保有中再投資型",'楽天ﾄｰﾀﾙ（VLOOKUP）'!A:L,6,FALSE)+VLOOKUP("eMAXIS Slim 新興国株式インデックス特定保有中受取型",'楽天ﾄｰﾀﾙ（VLOOKUP）'!A:L,6,FALSE)+VLOOKUP("グローバル3倍3分法ファンド(1年決算型)特定保有中再投資型",'楽天ﾄｰﾀﾙ（VLOOKUP）'!A:L,6,FALSE)*H14 -> 5420986 | M14: 0.08682741508 | N14: =VLOOKUP("eMAXIS Slim 新興国株式インデックス特定すべて再投資型",'楽天ﾄｰﾀﾙ（VLOOKUP）'!A:L,12,FALSE)+VLOOKUP("eMAXIS Slim 新興国株式インデックス特定すべて受取型",'楽天ﾄｰﾀﾙ（VLOOKUP）'!A:L,12,FALSE)+VLOOKUP("グローバル3倍3分法ファンド(1年決算型)特定すべて再投資型",'楽天ﾄｰﾀﾙ（VLOOKUP）'!A:L,12,FALSE)*G14/3 -> 1256216.467 | O14: =IF(税金!B$3<メイン!N$18,IF(N14>0,N14/N$18,0),メイン!N14/メイン!N$17) -> 0.06408439058 | P14: 0 | Q14: =N14+P14-税金!B$3*メイン!O14 -> 1245634.468 | R14: 0.2983304419 | S14: 1008083.1 | T14: 0.2284399005 | U14: 5420986 | V14: 0.07903763824 | W14: 5420986 | X14: 0.08682741508 | Y14: 1245634.468 | Z14: 0.2822709893 | AA14: 1008083.1 | AB14: 0.2284399005 | AC14: 5423346.344 | AD14: =ROUND(AD$17*H14,0) -> 1424 | AE14: 13994 | AF14: 12570 | AG14: 1 | AH14: 39969 | AI14: 41393 | AJ14: 5460955 | AK14: -37609 | AL14: -25039 | AM14: =IF(AL14<300,AL14*-1+300,0) -> 25339 | AN14: =IF(AL14>300,AL14-(AL14-300)/AL$18*AM$18,300) -> 300 | AO14: =IF(AN14>300,IF(AN14>50300,50000,AN14-300),0) -> 0 | AP14: =IF(SUM(AO$3:AO13)>50000-1100,0,IF(SUM(AO$3:AO14)>50000-1100,50000-1100-SUM(AO$3:AO13),AO14)) -> 0 | AQ14: =ROUND(AP14+100,0) -> 100 | AR14: =IF(AN14-AQ14>200,IF(AN14-AQ14>50200,50000,AN14-AQ14-200),0) -> 0 | AS14: =IF(SUM(AR$3:AR13)>50000-1100,0,IF(SUM(AR$3:AR14)>50000-1100,50000-1100-SUM(AR$3:AR13),AR14)) -> 0 | AT14: =ROUND(AS14+100,0) -> 100 | AV14: =ROUND(AN14-AQ14-AT14,0) -> 100 | AX14: 100 | AY14: ?eventType=init&contractNo=701902791&reserveViewRoot=1&type=order&sub_type=fu&local=null&gmn=F&smn=06&lmn=03&fmn=01#anchor | AZ14: 1912 | BA14: ?eventType=init&contractNo=701952149&reserveViewRoot=1&type=order&sub_type=fu&local=null#anchor | BB14: 9856 | BC14: ?eventType=init&contractNo=701859503&reserveViewRoot=1&type=null&sub_type=null&local=null&gmn=F&smn=06&lmn=03&fmn=01#anchor | BE14: =IF(AL14<0,AL14*-1,0) -> 25039 | BF14: =ROUND(IF(AL14>0,AL14-AL14/AL$18*BE$18,0),0) -> 0 | BG14: ?eventType=init&dscrCd=5613812&SS_URL=detail/index.html&gmn=F&smn=01&lmn=&fmn=
A15: 先進国RIET | B15: 0.75 | C15: =(100%-C3-C7)*5% -> 0.04156230645 | D15: 0.03117172984 | E15: 0.03117172984 | F15: 0.03428890282 | G15: 0.2 | H15: =G15 -> 0.2 | I15: =L15-VLOOKUP("グローバル3倍3分法ファンド(1年決算型)特定保有中再投資型",'楽天ﾄｰﾀﾙ（VLOOKUP）'!A:L,6,FALSE)*H15+VLOOKUP("グローバル3倍3分法ファンド(1年決算型)特定保有中再投資型",'楽天ﾄｰﾀﾙ（VLOOKUP）'!A:L,6,FALSE)*G15 -> 2060683 | J15: 0.03004462979 | K15: -0.001127100046 | L15: =VLOOKUP("たわらノーロード 先進国リート特定保有中再投資型",'楽天ﾄｰﾀﾙ（VLOOKUP）'!A:L,6,FALSE)+VLOOKUP("たわらノーロード 先進国リート特定保有中受取型",'楽天ﾄｰﾀﾙ（VLOOKUP）'!A:L,6,FALSE)+VLOOKUP("eMAXIS Slim 先進国リートインデックス特定保有中再投資型",'楽天ﾄｰﾀﾙ（VLOOKUP）'!A:L,6,FALSE)+VLOOKUP("グローバル3倍3分法ファンド(1年決算型)特定保有中再投資型",'楽天ﾄｰﾀﾙ（VLOOKUP）'!A:L,6,FALSE)*H15 -> 2060683 | M15: 0.03300576282 | N15: =VLOOKUP("たわらノーロード 先進国リート特定すべて再投資型",'楽天ﾄｰﾀﾙ（VLOOKUP）'!A:L,12,FALSE)+VLOOKUP("たわらノーロード 先進国リート特定すべて受取型",'楽天ﾄｰﾀﾙ（VLOOKUP）'!A:L,12,FALSE)+VLOOKUP("eMAXIS Slim 先進国リートインデックス特定すべて再投資型",'楽天ﾄｰﾀﾙ（VLOOKUP）'!A:L,12,FALSE)+VLOOKUP("グローバル3倍3分法ファンド(1年決算型)特定すべて再投資型",'楽天ﾄｰﾀﾙ（VLOOKUP）'!A:L,12,FALSE)*G15/3 -> 420017.4667 | O15: =IF(税金!B$3<メイン!N$18,IF(N15>0,N15/N$18,0),メイン!N15/メイン!N$17) -> 0.02142669206 | P15: 0 | Q15: =N15+P15-税金!B$3*メイン!O15 -> 416479.3627 | R15: 0.25330157 | S15: 337053.7809 | T15: 0.1955488902 | U15: 2060683 | V15: 0.03004462979 | W15: 2060683 | X15: 0.03300576282 | Y15: 416479.3627 | Z15: 0.2416293238 | AA15: 337053.7809 | AB15: 0.1955488902 | AC15: 2140794.609 | AD15: =ROUND(AD$17*H15,0) -> 1424 | AE15: 5524 | AF15: 4100 | AG15: 1 | AH15: 39969 | AI15: 41393 | AJ15: 2100652 | AK15: 40143 | AL15: 44243 | AM15: =IF(AL15<300,AL15*-1+300,0) -> 0 | AN15: =IF(AL15>300,AL15-(AL15-300)/AL$18*AM$18,300) -> 2500.974737 | AO15: =IF(AN15>300,IF(AN15>50300,50000,AN15-300),0) -> 2200.974737 | AP15: =IF(SUM(AO$3:AO14)>50000-1100,0,IF(SUM(AO$3:AO15)>50000-1100,50000-1100-SUM(AO$3:AO14),AO15)) -> 0 | AQ15: =ROUND(AP15+100,0) -> 100 | AR15: =IF(AN15-AQ15>200,IF(AN15-AQ15>50200,50000,AN15-AQ15-200),0) -> 2200.974737 | AS15: =IF(SUM(AR$3:AR14)>50000-1100,0,IF(SUM(AR$3:AR15)>50000-1100,50000-1100-SUM(AR$3:AR14),AR15)) -> 0 | AT15: =ROUND(AS15+100,0) -> 100 | AV15: =ROUND(AN15-AQ15-AT15,0) -> 2301 | AX15: 100 | AY15: ?eventType=init&contractNo=701902793&reserveViewRoot=1&type=order&sub_type=fu&local=null&gmn=F&smn=06&lmn=03&fmn=01 | AZ15: 100 | BA15: ?eventType=init&contractNo=701952151&reserveViewRoot=1&type=order&sub_type=fu&local=null#anchor | BB15: 3836 | BC15: ?eventType=init&contractNo=701902770&reserveViewRoot=1&type=&sub_type=&local=&gmn=F&smn=06&lmn=03&fmn=01 | BE15: =IF(AL15<0,AL15*-1,0) -> 0 | BF15: =ROUND(IF(AL15>0,AL15-AL15/AL$18*BE$18,0),0) -> 2592 | BG15: ?eventType=init&dscrCd=5613881&SS_URL=detail/index.html&gmn=F&smn=01&lmn=&fmn=
A16: J-RIET | B16: =100%-B15 -> 0.25 | C16: =C15 -> 0.04156230645 | D16: 0.01039057661 | E16: 0.01039057661 | F16: 0.01142963427 | G16: 0.2 | H16: =G16 -> 0.2 | I16: =L16-VLOOKUP("グローバル3倍3分法ファンド(1年決算型)特定保有中再投資型",'楽天ﾄｰﾀﾙ（VLOOKUP）'!A:L,6,FALSE)*H16+VLOOKUP("グローバル3倍3分法ファンド(1年決算型)特定保有中再投資型",'楽天ﾄｰﾀﾙ（VLOOKUP）'!A:L,6,FALSE)*G16 -> 677702 | J16: 0.009880852951 | K16: -0.0005097236627 | L16: =VLOOKUP("Smart-i Jリートインデックス特定保有中再投資型",'楽天ﾄｰﾀﾙ（VLOOKUP）'!A:L,6,FALSE)+VLOOKUP("Smart-i Jリートインデックス特定保有中受取型",'楽天ﾄｰﾀﾙ（VLOOKUP）'!A:L,6,FALSE)+VLOOKUP("eMAXIS Slim 国内リートインデックス特定保有中再投資型",'楽天ﾄｰﾀﾙ（VLOOKUP）'!A:L,6,FALSE)+VLOOKUP("グローバル3倍3分法ファンド(1年決算型)特定保有中再投資型",'楽天ﾄｰﾀﾙ（VLOOKUP）'!A:L,6,FALSE)*H16 -> 677702 | M16: 0.01085468822 | N16: =VLOOKUP("Smart-i Jリートインデックス特定すべて再投資型",'楽天ﾄｰﾀﾙ（VLOOKUP）'!A:L,12,FALSE)+VLOOKUP("Smart-i Jリートインデックス特定すべて受取型",'楽天ﾄｰﾀﾙ（VLOOKUP）'!A:L,12,FALSE)+VLOOKUP("eMAXIS Slim 国内リートインデックス特定すべて再投資型",'楽天ﾄｰﾀﾙ（VLOOKUP）'!A:L,12,FALSE)+VLOOKUP("グローバル3倍3分法ファンド(1年決算型)特定すべて再投資型",'楽天ﾄｰﾀﾙ（VLOOKUP）'!A:L,12,FALSE)*G16/3 -> 15691.46667 | O16: =IF(税金!B$3<メイン!N$18,IF(N16>0,N16/N$18,0),メイン!N16/メイン!N$17) -> 0.0008004815296 | P16: 0 | Q16: =N16+P16-税金!B$3*メイン!O16 -> 15559.28635 | R16: 0.02349838794 | S16: 12592.01959 | T16: 0.01893223671 | U16: 677702 | V16: 0.009880852951 | W16: 677702 | X16: 0.01085468822 | Y16: 15559.28635 | Z16: 0.02339355417 | AA16: 12592.01959 | AB16: 0.01893223671 | AC16: 713598.2032 | AD16: =ROUND(AD$17*H16,0) -> 1424 | AE16: =ROUND(AE$17*$F16,0) -> 1841 | AF16: 417 | AG16: 1 | AH16: 39969 | AI16: 41393 | AJ16: 717671 | AK16: -4073 | AL16: =AK16+AF16 -> -3656 | AM16: =IF(AL16<300,AL16*-1+300,0) -> 3956 | AN16: =IF(AL16>300,AL16-(AL16-300)/AL$18*AM$18,300) -> 300 | AO16: =IF(AN16>300,IF(AN16>50300,50000,AN16-300),0) -> 0 | AP16: =IF(SUM(AO$3:AO15)>50000-1100,0,IF(SUM(AO$3:AO16)>50000-1100,50000-1100-SUM(AO$3:AO15),AO16)) -> 0 | AQ16: =ROUND(AP16+100,0) -> 100 | AR16: =IF(AN16-AQ16>200,IF(AN16-AQ16>50200,50000,AN16-AQ16-200),0) -> 0 | AS16: =IF(SUM(AR$3:AR15)>50000-1100,0,IF(SUM(AR$3:AR16)>50000-1100,50000-1100-SUM(AR$3:AR15),AR16)) -> 0 | AT16: =ROUND(AS16+100,0) -> 100 | AV16: =ROUND(AN16-AQ16-AT16,0) -> 100 | AX16: 100 | AY16: ?eventType=init&contractNo=701902794&reserveViewRoot=1&type=order&sub_type=fu&local=null&gmn=F&smn=06&lmn=03&fmn=01#anchor | AZ16: 100 | BA16: ?eventType=init&contractNo=701952145&reserveViewRoot=1&type=order&sub_type=fu&local=null#anchor | BB16: 103 | BC16: ?eventType=init&contractNo=701859506&reserveViewRoot=1&type=null&sub_type=null&local=null&gmn=F&smn=06&lmn=03&fmn=01#anchor | BE16: =IF(AL16<0,AL16*-1,0) -> 3656 | BF16: =ROUND(IF(AL16>0,AL16-AL16/AL$18*BE$18,0),0) -> 0 | BG16: ?eventType=init&dscrCd=5613880&SS_URL=detail/index.html&gmn=F&smn=01&lmn=&fmn=
D17: =SUM(D3:D16) -> 1 | E17: =SUM(E3:E16) -> 0.9090909091 | F17: 1 | G17: =SUM(G3:G16) -> 3 | H17: =SUM(H3:H16) -> 1 | I17: =SUM(I3:I16) -> 68587398.62 | J17: =SUM(J3:J16) -> 1 | K17: =(IF(I17*D3-I3>0,I17*D3-I3,0)+IF(I17*D4-I4>0,I17*D4-I4,0)+IF(I17*D5-I5>0,I17*D5-I5,0)+IF(I17*D6-I6>0,I17*D6-I6,0)+IF(I17*D7-I7>0,I17*D7-I7,0)+IF(I17*D8-I8>0,I17*D8-I8,0)+IF(I17*D9-I9>0,I17*D9-I9,0)+IF(I17*D10-I10>0,I17*D10-I10,0)+IF(I17*D11-I11>0,I17*D11-I11,0)+IF(I17*D12-I12>0,I17*D12-I12,0)+IF(I17*D13-I13>0,I17*D13-I13,0)+IF(I17*D14-I14>0,I17*D14-I14,0)+IF(I17*D15-I15>0,I17*D15-I15,0)+IF(I17*D16-I16>0,I17*D16-I16,0))/I17 -> 0.04565763454 | L17: =SUM(L3:L16) -> 62434036.47 | M17: =SUM(M3:M16) -> 1 | N17: =SUM(N3:N16)-N13 -> 19059701 | P17: =SUM(P3:P16) -> 2096394.847 | Q17: =SUM(Q3:Q16) -> 21825561.85 | R17: 0.5374632278 | S17: =SUM(S3:S16) -> 17949162.22 | T17: 0.4034891079 | U17: =SUM(U3:U16) -> 68587398.62 | V17: =SUM(V3:V16) -> 1 | W17: =SUM(W3:W16) -> 62434036.47 | X17: =SUM(X3:X16) -> 1 | Y17: =SUM(Y3:Y16) -> 21825561.85 | Z17: 0.4906288309 | AA17: =SUM(AA3:AA16) -> 17949162.22 | AB17: =AA17/(L17-AA17) -> 0.4034891079 | AC17: =SUM(AC3:AC16) -> 62434036.47 | AD17: =ROUND(AE17*F6/H6,0) -> 7122 | AE17: =140000+21100 -> 161100 | AF17: =AE17-AD17 -> 153978 | AH17: =ROUND(AH6/H6,0) -> 199843 | AI17: 206965 | AJ17: =SUM(AJ3:AJ16) -> 62633881.47 | AK17: =AH17*-1 -> -199843 | AL17: =AI17 -> 206965 | AM17: =IF(AL17<300,AL17*-1+300,0) -> 0 | AN17: =IF(AL17>300,AL17-(AL17-300)/AL$18*AM$18,300) -> 10651.23783 | AO17: =IF(AN17>300,IF(AN17>50300,50000,AN17-300),0) -> 10351.23783 | AP17: =IF(SUM(AO$3:AO16)>50000-1100,0,IF(SUM(AO$3:AO17)>50000-1100,50000-1100-SUM(AO$3:AO16),AO17)) -> 0 | AQ17: =ROUND(AP17+100,0) -> 100 | AR17: =IF(AN17-AQ17>200,IF(AN17-AQ17>50200,50000,AN17-AQ17-200),0) -> 10351.23783 | AS17: =IF(SUM(AR$3:AR16)>50000-1100,0,IF(SUM(AR$3:AR17)>50000-1100,50000-1100-SUM(AR$3:AR16),AR17)) -> 0 | AT17: =ROUND(AS17+100,0) -> 100 | AV17: =ROUND(AN17-AQ17-AT17,0) -> 10451 | AX17: 100 | AY17: ?eventType=init&contractNo=701902796&reserveViewRoot=1&type=&sub_type=&local=&gmn=F&smn=06&lmn=03&fmn=01 | AZ17: 100 | BA17: ?eventType=init&contractNo=701952156&reserveViewRoot=1&type=order&sub_type=fu&local=null#anchor | BB17: 25505 | BC17: ?eventType=init&contractNo=701762783&reserveViewRoot=1&type=null&sub_type=null&local=null&gmn=F&smn=06&lmn=03&fmn=01#anchor | BE17: =IF(AL17<0,AL17*-1,0) -> 0 | BF17: =ROUND(IF(AL17>0,AL17-AL17/AL$18*BE$18,0),0) -> 12126 | BG17: ?eventType=init&dscrCd=5013835&SS_URL=detail/index.html&gmn=F&smn=01&lmn=&fmn=
I18: =I17*('15年'!C$70*2) -> 20817048.39 | L18: =L17-I18 -> 41616988.08 | M18: =I18/L17/2 -> 0.166712338 | N18: =IF(N3>0,N3,0)+IF(N4>0,N4,0)+IF(N5>0,N5,0)+IF(N6>0,N6,0)+IF(N7>0,N7,0)+IF(N8>0,N8,0)+IF(N9>0,N9,0)+IF(N10>0,N10,0)+IF(N11>0,N11,0)+IF(N12>0,N12,0)+IF(N14>0,N14,0)+IF(N15>0,N15,0)+IF(N16>0,N16,0) -> 19602534.33 | AE18: =140000+21100 -> 161100 | AL18: =IF(AL3>300,AL3-300,0)+IF(AL4>300,AL4-300,0)+IF(AL5>300,AL5-300,0)+IF(AL6>300,AL6-300,0)+IF(AL7>300,AL7-300,0)+IF(AL8>300,AL8-300,0)+IF(AL9>300,AL9-300,0)+IF(AL10>21400,AL10-21400,0)+IF(AL11>300,AL11-300,0)+IF(AL12>300,AL12-300,0)+IF(AL13>300,AL13-300,0)+IF(AL14>300,AL14-300,0)+IF(AL15>300,AL15-300,0)+IF(AL16>300,AL16-300,0)+IF(AI17>300,AI17-300,0) -> 2729249 | AM18: =SUM(AM3:AM17) -> 2592549 | AN18: =AL18-AM18 -> 136700 | AO18: =IF(AN18>300,IF(AN18>50300,50000,AN18-300),0) -> 50000 | AQ18: =AN18+300*10+21400 -> 161100 | AR18: =IF(AN18-AQ18>200,IF(AN18-AQ18>50200,50000,AN18-AQ18-200),0) -> 0 | BE18: =SUM(BE3:BE17) -> 2569349
A19: 家計 /資産クラス | F19: ←100% 換算 | G19: グロ3 | H19: グロ3 | I19: レバレッジ換算後 評価額 | J19: 比率 | K19: 乖離 | L19: レバレッジ換算前 評価額 | M19: 比率 | N19: 評価 損益 税引前 | O19: 比率 | P19: 非課税 損益 | Q19: 評価 損益 実税引 | R19: 損益率 | S19: 評価 損益 理論税引 | T19: 損益率 | U19: レバレッジ換算後 評価額 | V19: 比率 | W19: レバレッジ換算前 評価額 | X19: 比率 | Y19: 評価 損益 実税引 | Z19: 損益率 | AA19: 評価 損益 理論税引 | AB19: 損益率 | AC19: レバ無 リバランス | AD19: グロ3 積立額レバ無 | AE19: 積立額 レバ無 グロ有 | AF19: 積立額 レバ無 グロ無 | AG19: 期間 | AH19: GAP分散ﾘﾊﾞﾗﾝｽ(ｸﾞﾛ3) | AI19: 積立額/月(ｸﾞﾛ3) | AJ19: ギャップ リバランス結果(グロ3分) | AK19: GAP 分散ﾘﾊﾞﾗﾝｽ | AL19: 月当たり 積立額 | AN19: 月当たり積立額（調整後) | AQ19: カード枠積立設定 | AT19: カード枠積立設定 美貴 | AV19: カード以外積立設定 | AX19: 現在値 | AY19: URL | AZ19: 現在値 | BA19: URL | BB19: 現在値 | BC19: URL | BF19: スポット 購入設定
A20: 国内債券 | B20: =B3 -> 0.35 | C20: 0.1636912548 | D20: 0.05729193918 | E20: 0.04267739859 | F20: 0.04694513845 | G20: 0.4 | H20: 0.03636363636 | I20: =L20-VLOOKUP("日興－グローバル３倍３分法ファンド（１年決算型）特定/一般",'元(SBI夫)VLOOKUP'!A:L,6,FALSE)*H20+VLOOKUP("日興－グローバル３倍３分法ファンド（１年決算型）特定/一般",'元(SBI夫)VLOOKUP'!A:L,6,FALSE)*G20-VLOOKUP("グローバル3倍3分法ファンド(1年決算型)特定保有中再投資型",'楽天 子(VLOOKUP)'!A:L,6,FALSE)*H20+VLOOKUP("グローバル3倍3分法ファンド(1年決算型)特定保有中再投資型",'楽天 子(VLOOKUP)'!A:L,6,FALSE)*G20-VLOOKUP("日興－グローバル３倍３分法ファンド（１年決算型）特定/一般",'元(SBI妻)VLOOKUP'!A:L,6,FALSE)*H20+VLOOKUP("日興－グローバル３倍３分法ファンド（１年決算型）特定/一般",'元(SBI妻)VLOOKUP'!A:L,6,FALSE)*G20 -> 1476499 | J20: =I20/I$33 -> 0.04544963427 | K20: =J20-D20 -> -0.01184230491 | L20: =VLOOKUP("eMAXIS Slim 国内債券インデックス特定保有中再投資型",'楽天 子(VLOOKUP)'!A:L,6,FALSE)+VLOOKUP("三菱ＵＦＪ国際－ｅＭＡＸＩＳ Ｓｌｉｍ 国内債券インデックス特定/一般",'元(SBI夫)VLOOKUP'!A:L,6,FALSE)+VLOOKUP("三菱ＵＦＪ国際－ｅＭＡＸＩＳ Ｓｌｉｍ 国内債券インデックスNISA/つみたてNISA",'元(SBI夫)VLOOKUP'!A:L,6,FALSE)+VLOOKUP("日興－グローバル３倍３分法ファンド（１年決算型）特定/一般",'元(SBI夫)VLOOKUP'!A:L,6,FALSE)*H20+VLOOKUP("グローバル3倍3分法ファンド(1年決算型)特定保有中再投資型",'楽天 子(VLOOKUP)'!A:L,6,FALSE)*H20+VLOOKUP("日興－グローバル３倍３分法ファンド（１年決算型）特定/一般",'元(SBI妻)VLOOKUP'!A:L,6,FALSE)*H20+VLOOKUP("三菱ＵＦＪ国際－ｅＭＡＸＩＳ Ｓｌｉｍ 国内債券インデックス特定/一般",'元(SBI妻)VLOOKUP'!A:L,6,FALSE) -> 1020653.545 | M20: =L20/L$33 -> 0.0345274384 | N20: =VLOOKUP("eMAXIS Slim 国内債券インデックス特定すべて再投資型",'楽天 子(VLOOKUP)'!A:L,12,FALSE)+VLOOKUP("三菱ＵＦＪ国際－ｅＭＡＸＩＳ Ｓｌｉｍ 国内債券インデックス特定/一般",'元(SBI夫)VLOOKUP'!A:L,12,FALSE)+VLOOKUP("日興－グローバル３倍３分法ファンド（１年決算型）特定/一般",'元(SBI夫)VLOOKUP'!A:L,12,FALSE)*G20/3+VLOOKUP("グローバル3倍3分法ファンド(1年決算型)特定すべて再投資型",'楽天 子(VLOOKUP)'!A:L,12,FALSE)*G20/3+VLOOKUP("日興－グローバル３倍３分法ファンド（１年決算型）特定/一般",'元(SBI妻)VLOOKUP'!A:L,12,FALSE)*G20/3+VLOOKUP("三菱ＵＦＪ国際－ｅＭＡＸＩＳ Ｓｌｉｍ 国内債券インデックス特定/一般",'元(SBI妻)VLOOKUP'!A:L,12,FALSE) -> -38432.8 | O20: =IF(税金!C$3<メイン!N$34,IF(N20>0,N20/N$34,0),メイン!N20/メイン!N$33) -> 0 | P20: =+VLOOKUP("三菱ＵＦＪ国際－ｅＭＡＸＩＳ Ｓｌｉｍ 国内債券インデックスNISA/つみたてNISA",'元(SBI夫)VLOOKUP'!A:L,12,FALSE) -> -2369 | Q20: =N20+P20-税金!C$3*メイン!O20 -> -40801.8 | R20: =Q20/($L20-Q20) -> -0.03843948799 | S20: =IF(AND(N20>0,N$33>0),N20-N$33*20.315%*O20,N20)+P20 -> -40801.8 | T20: =S20/($L20-S20) -> -0.03843948799 | U20: =I20 -> 1476499 | V20: =U20/U$33 -> 0.04505626853 | W20: =L20 -> 1020653.545 | X20: =W20/W$33 -> 0.0341993073 | Y20: =Q20+SUM(個別履歴!H:H) -> 711212.7 | Z20: =Y20/(W20-AA20) -> 2.29838016 | AA20: =S20+SUM(個別履歴!H:H) -> 711212.7 | AB20: =AA20/(W20-AA20) -> 2.29838016 | AC20: =L$33*F20 -> 1387728.839 | AD20: =ROUND(AD$33*H20,0) -> 302 | AE20: =ROUND(AE$33*$F20,0) -> 8816 | AF20: =AE20-AD20 -> 8514 | AG20: 1 | AH20: =ROUND(AH$33*H20,0) -> 1937 | AI20: =AH20+AD20 -> 2239 | AJ20: =L20+AH20*AG20 -> 1022590.545 | AK20: =ROUND((AC20-AJ20)/AG20,0) -> 365138 | AL20: =AK20+AF20 -> 373652 | AM20: =IF(AL20<300,AL20*-1+300,0) -> 0 | AN20: =IF(AL20>300,AL20-(AL20-300)/AL$34*AM$34,300) -> 37752.82781 | AO20: =IF(AN20>300,IF(AN20>50300,50000,AN20-300),0) -> 37452.82781 | AP20: =IF(AO20>50000-1100,50000-1100,AO20) -> 37452.82781 | AQ20: =ROUND(AP20+100,0) -> 37553 | AR20: =IF(AN20-AQ20>200,IF(AN20-AQ20>16867,16667,AN20-AQ20-200),0) -> 0 | AS20: =IF(AR20>16667-1100,16667-1100,AR20) -> 0 | AT20: =ROUND(AS20+100,0) -> 100 | AV20: =ROUND(AN20-AQ20-AT20,0) -> 100 | AX20: 25797 | AY20: https://site0.sbisec.co.jp/marble/fund/detail/achievement.do?Param6=203318172 | AZ20: 100 | BA20: =AY20 -> https://site0.sbisec.co.jp/marble/fund/detail/achievement.do?Param6=203318172 | BB20: 100 | BC20: =AY20 -> https://site0.sbisec.co.jp/marble/fund/detail/achievement.do?Param6=203318172 | BE20: =IF(AL20<0,AL20*-1,0) -> 0 | BF20: =ROUND(IF(AL20>0,AL20-AL20/AL$35*BE$34,0),0) -> 54194
A21: 外国債券ﾍｯｼﾞ | B21: 0.2571630174 | C21: 0.1636912548 | D21: 0.04209533701 | E21: 0.04209533701 | F21: 0.04630487071 | G21: 0 | H21: 0 | I21: =L21 -> 775286 | J21: 0.02386487574 | K21: =J21-D21 -> -0.01823046127 | L21: =VLOOKUP("Smart-i 先進国債券インデックス(為替ヘッジあり)特定保有中再投資型",'楽天 子(VLOOKUP)'!A:L,6,FALSE)+VLOOKUP("りそな－Ｓｍａｒｔ－ｉ 先進国債券インデックス（為替ヘッジあり）特定/一般",'元(SBI夫)VLOOKUP'!A:L,6,FALSE)+VLOOKUP("三菱ＵＦＪ国際－ｅＭＡＸＩＳ Ｓｌｉｍ 先進国債券インデックス特定/一般",'元(SBI夫)VLOOKUP'!A:L,6,FALSE)+VLOOKUP("Ｏｎｅ－たわらノーロード 先進国債券特定/一般",'元(SBI夫)VLOOKUP'!A:L,6,FALSE)+VLOOKUP("Ｏｎｅ－たわらノーロード 先進国債券NISA/つみたてNISA",'元(SBI夫)VLOOKUP'!A:L,6,FALSE)+VLOOKUP("りそな－Ｓｍａｒｔ－ｉ 先進国債券インデックス（為替ヘッジあり）特定/一般",'元(SBI妻)VLOOKUP'!A:L,6,FALSE) -> 775286 | M21: 0.0262269599 | N21: =VLOOKUP("Smart-i 先進国債券インデックス(為替ヘッジあり)特定すべて再投資型",'楽天 子(VLOOKUP)'!A:L,12,FALSE)+VLOOKUP("りそな－Ｓｍａｒｔ－ｉ 先進国債券インデックス（為替ヘッジあり）特定/一般",'元(SBI夫)VLOOKUP'!A:L,12,FALSE)+VLOOKUP("三菱ＵＦＪ国際－ｅＭＡＸＩＳ Ｓｌｉｍ 先進国債券インデックス特定/一般",'元(SBI夫)VLOOKUP'!A:L,12,FALSE)+VLOOKUP("Ｏｎｅ－たわらノーロード 先進国債券特定/一般",'元(SBI夫)VLOOKUP'!A:L,12,FALSE)+VLOOKUP("りそな－Ｓｍａｒｔ－ｉ 先進国債券インデックス（為替ヘッジあり）特定/一般",'元(SBI妻)VLOOKUP'!A:L,12,FALSE) -> -210551 | O21: =IF(税金!C$3<メイン!N$34,IF(N21>0,N21/N$34,0),メイン!N21/メイン!N$33) -> 0 | P21: =VLOOKUP("Ｏｎｅ－たわらノーロード 先進国債券NISA/つみたてNISA",'元(SBI夫)VLOOKUP'!A:L,12,FALSE) -> 1204 | Q21: =N21+P21-税金!C$3*メイン!O21 -> -209347 | R21: -0.2126142431 | S21: -209347 | T21: =S21/($L21-S21) -> -0.2126142431 | U21: =I21 -> 775286 | V21: 0.02365832568 | W21: 775286 | X21: 0.0259777123 | Y21: =Q21 -> -209347 | Z21: =Y21/(W21-AA21) -> -0.2126142431 | AA21: =S21 -> -209347 | AB21: -0.2126142431 | AC21: =L$33*F21 -> 1368802.108 | AE21: =ROUND(AE$33*$F21,0) -> 8696 | AF21: =AE21-AD21 -> 8696 | AG21: =AG20 -> 1 | AI21: 0 | AJ21: 775286 | AK21: =ROUND((AC21-AJ21)/AG21,0) -> 593516 | AL21: 602212 | AM21: =IF(AL21<300,AL21*-1+300,0) -> 0 | AN21: =IF(AL21>300,AL21-(AL21-300)/AL$34*AM$34,300) -> 60680.83763 | AO21: =IF(AN21>300,IF(AN21>50300,50000,AN21-300),0) -> 50000 | AP21: =IF(SUM(AO$20:AO20)>50000-1100,0,IF(SUM(AO$20:AO21)>50000-1100,50000-1100-SUM(AO$20:AO20),AO21)) -> 11447.17219 | AQ21: =ROUND(AP21+100,0) -> 11547 | AR21: =IF(AN21-AQ21>200,IF(AN21-AQ21>16867,16667,AN21-AQ21-200),0) -> 16667 | AS21: =IF(SUM(AR$20:AR20)>16667-1100,0,IF(SUM(AR$20:AR21)>16667-1100,16667-1100-SUM(AR$20:AR20),AR21)) -> 15567 | AT21: =ROUND(AS21+100,0) -> 15667 | AV21: =ROUND(AN21-AQ21-AT21,0) -> 33467 | AX21: 23303 | AY21: https://site0.sbisec.co.jp/marble/fund/detail/achievement.do?Param6=2AJ315178 | AZ21: 14143 | BA21: =AY21 -> https://site0.sbisec.co.jp/marble/fund/detail/achievement.do?Param6=2AJ315178 | BB21: 100 | BC21: =AY21 -> https://site0.sbisec.co.jp/marble/fund/detail/achievement.do?Param6=2AJ315178 | BE21: =IF(AL21<0,AL21*-1,0) -> 0 | BF21: =ROUND(IF(AL21>0,AL21-AL21/AL$35*BE$34,0),0) -> 87345
A22: 外国債券 | B22: 0 | C22: 0.1636912548 | D22: 0 | E22: 0 | F22: 0 | G22: 0 | H22: 0 | I22: =L22 -> 0 | J22: 0 | K22: 0 | M22: 0 | O22: =IF(税金!C$3<メイン!N$34,IF(N22>0,N22/N$34,0),メイン!N22/メイン!N$33) -> 0 | Q22: =N22+P22-税金!C$3*メイン!O22 -> 0 | S22: 0 | U22: 0 | V22: 0 | W22: 0 | X22: 0 | Y22: 0 | AA22: 0 | AC22: 0 | AE22: =ROUND(AE$33*$F22,0) -> 0 | AF22: 0 | AG22: 1 | AI22: 0 | AJ22: =L22+AH22*AG22 -> 0 | AK22: =ROUND((AC22-AJ22)/AG22,0) -> 0 | AL22: 0
A23: 外国債券ﾚﾊﾞ | B23: 0.3928369826 | C23: =C6 -> 0.1636912548 | D23: 0.06430397862 | E23: 0.005845816238 | F23: 0.006430397862 | G23: 1.6 | H23: 0.1454545455 | I23: =L23-VLOOKUP("日興－グローバル３倍３分法ファンド（１年決算型）特定/一般",'元(SBI夫)VLOOKUP'!A:L,6,FALSE)*H23+VLOOKUP("日興－グローバル３倍３分法ファンド（１年決算型）特定/一般",'元(SBI夫)VLOOKUP'!A:L,6,FALSE)*G23-VLOOKUP("グローバル3倍3分法ファンド(1年決算型)特定保有中再投資型",'楽天 子(VLOOKUP)'!A:L,6,FALSE)*H23+VLOOKUP("グローバル3倍3分法ファンド(1年決算型)特定保有中再投資型",'楽天 子(VLOOKUP)'!A:L,6,FALSE)*G23-VLOOKUP("日興－グローバル３倍３分法ファンド（１年決算型）特定/一般",'元(SBI妻)VLOOKUP'!A:L,6,FALSE)*H23+VLOOKUP("日興－グローバル３倍３分法ファンド（１年決算型）特定/一般",'元(SBI妻)VLOOKUP'!A:L,6,FALSE)*G23 -> 2005720 | J23: 0.06174013017 | K23: -0.002563848449 | L23: =+VLOOKUP("日興－グローバル３倍３分法ファンド（１年決算型）特定/一般",'元(SBI夫)VLOOKUP'!A:L,6,FALSE)*H23+VLOOKUP("グローバル3倍3分法ファンド(1年決算型)特定保有中再投資型",'楽天 子(VLOOKUP)'!A:L,6,FALSE)*H23+VLOOKUP("日興－グローバル３倍３分法ファンド（１年決算型）特定/一般",'元(SBI妻)VLOOKUP'!A:L,6,FALSE)*H23 -> 182338.1818 | M23: 0.006168273622 | N23: =+VLOOKUP("日興－グローバル３倍３分法ファンド（１年決算型）特定/一般",'元(SBI夫)VLOOKUP'!A:L,12,FALSE)*G23/3+VLOOKUP("グローバル3倍3分法ファンド(1年決算型)特定すべて再投資型",'楽天 子(VLOOKUP)'!A:L,12,FALSE)*G23/3+VLOOKUP("日興－グローバル３倍３分法ファンド（１年決算型）特定/一般",'元(SBI妻)VLOOKUP'!A:L,12,FALSE)*G23/3 -> -34963.2 | O23: =IF(税金!C$3<メイン!N$34,IF(N23>0,N23/N$34,0),メイン!N23/メイン!N$33) -> 0 | P23: 0 | Q23: =N23+P23-税金!C$3*メイン!O23 -> -34963.2 | R23: -0.1608972741 | S23: -34963.2 | T23: -0.1608972741 | U23: 2005720 | V23: 0.06120577048 | W23: 182338.1818 | X23: 0.006109653506 | Y23: -34963.2 | Z23: -0.1608972741 | AA23: -34963.2 | AB23: -0.1608972741 | AC23: 190086.7449 | AD23: =ROUND(AD$33*H23,0) -> 1208 | AE23: =AD23 -> 1208 | AF23: 0 | AG23: 1 | AH23: =ROUND((AC23-L23)/AG23,0) -> 7749 | AI23: 8957 | AJ23: 190087.1818 | AK23: 0 | AL23: 0
A24: ゴールド | B24: 0.03 | C24: 0.005062616128 | D24: 0.005062616128 | E24: 0.005062616128 | F24: 0.005568877741 | G24: 0 | H24: 0 | I24: =L24 -> 487523 | J24: 0.01500694687 | K24: 0.009944330744 | L24: =VLOOKUP("SMT ゴールドインデックス・オープン(為替ヘッジあり)特定保有中再投資型",'楽天 子(VLOOKUP)'!A:L,6,FALSE)+VLOOKUP("日興－ゴールド・ファンド（為替ヘッジあり）特定/一般",'元(SBI夫)VLOOKUP'!A:L,6,FALSE)+VLOOKUP("三井住友ＴＡＭ－ＳＭＴ ゴールドインデックス・オープン（為替ヘッジあり）特定/一般",'元(SBI夫)VLOOKUP'!A:L,6,FALSE)+VLOOKUP("三井住友ＴＡＭ－ＳＭＴ ゴールドインデックス・オープン（為替ヘッジあり）特定/一般",'元(SBI妻)VLOOKUP'!A:L,6,FALSE) -> 487523 | M24: 0.01649229597 | N24: =VLOOKUP("SMT ゴールドインデックス・オープン(為替ヘッジあり)特定すべて再投資型",'楽天 子(VLOOKUP)'!A:L,12,FALSE)+VLOOKUP("日興－ゴールド・ファンド（為替ヘッジあり）特定/一般",'元(SBI夫)VLOOKUP'!A:L,12,FALSE)+VLOOKUP("三井住友ＴＡＭ－ＳＭＴ ゴールドインデックス・オープン（為替ヘッジあり）特定/一般",'元(SBI夫)VLOOKUP'!A:L,12,FALSE)+VLOOKUP("三井住友ＴＡＭ－ＳＭＴ ゴールドインデックス・オープン（為替ヘッジあり）特定/一般",'元(SBI妻)VLOOKUP'!A:L,12,FALSE) -> 5085 | O24: =IF(税金!C$3<メイン!N$34,IF(N24>0,N24/N$34,0),メイン!N24/メイン!N$33) -> 0.001197958656 | P24: 0 | Q24: =N24+P24-税金!C$3*メイン!O24 -> 5078.551389 | R24: 0.01052670707 | S24: 4121.822835 | T24: 0.008526712448 | U24: 487523 | V24: 0.01487706202 | W24: 487523 | X24: 0.01633556163 | Y24: 5078.551389 | Z24: 0.01050587303 | AA24: 4121.822835 | AB24: 0.008526712448 | AC24: 164619.6496 | AE24: =ROUND(AE$33*$F24,0) -> 1046 | AF24: 1046 | AG24: 1 | AI24: 0 | AJ24: 487523 | AK24: -322903 | AL24: -321857 | AM24: =IF(AL24<300,AL24*-1+300,0) -> 322157 | AN24: =IF(AL24>300,AL24-(AL24-300)/AL$34*AM$34,300) -> 300 | AO24: =IF(AN24>300,IF(AN24>50300,50000,AN24-300),0) -> 0 | AP24: =IF(SUM(AO$20:AO23)>50000-1100,0,IF(SUM(AO$20:AO24)>50000-1100,50000-1100-SUM(AO$20:AO23),AO24)) -> 0 | AQ24: =ROUND(AP24+100,0) -> 100 | AR24: =IF(AN24-AQ24>200,IF(AN24-AQ24>16867,16667,AN24-AQ24-200),0) -> 0 | AS24: =IF(SUM(AR$20:AR23)>16667-1100,0,IF(SUM(AR$20:AR24)>16667-1100,16667-1100-SUM(AR$20:AR23),AR24)) -> 0 | AT24: =ROUND(AS24+100,0) -> 100 | AV24: =ROUND(AN24-AQ24-AT24,0) -> 100 | AX24: 100 | AY24: https://site0.sbisec.co.jp/marble/fund/detail/achievement.do?Param6=26431717B | AZ24: 1624 | BA24: =AY24 -> https://site0.sbisec.co.jp/marble/fund/detail/achievement.do?Param6=26431717B | BB24: 4643 | BC24: =AY24 -> https://site0.sbisec.co.jp/marble/fund/detail/achievement.do?Param6=26431717B | BE24: =IF(AL24<0,AL24*-1,0) -> 321857 | BF24: =ROUND(IF(AL24>0,AL24-AL24/AL$35*BE$34,0),0) -> 0
A25: 米国株 | B25: 0.03 | C25: 0.7896838226 | D25: 0.02369051468 | E25: 0.02369051468 | F25: 0.02605956615 | G25: 0 | H25: 0 | I25: =L25 -> 818433 | J25: 0.02519302792 | K25: 0.00150251324 | L25: =VLOOKUP("eMAXIS Slim 米国株式(S&P500)特定保有中再投資型",'楽天 子(VLOOKUP)'!A:L,6,FALSE)+VLOOKUP("三菱ＵＦＪ国際－ｅＭＡＸＩＳ Ｓｌｉｍ 米国株式（Ｓ＆Ｐ５００）NISA/つみたてNISA",'元(SBI妻)VLOOKUP'!A:M,6,FALSE)+VLOOKUP("三菱ＵＦＪ国際－ｅＭＡＸＩＳ Ｓｌｉｍ 米国株式（Ｓ＆Ｐ５００）NISA/つみたてNISA",'元(SBI夫)VLOOKUP'!A:L,6,FALSE)+VLOOKUP("三菱ＵＦＪ国際－ｅＭＡＸＩＳ Ｓｌｉｍ 米国株式（Ｓ＆Ｐ５００）特定/一般",'元(SBI夫)VLOOKUP'!A:L,6,FALSE)+VLOOKUP("三菱ＵＦＪ国際－ｅＭＡＸＩＳ Ｓｌｉｍ 米国株式（Ｓ＆Ｐ５００）特定/一般",'元(SBI妻)VLOOKUP'!A:L,6,FALSE) -> 818433 | M25: 0.02768656918 | N25: =VLOOKUP("eMAXIS Slim 米国株式(S&P500)特定すべて再投資型",'楽天 子(VLOOKUP)'!A:L,12,FALSE)+VLOOKUP("三菱ＵＦＪ国際－ｅＭＡＸＩＳ Ｓｌｉｍ 米国株式（Ｓ＆Ｐ５００）特定/一般",'元(SBI夫)VLOOKUP'!A:L,12,FALSE)+VLOOKUP("三菱ＵＦＪ国際－ｅＭＡＸＩＳ Ｓｌｉｍ 米国株式（Ｓ＆Ｐ５００）特定/一般",'元(SBI妻)VLOOKUP'!A:L,12,FALSE) -> 114364 | O25: =IF(税金!C$3<メイン!N$34,IF(N25>0,N25/N$34,0),メイン!N25/メイン!N$33) -> 0.0269426438 | P25: =VLOOKUP("三菱ＵＦＪ国際－ｅＭＡＸＩＳ Ｓｌｉｍ 米国株式（Ｓ＆Ｐ５００）NISA/つみたてNISA",'元(SBI妻)VLOOKUP'!A:M,12,FALSE)+VLOOKUP("三菱ＵＦＪ国際－ｅＭＡＸＩＳ Ｓｌｉｍ 米国株式（Ｓ＆Ｐ５００）NISA/つみたてNISA",'元(SBI夫)VLOOKUP'!A:L,12,FALSE) -> 164389 | Q25: =N25+P25-税金!C$3*メイン!O25 -> 278607.9677 | R25: 0.5161079074 | S25: 257090.7004 | T25: 0.4579927446 | U25: 818433 | V25: 0.02497498273 | W25: 818433 | X25: 0.02742345019 | Y25: 278607.9677 | Z25: 0.4963245563 | AA25: 257090.7004 | AB25: 0.4579927446 | AC25: 770337.7317 | AE25: =ROUND(AE$33*$F25,0) -> 4894 | AF25: 4894 | AG25: 1 | AI25: 0 | AJ25: 818433 | AK25: -48095 | AL25: =AK25+AF25+AF26+AK26 -> -80271 | AM25: =IF(AL25<300,AL25*-1+300,0) -> 80571 | AN25: =IF(AL25>300,AL25-(AL25-300)/AL$34*AM$34,300) -> 300 | AO25: =IF(AN25>300,IF(AN25>50300,50000,AN25-300),0) -> 0 | AP25: =IF(SUM(AO$20:AO24)>50000-1100,0,IF(SUM(AO$20:AO25)>50000-1100,50000-1100-SUM(AO$20:AO24),AO25)) -> 0 | AQ25: =ROUND(AP25+100,0) -> 100 | AR25: =IF(AN25-AQ25>200,IF(AN25-AQ25>16867,16667,AN25-AQ25-200),0) -> 0 | AS25: =IF(SUM(AR$20:AR24)>16667-1100,0,IF(SUM(AR$20:AR25)>16667-1100,16667-1100-SUM(AR$20:AR24),AR25)) -> 0 | AT25: =ROUND(AS25+100,0) -> 100 | AV25: =ROUND(AN25-AQ25-AT25,0) -> 100 | AX25: 100 | AY25: https://site0.sbisec.co.jp/marble/fund/detail/achievement.do?Param6=203311187 | AZ25: 100 | BA25: =AY25 -> https://site0.sbisec.co.jp/marble/fund/detail/achievement.do?Param6=203311187 | BB25: 100 | BC25: =AY25 -> https://site0.sbisec.co.jp/marble/fund/detail/achievement.do?Param6=203311187 | BE25: =IF(AL25<0,AL25*-1,0) -> 80271 | BF25: =ROUND(IF(AL25>0,AL25-AL25/AL$35*BE$34,0),0) -> 0
A26: 米国株ﾚﾊﾞ | B26: 0.02 | C26: 0.7896838226 | D26: 0.01579367645 | E26: 0.005264558817 | F26: 0.005791014699 | G26: 0 | H26: 0 | I26: =L26*3 -> 628031.034 | J26: 0.01933206918 | K26: 0.003538392725 | L26: =15*VLOOKUP("SPXL",'元(楽天)'!B:O,8,FALSE)*VLOOKUP("米ドル",'元(楽天)'!A:B,2,FALSE) -> 209343.678 | M26: 0.007081835927 | N26: =(VLOOKUP("SPXL",'元(楽天)'!B:O,8,FALSE)-89.19)*VLOOKUP("米ドル",'元(楽天)'!A:B,2,FALSE)*15 -> 18994.38 | O26: =IF(税金!C$3<メイン!N$34,IF(N26>0,N26/N$34,0),メイン!N26/メイン!N$33) -> 0.004474824372 | Q26: =N26+P26-税金!C$3*メイン!O26 -> 18970.29202 | R26: 0.09964781539 | S26: 15396.55245 | T26: 0.07938530879 | U26: 628031.034 | V26: 0.01916475047 | W26: =L26 -> 209343.678 | X26: 0.007014533782 | Y26: 18970.29202 | Z26: 0.09781166886 | AA26: =S26 -> 15396.55245 | AB26: =AA26/(W26-AA26) -> 0.07938530879 | AC26: 171186.1626 | AE26: =ROUND(AE$33*$F26,0) -> 1088 | AF26: =AE26-AD26 -> 1088 | AG26: 1 | AI26: 0 | AJ26: =L26+AH26*AG26 -> 209343.678 | AK26: =ROUND((AC26-AJ26)/AG26,0) -> -38158
A27: 先進国株 | B27: 0.5703240764 | C27: 0.7896838226 | D27: 0.4503756968 | E27: 0.4503756968 | F27: 0.4954132664 | G27: 0.2 | H27: 0.2 | I27: =L27-VLOOKUP("日興－グローバル３倍３分法ファンド（１年決算型）特定/一般",'元(SBI夫)VLOOKUP'!A:L,6,FALSE)*H27+VLOOKUP("日興－グローバル３倍３分法ファンド（１年決算型）特定/一般",'元(SBI夫)VLOOKUP'!A:L,6,FALSE)*G27-VLOOKUP("グローバル3倍3分法ファンド(1年決算型)特定保有中再投資型",'楽天 子(VLOOKUP)'!A:L,6,FALSE)*H27+VLOOKUP("グローバル3倍3分法ファンド(1年決算型)特定保有中再投資型",'楽天 子(VLOOKUP)'!A:L,6,FALSE)*G27-VLOOKUP("日興－グローバル３倍３分法ファンド（１年決算型）特定/一般",'元(SBI妻)VLOOKUP'!A:L,6,FALSE)*H27+VLOOKUP("日興－グローバル３倍３分法ファンド（１年決算型）特定/一般",'元(SBI妻)VLOOKUP'!A:L,6,FALSE)*G27 -> 14468085 | J27: 0.4453570046 | K27: -0.005018692194 | L27: ='元(DC)'!C5+VLOOKUP("eMAXIS Slim 先進国株式インデックス特定保有中再投資型",'楽天 子(VLOOKUP)'!A:L,6,FALSE)+VLOOKUP("三菱ＵＦＪ国際－ｅＭＡＸＩＳ Ｓｌｉｍ 先進国株式インデックス特定/一般",'元(SBI夫)VLOOKUP'!A:L,6,FALSE)+VLOOKUP("三菱ＵＦＪ国際－ｅＭＡＸＩＳ Ｓｌｉｍ 先進国株式インデックスNISA/つみたてNISA",'元(SBI夫)VLOOKUP'!A:L,6,FALSE)+VLOOKUP("三井住友ＴＡＭ－ＳＭＴ グローバル株式インデックス・オープンNISA/つみたてNISA",'元(SBI夫)VLOOKUP'!A:L,6,FALSE)+VLOOKUP("Ｏｎｅ－たわらノーロード 先進国株式NISA/つみたてNISA",'元(SBI夫)VLOOKUP'!A:L,6,FALSE)+VLOOKUP("Ｏｎｅ－たわらノーロード 先進国株式特定/一般",'元(SBI夫)VLOOKUP'!A:L,6,FALSE)+VLOOKUP("Ｏｎｅ－たわらノーロード 先進国株式NISA/つみたてNISA",'元(SBI妻)VLOOKUP'!A:L,6,FALSE)+VLOOKUP("eMAXIS Slim 先進国株式インデックスNISA保有中再投資型",'楽天 ｼﾞｭﾆｱ(VLOOKUP)'!A:L,11,FALSE)+VLOOKUP("日興－グローバル３倍３分法ファンド（１年決算型）特定/一般",'元(SBI夫)VLOOKUP'!A:L,6,FALSE)*H27+VLOOKUP("グローバル3倍3分法ファンド(1年決算型)特定保有中再投資型",'楽天 子(VLOOKUP)'!A:L,6,FALSE)*H27+VLOOKUP("日興－グローバル３倍３分法ファンド（１年決算型）特定/一般",'元(SBI妻)VLOOKUP'!A:L,6,FALSE)*H27+VLOOKUP("三菱ＵＦＪ国際－ｅＭＡＸＩＳ Ｓｌｉｍ 先進国株式インデックス特定/一般",'元(SBI妻)VLOOKUP'!A:L,6,FALSE) -> 14468085 | M27: 0.4894372982 | N27: =VLOOKUP("eMAXIS Slim 先進国株式インデックス特定すべて再投資型",'楽天 子(VLOOKUP)'!A:L,12,FALSE)+VLOOKUP("三菱ＵＦＪ国際－ｅＭＡＸＩＳ Ｓｌｉｍ 先進国株式インデックス特定/一般",'元(SBI夫)VLOOKUP'!A:L,12,FALSE)+VLOOKUP("Ｏｎｅ－たわらノーロード 先進国株式特定/一般",'元(SBI夫)VLOOKUP'!A:L,12,FALSE)+VLOOKUP("日興－グローバル３倍３分法ファンド（１年決算型）特定/一般",'元(SBI夫)VLOOKUP'!A:L,12,FALSE)*G27/3+VLOOKUP("グローバル3倍3分法ファンド(1年決算型)特定すべて再投資型",'楽天 子(VLOOKUP)'!A:L,12,FALSE)*G27/3+VLOOKUP("日興－グローバル３倍３分法ファンド（１年決算型）特定/一般",'元(SBI妻)VLOOKUP'!A:L,12,FALSE)*G27/3+VLOOKUP("三菱ＵＦＪ国際－ｅＭＡＸＩＳ Ｓｌｉｍ 先進国株式インデックス特定/一般",'元(SBI妻)VLOOKUP'!A:L,12,FALSE) -> 2462476.6 | O27: =IF(税金!C$3<メイン!N$34,IF(N27>0,N27/N$34,0),メイン!N27/メイン!N$33) -> 0.5801268747 | P27: ='元(DC)'!D5+VLOOKUP("三菱ＵＦＪ国際－ｅＭＡＸＩＳ Ｓｌｉｍ 先進国株式インデックスNISA/つみたてNISA",'元(SBI夫)VLOOKUP'!A:L,12,FALSE)+VLOOKUP("三井住友ＴＡＭ－ＳＭＴ グローバル株式インデックス・オープンNISA/つみたてNISA",'元(SBI夫)VLOOKUP'!A:L,12,FALSE)+VLOOKUP("Ｏｎｅ－たわらノーロード 先進国株式NISA/つみたてNISA",'元(SBI夫)VLOOKUP'!A:L,12,FALSE)+VLOOKUP("Ｏｎｅ－たわらノーロード 先進国株式NISA/つみたてNISA",'元(SBI妻)VLOOKUP'!A:L,12,FALSE)+VLOOKUP("三菱ＵＦＪ国際－ｅＭＡＸＩＳ Ｓｌｉｍ 先進国株式インデックスNISA/つみたてNISA",'元(SBI妻)VLOOKUP'!A:L,12,FALSE)+VLOOKUP("eMAXIS Slim 先進国株式インデックスNISAすべて再投資型",'楽天 ｼﾞｭﾆｱ(VLOOKUP)'!A:L,12,FALSE) -> 2301758 | Q27: =N27+P27-税金!C$3*メイン!O27 -> 4761111.777 | R27: 0.4904836624 | S27: =IF(AND(N27>0,N$33>0),N27-N$33*20.315%*O27,N27)+P27 -> 4297803.679 | T27: =S27/($L27-S27) -> 0.4225845425 | U27: 14468085 | V27: 0.4415024479 | W27: 14468085 | X27: 0.4847859365 | Y27: 4761111.777 | Z27: 0.4681396342 | AA27: 4297803.679 | AB27: 0.4225845425 | AC27: 14644738.51 | AD27: =ROUND(AD$33*H27,0) -> 1660 | AE27: =AE33-AE20-AE22-AE29-AE30-AE25-AE31-AE32-AE21-AE23-AE24-AE28-AE26 -> 93040 | AF27: =AF33-AF20-AF22-AF29-AF30-AF25-AF31-AF32-AF21-AF23-AF24-AF28-AF26 -> 91379 | AG27: 1 | AH27: =ROUND(AH$33*H27,0) -> 10655 | AI27: 12315 | AJ27: 14478740 | AK27: =AK33-AK20-AK22-AK29-AK30-AK25-AK31-AK32-AK21-AK23-AK24-AK28-AK26 -> 166000 | AL27: =AK27+AF27 -> 257379 | AM27: =IF(AL27<26633,AL27*-1+26633,0) -> 0 | AN27: =IF(AL27>300+33333+27500,AL27-(AL27-(300+33333+27500))/AL$34*AM$34,(300+33333+27500)) -> 80819.42902 | AO27: =IF(AN27>300+33333+23000,IF(AN27>50300+33333+23000,50000,AN27-300-33333-23000),0) -> 24186.42902 | AP27: =IF(SUM(AO$20:AO26)>50000-1100,0,IF(SUM(AO$20:AO27)>50000-1100,50000-1100-SUM(AO$20:AO26),AO27)) -> 0 | AQ27: =ROUND(AP27+100,0) -> 100 | AR27: =IF(AN27-AQ27>200+33333+23000,IF(AN27-AQ27>16867+33333+23000,16667,AN27-AQ27-200-33333-23000),0) -> 16667 | AS27: =IF(SUM(AR$20:AR26)>16667-1100,0,IF(SUM(AR$20:AR27)>16667-1100,16667-1100-SUM(AR$20:AR26),AR27)) -> 0 | AT27: =ROUND(AS27+100,0) -> 100 | AV27: =ROUND(AN27-AQ27-AT27-23000-33333,0) -> 24286 | AX27: 100 | AY27: https://site0.sbisec.co.jp/marble/fund/detail/achievement.do?Param6=203319172 | AZ27: 100 | BA27: =AY27 -> https://site0.sbisec.co.jp/marble/fund/detail/achievement.do?Param6=203319172 | BB27: 32576 | BC27: =AY27 -> https://site0.sbisec.co.jp/marble/fund/detail/achievement.do?Param6=203319172 | BE27: =IF(AL27<0,AL27*-1,0) -> 0 | BF27: =ROUND(IF(AL27>0,AL27-AL27/AL$35*BE$34,0),0) -> 37330
A28: 先進国株ﾍｯｼﾞ | B28: 0.1296759236 | C28: 0.7896838226 | D28: 0.1024029791 | E28: 0.1024029791 | F28: 0.112643277 | G28: 0 | H28: 0 | I28: =L28 -> 3964373 | J28: 0.1220314426 | K28: =J28-D28 -> 0.01962846355 | L28: =VLOOKUP("たわらノーロード 先進国株式＜為替ヘッジあり＞特定保有中再投資型",'楽天 子(VLOOKUP)'!A:L,6,FALSE)+VLOOKUP("Ｏｎｅ－たわらノーロード 先進国株式＜為替ヘッジあり＞特定/一般",'元(SBI夫)VLOOKUP'!A:L,6,FALSE)+VLOOKUP("Ｏｎｅ－たわらノーロード 先進国株式＜為替ヘッジあり＞特定/一般",'元(SBI妻)VLOOKUP'!A:L,6,FALSE) -> 3964373 | M28: 0.1341098017 | N28: =VLOOKUP("たわらノーロード 先進国株式＜為替ヘッジあり＞特定すべて再投資型",'楽天 子(VLOOKUP)'!A:L,12,FALSE)+VLOOKUP("Ｏｎｅ－たわらノーロード 先進国株式＜為替ヘッジあり＞特定/一般",'元(SBI夫)VLOOKUP'!A:L,12,FALSE)+VLOOKUP("Ｏｎｅ－たわらノーロード 先進国株式＜為替ヘッジあり＞特定/一般",'元(SBI妻)VLOOKUP'!A:L,12,FALSE) -> 504288 | O28: =IF(税金!C$3<メイン!N$34,IF(N28>0,N28/N$34,0),メイン!N28/メイン!N$33) -> 0.1188035742 | P28: 0 | Q28: =N28+P28-税金!C$3*メイン!O28 -> 503648.4804 | R28: 0.1455326703 | S28: 408768.101 | T28: 0.114964433 | U28: =I28 -> 3964373 | V28: 0.1209752627 | W28: =L28 -> 3964373 | X28: 0.1328352908 | Y28: 503648.4804 | Z28: 0.1416491693 | AA28: =S28 -> 408768.101 | AB28: =AA28/(W28-AA28) -> 0.114964433 | AC28: 3329808.561 | AD28: 0 | AE28: =ROUND(AE$33*$F28,0) -> 21154 | AF28: 21154 | AG28: 1 | AH28: 0 | AI28: =AH28+AD28 -> 0 | AJ28: =L28+AH28*AG28 -> 3964373 | AK28: -634564 | AL28: =AK28+AF28 -> -613410 | AM28: =IF(AL28<300,AL28*-1+300,0) -> 613710 | AN28: =IF(AL28>300,AL28-(AL28-300)/AL$34*AM$34,300) -> 300 | AO28: =IF(AN28>300,IF(AN28>50300,50000,AN28-300),0) -> 0 | AP28: =IF(SUM(AO$20:AO27)>50000-1100,0,IF(SUM(AO$20:AO28)>50000-1100,50000-1100-SUM(AO$20:AO27),AO28)) -> 0 | AQ28: 100 | AR28: =IF(AN28-AQ28>200,IF(AN28-AQ28>16867,16667,AN28-AQ28-200),0) -> 0 | AS28: =IF(SUM(AR$20:AR27)>16667-1100,0,IF(SUM(AR$20:AR28)>16667-1100,16667-1100-SUM(AR$20:AR27),AR28)) -> 0 | AT28: 100 | AV28: =ROUND(AN28-AQ28-AT28,0) -> 100 | AX28: 100 | AY28: https://site0.sbisec.co.jp/marble/fund/detail/achievement.do?Param6=24731116A | AZ28: 100 | BA28: https://site0.sbisec.co.jp/marble/fund/detail/achievement.do?Param6=24731116A | BB28: 100 | BC28: =AY28 -> https://site0.sbisec.co.jp/marble/fund/detail/achievement.do?Param6=24731116A | BE28: 613410 | BF28: 0
A29: 日本株 | B29: =B12+B13 -> 0.15 | C29: =C12 -> 0.7896838226 | D29: =D12+D13 -> 0.1184525734 | E29: =E12+E13 -> 0.1111453031 | F29: =F12+F13 -> 0.1222598334 | G29: =G12 -> 0.2 | H29: =H12 -> 0.01818181818 | I29: =L29-VLOOKUP("日興－グローバル３倍３分法ファンド（１年決算型）特定/一般",'元(SBI夫)VLOOKUP'!A:L,6,FALSE)*H29+VLOOKUP("日興－グローバル３倍３分法ファンド（１年決算型）特定/一般",'元(SBI夫)VLOOKUP'!A:L,6,FALSE)*G29-VLOOKUP("グローバル3倍3分法ファンド(1年決算型)特定保有中再投資型",'楽天 子(VLOOKUP)'!A:L,6,FALSE)*H29+VLOOKUP("グローバル3倍3分法ファンド(1年決算型)特定保有中再投資型",'楽天 子(VLOOKUP)'!A:L,6,FALSE)*G29-VLOOKUP("日興－グローバル３倍３分法ファンド（１年決算型）特定/一般",'元(SBI妻)VLOOKUP'!A:L,6,FALSE)*H29+VLOOKUP("日興－グローバル３倍３分法ファンド（１年決算型）特定/一般",'元(SBI妻)VLOOKUP'!A:L,6,FALSE)*G29 -> 3922425 | J29: 0.1207401981 | K29: 0.002287624684 | L29: =VLOOKUP("eMAXIS Slim 国内株式(TOPIX)特定保有中再投資型",'楽天 子(VLOOKUP)'!A:L,6,FALSE)+VLOOKUP("ニッセイ－＜購入・換金手数料なし＞ニッセイＴＯＰＩＸインデックスファンド特定/一般",'元(SBI夫)VLOOKUP'!A:L,6,FALSE)+VLOOKUP("ニッセイ－＜購入・換金手数料なし＞ニッセイＴＯＰＩＸインデックスファンドNISA/つみたてNISA",'元(SBI夫)VLOOKUP'!A:L,6,FALSE)+VLOOKUP("三菱ＵＦＪ国際－ｅＭＡＸＩＳ Ｓｌｉｍ 国内株式（ＴＯＰＩＸ）特定/一般",'元(SBI夫)VLOOKUP'!A:L,6,FALSE)+VLOOKUP("三菱ＵＦＪ国際－ｅＭＡＸＩＳ Ｓｌｉｍ 国内株式（ＴＯＰＩＸ）NISA/つみたてNISA",'元(SBI夫)VLOOKUP'!A:L,6,FALSE)+VLOOKUP("三菱ＵＦＪ国際－ｅＭＡＸＩＳ Ｓｌｉｍ 国内株式（ＴＯＰＩＸ）NISA/つみたてNISA",'元(SBI妻)VLOOKUP'!A:L,6,FALSE)+VLOOKUP("日興－グローバル３倍３分法ファンド（１年決算型）特定/一般",'元(SBI夫)VLOOKUP'!A:L,6,FALSE)*H29+VLOOKUP("グローバル3倍3分法ファンド(1年決算型)特定保有中再投資型",'楽天 子(VLOOKUP)'!A:L,6,FALSE)*H29+VLOOKUP("日興－グローバル３倍３分法ファンド（１年決算型）特定/一般",'元(SBI妻)VLOOKUP'!A:L,6,FALSE)*H29+VLOOKUP("三菱ＵＦＪ国際－ｅＭＡＸＩＳ Ｓｌｉｍ 国内株式（ＴＯＰＩＸ）特定/一般",'元(SBI妻)VLOOKUP'!A:L,6,FALSE) -> 3694502.273 | M29: 0.1249804111 | N29: =VLOOKUP("eMAXIS Slim 国内株式(TOPIX)特定すべて再投資型",'楽天 子(VLOOKUP)'!A:L,12,FALSE)+VLOOKUP("ニッセイ－＜購入・換金手数料なし＞ニッセイＴＯＰＩＸインデックスファンド特定/一般",'元(SBI夫)VLOOKUP'!A:L,12,FALSE)+VLOOKUP("三菱ＵＦＪ国際－ｅＭＡＸＩＳ Ｓｌｉｍ 国内株式（ＴＯＰＩＸ）特定/一般",'元(SBI夫)VLOOKUP'!A:L,12,FALSE)+VLOOKUP("日興－グローバル３倍３分法ファンド（１年決算型）特定/一般",'元(SBI夫)VLOOKUP'!A:L,12,FALSE)*G29/3+VLOOKUP("グローバル3倍3分法ファンド(1年決算型)特定すべて再投資型",'楽天 子(VLOOKUP)'!A:L,12,FALSE)*G29/3+VLOOKUP("日興－グローバル３倍３分法ファンド（１年決算型）特定/一般",'元(SBI妻)VLOOKUP'!A:L,12,FALSE)*G29/3+VLOOKUP("三菱ＵＦＪ国際－ｅＭＡＸＩＳ Ｓｌｉｍ 国内株式（ＴＯＰＩＸ）特定/一般",'元(SBI妻)VLOOKUP'!A:L,12,FALSE) -> 751459.6 | O29: =IF(税金!C$3<メイン!N$34,IF(N29>0,N29/N$34,0),メイン!N29/メイン!N$33) -> 0.1770339297 | P29: =VLOOKUP("ニッセイ－＜購入・換金手数料なし＞ニッセイＴＯＰＩＸインデックスファンドNISA/つみたてNISA",'元(SBI夫)VLOOKUP'!A:L,12,FALSE)+VLOOKUP("三菱ＵＦＪ国際－ｅＭＡＸＩＳ Ｓｌｉｍ 国内株式（ＴＯＰＩＸ）NISA/つみたてNISA",'元(SBI夫)VLOOKUP'!A:L,12,FALSE)+VLOOKUP("三菱ＵＦＪ国際－ｅＭＡＸＩＳ Ｓｌｉｍ 国内株式（ＴＯＰＩＸ）NISA/つみたてNISA",'元(SBI妻)VLOOKUP'!A:L,12,FALSE)+個別履歴!C4 -> 101739 | Q29: =N29+P29-税金!C$3*メイン!O29 -> 852245.6264 | R29: 0.2998482306 | S29: 710860.6005 | T29: 0.2382526719 | U29: =I29+持株会!B3+持株会!B6+'元(野村預り）'!R11 -> 4206049.722 | V29: 0.1283501755 | W29: =L29+持株会!B3+持株会!B6+'元(野村預り）'!R11 -> 3978126.995 | X29: 0.1332961495 | Y29: =Q29+持株会!C9+IF(持株会!B5>0,持株会!B5*(100%-20.315%),持株会!B5)+('元（野村履歴)'!D4-'元（野村履歴)'!A4)+('元（野村履歴)'!H4-'元（野村履歴)'!E4)+('元（野村履歴)'!L4-'元（野村履歴)'!I4)+('元（野村履歴)'!P4-'元（野村履歴)'!M4)+IF('元(野村預り）'!S11>0,'元(野村預り）'!S11*(100%-20.315%),'元(野村預り）'!S11) -> 1553471.047 | Z29: 0.6546766379 | AA29: =S29+持株会!C9+IF(持株会!B5>0,持株会!B5*(100%-20.315%),持株会!B5)+('元（野村履歴)'!D4-'元（野村履歴)'!A4)+('元（野村履歴)'!H4-'元（野村履歴)'!E4)+('元（野村履歴)'!L4-'元（野村履歴)'!I4)+IF('元(野村預り）'!S11>0,'元(野村預り）'!S11*(100%-20.315%),'元(野村預り）'!S11) -> 1605244.021 | AB29: 0.6764952336 | AC29: 3614080.227 | AD29: 151 | AE29: =ROUND(AE$33*$F29,0) -> 22960 | AF29: 22809 | AG29: 1 | AH29: 969 | AI29: 1120 | AJ29: 3695471.273 | AK29: -81391 | AL29: -58582 | AM29: 58882 | AN29: 300 | AO29: 0 | AP29: =IF(SUM(AO$20:AO28)>50000-1100,0,IF(SUM(AO$20:AO29)>50000-1100,50000-1100-SUM(AO$20:AO28),AO29)) -> 0 | AQ29: 100 | AR29: 0 | AS29: =IF(SUM(AR$20:AR28)>16667-1100,0,IF(SUM(AR$20:AR29)>16667-1100,16667-1100-SUM(AR$20:AR28),AR29)) -> 0 | AT29: 100 | AV29: 100 | AX29: 100 | AY29: https://site0.sbisec.co.jp/marble/fund/detail/achievement.do?Param6=203317172 | AZ29: 100 | BA29: https://site0.sbisec.co.jp/marble/fund/detail/achievement.do?Param6=203317172 | BB29: 1238 | BC29: https://site0.sbisec.co.jp/marble/fund/detail/achievement.do?Param6=203317172 | BE29: 58582 | BF29: 0
A30: 新興国株 | B30: =B14 -> 0.1 | C30: 0.7896838226 | D30: 0.07896838226 | E30: 0.07896838226 | F30: 0.08686522049 | G30: 0.2 | H30: 0.2 | I30: =L30-VLOOKUP("日興－グローバル３倍３分法ファンド（１年決算型）特定/一般",'元(SBI夫)VLOOKUP'!A:L,6,FALSE)*H30+VLOOKUP("日興－グローバル３倍３分法ファンド（１年決算型）特定/一般",'元(SBI夫)VLOOKUP'!A:L,6,FALSE)*G30-VLOOKUP("グローバル3倍3分法ファンド(1年決算型)特定保有中再投資型",'楽天 子(VLOOKUP)'!A:L,6,FALSE)*H30+VLOOKUP("グローバル3倍3分法ファンド(1年決算型)特定保有中再投資型",'楽天 子(VLOOKUP)'!A:L,6,FALSE)*G30-VLOOKUP("日興－グローバル３倍３分法ファンド（１年決算型）特定/一般",'元(SBI妻)VLOOKUP'!A:L,6,FALSE)*H30+VLOOKUP("日興－グローバル３倍３分法ファンド（１年決算型）特定/一般",'元(SBI妻)VLOOKUP'!A:L,6,FALSE)*G30 -> 2600006 | J30: 0.08003345875 | K30: 0.001065076489 | L30: =VLOOKUP("eMAXIS Slim 新興国株式インデックス特定保有中再投資型",'楽天 子(VLOOKUP)'!A:L,6,FALSE)+VLOOKUP("三菱ＵＦＪ国際－ｅＭＡＸＩＳ Ｓｌｉｍ 新興国株式インデックス特定/一般",'元(SBI夫)VLOOKUP'!A:L,6,FALSE)+VLOOKUP("三菱ＵＦＪ国際－ｅＭＡＸＩＳ Ｓｌｉｍ 新興国株式インデックスNISA/つみたてNISA",'元(SBI夫)VLOOKUP'!A:L,6,FALSE)+VLOOKUP("日興－グローバル３倍３分法ファンド（１年決算型）特定/一般",'元(SBI夫)VLOOKUP'!A:L,6,FALSE)*H30+VLOOKUP("グローバル3倍3分法ファンド(1年決算型)特定保有中再投資型",'楽天 子(VLOOKUP)'!A:L,6,FALSE)*H30+VLOOKUP("日興－グローバル３倍３分法ファンド（１年決算型）特定/一般",'元(SBI妻)VLOOKUP'!A:L,6,FALSE)*H30+VLOOKUP("三菱ＵＦＪ国際－ｅＭＡＸＩＳ Ｓｌｉｍ 新興国株式インデックス特定/一般",'元(SBI妻)VLOOKUP'!A:L,6,FALSE) -> 2600006 | M30: 0.08795496514 | N30: =VLOOKUP("eMAXIS Slim 新興国株式インデックス特定すべて再投資型",'楽天 子(VLOOKUP)'!A:L,12,FALSE)+VLOOKUP("三菱ＵＦＪ国際－ｅＭＡＸＩＳ Ｓｌｉｍ 新興国株式インデックス特定/一般",'元(SBI夫)VLOOKUP'!A:L,12,FALSE)+VLOOKUP("日興－グローバル３倍３分法ファンド（１年決算型）特定/一般",'元(SBI夫)VLOOKUP'!A:L,12,FALSE)*G30/3+VLOOKUP("グローバル3倍3分法ファンド(1年決算型)特定すべて再投資型",'楽天 子(VLOOKUP)'!A:L,12,FALSE)*G30/3+VLOOKUP("日興－グローバル３倍３分法ファンド（１年決算型）特定/一般",'元(SBI妻)VLOOKUP'!A:L,12,FALSE)*G30/3+VLOOKUP("三菱ＵＦＪ国際－ｅＭＡＸＩＳ Ｓｌｉｍ 新興国株式インデックス特定/一般",'元(SBI妻)VLOOKUP'!A:L,12,FALSE) -> 300154.6 | O30: =IF(税金!C$3<メイン!N$34,IF(N30>0,N30/N$34,0),メイン!N30/メイン!N$33) -> 0.07071244861 | P30: =VLOOKUP("三菱ＵＦＪ国際－ｅＭＡＸＩＳ Ｓｌｉｍ 新興国株式インデックスNISA/つみたてNISA",'元(SBI夫)VLOOKUP'!A:L,12,FALSE) -> 15245 | Q30: =N30+P30-税金!C$3*メイン!O30 -> 315018.9549 | R30: 0.1378646569 | S30: 258545.7049 | T30: 0.1104207086 | U30: 2600006 | V30: 0.07934077064 | W30: =L30 -> 2600006 | X30: 0.08711908616 | Y30: =Q30 -> 315018.9549 | Z30: 0.1345395246 | AA30: =S30 -> 258545.7049 | AB30: 0.1104207086 | AC30: 2567792.439 | AD30: 1660 | AE30: =ROUND(AE$33*$F30,0) -> 16313 | AF30: 14653 | AG30: 1 | AH30: 10655 | AI30: 12315 | AJ30: 2610661 | AK30: -42869 | AL30: -28216 | AM30: 28516 | AN30: 300 | AO30: 0 | AP30: =IF(SUM(AO$20:AO29)>50000-1100,0,IF(SUM(AO$20:AO30)>50000-1100,50000-1100-SUM(AO$20:AO29),AO30)) -> 0 | AQ30: 100 | AR30: 0 | AS30: =IF(SUM(AR$20:AR29)>16667-1100,0,IF(SUM(AR$20:AR30)>16667-1100,16667-1100-SUM(AR$20:AR29),AR30)) -> 0 | AT30: 100 | AV30: 100 | AX30: 100 | AY30: https://site0.sbisec.co.jp/marble/fund/detail/achievement.do?Param6=20331C177 | AZ30: 100 | BA30: https://site0.sbisec.co.jp/marble/fund/detail/achievement.do?Param6=20331C177 | BB30: 5779 | BC30: https://site0.sbisec.co.jp/marble/fund/detail/achievement.do?Param6=20331C177 | BE30: 28216 | BF30: 0
A31: 先進国RIET | B31: 0.75 | C31: 0.04156230645 | D31: 0.03117172984 | E31: 0.03117172984 | F31: 0.03428890282 | G31: 0.2 | H31: 0.2 | I31: =L31-VLOOKUP("日興－グローバル３倍３分法ファンド（１年決算型）特定/一般",'元(SBI夫)VLOOKUP'!A:L,6,FALSE)*H31+VLOOKUP("日興－グローバル３倍３分法ファンド（１年決算型）特定/一般",'元(SBI夫)VLOOKUP'!A:L,6,FALSE)*G31-VLOOKUP("グローバル3倍3分法ファンド(1年決算型)特定保有中再投資型",'楽天 子(VLOOKUP)'!A:L,6,FALSE)*H31+VLOOKUP("グローバル3倍3分法ファンド(1年決算型)特定保有中再投資型",'楽天 子(VLOOKUP)'!A:L,6,FALSE)*G31-VLOOKUP("日興－グローバル３倍３分法ファンド（１年決算型）特定/一般",'元(SBI妻)VLOOKUP'!A:L,6,FALSE)*H31+VLOOKUP("日興－グローバル３倍３分法ファンド（１年決算型）特定/一般",'元(SBI妻)VLOOKUP'!A:L,6,FALSE)*G31 -> 1008670 | J31: 0.03104890867 | K31: -0.000122821169 | L31: =VLOOKUP("eMAXIS Slim 先進国リートインデックス特定保有中再投資型",'楽天 子(VLOOKUP)'!A:L,6,FALSE)+VLOOKUP("三菱ＵＦＪ国際－ｅＭＡＸＩＳ Ｓｌｉｍ 先進国リートインデックス特定/一般",'元(SBI夫)VLOOKUP'!A:L,6,FALSE)+VLOOKUP("Ｏｎｅ－たわらノーロード 先進国リート特定/一般",'元(SBI夫)VLOOKUP'!A:L,6,FALSE)+VLOOKUP("日興－グローバル３倍３分法ファンド（１年決算型）特定/一般",'元(SBI夫)VLOOKUP'!A:L,6,FALSE)*H31+VLOOKUP("グローバル3倍3分法ファンド(1年決算型)特定保有中再投資型",'楽天 子(VLOOKUP)'!A:L,6,FALSE)*H31+VLOOKUP("日興－グローバル３倍３分法ファンド（１年決算型）特定/一般",'元(SBI妻)VLOOKUP'!A:L,6,FALSE)*H31+VLOOKUP("三菱ＵＦＪ国際－ｅＭＡＸＩＳ Ｓｌｉｍ 先進国リートインデックス特定/一般",'元(SBI妻)VLOOKUP'!A:L,6,FALSE) -> 1008670 | M31: 0.03412204998 | N31: =VLOOKUP("eMAXIS Slim 先進国リートインデックス特定すべて再投資型",'楽天 子(VLOOKUP)'!A:L,12,FALSE)+VLOOKUP("三菱ＵＦＪ国際－ｅＭＡＸＩＳ Ｓｌｉｍ 先進国リートインデックス特定/一般",'元(SBI夫)VLOOKUP'!A:L,12,FALSE)+VLOOKUP("Ｏｎｅ－たわらノーロード 先進国リート特定/一般",'元(SBI夫)VLOOKUP'!A:L,12,FALSE)+VLOOKUP("日興－グローバル３倍３分法ファンド（１年決算型）特定/一般",'元(SBI夫)VLOOKUP'!A:L,12,FALSE)*G31/3+VLOOKUP("グローバル3倍3分法ファンド(1年決算型)特定すべて再投資型",'楽天 子(VLOOKUP)'!A:L,12,FALSE)*G31/3+VLOOKUP("日興－グローバル３倍３分法ファンド（１年決算型）特定/一般",'元(SBI妻)VLOOKUP'!A:L,12,FALSE)*G31/3+VLOOKUP("三菱ＵＦＪ国際－ｅＭＡＸＩＳ Ｓｌｉｍ 先進国リートインデックス特定/一般",'元(SBI妻)VLOOKUP'!A:L,12,FALSE) -> 87898.6 | O31: =IF(税金!C$3<メイン!N$34,IF(N31>0,N31/N$34,0),メイン!N31/メイン!N$33) -> 0.02070774606 | P31: 0 | Q31: =N31+P31-税金!C$3*メイン!O31 -> 87787.1302 | R31: 0.09532931177 | S31: 71249.25401 | T31: 0.07600562961 | U31: 1008670 | V31: 0.03078018094 | W31: =L31 -> 1008670 | X31: 0.03379777148 | Y31: =Q31 -> 87787.1302 | Z31: 0.09364752229 | AA31: =S31 -> 71249.25401 | AB31: 0.07600562961 | AC31: 1013602.279 | AD31: 1660 | AE31: =ROUND(AE$33*$F31,0) -> 6439 | AF31: 4779 | AG31: 1 | AH31: 10655 | AI31: 12315 | AJ31: 1019325 | AK31: -5723 | AL31: -944 | AM31: 1244 | AN31: 300 | AO31: 0 | AP31: =IF(SUM(AO$20:AO30)>50000-1100,0,IF(SUM(AO$20:AO31)>50000-1100,50000-1100-SUM(AO$20:AO30),AO31)) -> 0 | AQ31: 100 | AR31: 0 | AS31: =IF(SUM(AR$20:AR30)>16667-1100,0,IF(SUM(AR$20:AR31)>16667-1100,16667-1100-SUM(AR$20:AR30),AR31)) -> 0 | AT31: 100 | AV31: 100 | AX31: 100 | AY31: https://site0.sbisec.co.jp/marble/fund/detail/achievement.do?Param6=20331219A | AZ31: 100 | BA31: https://site0.sbisec.co.jp/marble/fund/detail/achievement.do?Param6=20331219A | BB31: 100 | BC31: https://site0.sbisec.co.jp/marble/fund/detail/achievement.do?Param6=20331219A | BE31: 944 | BF31: 0
A32: J-RIET | B32: 0.25 | C32: 0.04156230645 | D32: 0.01039057661 | E32: 0.01039057661 | F32: 0.01142963427 | G32: 0.2 | H32: 0.2 | I32: =L32-VLOOKUP("日興－グローバル３倍３分法ファンド（１年決算型）特定/一般",'元(SBI夫)VLOOKUP'!A:L,6,FALSE)*H32+VLOOKUP("日興－グローバル３倍３分法ファンド（１年決算型）特定/一般",'元(SBI夫)VLOOKUP'!A:L,6,FALSE)*G32-VLOOKUP("グローバル3倍3分法ファンド(1年決算型)特定保有中再投資型",'楽天 子(VLOOKUP)'!A:L,6,FALSE)*H32+VLOOKUP("グローバル3倍3分法ファンド(1年決算型)特定保有中再投資型",'楽天 子(VLOOKUP)'!A:L,6,FALSE)*G32-VLOOKUP("日興－グローバル３倍３分法ファンド（１年決算型）特定/一般",'元(SBI妻)VLOOKUP'!A:L,6,FALSE)*H32+VLOOKUP("日興－グローバル３倍３分法ファンド（１年決算型）特定/一般",'元(SBI妻)VLOOKUP'!A:L,6,FALSE)*G32 -> 331437 | J32: 0.01020230317 | K32: -0.0001882734387 | L32: =VLOOKUP("eMAXIS Slim 国内リートインデックス特定保有中再投資型",'楽天 子(VLOOKUP)'!A:L,6,FALSE)+VLOOKUP("りそな－Ｓｍａｒｔ－ｉ Ｊリートインデックス特定/一般",'元(SBI夫)VLOOKUP'!A:L,6,FALSE)+VLOOKUP("三菱ＵＦＪ国際－ｅＭＡＸＩＳ Ｓｌｉｍ 国内リートインデックス特定/一般",'元(SBI夫)VLOOKUP'!A:L,6,FALSE)+VLOOKUP("日興－グローバル３倍３分法ファンド（１年決算型）特定/一般",'元(SBI夫)VLOOKUP'!A:L,6,FALSE)*H32+VLOOKUP("グローバル3倍3分法ファンド(1年決算型)特定保有中再投資型",'楽天 子(VLOOKUP)'!A:L,6,FALSE)*H32+VLOOKUP("日興－グローバル３倍３分法ファンド（１年決算型）特定/一般",'元(SBI妻)VLOOKUP'!A:L,6,FALSE)*H32+VLOOKUP("三菱ＵＦＪ国際－ｅＭＡＸＩＳ Ｓｌｉｍ 国内リートインデックス特定/一般",'元(SBI妻)VLOOKUP'!A:L,6,FALSE) -> 331437 | M32: 0.01121210097 | N32: =VLOOKUP("eMAXIS Slim 国内リートインデックス特定すべて再投資型",'楽天 子(VLOOKUP)'!A:L,12,FALSE)+VLOOKUP("りそな－Ｓｍａｒｔ－ｉ Ｊリートインデックス特定/一般",'元(SBI夫)VLOOKUP'!A:L,12,FALSE)+VLOOKUP("三菱ＵＦＪ国際－ｅＭＡＸＩＳ Ｓｌｉｍ 国内リートインデックス特定/一般",'元(SBI夫)VLOOKUP'!A:L,12,FALSE)+VLOOKUP("日興－グローバル３倍３分法ファンド（１年決算型）特定/一般",'元(SBI夫)VLOOKUP'!A:L,12,FALSE)*G32/3+VLOOKUP("グローバル3倍3分法ファンド(1年決算型)特定すべて再投資型",'楽天 子(VLOOKUP)'!A:L,12,FALSE)*G32/3+VLOOKUP("日興－グローバル３倍３分法ファンド（１年決算型）特定/一般",'元(SBI妻)VLOOKUP'!A:L,12,FALSE)*G32/3+VLOOKUP("三菱ＵＦＪ国際－ｅＭＡＸＩＳ Ｓｌｉｍ 国内リートインデックス特定/一般",'元(SBI妻)VLOOKUP'!A:L,12,FALSE) -> -3031.4 | O32: =IF(税金!C$3<メイン!N$34,IF(N32>0,N32/N$34,0),メイン!N32/メイン!N$33) -> 0 | P32: 0 | Q32: =N32+P32-税金!C$3*メイン!O32 -> -3031.4 | R32: -0.009063337523 | S32: -3031.4 | T32: -0.009063337523 | U32: 331437 | V32: 0.01011400243 | W32: =L32 -> 331437 | X32: 0.01110554689 | Y32: =Q32 -> -3031.4 | Z32: -0.009063337523 | AA32: =S32 -> -3031.4 | AB32: -0.009063337523 | AC32: 337867.4262 | AD32: 1660 | AE32: =ROUND(AE$33*$F32,0) -> 2146 | AF32: 486 | AG32: 1 | AH32: 10655 | AI32: 12315 | AJ32: 342092 | AK32: -4225 | AL32: -3739 | AM32: 4039 | AN32: 300 | AO32: 0 | AP32: =IF(SUM(AO$20:AO31)>50000-1100,0,IF(SUM(AO$20:AO32)>50000-1100,50000-1100-SUM(AO$20:AO31),AO32)) -> 0 | AQ32: 100 | AR32: 0 | AS32: =IF(SUM(AR$20:AR31)>16667-1100,0,IF(SUM(AR$20:AR32)>16667-1100,16667-1100-SUM(AR$20:AR31),AR32)) -> 0 | AT32: 100 | AV32: 100 | AX32: 100 | AY32: https://site0.sbisec.co.jp/marble/fund/detail/achievement.do?Param6=20331119A | AZ32: 100 | BA32: https://site0.sbisec.co.jp/marble/fund/detail/achievement.do?Param6=20331119A | BB32: 100 | BC32: https://site0.sbisec.co.jp/marble/fund/detail/achievement.do?Param6=20331119A | BE32: 3739 | BF32: 0
D33: =SUM(D20:D32) -> 1 | E33: =SUM(E20:E32) -> 0.9090909091 | F33: =E33*(100%/E$17) -> 1 | G33: =SUM(G20:G32) -> 3 | H33: 1 | I33: 32486488.03 | J33: 1 | K33: =(IF(I33*D20-I20>0,I33*D20-I20,0)+IF(I33*D21-I21>0,I33*D21-I21,0)+IF(I33*D22-I22>0,I33*D22-I22,0)+IF(I33*D23-I23>0,I33*D23-I23,0)+IF(I33*D24-I24>0,I33*D24-I24,0)+IF(I33*D25-I25>0,I33*D25-I25,0)+IF(I33*D26-I26>0,I33*D26-I26,0)+IF(I33*D27-I27>0,I33*D27-I27,0)+IF(I33*D28-I28>0,I33*D28-I28,0)+IF(I33*D29-I29>0,I33*D29-I29,0)+IF(I33*D30-I30>0,I33*D30-I30,0)+IF(I33*D31-I31>0,I33*D31-I31,0)+IF(I33*D32-I32>0,I33*D32-I32,0))/I33 -> 0.03796640143 | L33: 29560650.68 | M33: 1 | N33: 3957742.38 | P33: =SUM(P20:P32) -> 2581966 | Q33: =SUM(Q20:Q32) -> 6534325.38 | R33: 0.2837762993 | S33: =SUM(S20:S32) -> 5735693.016 | T33: 0.2407430518 | U33: =SUM(U20:U32) -> 32770112.76 | V33: =SUM(V20:V32) -> 1 | W33: =SUM(W20:W32) -> 29844275.4 | X33: =SUM(X20:X32) -> 1 | Y33: =SUM(Y20:Y32) -> 7987565.301 | Z33: 0.3556005567 | AA33: =SUM(AA20:AA32) -> 7382090.936 | AB33: =AA33/(L33+持株会!B3-AA33) -> 0.3286463349 | AC33: =SUM(AC20:AC32) -> 29560650.68 | AD33: =ROUND(AE33*F23/H23,0) -> 8302 | AE33: =160000+300+27500 -> 187800 | AF33: =AE33-AD33 -> 179498 | AH33: =ROUND(AH23/H23,0) -> 53274 | AI33: 61576 | AJ33: =SUM(AJ20:AJ32) -> 29613925.68 | AK33: =AH33*-1 -> -53274 | AL33: =AI33 -> 61576 | AM33: 0 | AN33: 6446.905539 | AO33: 6146.905539 | AP33: =IF(SUM(AO$20:AO32)>50000-1100,0,IF(SUM(AO$20:AO33)>50000-1100,50000-1100-SUM(AO$20:AO32),AO33)) -> 0 | AQ33: 100 | AR33: 6146.905539 | AS33: =IF(SUM(AR$20:AR32)>16667-1100,0,IF(SUM(AR$20:AR33)>16667-1100,16667-1100-SUM(AR$20:AR32),AR33)) -> 0 | AT33: 100 | AV33: 6247 | AX33: 100 | AY33: https://site0.sbisec.co.jp/marble/fund/detail/achievement.do?Param6=20231118A | AZ33: 100 | BA33: https://site0.sbisec.co.jp/marble/fund/detail/achievement.do?Param6=20231118A | BB33: 12164 | BC33: https://site0.sbisec.co.jp/marble/fund/detail/achievement.do?Param6=20231118A | BE33: 0 | BF33: 8931
I34: =I33*('15年'!C$70*2.5) -> 12325019.01 | L34: =L33-I34 -> 17235631.67 | M34: =I34/L33/2 -> 0.2084700222 | N34: =IF(N20>0,N20,0)+IF(N21>0,N21,0)+IF(N22>0,N22,0)+IF(N23>0,N23,0)+IF(N24>0,N24,0)+IF(N25>0,N25,0)+IF(N26>0,N26,0)+IF(N27>0,N27,0)+IF(N28>0,N28,0)+IF(N29>0,N29,0)+IF(N30>0,N30,0)+IF(N31>0,N31,0)+IF(N32>0,N32,0) -> 4244720.78 | Y34: =Y33-Q33 -> 1453239.921 | AA34: =AA33-S33 -> 1646397.921 | AE34: =160000+300+27500 -> 187800 | AL34: =IF(AL20>300,AL20-300,0)+IF(AL21>300,AL21-300,0)+IF(AL22>300,AL22-300,0)+IF(AL23>300,AL23-300,0)+IF(AL24>300,AL24-300,0)+IF(AL25>300,AL25-300,0)+IF(AL26>300,AL26-300,0)+IF(AL27>(300+33333+27500),AL27-(300+33333+27500),0)+IF(AL28>300,AL28-300,0)+IF(AL29>300,AL29-300,0)+IF(AL30>300,AL30-300,0)+IF(AL31>300,AL31-300,0)+IF(AL32>300,AL32-300,0)+IF(AI33>300,AI33-300,0) -> 1232786 | AM34: =SUM(AM20:AM33) -> 1109119 | AO34: 0 | AR34: 0 | BE34: =SUM(BE20:BE33) -> 1107019
I35: =Y33-I34 -> -4337453.708 | AJ35: =AE33-23000-33333 -> 131467 | AL35: =IF(AL20>0,AL20,0)+IF(AL21>0,AL21,0)+IF(AL22>0,AL22,0)+IF(AL23>0,AL23,0)+IF(AL24>0,AL24,0)+IF(AL25>0,AL25,0)+IF(AL26>0,AL26,0)+IF(AL27>0,AL27,0)+IF(AL28>0,AL28,0)+IF(AL29>0,AL29,0)+IF(AL30>0,AL30,0)+IF(AL31>0,AL31,0)+IF(AL32>0,AL32,0)+IF(AI33>0,AI33,0) -> 1294819
A36: 総計 /資産クラス | I36: レバレッジ換算後 評価額 | J36: 比率 | K36: 乖離 | L36: レバレッジ換算前 評価額 | M36: 比率 | N36: 評価 損益 税引前 | O36: 比率 | P36: 非課税 損益 | Q36: 評価 損益 実税引 | R36: 損益率 | S36: 評価 損益 理論税引 | T36: 損益率 | U36: レバレッジ換算後 評価額 | V36: 比率 | W36: レバレッジ換算前 評価額 | X36: 比率 | Y36: 評価 損益 実税引 | Z36: 損益率 | AA36: 評価 損益 理論税引 | AB36: 損益率 | AN36: =300+3333+23000 -> 26633 | AT36: 129210
A37: 国内債券 | B37: =B3 -> 0.35 | C37: 0.1636912548 | D37: 0.05729193918 | I37: =I3+I20 -> 4427156 | J37: =I37/I$50 -> 0.04380118492 | K37: =J37-D37 -> -0.01349075426 | L37: =L3+L20 -> 3040292.364 | M37: =L37/L$50 -> 0.03304856463 | N37: =N3+N20 -> -82891.86667 | O37: =N37/N$50 -> -0.003475253384 | P37: =P3+P20 -> -2369 | Q37: -85260.86667 | R37: =Q37/($L37-Q37) -> -0.02727864809 | S37: =S3+S20 -> -85260.86667 | T37: =S37/($L37-S37) -> -0.02727864809 | U37: =U3+U20 -> 4427156 | V37: =U37/U$50 -> 0.0436786178 | W37: =W3+W20 -> 3040292.364 | X37: =W37/W$50 -> 0.03294698724 | Y37: =Y3+Y20 -> 666753.6333 | Z37: =Y37/(W37-AA37) -> 0.2809112086 | AA37: =AA3+AA20 -> 666753.6333 | AB37: =AA37/(W37-AA37) -> 0.2809112086 | AC37: =AC3+AC20 -> 4318703.325 | AE37: =I$50*D37 -> 5790718.967 | AF37: =AE37-I37 -> 1363562.967 | AR37: 50000
A38: 外国債券ﾍｯｼﾞ | B38: 0.2571630174 | C38: 0.1636912548 | D38: 0.04209533701 | I38: =I4+I21 -> 2105878 | J38: =I38/I$50 -> 0.02083503534 | K38: =J38-D38 -> -0.02126030167 | L38: 2105878 | M38: =L38/L$50 -> 0.0228913002 | N38: -684641 | O38: =N38/N$50 -> -0.028703672 | P38: 1204 | Q38: -683437 | R38: -0.2450196554 | S38: -683437 | T38: -0.2450196554 | U38: 2105878 | V38: 0.02077673348 | W38: 2105878 | X38: 0.02282094197 | Y38: -683437 | Z38: =Y38/(W38-AA38) -> -0.2450196554 | AA38: -683437 | AB38: -0.2450196554 | AC38: =AC4+AC21 -> 4259802.094 | AE38: =I$50*D38 -> 4254739.321 | AF38: 2148861.321 | AR38: =AR37-33333 -> 16667
A39: 外国債券 | B39: 0 | C39: 0.1636912548 | D39: 0 | I39: 0 | J39: =I39/I$50 -> 0 | K39: 0 | L39: 0 | M39: =L39/L$50 -> 0 | N39: 0 | O39: =N39/N$50 -> 0 | P39: 0 | Q39: 0 | S39: 0 | U39: 0 | V39: 0 | W39: 0 | X39: 0 | Y39: 0 | AA39: 0 | AC39: 0 | AE39: =I$50*D39 -> 0 | AF39: 0
A40: 外国債券ﾚﾊﾞ | B40: 0.3928369826 | C40: 0.1636912548 | D40: 0.06430397862 | I40: 6102200 | J40: =I40/I$50 -> 0.06037365537 | K40: -0.003930323245 | L40: 554745.4545 | M40: =L40/L$50 -> 0.006030190131 | N40: -59247.46667 | O40: =N40/N$50 -> -0.002483958527 | P40: 0 | Q40: =Q6+Q23 -> -59247.46667 | R40: -0.09649535788 | S40: -59247.46667 | T40: -0.09649535788 | U40: 6102200 | V40: 0.06020471416 | W40: 554745.4545 | X40: 0.006011655862 | Y40: -59247.46667 | Z40: -0.09649535788 | AA40: -59247.46667 | AB40: -0.09649535788 | AC40: 591562.4396 | AE40: 6499453.046 | AF40: 397253.0462 | AT40: 123667
A41: ゴールド | B41: 0.03 | C41: 0.005062616128 | D41: 0.005062616128 | I41: 1383066 | J41: =I41/I$50 -> 0.01368371244 | K41: 0.008621096311 | L41: 1383066 | M41: =L41/L$50 -> 0.01503419429 | N41: 55411 | O41: =N41/N$50 -> 0.002323114112 | P41: 0 | Q41: 54980.61992 | R41: 0.04139840762 | S41: 44507.21136 | T41: 0.03325009834 | U41: 1383066 | V41: 0.01364542185 | W41: 1383066 | X41: 0.0149879855 | Y41: 54980.61992 | Z41: 0.04107449026 | AA41: 44507.21136 | AB41: =AA41/(W41-AA41) -> 0.03325009834 | AC41: 512307.1656 | AE41: 511698.2887 | AF41: -871367.7113 | AK41: 3500000 | AT41: 33333
A42: 米国株 | B42: 0.03 | C42: 0.7896838226 | D42: 0.02369051468 | I42: 2481169 | J42: =I42/I$50 -> 0.02454807154 | K42: 0.0008575568584 | L42: 2481169 | M42: =L42/L$50 -> 0.02697078578 | N42: 1253414 | O42: =N42/N$50 -> 0.0525495615 | P42: 229910 | Q42: 1473583.945 | R42: =Q42/($L42-Q42) -> 1.46249087 | S42: 1236671.566 | T42: 0.9937116238 | U42: 2481169 | V42: 0.02447937964 | W42: 2481169 | X42: 0.02688788893 | Y42: 1473583.945 | Z42: 1.184079536 | AA42: 1236671.566 | AB42: 0.9937116238 | AC42: 2397341.635 | AE42: 2394492.395 | AF42: -86676.60471 | AK42: =AK41/12/170 -> 1715.686275 | AT42: =AT41+AT40 -> 157000
A43: 米国株ﾚﾊﾞ | B43: 0.02 | C43: 0.7896838226 | D43: 0.01579367645 | I43: 2177174.251 | J43: =I43/I$50 -> 0.02154042279 | K43: =J43-D43 -> 0.005746746335 | L43: 725724.7504 | M43: =L43/L$50 -> 0.007888768068 | N43: 228550.38 | O43: =N43/N$50 -> 0.00958200742 | P43: 269735.8468 | Q43: 496496.9005 | R43: =Q43/($L43-Q43) -> 2.165953661 | S43: 453295.9822 | T43: 1.663906442 | U43: 2177174.251 | V43: =U43/U$50 -> 0.02148014707 | W43: 725724.7504 | X43: =W43/W$50 -> 0.007864521312 | Y43: 496496.9005 | Z43: 1.822483374 | AA43: 453295.9822 | AB43: =AA43/(W43-AA43) -> 1.663906442 | AC43: 532742.5855 | AE43: 1596328.264 | AF43: -580845.9877
A44: 先進国株 | B44: 0.5703240764 | C44: 0.7896838226 | D44: 0.4503756968 | I44: 45821909 | J44: 0.4533506182 | K44: 0.002974921459 | L44: 45821909 | M44: 0.4980929923 | N44: 15139281.07 | O44: 0.6347165274 | P44: 4028103 | Q44: 19057475.56 | R44: 0.7120447965 | S44: 16196975.32 | T44: 0.5467345682 | U44: 45821909 | V44: 0.4520820251 | W44: 45821909 | X44: 0.4965620639 | Y44: 19057475.56 | Z44: 0.6432917544 | AA44: 16196975.32 | AB44: 0.5467345682 | AC44: 45575388.46 | AE44: 45521222.13 | AF44: -300686.8743 | AK44: 21353
A45: 先進国株ﾍｯｼﾞ | B45: 0.1296759236 | C45: 0.7896838226 | D45: 0.1024029791 | I45: 12196609 | J45: =I45/I$50 -> 0.1206702285 | K45: =J45-D45 -> 0.01826724947 | L45: 12196609 | M45: =L45/L$50 -> 0.1325794932 | N45: 2868933 | O45: =N45/N$50 -> 0.120280427 | P45: 0 | Q45: 2848374.404 | R45: 0.3046965045 | S45: 2306338.085 | T45: 0.2331926097 | U45: 12196609 | V45: =U45/U$50 -> 0.1203325618 | W45: 12196609 | X45: =W45/W$50 -> 0.1321719996 | Y45: 2848374.404 | Z45: 0.2879976119 | AA45: 2306338.085 | AB45: =AA45/(W45-AA45) -> 0.2331926097 | AC45: 10362583.02 | AE45: 10350267.1 | AF45: -1846341.902 | AK45: =AK44/AK42 -> 12.44574857
A46: 日本株 | B46: =B12+B13 -> 0.15 | C46: =C12 -> 0.7896838226 | D46: =D12+D13 -> 0.1184525734 | I46: =I12+I13+I29 -> 12279241.4 | J46: 0.121487773 | K46: =J46-D46 -> 0.003035199632 | L46: =L12+L13+L29 -> 11585809.58 | M46: 0.1259399857 | N46: =N12+N13+N29 -> 3056279.067 | O46: 0.1281349377 | P46: =P12+P13+P29 -> 136532 | Q46: =Q12+Q13+Q29 -> 3179473.328 | R46: 0.3782234296 | S46: =S12+S13+S29 -> 2590519.947 | T46: 0.2879862742 | U46: =U12+U13+U29 -> 12562866.12 | V46: 0.1239460791 | W46: =W12+W13+W29 -> 11869434.3 | X46: 0.1286264786 | Y46: =Y12+Y13+Y29 -> 3880698.749 | Z46: 0.4628402923 | AA46: =AA12+AA13+AA29 -> 3484903.368 | AB46: 0.4156348631 | AC46: =AC12+AC13+AC29 -> 11247255.12 | AE46: 11972461.98 | AF46: -306779.4235 | AK46: 15500
A47: 新興国株 | B47: =B14 -> 0.1 | C47: 0.7896838226 | D47: 0.07896838226 | I47: =I14+I30 -> 8020992 | J47: 0.07935770817 | K47: 0.0003893259046 | L47: =L14+L30 -> 8020992 | M47: 0.08718973072 | N47: =N14+N30 -> 1556371.067 | O47: 0.06525107991 | P47: =P14+P30 -> 15245 | Q47: 1560653.422 | R47: 0.2415745558 | S47: =S14+S30 -> 1266628.804 | T47: 0.1875274941 | U47: =U14+U30 -> 8020992 | V47: 0.07913564462 | W47: =W14+W30 -> 8020992 | X47: 0.08692174615 | Y47: =Y14+Y30 -> 1560653.422 | Z47: 0.2310585583 | AA47: =AA14+AA30 -> 1266628.804 | AB47: 0.1875274941 | AC47: =AC14+AC30 -> 7991138.783 | AE47: 7981641.318 | AF47: -39350.68235 | AK47: =AK46/12 -> 1291.666667
A48: 先進国RIET | B48: 0.75 | C48: 0.04156230645 | D48: 0.03117172984 | I48: =I15+I31 -> 3069353 | J48: 0.03036741835 | K48: -0.0008043114917 | L48: =L15+L31 -> 3069353 | M48: 0.03336445935 | N48: =N15+N31 -> 507916.0667 | O48: 0.02129445385 | P48: 0 | Q48: 504266.4929 | R48: 0.1965884938 | S48: =S15+S31 -> 408303.0349 | T48: 0.1534368164 | U48: =U15+U31 -> 3069353 | V48: 0.0302824424 | W48: =W15+W31 -> 3069353 | X48: 0.03326191104 | Y48: =Y15+Y31 -> 504266.4929 | Z48: 0.1894990697 | AA48: =AA15+AA31 -> 408303.0349 | AB48: 0.1534368164 | AC48: =AC15+AC31 -> 3154396.888 | AE48: 3150647.889 | AF48: 81294.88854 | AI48: 474923
A49: J-RIET | B49: 0.25 | C49: 0.04156230645 | D49: 0.01039057661 | I49: =I16+I32 -> 1009139 | J49: 0.009984171317 | K49: -0.0004064052963 | L49: =L16+L32 -> 1009139 | M49: 0.01096953565 | N49: =N16+N32 -> 12660.06667 | O49: 0.0005307751085 | P49: 0 | Q49: 12527.88635 | R49: 0.0125704863 | S49: =S16+S32 -> 9560.619588 | T49: 0.009564652233 | U49: =U16+U32 -> 1009139 | V49: 0.009956233005 | W49: =W16+W32 -> 1009139 | X49: 0.01093581991 | Y49: =Y16+Y32 -> 12527.88635 | Z49: 0.01253317058 | AA49: =AA16+AA32 -> 9560.619588 | AB49: 0.009564652233 | AC49: =AC16+AC32 -> 1051465.629 | AE49: 1050215.963 | AF49: 41076.96285 | AI49: 910000
D50: =SUM(D37:D49) -> 1 | I50: =SUM(I37:I49) -> 101073886.7 | J50: =SUM(J37:J49) -> 1 | K50: =(IF(I50*D37-I37>0,I50*D37-I37,0)+IF(I50*D38-I38>0,I50*D38-I38,0)+IF(I50*D39-I39>0,I50*D39-I39,0)+IF(I50*D40-I40>0,I50*D40-I40,0)+IF(I50*D41-I41>0,I50*D41-I41,0)+IF(I50*D42-I42>0,I50*D42-I42,0)+IF(I50*D43-I43>0,I50*D43-I43,0)+IF(I50*D44-I44>0,I50*D44-I44,0)+IF(I50*D45-I45>0,I50*D45-I45,0)+IF(I50*D46-I46>0,I50*D46-I46,0)+IF(I50*D47-I47>0,I50*D47-I47,0)+IF(I50*D48-I48>0,I50*D48-I48,0)+IF(I50*D49-I49>0,I50*D49-I49,0))/I50 -> 0.03989209597 | L50: =SUM(L37:L49) -> 91994687.15 | M50: =SUM(M37:M49) -> 1 | N50: =SUM(N37:N49) -> 23852035.38 | P50: =SUM(P37:P49) -> 4678360.847 | Q50: =SUM(Q37:Q49) -> 28359887.23 | R50: =Q50/($L50-Q50) -> 0.4456663219 | S50: =SUM(S37:S49) -> 23684855.24 | T50: 0.3467268851 | U50: =SUM(U37:U49) -> 101357511.4 | V50: =SUM(V37:V49) -> 1 | W50: =SUM(W37:W49) -> 92278311.87 | X50: =SUM(X37:X49) -> 1 | Y50: =SUM(Y37:Y49) -> 29813127.15 | Z50: 0.4453239279 | AA50: =SUM(AA37:AA49) -> 25331253.16 | AB50: =AA50/(L50+持株会!B3-AA50) -> 0.3783777942 | AC50: =SUM(AC37:AC49) -> 91994687.15 | AE50: 101073886.7 | AF50: =SUM(AF42:AF49) -> -3038309.623 | AI50: =AI49-AI48 -> 435077
I51: =I50*('15年'!C$70*2.5) -> 38346329.49 | L51: =L50-I51 -> 53648357.66 | M51: =I51/L50/2 -> 0.2084160003 | AF51: =AF50/AE50 -> -0.03006028287
I52: =Q50-I51 -> -9986442.267 | Q52: 346 | U52: 3500
Q53: =Q52-43 -> 303 | U53: 9500
A54: レバレッジ | B54: =I50/L50 -> 1.09869265 | Q54: =Q53*3 -> 909 | U54: 30000
U55: =U52+U53+U54 -> 43000
A56: 会社 /資産クラス | F56: ←100% 換算 | G56: グロ3 | H56: グロ3 | I56: レバレッジ換算後 評価額 | J56: 比率 | K56: 乖離 | L56: レバレッジ換算前 評価額 | M56: 比率 | N56: 評価 損益 税引前 | O56: 比率 | P56: 非課税 損益 | Q56: 評価 損益 実税引 | R56: 損益率 | S56: 評価 損益 理論税引 | T56: 損益率 | U56: レバレッジ換算後 評価額 | V56: 比率 | W56: レバレッジ換算前 評価額 | X56: 比率 | Y56: 評価 損益 実税引 | Z56: 損益率 | AA56: 評価 損益 理論税引 | AB56: 損益率 | AC56: レバ無 リバランス | AD56: グロ3 積立額レバ無 | AE56: 積立額 レバ無 グロ有 | AF56: 積立額 レバ無 グロ無 | AG56: 期間 | AH56: GAP分散ﾘﾊﾞﾗﾝｽ(ｸﾞﾛ3) | AI56: 積立額/月(ｸﾞﾛ3) | AJ56: ギャップ リバランス結果(グロ3分) | AK56: GAP 分散ﾘﾊﾞﾗﾝｽ | AL56: 月当たり 積立額 | BC56: 今回リバランス
A57: 国内債券 | B57: =B20 -> 0.35 | C57: =C20 -> 0.1636912548 | D57: =D20 -> 0.05729193918 | E57: =E20 -> 0.04267739859 | F57: 0.04694513845 | G57: 0.4 | H57: 0.03636363636 | I57: =L57-VLOOKUP("日興－グローバル３倍３分法ファンド（１年決算型）特定/一般",'元(SBI会社)VLOOKUP'!A:L,6,FALSE)*H57+VLOOKUP("日興－グローバル３倍３分法ファンド（１年決算型）特定/一般",'元(SBI会社)VLOOKUP'!A:L,6,FALSE)*G57 -> 401793.4 | J57: =I57/I$70 -> 0.03237232423 | K57: =J57-D57 -> -0.02491961496 | L57: =VLOOKUP("三菱ＵＦＪ国際－ｅＭＡＸＩＳ Ｓｌｉｍ 国内債券インデックス特定/一般",'元(SBI会社)VLOOKUP'!A:L,6,FALSE)+VLOOKUP("日興－グローバル３倍３分法ファンド（１年決算型）特定/一般",'元(SBI会社)VLOOKUP'!A:L,6,FALSE)*H57 -> 228680.3091 | M57: =L57/L$70 -> 0.01983564481 | N57: 0 | P57: =VLOOKUP("三菱ＵＦＪ国際－ｅＭＡＸＩＳ Ｓｌｉｍ 国内債券インデックス特定/一般",'元(SBI会社)VLOOKUP'!A:L,12,FALSE)+VLOOKUP("日興－グローバル３倍３分法ファンド（１年決算型）特定/一般",'元(SBI会社)VLOOKUP'!A:L,12,FALSE)*G57/3 -> -26051.2 | Q57: =N57+P57-税金!C$3*メイン!O57 -> -26051.2 | R57: =Q57/($L57-Q57) -> -0.1022692485 | S57: =IF(AND(N57>0,N$33>0),N57-N$33*20.315%*O57,N57)+P57 -> -26051.2 | T57: =S57/($L57-S57) -> -0.1022692485 | U57: =I57 -> 401793.4 | V57: =U57/U$33 -> 0.01226097093 | W57: =L57 -> 228680.3091 | X57: =W57/W$33 -> 0.007662451376 | Y57: =Q57 -> -26051.2 | Z57: =Y57/(W57-AA57) -> 0.0523870723 | AA57: =S57+SUM(個別履歴!H:H) -> 725963.3 | AB57: =AA57/(W57-AA57) -> -1.459859503 | AC57: =L$70*F57 -> 541219.0465 | AD57: =ROUND(AD$70*H57,0) -> 0 | AE57: =ROUND(AE$70*$F57,0) -> 0 | AF57: =AE57-AD57 -> 0 | AG57: 1 | AH57: =ROUND(AH$70*H57,0) -> 1222 | AI57: =AH57+AD57 -> 1222 | AJ57: =L57+AH57*AG57 -> 229902.3091 | AK57: =ROUND((AC57-AJ57)/AG57,0) -> 311317 | AL57: =AK57+AF57 -> 311317 | AV57: =AL57 -> 311317 | BC57: -67008
A58: 外国債券ﾍｯｼﾞ | B58: =B21 -> 0.2571630174 | C58: 0.1636912548 | D58: 0.04209533701 | E58: 0.04209533701 | F58: 0.04630487071 | G58: 0 | H58: 0 | I58: =L58 -> 188469 | J58: =I58/I$70 -> 0.01518486758 | K58: =J58-D58 -> -0.02691046943 | L58: =VLOOKUP("りそな－Ｓｍａｒｔ－ｉ 先進国債券インデックス（為替ヘッジあり）特定/一般",'元(SBI会社)VLOOKUP'!A:L,6,FALSE) -> 188469 | M58: =L58/L$70 -> 0.01634773084 | N58: 0 | P58: =VLOOKUP("りそな－Ｓｍａｒｔ－ｉ 先進国債券インデックス（為替ヘッジあり）特定/一般",'元(SBI会社)VLOOKUP'!A:L,12,FALSE) -> -104821 | Q58: =N58+P58-税金!C$3*メイン!O58 -> -104821 | R58: -0.3573971155 | S58: -104821 | T58: =S58/($L58-S58) -> -0.3573971155 | U58: =I58 -> 188469 | V58: 0.005751246613 | W58: 188469 | X58: 0.006315080446 | Y58: =Q58 -> -104821 | Z58: =Y58/(W58-AA58) -> -0.3573971155 | AA58: =S58 -> -104821 | AB58: -0.3573971155 | AC58: =L$70*F58 -> 533837.556 | AE58: =ROUND(AE$70*$F58,0) -> 0 | AF58: =AE58-AD58 -> 0 | AG58: =AG57 -> 1 | AI58: =AH58+AD58 -> 0 | AJ58: =L58+AH58*AG58 -> 188469 | AK58: =ROUND((AC58-AJ58)/AG58,0) -> 345369 | AL58: 345369 | AV58: =AL58 -> 345369 | BC58: -147596
A59: 外国債券 | B59: 0 | C59: 0.1636912548 | D59: 0 | E59: 0 | F59: 0 | G59: 0 | H59: 0 | J59: 0 | K59: 0 | M59: 0 | Q59: =N59+P59-税金!C$3*メイン!O59 -> 0 | S59: 0 | U59: 0 | V59: 0 | W59: 0 | X59: 0 | Y59: 0 | AA59: 0 | AC59: 0 | AE59: =ROUND(AE$33*$F59,0) -> 0 | AF59: 0 | AG59: 1 | AI59: 0 | AJ59: =L59+AH59*AG59 -> 0 | AK59: =ROUND((AC59-AJ59)/AG59,0) -> 0 | AL59: 0 | BC59: 0
A60: 外国債券ﾚﾊﾞ | B60: 0.3928369826 | C60: 0.1636912548 | D60: 0.06430397862 | E60: 0.005845816238 | F60: 0.006430397862 | G60: 1.6 | H60: 0.1454545455 | I60: =-VLOOKUP("日興－グローバル３倍３分法ファンド（１年決算型）特定/一般",'元(SBI会社)VLOOKUP'!A:L,6,FALSE)*H60+VLOOKUP("日興－グローバル３倍３分法ファンド（１年決算型）特定/一般",'元(SBI会社)VLOOKUP'!A:L,6,FALSE)*G60 -> 692452.3636 | J60: 0.05579059394 | K60: -0.00851338468 | L60: =+VLOOKUP("日興－グローバル３倍３分法ファンド（１年決算型）特定/一般",'元(SBI会社)VLOOKUP'!A:L,6,FALSE)*H60 -> 69245.23636 | M60: 0.006006306002 | N60: 0 | P60: =+VLOOKUP("日興－グローバル３倍３分法ファンド（１年決算型）特定/一般",'元(SBI会社)VLOOKUP'!A:L,12,FALSE)*G60/3 -> -43220.8 | Q60: =N60+P60-税金!C$3*メイン!O60 -> -43220.8 | R60: -0.3843009089 | S60: -43220.8 | T60: -0.3843009089 | U60: 692452.3636 | V60: 0.02113060668 | W60: 69245.23636 | X60: 0.002320218381 | Y60: -43220.8 | Z60: -0.3843009089 | AA60: -43220.8 | AB60: -0.3843009089 | AC60: 74134.48793 | AD60: =ROUND(AD$70*H60,0) -> 0 | AE60: =AD60 -> 0 | AF60: 0 | AG60: 1 | AH60: =ROUND((AC60-L60)/AG60,0) -> 4889 | AI60: =AH60+AD60 -> 4889 | AJ60: 74134.23636 | AK60: =ROUND((AC60-AJ60)/AG60,0) -> 0 | AL60: 0 | BC60: 0
A61: ゴールド | B61: 0.03 | C61: 0.005062616128 | D61: 0.005062616128 | E61: 0.005062616128 | F61: 0.005568877741 | G61: 0 | H61: 0 | I61: =L61 -> 155660 | J61: 0.01254146034 | K61: 0.007478844207 | L61: =VLOOKUP("三井住友ＴＡＭ－ＳＭＴ ゴールドインデックス・オープン（為替ヘッジあり）特定/一般",'元(SBI会社)VLOOKUP'!A:L,6,FALSE) -> 155660 | M61: 0.0135018904 | N61: 0 | P61: =VLOOKUP("三井住友ＴＡＭ－ＳＭＴ ゴールドインデックス・オープン（為替ヘッジあり）特定/一般",'元(SBI会社)VLOOKUP'!A:L,12,FALSE) -> 1114 | Q61: =N61+P61-税金!C$3*メイン!O61 -> 1114 | R61: 0.007208209853 | S61: 1114 | T61: 0.007208209853 | U61: 155660 | V61: 0.004750059945 | W61: 155660 | X61: 0.005215740637 | Y61: 1114 | Z61: 0.007208209853 | AA61: 1114 | AB61: 0.007208209853 | AC61: 64202.23267 | AE61: =ROUND(AE$70*$F61,0) -> 0 | AF61: 0 | AG61: 1 | AI61: 0 | AJ61: 155660 | AK61: =ROUND((AC61-AJ61)/AG61,0) -> -91458 | AL61: -91458 | AV61: =AL61 -> -91458 | BC61: -6640
A62: 米国株 | B62: 0.03 | C62: 0.7896838226 | D62: 0.02369051468 | E62: 0.02369051468 | F62: 0.02605956615 | G62: 0 | H62: 0 | I62: =L62 -> 382789 | J62: 0.03084114776 | K62: 0.007150633081 | L62: =VLOOKUP("三菱ＵＦＪ国際－ｅＭＡＸＩＳ Ｓｌｉｍ 米国株式（Ｓ＆Ｐ５００）特定/一般",'元(SBI会社)VLOOKUP'!A:L,6,FALSE) -> 382789 | M62: 0.03320297524 | N62: 0 | P62: =VLOOKUP("三菱ＵＦＪ国際－ｅＭＡＸＩＳ Ｓｌｉｍ 米国株式（Ｓ＆Ｐ５００）特定/一般",'元(SBI会社)VLOOKUP'!A:L,12,FALSE) -> 89527 | Q62: =N62+P62-税金!C$3*メイン!O62 -> 89527 | R62: 0.3052799203 | S62: 89527 | T62: 0.3052799203 | U62: 382789 | V62: 0.01168104006 | W62: 382789 | X62: 0.01282621189 | Y62: 89527 | Z62: 0.3052799203 | AA62: 89527 | AB62: 0.3052799203 | AC62: 300434.3796 | AE62: 0 | AF62: 0 | AG62: 1 | AI62: 0 | AJ62: 382789 | AK62: -82355 | AL62: -82355 | AV62: =AL62+AL63 -> -15592 | BC62: -16696
A63: 米国株ﾚﾊﾞ | B63: 0.02 | C63: 0.7896838226 | D63: 0.01579367645 | E63: 0.005264558817 | F63: 0.005791014699 | G63: 0 | H63: 0 | J63: 0 | K63: -0.01579367645 | M63: 0 | N63: 0 | Q63: =N63+P63-税金!C$3*メイン!O63 -> 0 | S63: 0 | U63: 0 | V63: 0 | W63: =L63 -> 0 | X63: 0 | Y63: 0 | AA63: =S63 -> 0 | AB63: =AA63/(W63-AA63) ->  | AC63: 66763.19546 | AE63: 0 | AF63: =AE63-AD63 -> 0 | AG63: 1 | AI63: 0 | AJ63: =L63+AH63*AG63 -> 0 | AK63: =ROUND((AC63-AJ63)/AG63,0) -> 66763 | AL63: =AK63+AF63 -> 66763
A64: 先進国株 | B64: 0.5703240764 | C64: 0.7896838226 | D64: 0.4503756968 | E64: 0.4503756968 | F64: 0.4954132664 | G64: 0.2 | H64: 0.2 | I64: =L64-VLOOKUP("日興－グローバル３倍３分法ファンド（１年決算型）特定/一般",'元(SBI会社)VLOOKUP'!A:L,6,FALSE)*H64+VLOOKUP("日興－グローバル３倍３分法ファンド（１年決算型）特定/一般",'元(SBI会社)VLOOKUP'!A:L,6,FALSE)*G64 -> 5670766.2 | J64: 0.4568912332 | K64: 0.006515536479 | L64: =VLOOKUP("三菱ＵＦＪ国際－ｅＭＡＸＩＳ Ｓｌｉｍ 先進国株式インデックス特定/一般",'元(SBI会社)VLOOKUP'!A:L,6,FALSE)+VLOOKUP("日興－グローバル３倍３分法ファンド（１年決算型）特定/一般",'元(SBI会社)VLOOKUP'!A:L,6,FALSE)*H64 -> 5670766.2 | M64: 0.4918801473 | N64: 0 | P64: =VLOOKUP("三菱ＵＦＪ国際－ｅＭＡＸＩＳ Ｓｌｉｍ 先進国株式インデックス特定/一般",'元(SBI会社)VLOOKUP'!A:L,12,FALSE)+VLOOKUP("日興－グローバル３倍３分法ファンド（１年決算型）特定/一般",'元(SBI会社)VLOOKUP'!A:L,12,FALSE)*G64/3 -> 1221350.4 | Q64: =N64+P64-税金!C$3*メイン!O64 -> 1221350.4 | R64: 0.2744968002 | S64: 1221350.4 | T64: 0.2744968002 | U64: 5670766.2 | V64: 0.1730468931 | W64: =L64 -> 5670766.2 | X64: 0.1900118573 | Y64: 1221350.4 | Z64: 0.2744968002 | AA64: =S64 -> 1221350.4 | AB64: =AA64/(W64-AA64) -> 0.2744968002 | AC64: 5711498.668 | AD64: =ROUND(AD$70*H64,0) -> 0 | AE64: 0 | AF64: =AF70-AF57-AF59-AF66-AF67-AF62-AF68-AF69-AF58-AF60-AF61-AF65-AF63 -> 0 | AG64: 1 | AH64: =ROUND(AH$70*H64,0) -> 6722 | AI64: 6722 | AJ64: =L64+AH64*AG64 -> 5677488.2 | AK64: =AK70-AK57-AK59-AK66-AK67-AK62-AK68-AK69-AK58-AK60-AK61-AK65-AK63 -> 34009 | AL64: =AK64+AF64 -> 34009 | AV64: =AL64 -> 34009 | BC64: -336411
A65: 先進国株ﾍｯｼﾞ | B65: 0.1296759236 | C65: 0.7896838226 | D65: 0.1024029791 | E65: 0.1024029791 | F65: 0.112643277 | G65: 0 | H65: 0 | I65: =L65 -> 1688077 | J65: 0.1360076496 | K65: =J65-D65 -> 0.03360467055 | L65: =VLOOKUP("Ｏｎｅ－たわらノーロード 先進国株式＜為替ヘッジあり＞特定/一般",'元(SBI会社)VLOOKUP'!A:L,6,FALSE) -> 1688077 | M65: 0.14642317 | N65: 0 | P65: =VLOOKUP("Ｏｎｅ－たわらノーロード 先進国株式＜為替ヘッジあり＞特定/一般",'元(SBI会社)VLOOKUP'!A:L,12,FALSE) -> 60274 | Q65: =N65+P65-税金!C$3*メイン!O65 -> 60274 | R65: 0.03702782216 | S65: 60274 | T65: 0.03702782216 | U65: =I65 -> 1688077 | V65: 0.05151270039 | W65: =L65 -> 1688077 | X65: 0.05656284086 | Y65: 60274 | Z65: 0.03702782216 | AA65: =S65 -> 60274 | AB65: =AA65/(W65-AA65) -> 0.03702782216 | AC65: 1298636.855 | AD65: 0 | AE65: 0 | AF65: =AE65-AD65 -> 0 | AG65: 1 | AH65: 0 | AI65: =AH65+AD65 -> 0 | AJ65: =L65+AH65*AG65 -> 1688077 | AK65: =ROUND((AC65-AJ65)/AG65,0) -> -389440 | AL65: =AK65+AF65 -> -389440 | AV65: -389440 | BC65: 372906
A66: 日本株 | B66: 0.15 | C66: 0.7896838226 | D66: 0.1184525734 | E66: 0.1111453031 | F66: 0.1222598334 | G66: 0.2 | H66: 0.01818181818 | I66: =L66-VLOOKUP("日興－グローバル３倍３分法ファンド（１年決算型）特定/一般",'元(SBI会社)VLOOKUP'!A:L,6,FALSE)*H66+VLOOKUP("日興－グローバル３倍３分法ファンド（１年決算型）特定/一般",'元(SBI会社)VLOOKUP'!A:L,6,FALSE)*G66 -> 1654331.2 | J66: 0.1332887648 | K66: =J66-D66 -> 0.01483619139 | L66: =VLOOKUP("三菱ＵＦＪ国際－ｅＭＡＸＩＳ Ｓｌｉｍ 国内株式（ＴＯＰＩＸ）特定/一般",'元(SBI会社)VLOOKUP'!A:L,6,FALSE)+VLOOKUP("日興－グローバル３倍３分法ファンド（１年決算型）特定/一般",'元(SBI会社)VLOOKUP'!A:L,6,FALSE)*H66 -> 1567774.655 | M66: 0.1359881894 | N66: 0 | P66: =VLOOKUP("三菱ＵＦＪ国際－ｅＭＡＸＩＳ Ｓｌｉｍ 国内株式（ＴＯＰＩＸ）特定/一般",'元(SBI会社)VLOOKUP'!A:L,12,FALSE)+VLOOKUP("日興－グローバル３倍３分法ファンド（１年決算型）特定/一般",'元(SBI会社)VLOOKUP'!A:L,12,FALSE)*G66/3 -> 284498.4 | Q66: =N66+P66-税金!C$3*メイン!O66 -> 284498.4 | R66: 0.2216969253 | S66: 284498.4 | T66: 0.2216969253 | U66: =I66+持株会!B40+持株会!B43+'元(野村預り）'!R48 -> 1654331.2 | V66: 0.05048292669 | W66: =L66+持株会!B40+持株会!B43+'元(野村預り）'!R48 -> 1567774.655 | X66: 0.05253183847 | Y66: =Q66 -> 284498.4 | Z66: 0.2216969253 | AA66: =S66+持株会!C46+IF(持株会!B42>0,持株会!B42*(100%-20.315%),持株会!B42)+('元（野村履歴)'!D41-'元（野村履歴)'!A41)+('元（野村履歴)'!H41-'元（野村履歴)'!E41)+('元（野村履歴)'!L41-'元（野村履歴)'!I41)+IF('元(野村預り）'!S48>0,'元(野村預り）'!S48*(100%-20.315%),'元(野村預り）'!S48) -> 284498.4 | AB66: =AA66/(W66-AA66) -> 0.2216969253 | AC66: 1409503.788 | AD66: 0 | AE66: 0 | AF66: 0 | AG66: 1 | AH66: 611 | AI66: =AH66+AD66 -> 611 | AJ66: =L66+AH66*AG66 -> 1568385.655 | AK66: -158882 | AL66: =AK66+AF66 -> -158882 | AV66: -158882 | BC66: 43046
A67: 新興国株 | B67: 0.1 | C67: 0.7896838226 | D67: 0.07896838226 | E67: 0.07896838226 | F67: 0.08686522049 | G67: 0.2 | H67: 0.2 | I67: =L67-VLOOKUP("日興－グローバル３倍３分法ファンド（１年決算型）特定/一般",'元(SBI会社)VLOOKUP'!A:L,6,FALSE)*H67+VLOOKUP("日興－グローバル３倍３分法ファンド（１年決算型）特定/一般",'元(SBI会社)VLOOKUP'!A:L,6,FALSE)*G67 -> 1072688.2 | J67: 0.08642603438 | K67: 0.007457652124 | L67: =VLOOKUP("三菱ＵＦＪ国際－ｅＭＡＸＩＳ Ｓｌｉｍ 新興国株式インデックス特定/一般",'元(SBI会社)VLOOKUP'!A:L,6,FALSE)+VLOOKUP("日興－グローバル３倍３分法ファンド（１年決算型）特定/一般",'元(SBI会社)VLOOKUP'!A:L,6,FALSE)*H67 -> 1072688.2 | M67: 0.0930445748 | N67: 0 | P67: =VLOOKUP("三菱ＵＦＪ国際－ｅＭＡＸＩＳ Ｓｌｉｍ 新興国株式インデックス特定/一般",'元(SBI会社)VLOOKUP'!A:L,12,FALSE)+VLOOKUP("日興－グローバル３倍３分法ファンド（１年決算型）特定/一般",'元(SBI会社)VLOOKUP'!A:L,12,FALSE)*G67/3 -> 80415.4 | Q67: =N67+P67-税金!C$3*メイン!O67 -> 80415.4 | R67: 0.08104162484 | S67: 80415.4 | T67: 0.08104162484 | U67: =I67 -> 1072688.2 | V67: 0.0327337354 | W67: =L67 -> 1072688.2 | X67: 0.03594284618 | Y67: =Q67 -> 80415.4 | Z67: 0.08104162484 | AA67: =S67 -> 80415.4 | AB67: 0.08104162484 | AC67: 1001447.932 | AD67: 0 | AE67: 0 | AF67: 0 | AG67: 1 | AH67: 6722 | AI67: 6722 | AJ67: 1079410.2 | AK67: -77962 | AL67: -77962 | AV67: -77962 | BC67: 48709
A68: 先進国RIET | B68: 0.75 | C68: 0.04156230645 | D68: 0.03117172984 | E68: 0.03117172984 | F68: 0.03428890282 | G68: 0.2 | H68: 0.2 | I68: =L68-VLOOKUP("日興－グローバル３倍３分法ファンド（１年決算型）特定/一般",'元(SBI会社)VLOOKUP'!A:L,6,FALSE)*H68+VLOOKUP("日興－グローバル３倍３分法ファンド（１年決算型）特定/一般",'元(SBI会社)VLOOKUP'!A:L,6,FALSE)*G68 -> 378008.2 | J68: 0.03045596073 | K68: -0.0007157691133 | L68: =VLOOKUP("三菱ＵＦＪ国際－ｅＭＡＸＩＳ Ｓｌｉｍ 先進国リートインデックス特定/一般",'元(SBI会社)VLOOKUP'!A:L,6,FALSE)+VLOOKUP("日興－グローバル３倍３分法ファンド（１年決算型）特定/一般",'元(SBI会社)VLOOKUP'!A:L,6,FALSE)*H68 -> 378008.2 | M68: 0.03278829043 | N68: 0 | P68: =VLOOKUP("三菱ＵＦＪ国際－ｅＭＡＸＩＳ Ｓｌｉｍ 先進国リートインデックス特定/一般",'元(SBI会社)VLOOKUP'!A:L,12,FALSE)+VLOOKUP("日興－グローバル３倍３分法ファンド（１年決算型）特定/一般",'元(SBI会社)VLOOKUP'!A:L,12,FALSE)*G68/3 -> 9514.4 | Q68: =N68+P68-税金!C$3*メイン!O68 -> 9514.4 | R68: 0.02581970172 | S68: 9514.4 | T68: 0.02581970172 | U68: 378008.2 | V68: 0.01153515103 | W68: =L68 -> 378008.2 | X68: 0.01266602037 | Y68: =Q68 -> 9514.4 | Z68: 0.02581970172 | AA68: =S68 -> 9514.4 | AB68: 0.02581970172 | AC68: 395308.3942 | AD68: 0 | AE68: 0 | AF68: 0 | AG68: 1 | AH68: 6722 | AI68: 6722 | AJ68: 384730.2 | AK68: 10578 | AL68: 10578 | AV68: 10578 | BC68: 27408
A69: J-RIET | B69: 0.25 | C69: 0.04156230645 | D69: =D32 -> 0.01039057661 | E69: =E32 -> 0.01039057661 | F69: 0.01142963427 | G69: 0.2 | H69: 0.2 | I69: =L69-VLOOKUP("日興－グローバル３倍３分法ファンド（１年決算型）特定/一般",'元(SBI会社)VLOOKUP'!A:L,6,FALSE)*H69+VLOOKUP("日興－グローバル３倍３分法ファンド（１年決算型）特定/一般",'元(SBI会社)VLOOKUP'!A:L,6,FALSE)*G69 -> 126598.2 | J69: 0.01019996341 | K69: -0.0001906132071 | L69: =VLOOKUP("三菱ＵＦＪ国際－ｅＭＡＸＩＳ Ｓｌｉｍ 国内リートインデックス特定/一般",'元(SBI会社)VLOOKUP'!A:L,6,FALSE)+VLOOKUP("日興－グローバル３倍３分法ファンド（１年決算型）特定/一般",'元(SBI会社)VLOOKUP'!A:L,6,FALSE)*H69 -> 126598.2 | M69: 0.0109810807 | N69: 0 | P69: =VLOOKUP("三菱ＵＦＪ国際－ｅＭＡＸＩＳ Ｓｌｉｍ 国内リートインデックス特定/一般",'元(SBI会社)VLOOKUP'!A:L,12,FALSE)+VLOOKUP("日興－グローバル３倍３分法ファンド（１年決算型）特定/一般",'元(SBI会社)VLOOKUP'!A:L,12,FALSE)*G69/3 -> -5183.6 | Q69: =N69+P69-税金!C$3*メイン!O69 -> -5183.6 | R69: -0.03933471845 | S69: -5183.6 | T69: -0.03933471845 | U69: 126598.2 | V69: 0.003863221373 | W69: =L69 -> 126598.2 | X69: 0.004241959247 | Y69: =Q69 -> -5183.6 | Z69: -0.03933471845 | AA69: =S69 -> -5183.6 | AB69: -0.03933471845 | AC69: 131769.4647 | AD69: 0 | AE69: 0 | AF69: 0 | AG69: 1 | AH69: 6722 | AI69: =AH69+AD69 -> 6722 | AJ69: 133320.2 | AK69: -1551 | AL69: -1551 | AV69: -1551 | BC69: 5832
D70: =D33 -> 1 | E70: 0.9090909091 | F70: 1 | G70: 3 | H70: 1 | I70: =SUM(I57:I69) -> 12411632.76 | J70: 1 | K70: =(IF(I70*D57-I57>0,I70*D57-I57,0)+IF(I70*D58-I58>0,I70*D58-I58,0)+IF(I70*D59-I59>0,I70*D59-I59,0)+IF(I70*D60-I60>0,I70*D60-I60,0)+IF(I70*D61-I61>0,I70*D61-I61,0)+IF(I70*D62-I62>0,I70*D62-I62,0)+IF(I70*D63-I63>0,I70*D63-I63,0)+IF(I70*D64-I64>0,I70*D64-I64,0)+IF(I70*D65-I65>0,I70*D65-I65,0)+IF(I70*D66-I66>0,I70*D66-I66,0)+IF(I70*D67-I67>0,I70*D67-I67,0)+IF(I70*D68-I68>0,I70*D68-I68,0)+IF(I70*D69-I69>0,I70*D69-I69,0))/I70 -> 0.07704352784 | L70: =SUM(L57:L69) -> 11528756 | M70: 1 | N70: 0 | P70: =SUM(P57:P69) -> 1567417 | Q70: =SUM(Q57:Q69) -> 1567417 | R70: 0.157350031 | S70: =SUM(S57:S69) -> 1567417 | T70: 0.157350031 | U70: =SUM(U57:U69) -> 12411632.76 | V70: =SUM(V57:V69) -> 0.3787485523 | W70: =SUM(W57:W69) -> 11528756 | X70: =SUM(X57:X69) -> 0.3862970652 | Y70: =SUM(Y57:Y69) -> 1567417 | Z70: 0.1701989109 | AA70: =SUM(AA57:AA69) -> 2319431.5 | AB70: =AA70/(L70+持株会!B40-AA70) -> 0.2518568544 | AC70: =SUM(AC57:AC69) -> 11528756 | AD70: =ROUND(AE70*F60/H60,0) -> 0 | AE70: 0 | AF70: =AE70-AD70 -> 0 | AH70: =ROUND(AH60/H60,0) -> 33612 | AI70: =AH70+AD70 -> 33612 | AJ70: =SUM(AJ57:AJ69) -> 11562366 | AK70: =AH70*-1 -> -33612 | AL70: =SUM(AL57:AL69) -> -33612 | AV70: =AI70 -> 33612 | BC70: 76450
I71: =I70*('15年'!C$70*2.5) -> 4708838.012 | L71: =L70-I71 -> 6819917.988 | M71: =I71/L70/2 -> 0.2042214274 | N71: =IF(N57>0,N57,0)+IF(N58>0,N58,0)+IF(N59>0,N59,0)+IF(N60>0,N60,0)+IF(N61>0,N61,0)+IF(N62>0,N62,0)+IF(N63>0,N63,0)+IF(N64>0,N64,0)+IF(N65>0,N65,0)+IF(N66>0,N66,0)+IF(N67>0,N67,0)+IF(N68>0,N68,0)+IF(N69>0,N69,0) -> 0 | Y71: =Y70-Q70 -> 0 | AA71: =AA70-S70 -> 752014.5
I72: =Y70-I71 -> -3141421.012
L78: 399752
L79: 150000
L80: =L78-L79 -> 249752 | Q80: 23000
Q81: =Q80*3 -> 69000
Q84: 699500
Q85: =Q84-Q81 -> 630500
Q92: 45000
Q93: =Q92-4700 -> 40300

Sheet 資産推移
J1: 夫 | R1: 妻 | W1: 子
J2: IDECO | M2: NISA楽天 | P2: NISA SBI | R2: IDECO | U2: NISA | W2: NISA
B3: 運用総額 | C3: 元金 | D3: 利益 | E3: 利率 | G3: レバレッジ | H3: 期待リターン | I3: リスク | J3: 取得 | K3: 現在 | L3: 損益 | M3: 現在の評価金額[円] | N3: 累計買付金額[円] | O3: トータルリターン[円] | P3: 評価額 | Q3: 含み損益 | R3: 取得 | S3: 現在 | T3: 損益 | U3: 評価額 | V3: 含み損益 | W3: 現在の評価金額[円] | X3: 累計買付金額[円] | Y3: トータルリターン[円] | Z3: 利益計 | AA3: 評価額計
A4: 2021-07-17 | B4: 53649517 | C4: 40180296 | D4: 13469220 | E4: 0.3352 | G4: 1.11 | H4: 0.0434 | I4: 0.1413
A5: 2021-07-20 | B5: 53301464 | C5: 40199040 | D5: 13102424 | E5: 0.3259 | G5: 1.11 | H5: 0.0434 | I5: 0.1412
A6: 2021-07-21 | B6: 52609275.81 | C6: 40282419.5 | D6: 12326856.32 | E6: 0.3060108223 | G6: 1.115609324 | H6: 0.0433295742 | I6: 0.1406832454
A7: 2021-07-22 | B7: 53266114 | C7: 40308999 | D7: 12957115 | E7: 0.3214 | G7: 1.116361815 | H7: 0.04333447656 | I7: 0.1407488539
A8: 2021-07-27 | B8: 54451991.07 | C8: 40425172.88 | D8: 14026818.19 | E8: 0.3469822685 | G8: 1.115037794 | H8: 0.04337021714 | I8: 0.1410467959
A9: 2021-07-28 | B9: 54702746.86 | C9: 40775986.39 | D9: 13926760.48 | E9: 0.3415431902 | G9: 1.113973869 | H9: 0.04327185248 | I9: 0.1400227861
A10: 2021-07-29 | B10: 54338767.41 | C10: 40851257.54 | D10: 13487509.87 | E10: 0.3301614363 | G10: 1.114245426 | H10: 0.04323733448 | I10: 0.1396118882
A11: 2021-07-30 | B11: 54470520.93 | C11: 40847273.6 | D11: 13623247.33 | E11: 0.3335166863 | G11: 1.114595384 | H11: 0.04324146809 | I11: 0.1396542128
A12: 2021-07-31 | B12: 54555047.24 | C12: 40838346.74 | D12: 13716700.5 | E12: 0.3358779578 | G12: 1.114123173 | H12: 0.04326836843 | I12: 0.1397313201
A13: 2021-08-03 | B13: 54507734.26 | C13: 40870676.8 | D13: 13637057.45 | E13: 0.3336636072 | G13: 1.114054513 | H13: 0.04321612123 | I13: 0.139572837
A14: 2021-08-04 | B14: 54504059.99 | C14: 40906838.19 | D14: 13597221.79 | E14: 0.3323948365 | G14: 1.114626958 | H14: 0.04320750343 | I14: 0.1394465082
A15: 2021-08-05 | B15: 54592273.99 | C15: 40897112.83 | D15: 13695161.16 | E15: 0.3348686548 | G15: 1.114464501 | H15: 0.04321410712 | I15: 0.1394708232
A16: 2021-08-06 | B16: 54772034.86 | C16: 40887390.45 | D16: 13884644.41 | E16: 0.3395825523 | G16: 1.115097128 | H16: 0.04322849681 | I16: 0.1395401528
A17: 2021-08-10 | B17: 55013398 | C17: 40865914 | D17: 14147484 | E17: 0.3462 | G17: 1.11409621 | H17: 0.04327543259 | I17: 0.1397
A18: 2021-08-11 | B18: 55040317.61 | C18: 40856349.52 | D18: 14183968.09 | E18: 0.3471667991 | G18: 1.11409621 | H18: 0.04327543259 | I18: 0.1400788558
A19: 2021-08-12 | B19: 55229431.49 | C19: 40845609.1 | D19: 14383822.4 | E19: 0.3521510075 | G19: 1.114154331 | H19: 0.04328245315 | I19: 0.1401704229
A20: 2021-08-17 | B20: 55055420.49 | C20: 40875943.6 | D20: 14179476.88 | E20: 0.346890509 | G20: 1.114042645 | H20: 0.04328991386 | I20: 0.1400185243
A21: 2021-08-18 | B21: 54897260.46 | C21: 40885029.49 | D21: 14012230.96 | E21: 0.3427227799 | G21: 1.113901806 | H21: 0.04327427444 | I21: 0.1398743028
A22: 2021-08-19 | B22: 54743570.12 | C22: 40895867.84 | D22: 13847702.29 | E22: 0.338608838 | G22: 1.113620026 | H22: 0.0432436567 | I22: 0.1397234931
A23: 2021-08-20 | B23: 54538983.11 | C23: 40907822.71 | D23: 13631160.4 | E23: 0.333216473 | G23: 1.113719759 | H23: 0.04325544438 | I23: 0.1396938478
A24: 2021-08-21 | B24: 54316814.61 | C24: 40949927.36 | D24: 13366887.25 | E24: 0.326420292 | G24: 1.114259768 | H24: 0.04324185585 | I24: 0.1395325144
A25: 2021-08-24 | B25: 54695222.14 | C25: 41001474.6 | D25: 13693747.54 | E25: 0.3339818304 | G25: 1.114251433 | H25: 0.0453986722 | I25: 0.1555460112
A26: 2021-08-25 | B26: 55092812.57 | C26: 40975997.86 | D26: 14116814.71 | E26: 0.3445142387 | G26: 1.113950986 | H26: 0.04543586943 | I26: 0.1557130831 | M26: 4939
A27: 2021-08-28 | B27: 55206958 | C27: 41019301 | D27: 14187657 | E27: 0.3459 | G27: 1.11 | H27: 0.0408 | I27: 0.1399 | M27: 300
A28: 2021-08-31 | B28: 55630028.41 | C28: 41049670.37 | D28: 14580358.04 | E28: 0.355188188 | G28: 1.114548441 | H28: 0.04545988928 | I28: 0.1558258569 | M28: =M26+M27 -> 5239
A29: 2021-09-01 | B29: 55871945.51 | C29: 41035660.57 | D29: 14836284.95 | E29: 0.3615461465 | G29: 1.114492298 | H29: 0.04548007639 | I29: 0.1559207737
A30: 2021-09-02 | B30: 56216048.49 | C30: 41221205.59 | D30: 14994842.9 | E30: 0.363765268 | G30: 1.11416384 | H30: 0.04536073827 | I30: 0.1555146298
A31: 2021-09-03 | B31: 56656489.22 | C31: 41581279.42 | D31: 15075209.8 | E31: 0.3625480026 | G31: 1.113558784 | H31: 0.04509091949 | I31: 0.1544348479 | J31: 1012000 | K31: 1514435 | L31: 502435 | M31: 1062856 | N31: 799600 | O31: 263256 | P31: 520834.03 | Q31: 154150.47 | R31: 92000 | S31: 91816 | T31: -184 | U31: 1144187.75 | V31: 310817.85 | W31: 2119562 | X31: 1599992 | Y31: 519570 | Z31: 1750045.32 | AA31: 6453690.78 | AB31: 13325164.48 | AC31: 50202798.44
A32: 2021-09-04 | B32: 56877525.55 | C32: 41571282.68 | D32: 15306242.88 | E32: 0.3681927016 | G32: 1.113721243 | H32: 0.04511172482 | I32: 0.1544670687 | L32: 137741 | Q32: 58693.7941 | V32: 60145.2059 | Y32: 107173 | AB32: 2877260 | AC32: 34516901
A33: 2021-09-07 | B33: 56898373.19 | C33: 41577249.72 | D33: 15321123.46 | E33: 0.3684977617 | G33: 1.113792589 | H33: 0.04511139265 | I33: 0.1544337292 | L33: 364694 | Q33: 358712.6759 | V33: 250672.6441 | Y33: 412397 | AB33: 10447904.48 | AC33: 44964805.48
A34: 2021-09-08 | B34: 57042454.75 | C34: 41573056.68 | D34: 15469398.07 | E34: 0.3721015318 | G34: 1.113561408 | H34: 0.04511798975 | I34: 0.1544456158 | L34: 1149741 | AC34: 5237992.958
A35: 2021-09-09 | B35: 57035649.18 | C35: 41573479.43 | D35: 15462169.75 | E35: 0.3719238795 | G35: 1.11315065 | H35: 0.04514773575 | I35: 0.1545737625 | Q35: 916039.3137 | V35: 492630.6863 | Y35: 640501
A36: 2021-09-10 | B36: 56782877.5 | C36: 41587669.14 | D36: 15195208.36 | E36: 0.3653777351 | G36: 1.112764662 | H36: 0.04510008328 | I36: 0.1543887953 | Q36: 1583690.03 | V36: 400884.4196 | Y36: 1066664
A37: 2021-09-11 | B37: 56305229.68 | C37: 41357092.19 | D37: 15130811.47 | E37: 0.3614407275 | G37: 1.104139704 | H37: 0.04456066223 | I37: 0.1524059907
A38: 2021-09-14 | B38: 56434091.3 | C38: 41445910.7 | D38: 14988180.6 | E38: 0.3616323142 | G38: 1.103854749 | H38: 0.04436019642 | I38: 0.1516055986
A39: 2021-09-15 | B39: 56602928.01 | C39: 41461145.26 | D39: 15141782.75 | E39: 0.3652041606 | G39: 1.103565894 | H39: 0.04436525355 | I39: 0.1516008892
A40: 2021-09-16 | B40: 56255120.94 | C40: 41484763.14 | D40: 14770357.8 | E40: 0.3560429586 | G40: 1.103834776 | H40: 0.04431949231 | I40: 0.1514162051
A41: 2021-09-17 | B41: 56274851.33 | C41: 41466938.16 | D41: 14807913.17 | E41: 0.3571016773 | G41: 1.103671913 | H41: 0.044335156 | I41: 0.1514843897
A42: 2021-09-18 | B42: 56290785.87 | C42: 41460469.33 | D42: 14830316.55 | E42: 0.3576977489 | G42: 1.102987614 | H42: 0.04435198908 | I42: 0.1515449425
A43: 2021-09-21 | B43: 56276177.75 | C43: 41459772.04 | D43: 14816405.71 | E43: 0.3573682387 | G43: 1.10242333 | H43: 0.04432138843 | I43: 0.151439231
A44: 2021-09-22 | B44: 55168367.86 | C44: 41573761.95 | D44: 13594605.91 | E44: 0.3269996573 | G44: 1.102780367 | H44: 0.04416077884 | I44: 0.1507771677
A45: 2021-09-23 | B45: 55156535.91 | C45: 41648596.96 | D45: 13507938.95 | E45: 0.3243311884 | G45: 1.102945943 | H45: 0.044135522 | I45: 0.1507053025
A46: 2021-09-24 | B46: 55169238.33 | C46: 41649084.78 | D46: 13520153.55 | E46: 0.3246206638 | G46: 1.10334655 | H46: 0.0441578378 | I46: 0.1507829588
A47: 2021-09-25 | B47: 56286310.22 | C47: 41474783.4 | D47: 14811526.82 | E47: 0.3571212579 | G47: 1.102521981 | H47: 0.04437504248 | I47: 0.1516939333
A48: 2021-09-28 | B48: 56363667.7 | C48: 41596369.11 | D48: 14767298.59 | E48: 0.3550141252 | G48: 1.101523113 | H48: 0.04433490438 | I48: 0.151583215
A49: 2021-09-29 | B49: 56328869.75 | C49: 41649304.07 | D49: 14679565.68 | E49: 0.3524564458 | G49: 1.100608891 | H49: 0.04425704543 | I49: 0.1513267062
A50: 2021-09-30 | B50: 55677171.78 | C50: 41695565.89 | D50: 13981605.88 | E50: 0.3353259653 | G50: 1.100727993 | H50: 0.04420346741 | I50: 0.1511501291
A51: 2021-10-01 | B51: 55708403.58 | C51: 41686757.44 | D51: 14021646.14 | E51: 0.3363573231 | G51: 1.100157369 | H51: 0.04419022157 | I51: 0.1511192394
A52: 2021-10-02 | B52: 55160151.19 | C52: 41742807.28 | D52: 13417343.9 | E52: 0.3214288826 | G52: 1.099831724 | H52: 0.04410374319 | I52: 0.1508459406
A53: 2021-10-05 | B53: 55284605.39 | C53: 41761462.97 | D53: 13523142.42 | E53: 0.3238186945 | G53: 1.099527291 | H53: 0.04405804625 | I53: 0.1506646379
A54: 2021-10-06 | B54: 54847088.15 | C54: 41795041.77 | D54: 13052046.38 | E54: 0.3122869563 | G54: 1.100123293 | H54: 0.04401834086 | I54: 0.1504969907
A55: 2021-10-07 | B55: 55284865.92 | C55: 41746698.93 | D55: 13538167 | E55: 0.324293114 | G55: 1.099251963 | H55: 0.04409708652 | I55: 0.1508861571
A56: 2021-10-08 | B56: 54966199.52 | C56: 41486334.52 | D56: 13479865 | E56: 0.3249230176 | G56: 1.100018977 | H56: 0.04430813139 | I56: 0.1516982105
A57: 2021-10-09 | B57: 55811480.73 | C57: 41712355.96 | D57: 14099124.77 | E57: 0.3380083537 | G57: 1.09925139 | H57: 0.04418286444 | I57: 0.1512325941
A58: 2021-10-12 | B58: 56030369.13 | C58: 41702515.41 | D58: 14327853.72 | E58: 0.3435728896 | G58: 1.098846335 | H58: 0.04421103401 | I58: 0.1513384824
A59: 2021-10-13 | B59: 56175173.38 | C59: 41687345.45 | D59: 14487827.93 | E59: 0.3475353916 | G59: 1.098502663 | H59: 0.04423418665 | I59: 0.1515171548
A60: 2021-10-14 | B60: 56111912.28 | C60: 41691528.65 | D60: 14420383.63 | E60: 0.3458828231 | G60: 1.099066707 | H60: 0.04421954208 | I60: 0.1514322938
A61: 2021-10-15 | B61: 56451068.52 | C61: 41699531.71 | D61: 14751536.82 | E61: 0.3537578533 | G61: 1.099963242 | H61: 0.04425543102 | I61: 0.1515498245
A62: 2021-10-16 | B62: 57316029.93 | C62: 41645033.4 | D62: 15670996.53 | E62: 0.3762992908 | G62: 1.100529476 | H62: 0.04435886703 | I62: 0.1519240822
A63: 2021-10-19 | B63: 57678112.49 | C63: 41608752.61 | D63: 16069359.88 | E63: 0.3862014328 | G63: 1.100185199 | H63: 0.04443515362 | I63: 0.1522874076
A64: 2021-10-20 | B64: 57759019.3 | C64: 41602762.33 | D64: 16156256.97 | E64: 0.3883457747 | G64: 1.099956157 | H64: 0.04446171204 | I64: 0.1523924171
A65: 2021-10-21 | B65: 58197918.3 | C65: 41597626.82 | D65: 16600291.48 | E65: 0.399068234 | G65: 1.099615236 | H65: 0.04451299167 | I65: 0.15264894
A66: 2021-10-22 | B66: 58250059.73 | C66: 41666110.65 | D66: 16583949.08 | E66: 0.3980200892 | G66: 1.099452421 | H66: 0.04448281411 | I66: 0.1525723583
A67: 2021-10-23 | B67: 58171441.01 | C67: 41667274.27 | D67: 16504166.74 | E67: 0.3960942258 | G67: 1.098874677 | H67: 0.04447804456 | I67: 0.1525497008
A68: 2021-10-26 | B68: 58094593.95 | C68: 41696854.26 | D68: 16397739.68 | E68: 0.393260834 | G68: 1.099143915 | H68: 0.04446981924 | I68: 0.1525072514
A69: 2021-10-27 | B69: 58355229.57 | C69: 41684507.09 | D69: 16670722.49 | E69: 0.3999261033 | G69: 1.099351564 | H69: 0.04449088502 | I69: 0.1525659901
A70: 2021-10-28 | B70: 58528932.86 | C70: 41705251.39 | D70: 16823681.48 | E70: 0.4033947984 | G70: 1.099128999 | H70: 0.04447437942 | I70: 0.1525236221
A71: 2021-10-29 | B71: 58270622.55 | C71: 41765000.88 | D71: 16505621.67 | E71: 0.3952022344 | G71: 1.100006594 | H71: 0.04440474561 | I71: 0.152208317
A72: 2021-10-30 | B72: 58490460.84 | C72: 41739548.48 | D72: 16750912.36 | E72: 0.4013199225 | G72: 1.099553647 | H72: 0.04444446305 | I72: 0.1523738442
A73: 2021-11-02 | B73: 58655271.01 | C73: 41754027.01 | D73: 16901244 | E73: 0.4047811724 | G73: 1.098479194 | H73: 0.04446494478 | I73: 0.1524255519
A74: 2021-11-03 | B74: 58817065.68 | C74: 41770007.97 | D74: 17047057.71 | E74: 0.4081171763 | G74: 1.098908391 | H74: 0.04446248276 | I74: 0.1524299996
A75: 2021-11-04 | B75: 58823655.02 | C75: 41770054.46 | D75: 17053600.56 | E75: 0.4082733619 | G75: 1.099118085 | H75: 0.04447439292 | I75: 0.1524716847
A76: 2021-11-05 | B76: 59245804.59 | C76: 41742007.34 | D76: 17503797.25 | E76: 0.4193329063 | G76: 1.099705632 | H76: 0.04453046104 | I76: 0.1526445366
A77: 2021-11-06 | B77: 59233784.81 | C77: 41743260.12 | D77: 17490524.69 | E77: 0.4190023644 | G77: 1.100172836 | H77: 0.04450800942 | I77: 0.152550475
A78: 2021-11-09 | B78: 59331089.82 | C78: 41738434.6 | D78: 17592655.22 | E78: 0.4214977248 | G78: 1.100757338 | H78: 0.04448601675 | I78: 0.1524433959
A79: 2021-11-10 | B79: 59208185.05 | C79: 41742566.27 | D79: 17465618.78 | E79: 0.4184126742 | G79: 1.100262957 | H79: 0.04446698557 | I79: 0.1524060008
A80: 2021-11-11 | B80: 58988842.81 | C80: 41763474.65 | D80: 17225368.17 | E80: 0.4124505519 | G80: 1.100294428 | H80: 0.04440883262 | I80: 0.1521733852
A81: 2021-11-12 | B81: 59033938.21 | C81: 41760726.96 | D81: 17273211.25 | E81: 0.4136233373 | G81: 1.100138371 | H81: 0.04442817152 | I81: 0.1522877889
A82: 2021-11-13 | B82: 59262296.28 | C82: 41750803.47 | D82: 17511492.81 | E82: 0.4194288817 | G82: 1.10001639 | H82: 0.04446666218 | I82: 0.152436046
A83: 2021-11-16 | B83: 59497698.73 | C83: 41757954.04 | D83: 17739744.69 | E83: 0.4248231289 | G83: 1.100021426 | H83: 0.04449230675 | I83: 0.1525302456
A84: 2021-11-17 | B84: 59584176.27 | C84: 41753444.99 | D84: 17830731.28 | E84: 0.4270481461 | G84: 1.100366784 | H84: 0.04452118054 | I84: 0.152638618
A85: 2021-11-18 | B85: 59805100.12 | C85: 41727324.19 | D85: 18077775.93 | E85: 0.4332359258 | G85: 1.099640486 | H85: 0.04454894352 | I85: 0.1528244924
A86: 2021-11-19 | B86: 59496926.56 | C86: 41754705.82 | D86: 17742220.74 | E86: 0.4249154769 | G86: 1.09989935 | H86: 0.04451133408 | I86: 0.1526383526
A87: 2021-11-20 | B87: 59634678.84 | C87: 41742722.92 | D87: 17891955.92 | E87: 0.4286245522 | G87: 1.100118837 | H87: 0.04451582722 | I87: 0.1526220768
A88: 2021-11-23 | B88: 59430169.78 | C88: 41793052.52 | D88: 17637117.26 | E88: 0.4220107458 | G88: 1.100438777 | H88: 0.04447853069 | I88: 0.1524342141
A89: 2021-11-25 | B89: 59448909.01 | C89: 41853448.56 | D89: 17595460.45 | E89: 0.4204064673 | G89: 1.099834425 | H89: 0.04452199431 | I89: 0.1526811006
A90: 2021-11-26 | B90: 59604643.99 | C90: 41864730.64 | D90: 17739913.36 | E90: 0.4237436402 | G90: 1.099752294 | H90: 0.04454111652 | I90: 0.1527501765
A91: 2021-11-27 | B91: 59348429.15 | C91: 41872128.51 | D91: 17476300.63 | E91: 0.4173731132 | G91: 1.098865254 | H91: 0.04445900417 | I91: 0.1524853116
A92: 2021-11-30 | B92: 57976921.33 | C92: 42020404.84 | D92: 15956516.49 | E92: 0.3797325739 | G92: 1.098865254 | H92: 0.04445900417 | I92: 0.1515493811
A93: 2021-12-01 | B93: 58269068.53 | C93: 42020876.28 | D93: 16248192.25 | E93: 0.3866695244 | G93: 1.098706793 | H93: 0.04423388525 | I93: 0.1515851837
A94: 2021-12-02 | B94: 57573586.64 | C94: 42108375.12 | D94: 15465211.51 | E94: 0.3672716287 | G94: 1.099995821 | H94: 0.04412439608 | I94: 0.1510558214
A95: 2021-12-03 | B95: 57238518.05 | C95: 42170093.21 | D95: 15068424.84 | E95: 0.357324912 | G95: 1.099837192 | H95: 0.04406522713 | I95: 0.1508419771
A96: 2021-12-04 | B96: 57769701.19 | C96: 42139362.31 | D96: 15630338.88 | E96: 0.3709201569 | G96: 1.100089751 | H96: 0.04411474289 | I96: 0.1510052996
A97: 2021-12-07 | B97: 57441723.45 | C97: 42161009.6 | D97: 15280713.85 | E97: 0.3624370952 | G97: 1.100984601 | H97: 0.04407238064 | I97: 0.150797256
A98: 2021-12-08 | B98: 58103630.84 | C98: 42119416.69 | D98: 15984214.15 | E98: 0.3794975193 | G98: 1.101549996 | H98: 0.04420056085 | I98: 0.1512364693
A99: 2021-12-09 | B99: 58997776.74 | C99: 42045560.5 | D99: 16952216.24 | E99: 0.4031868296 | G99: 1.101170166 | H99: 0.04431302698 | I99: 0.1517339739
A100: 2021-12-10 | B100: 59168561.38 | C100: 42030559.7 | D100: 17138001.68 | E100: 0.4077509746 | G100: 1.100775365 | H100: 0.04433566188 | I100: 0.1518684203
A101: 2021-12-11 | B101: 58745104.52 | C101: 42065494.42 | D101: 16679610.1 | E101: 0.3965152515 | G101: 1.101284349 | H101: 0.04430414489 | I101: 0.1517355787
A102: 2021-12-14 | B102: 58962312.91 | C102: 42038500.27 | D102: 16923812.64 | E102: 0.4025788868 | G102: 1.100806595 | H102: 0.04430830678 | I102: 0.1517618371
A103: 2021-12-15 | B103: 58677022.35 | C103: 42070042.12 | D103: 16606980.23 | E103: 0.3947459855 | G103: 1.101029385 | H103: 0.04424435094 | I103: 0.1514843822
A104: 2021-12-16 | B104: 58458965.84 | C104: 42114908.82 | D104: 16344057.03 | E104: 0.3880824508 | G104: 1.101693015 | H104: 0.04425791516 | I104: 0.1514955261
A105: 2021-12-17 | B105: 59125079.52 | C105: 42060650.96 | D105: 17064428.56 | E105: 0.4057100443 | G105: 1.100995796 | H105: 0.04432289112 | I105: 0.1517545724
A106: 2021-12-18 | B106: 58804363.06 | C106: 42084291.11 | D106: 16720071.94 | E106: 0.397299598 | G106: 1.101114618 | H106: 0.04425665116 | I106: 0.1515203769
A107: 2021-12-21 | B107: 58233316.16 | C107: 42153192.17 | D107: 16080123.98 | E107: 0.3814687134 | G107: 1.100396198 | H107: 0.04415042063 | I107: 0.1511430284
A108: 2021-12-22 | B108: 57937822.34 | C108: 42258004.24 | D108: 15679818.1 | E108: 0.37104966 | G108: 1.101641875 | H108: 0.04412609395 | I108: 0.1509372789
A109: 2021-12-23 | B109: 58734827.72 | C109: 42183376.91 | D109: 16551450.82 | E109: 0.3923690333 | G109: 1.100651077 | H109: 0.04426044514 | I109: 0.1515593746
A110: 2021-12-24 | B110: 59237100.08 | C110: 42150476.46 | D110: 17086623.62 | E110: 0.4053720161 | G110: 1.100842431 | H110: 0.04431894154 | I110: 0.1517856827
A111: 2021-12-25 | B111: 59594814.15 | C111: 42140712.34 | D111: 17454101.81 | E111: 0.4141862072 | G111: 1.1003344 | H111: 0.04436949027 | I111: 0.1520390479
A112: 2021-12-28 | B112: 60070774.09 | C112: 42665287.37 | D112: 17405486.72 | E112: 0.4079542831 | G112: 1.100012884 | H112: 0.04401339652 | I112: 0.1507505564
A113: 2021-12-29 | B113: 60795909.43 | C113: 42632578.42 | D113: 18163331.01 | E113: 0.4260434552 | G113: 1.099856874 | H113: 0.04407964234 | I113: 0.1510078638
A114: 2021-12-30 | B114: 61347523.94 | C114: 43203846.09 | D114: 18143677.85 | E114: 0.4199551543 | G114: 1.099213851 | H114: 0.04390347362 | I114: 0.1502767765
A115: 2021-12-31 | B115: 63834765.11 | C115: 45650208.42 | D115: 18184556.69 | E115: 0.3983455348 | G115: 1.099199877 | H115: 0.0435968701 | I115: 0.149250245
A116: 2022-01-05 | B116: 64167142.94 | C116: 45665102.75 | D116: 18502040.19 | E116: 0.4051680403 | G116: 1.099033754 | H116: 0.04364470395 | I116: 0.1494358132
A117: 2022-01-06 | B117: 64477088.16 | C117: 45670519.76 | D117: 18806568.4 | E117: 0.4117879213 | G117: 1.09778573 | H117: 0.04362660942 | I117: 0.1494233241
A118: 2022-01-07 | B118: 63562581.46 | C118: 45727975.74 | D118: 17834605.72 | E118: 0.3900152026 | G118: 1.097374977 | H118: 0.04352153881 | I118: 0.1490420464
A119: 2022-01-08 | B119: 63311438.35 | C119: 45742548.97 | D119: 17568889.38 | E119: 0.384081993 | G119: 1.096642251 | H119: 0.04350932599 | I119: 0.1490100367
A120: 2022-01-12 | B120: 63278731.64 | C120: 46179497.64 | D120: 17099234 | E120: 0.3702776096 | G120: 1.095963546 | H120: 0.04351758037 | I120: 0.1491159024
A121: 2022-01-13 | B121: 64639700.1 | C121: 46944437.81 | D121: 17695262.29 | E121: 0.3769405517 | G121: 1.094844295 | H121: 0.04365925813 | I121: 0.149775889
A122: 2022-01-14 | B122: 64627602.06 | C122: 46948143.79 | D122: 17679458.28 | E122: 0.37657417 | G122: 1.094635786 | H122: 0.04362188052 | I122: 0.1496693508
A123: 2022-01-15 | B123: 64249287.95 | C123: 47355433.26 | D123: 16893854.69 | E123: 0.3567458583 | G123: 1.094494182 | H123: 0.04357730262 | I123: 0.149528812
A124: 2022-01-18 | B124: 64694394.26 | C124: 47844660.93 | D124: 16849733.34 | E124: 0.3521758335 | G124: 1.093396335 | H124: 0.04360018554 | I124: 0.1494639008
A125: 2022-01-19 | B125: 64774069.59 | C125: 47851785.92 | D125: 16922283.66 | E125: 0.3536395421 | G125: 1.092191851 | H125: 0.04358328073 | I125: 0.1494589032
A126: 2022-01-20 | B126: 66223655.39 | C126: 50304345.59 | D126: 15919309.8 | E126: 0.3164599322 | G126: 1.092867652 | H126: 0.04315894694 | I126: 0.1478530694
A127: 2022-01-21 | B127: 65896463.78 | C127: 50376342.6 | D127: 15520121.19 | E127: 0.3080835246 | G127: 1.091935795 | H127: 0.04307173894 | I127: 0.1474977104
A128: 2022-01-22 | B128: 65501836.42 | C128: 50492476.38 | D128: 15009360.04 | E128: 0.2972593368 | G128: 1.092160986 | H128: 0.0429607606 | I128: 0.1470628099
A129: 2022-01-25 | B129: 64816741.98 | C129: 50564293.81 | D129: 14252448.17 | E129: 0.2818678379 | G129: 1.092758879 | H129: 0.04283087366 | I129: 0.1464868859
A130: 2022-01-26 | B130: 63938282.9 | C130: 50223206.9 | D130: 13715076 | E130: 0.2730824423 | G130: 1.084846414 | H130: 0.0426416411 | I130: 0.1458030663
A131: 2022-01-27 | B131: 64178688.5 | C131: 50985830.5 | D131: 13192858 | E131: 0.2587553811 | G131: 1.086103006 | H131: 0.04267937699 | I131: 0.1459636543
A132: 2022-01-28 | B132: 63156272.26 | C132: 49729321.79 | D132: 13426950.46 | E132: 0.2700006752 | G132: 1.09726757 | H132: 0.04420800972 | I132: 0.1519014184
A133: 2022-01-29 | B133: 63787929.71 | C133: 50241499.23 | D133: 13546430.47 | E133: 0.2696263185 | G133: 1.097409849 | H133: 0.04430217725 | I133: 0.1520321451
A134: 2022-02-01 | B134: 65453147.4 | C134: 51088527.21 | D134: 14364620.19 | E134: 0.2811711547 | G134: 1.099487094 | H134: 0.04447533612 | I134: 0.1526687369
A135: 2022-02-02 | B135: 66166738.22 | C135: 51043386.97 | D135: 15123351.25 | E135: 0.2962842427 | G135: 1.09886608 | H135: 0.04454905632 | I135: 0.1530218007
A136: 2022-02-03 | B136: 66636179.71 | C136: 51117965.84 | D136: 15518213.86 | E136: 0.3035765138 | G136: 1.098833637 | H136: 0.04459028076 | I136: 0.1531015719
A137: 2022-02-04 | B137: 67189683.73 | C137: 51502174.82 | D137: 15687508.91 | E137: 0.3045989604 | G137: 1.098126648 | H137: 0.0444361876 | I137: 0.152469296
A138: 2022-02-05 | B138: 66564838.14 | C138: 51563751.62 | D138: 15001086.52 | E138: 0.290923101 | G138: 1.098228561 | H138: 0.0444103991 | I138: 0.1523561718
A139: 2022-02-08 | B139: 66733696.65 | C139: 51571256.95 | D139: 15162439.7 | E139: 0.2940095044 | G139: 1.096889251 | H139: 0.04443806504 | I139: 0.1525640488
A140: 2022-02-09 | B140: 66711279 | C140: 51574114.81 | D140: 15137164.18 | E140: 0.2935031312 | G140: 1.09670231 | H140: 0.04444641817 | I140: 0.1526011059
A141: 2022-02-10 | B141: 67123528.22 | C141: 51541513.9 | D141: 15582014.32 | E141: 0.3023196865 | G141: 1.09657086 | H141: 0.04452132564 | I141: 0.1528920581
A142: 2022-02-11 | B142: 67934406.97 | C142: 51477510.55 | D142: 16456896.41 | E142: 0.319690992 | G142: 1.096463148 | H142: 0.04455519219 | I142: 0.1530508748
A143: 2022-02-15 | B143: 66427985.72 | C143: 51605493.43 | D143: 14822492.29 | E143: 0.2872270238 | G143: 1.09534499 | H143: 0.04437740956 | I143: 0.1523996833
A144: 2022-02-16 | B144: 66026332.19 | C144: 51658072.05 | D144: 14368260.14 | E144: 0.2781416257 | G144: 1.095428978 | H144: 0.04435832174 | I144: 0.152317492
A145: 2022-02-17 | B145: 66881518.34 | C145: 51585825.11 | D145: 15295693.23 | E145: 0.2965096166 | G145: 1.09521202 | H145: 0.04447111262 | I145: 0.15276424
A146: 2022-02-18 | B146: 66796753.15 | C146: 51523535.91 | D146: 15273217.24 | E146: 0.2964318534 | G146: 1.095017961 | H146: 0.04445863574 | I146: 0.1527466077
A147: 2022-02-19 | B147: 65918221.69 | C147: 51614166.42 | D147: 14304055.27 | E147: 0.2771342882 | G147: 1.095848326 | H147: 0.04433028139 | I147: 0.1521825043
A148: 2022-02-22 | B148: 65574517.28 | C148: 51672031.78 | D148: 13902485.5 | E148: 0.2690524259 | G148: 1.096071124 | H148: 0.04428191236 | I148: 0.1519697765
A149: 2022-02-23 | B149: 65192968.43 | C149: 51692385.84 | D149: 13500582.59 | E149: 0.2611715897 | G149: 1.095537013 | H149: 0.04422724296 | I149: 0.1517833949
A150: 2022-02-24 | B150: 65175948.9 | C150: 51692251.77 | D150: 13483697.14 | E150: 0.2608456137 | G150: 1.095046263 | H150: 0.04419933799 | I150: 0.1516858695
A151: 2022-02-25 | B151: 64275392.98 | C151: 51871560.74 | D151: 12403832.23 | E151: 0.2391258728 | G151: 1.095314419 | H151: 0.044109728 | I151: 0.1513169704
A152: 2022-02-26 | B152: 64561976.76 | C152: 51866603.08 | D152: 12695373.68 | E152: 0.2447697156 | G152: 1.096317849 | H152: 0.04419017222 | I152: 0.151515709
A153: 2022-03-01 | B153: 65583559.96 | C153: 51791625.09 | D153: 13791934.87 | E153: 0.2662966232 | G153: 1.095456729 | H153: 0.04428762266 | I153: 0.1519411366
A154: 2022-03-02 | B154: 65591129.7 | C154: 51861496.81 | D154: 13729632.89 | E154: 0.2647365335 | G154: 1.096062062 | H154: 0.04422153814 | I154: 0.1516349848
A155: 2022-03-03 | B155: 64893723.8 | C155: 51981589.67 | D155: 12912134.14 | E155: 0.248398216 | G155: 1.099330638 | H155: 0.04409081852 | I155: 0.1510403458
A156: 2022-03-04 | B156: 65688003.39 | C156: 51900597.16 | D156: 13787406.22 | E156: 0.2656502425 | G156: 1.098162036 | H156: 0.04420852058 | I156: 0.1515372365
A157: 2022-03-05 | B157: 65139773.26 | C157: 51997306.78 | D157: 13142466.47 | E157: 0.2527528306 | G157: 1.097691103 | H157: 0.04412735775 | I157: 0.1512432526
A158: 2022-03-08 | B158: 64534711.93 | C158: 52406103.29 | D158: 12128608.64 | E158: 0.2314350405 | G158: 1.098079342 | H158: 0.04397421323 | I158: 0.1506273736
A159: 2022-03-09 | B159: 63381224.99 | C159: 52494183.18 | D159: 10887041.81 | E159: 0.2073952037 | G159: 1.099105995 | H159: 0.04394798149 | I159: 0.1504971671
A160: 2022-03-10 | B160: 63224108.8 | C160: 52501557.65 | D160: 10722551.16 | E160: 0.2042330102 | G160: 1.098117214 | H160: 0.04393748991 | I160: 0.1504957922
A161: 2022-03-11 | B161: 64684091.13 | C161: 52390131.63 | D161: 12293959.5 | E161: 0.2346617411 | G161: 1.097348797 | H161: 0.04417219426 | I161: 0.1513818444
A162: 2022-03-12 | B162: 64441151.36 | C162: 52405956.02 | D162: 12035195.34 | E162: 0.2296531971 | G162: 1.096803589 | H162: 0.04414834823 | I162: 0.1513763502
A163: 2022-03-15 | B163: 64146264.85 | C163: 52169475.6 | D163: 11976789.25 | E163: 0.2295746528 | G163: 1.096787105 | H163: 0.04429957941 | I163: 0.151969441
A164: 2022-03-16 | B164: 64261850.67 | C164: 52401852.08 | D164: 11859998.58 | E164: 0.2263278513 | G164: 1.09604085 | H164: 0.04421415979 | I164: 0.1515840349
A165: 2022-03-17 | B165: 64886379.71 | C165: 52339153.63 | D165: 12547226.08 | E165: 0.2397292505 | G165: 1.096629722 | H165: 0.04434215273 | I165: 0.1520061889
A166: 2022-03-18 | B166: 66252868.04 | C166: 52271577.55 | D166: 13981290.48 | E166: 0.2674740488 | G166: 1.096564871 | H166: 0.04450243349 | I166: 0.1527198996
A167: 2022-03-19 | B167: 67253694.21 | C167: 52194868.4 | D167: 15058825.8 | E167: 0.2885116155 | G167: 1.097447019 | H167: 0.04461605734 | I167: 0.1532013004
A168: 2022-03-23 | B168: 68145624.07 | C168: =B168-D168 -> 52119392.56 | D168: 16026231.5 | E168: 0.3075 | G168: 1.097346602 | H168: 0.04473317908 | I168: 0.1536873631
A169: 2022-03-24 | B169: 69306904.73 | C169: 52149181.28 | D169: 17157723.44 | E169: 0.3290123262 | G169: 1.095781776 | H169: 0.04484253646 | I169: 0.154180268
A170: 2022-03-25 | B170: 68665136.76 | C170: 51957763.12 | D170: 16707373.64 | E170: 0.3215568308 | G170: 1.097340235 | H170: 0.04497083275 | I170: 0.1546582832
A171: 2022-03-26 | B171: 69733292.13 | C171: 52147230.1 | D171: 17586062.03 | E171: 0.3372386606 | G171: 1.096391704 | H171: 0.04489232053 | I171: 0.1544015954
A172: 2022-03-29 | B172: 69819083.74 | C172: 52149841.75 | D172: 17669241.99 | E172: 0.3388167901 | G172: 1.096263894 | H172: 0.0449448833 | I172: 0.1546070608
A173: 2022-03-30 | B173: 70885544.67 | C173: 52101989.81 | D173: 18783554.86 | E173: 0.3605151153 | G173: 1.096717608 | H173: 0.04507508746 | I173: 0.1551683118
A174: 2022-03-31 | B174: 70988168.62 | C174: 52094785.48 | D174: 18893383.14 | E174: 0.3626732112 | G174: 1.09617452 | H174: 0.04505941929 | I174: 0.1551000516
A175: 2022-04-01 | B175: 70729737.58 | C175: 52116820.07 | D175: 18612917.52 | E175: 0.3571383958 | G175: 1.096124043 | H175: 0.04499026042 | I175: 0.1548716923
A176: 2022-04-02 | B176: 70001117.85 | C176: 52191369.05 | D176: 17809748.8 | E176: 0.341239349 | G176: 1.097058951 | H176: 0.04491684343 | I176: 0.1545128406
A177: 2022-04-05 | B177: 70351197.91 | C177: 52219692.35 | D177: 18131505.56 | E177: 0.3472158633 | G177: 1.097340566 | H177: 0.04498365605 | I177: 0.1547733101
A178: 2022-04-06 | B178: 70773650.98 | C178: 52182079.22 | D178: 18591571.76 | E178: 0.356282694 | G178: 1.09693989 | H178: 0.04499358015 | I178: 0.1548691324
A179: 2022-04-07 | B179: 70550078.89 | C179: 52180692.29 | D179: 18369386.61 | E179: 0.3520341683 | G179: 1.095763028 | H179: 0.04499524553 | I179: 0.1549841889
A180: 2022-04-08 | B180: 69778914.19 | C180: 52241828.92 | D180: 17537085.26 | E180: 0.3356904922 | G180: 1.095706467 | H180: 0.0449432106 | I180: 0.1547805529
A181: 2022-04-09 | B181: 69821719.12 | C181: 52229641.04 | D181: 17592078.09 | E181: 0.3368217307 | G181: 1.095101827 | H181: 0.04494463671 | I181: 0.1547855295
A182: 2022-04-12 | B182: 70073545.27 | C182: 52200266.15 | D182: 17873279.12 | E182: 0.3423982374 | G182: 1.094256711 | H182: 0.04493719057 | I182: 0.1548272655
A183: 2022-04-13 | B183: 69559644.64 | C183: 52228657.86 | D183: 17330986.78 | E183: 0.3318290665 | G183: 1.09344187 | H183: 0.04489570627 | I183: 0.1547265935
A184: 2022-04-14 | B184: 69553398.55 | C184: 52245852.04 | D184: 17307546.51 | E184: 0.3312712079 | G184: 1.094275682 | H184: 0.04489879992 | I184: 0.1546700299
A185: 2022-04-15 | B185: 70152892.43 | C185: 52224331.15 | D185: 17928561.28 | E185: 0.3432990119 | G185: 1.093958154 | H185: 0.04491500926 | I185: 0.1547432207
A186: 2022-04-16 | B186: 69900526.47 | C186: 52240780.28 | D186: 17659746.19 | E186: 0.3380452224 | G186: 1.093924488 | H186: 0.04492056979 | I186: 0.1548021496
A187: 2022-04-19 | B187: 69901852.47 | C187: 52232021.23 | D187: 17669831.24 | E187: 0.3382949927 | G187: 1.093888744 | H187: 0.0449237176 | I187: 0.1548414188
A188: 2022-04-20 | B188: 70146803.38 | C188: 52216582.44 | D188: 17930220.94 | E188: 0.3433817402 | G188: 1.094412949 | H188: 0.04498348841 | I188: 0.1550615804
A189: 2022-04-21 | B189: 71446582.09 | C189: 52187145.78 | D189: 19259436.31 | E189: 0.3690455958 | G189: 1.092869607 | H189: 0.04511561586 | I189: 0.1556405943
A190: 2022-04-22 | B190: 71264133.34 | C190: 52283564.49 | D190: 18980568.84 | E190: 0.3630312705 | G190: 1.093800263 | H190: 0.04520801583 | I190: 0.1559237258
A191: 2022-04-23 | B191: 70892104.54 | C191: 52561122.24 | D191: 18330982.3 | E191: 0.3487555349 | G191: 1.092390358 | H191: 0.04496744797 | I191: 0.1550045586
A192: 2022-04-26 | B192: 69870091.04 | C192: 52661832.04 | D192: 17208259 | E192: 0.3267690914 | G192: 1.092918489 | H192: 0.04489724836 | I192: 0.1547060441
A193: 2022-04-27 | B193: 69076471.93 | C193: 52735203.66 | D193: 16341268.28 | E193: 0.3098739958 | G193: 1.092530783 | H193: 0.04477888035 | I193: 0.1541455526
A194: 2022-04-28 | B194: 68004122.07 | C194: 52869124.75 | D194: 15134997.32 | E194: 0.2862728936 | G194: 1.093934658 | H194: 0.04467224594 | I194: 0.1536729325
A195: 2022-04-29 | B195: 68637916.47 | C195: 52878193.98 | D195: 15759722.49 | E195: 0.2980382139 | G195: 1.094990289 | H195: 0.04478825422 | I195: 0.1540869893
A196: 2022-05-03 | B196: 68813682.95 | C196: 52881825.52 | D196: 15931857.43 | E196: 0.3012728339 | G196: 1.09294338 | H196: 0.04474909044 | I196: 0.1540993436
A197: 2022-05-07 | B197: 68649754.12 | C197: 52880799.96 | D197: 15768954.17 | E197: 0.2981981017 | G197: 1.091155401 | H197: 0.04476582674 | I197: 0.1541835673
A198: 2022-05-10 | B198: 67550967.14 | C198: 52545544.86 | D198: 15005422.28 | E198: 0.2855698294 | G198: 1.08951588 | H198: 0.04489905994 | I198: 0.15470123
A199: 2022-05-11 | B199: 66209825.41 | C199: 53102911.81 | D199: 13106913.6 | E199: 0.2468209963 | G199: 1.089607012 | H199: 0.0455410239 | I199: 0.156731254
A200: 2022-05-12 | B200: 66292522.45 | C200: 53083388.29 | D200: 13209134.16 | E200: 0.2488374345 | G200: 1.089352399 | H200: 0.04551945113 | I200: 0.1566738971
... 308 more rows

Sheet 運用成績推移
B1: 運用総額 | C1: 元金 | D1: 利益 | E1: 利率 | G1: レバ レッジ | H1: 期待 リターン | I1: リスク
A2: 2021-08-01 | B2: =AVERAGEIFS(資産推移!B:B,資産推移!A:A,">="&A2,資産推移!A:A,"<"&A3) -> 54864770.01 | C2: =AVERAGEIFS(資産推移!C:C,資産推移!A:A,">="&A2,資産推移!A:A,"<"&A3) -> 40918182.86 | D2: =AVERAGEIFS(資産推移!D:D,資産推移!A:A,">="&A2,資産推移!A:A,"<"&A3) -> 13946587.15 | E2: =AVERAGEIFS(資産推移!E:E,資産推移!A:A,">="&A2,資産推移!A:A,"<"&A3) -> 0.3408419129 | G2: =AVERAGEIFS(資産推移!G:G,資産推移!A:A,">="&A2,資産推移!A:A,"<"&A3) -> 1.113930295 | H2: =AVERAGEIFS(資産推移!H:H,資産推移!A:A,">="&A2,資産推移!A:A,"<"&A3) -> 0.04350619519 | I2: =AVERAGEIFS(資産推移!I:I,資産推移!A:A,">="&A2,資産推移!A:A,"<"&A3) -> 0.1427379521
A3: =EDATE(A2,1) -> 2021-09-01 | B3: =AVERAGEIFS(資産推移!B:B,資産推移!A:A,">="&A3,資産推移!A:A,"<"&A4) -> 56271395.9 | C3: =AVERAGEIFS(資産推移!C:C,資産推移!A:A,">="&A3,資産推移!A:A,"<"&A4) -> 41506565.46 | D3: =AVERAGEIFS(資産推移!D:D,資産推移!A:A,">="&A3,資産推移!A:A,"<"&A4) -> 14773133.8 | E3: =AVERAGEIFS(資産推移!E:E,資産推移!A:A,">="&A3,資産推移!A:A,"<"&A4) -> 0.3557413707 | G3: =IF(ISNA(VLOOKUP(A3,資産推移!A:I,7,FALSE)),IF(ISNA(VLOOKUP(A3-1,資産推移!A:I,7,FALSE)),IF(ISNA(VLOOKUP(A3-2,資産推移!A:I,7,FALSE)),VLOOKUP(A3-3,資産推移!A:I,7,FALSE),VLOOKUP(A3-2,資産推移!A:I,7,FALSE)),VLOOKUP(A3-1,資産推移!A:I,7,FALSE)),VLOOKUP(A3,資産推移!A:I,7,FALSE)) -> 1.114492298 | H3: =AVERAGEIFS(資産推移!H:H,資産推移!A:A,">="&A3,資産推移!A:A,"<"&A4) -> 0.04462542713 | I3: =AVERAGEIFS(資産推移!I:I,資産推移!A:A,">="&A3,資産推移!A:A,"<"&A4) -> 0.1526225401
A4: =EDATE(A3,1) -> 2021-10-01 | B4: =AVERAGEIFS(資産推移!B:B,資産推移!A:A,">="&A4,資産推移!A:A,"<"&A5) -> 56861079.01 | C4: =AVERAGEIFS(資産推移!C:C,資産推移!A:A,">="&A4,資産推移!A:A,"<"&A5) -> 41685959.19 | D4: =AVERAGEIFS(資産推移!D:D,資産推移!A:A,">="&A4,資産推移!A:A,"<"&A5) -> 15175119.82 | E4: =AVERAGEIFS(資産推移!E:E,資産推移!A:A,">="&A4,資産推移!A:A,"<"&A5) -> 0.3640453745 | G4: =IF(ISNA(VLOOKUP(A4,資産推移!A:I,7,FALSE)),IF(ISNA(VLOOKUP(A4-1,資産推移!A:I,7,FALSE)),IF(ISNA(VLOOKUP(A4-2,資産推移!A:I,7,FALSE)),VLOOKUP(A4-3,資産推移!A:I,7,FALSE),VLOOKUP(A4-2,資産推移!A:I,7,FALSE)),VLOOKUP(A4-1,資産推移!A:I,7,FALSE)),VLOOKUP(A4,資産推移!A:I,7,FALSE)) -> 1.100157369 | H4: =AVERAGEIFS(資産推移!H:H,資産推移!A:A,">="&A4,資産推移!A:A,"<"&A5) -> 0.04431329561 | I4: =AVERAGEIFS(資産推移!I:I,資産推移!A:A,">="&A4,資産推移!A:A,"<"&A5) -> 0.1517879753
A5: 2021-11-01 | B5: =AVERAGEIFS(資産推移!B:B,資産推移!A:A,">="&A5,資産推移!A:A,"<"&A6) -> 59221379.35 | C5: =AVERAGEIFS(資産推移!C:C,資産推移!A:A,">="&A5,資産推移!A:A,"<"&A6) -> 41783763.99 | D5: =AVERAGEIFS(資産推移!D:D,資産推移!A:A,">="&A5,資産推移!A:A,"<"&A6) -> 17437615.36 | E5: =AVERAGEIFS(資産推移!E:E,資産推移!A:A,">="&A5,資産推移!A:A,"<"&A6) -> 0.4173416961 | G5: =IF(ISNA(VLOOKUP(A5,資産推移!A:I,7,FALSE)),IF(ISNA(VLOOKUP(A5-1,資産推移!A:I,7,FALSE)),IF(ISNA(VLOOKUP(A5-2,資産推移!A:I,7,FALSE)),VLOOKUP(A5-3,資産推移!A:I,7,FALSE),VLOOKUP(A5-2,資産推移!A:I,7,FALSE)),VLOOKUP(A5-1,資産推移!A:I,7,FALSE)),VLOOKUP(A5,資産推移!A:I,7,FALSE)) -> 1.099553647 | H5: =AVERAGEIFS(資産推移!H:H,資産推移!A:A,">="&A5,資産推移!A:A,"<"&A6) -> 0.04448731008 | I5: =AVERAGEIFS(資産推移!I:I,資産推移!A:A,">="&A5,資産推移!A:A,"<"&A6) -> 0.1524711417
A6: 2021-12-01 | B6: =AVERAGEIFS(資産推移!B:B,資産推移!A:A,">="&A6,資産推移!A:A,"<"&A7) -> 59005316 | C6: =AVERAGEIFS(資産推移!C:C,資産推移!A:A,">="&A6,資産推移!A:A,"<"&A7) -> 42359427.11 | D6: =AVERAGEIFS(資産推移!D:D,資産推移!A:A,">="&A6,資産推移!A:A,"<"&A7) -> 16645888.89 | E6: =AVERAGEIFS(資産推移!E:E,資産推移!A:A,">="&A6,資産推移!A:A,"<"&A7) -> 0.392901518 | G6: =IF(ISNA(VLOOKUP(A6,資産推移!A:I,7,FALSE)),IF(ISNA(VLOOKUP(A6-1,資産推移!A:I,7,FALSE)),IF(ISNA(VLOOKUP(A6-2,資産推移!A:I,7,FALSE)),VLOOKUP(A6-3,資産推移!A:I,7,FALSE),VLOOKUP(A6-2,資産推移!A:I,7,FALSE)),VLOOKUP(A6-1,資産推移!A:I,7,FALSE)),VLOOKUP(A6,資産推移!A:I,7,FALSE)) -> 1.098706793 | H6: =AVERAGEIFS(資産推移!H:H,資産推移!A:A,">="&A6,資産推移!A:A,"<"&A7) -> 0.04417273547 | I6: =AVERAGEIFS(資産推移!I:I,資産推移!A:A,">="&A6,資産推移!A:A,"<"&A7) -> 0.1512446317
A7: 2022-01-01 | B7: =AVERAGEIFS(資産推移!B:B,資産推移!A:A,">="&A7,資産推移!A:A,"<"&A8) -> 64404550.41 | C7: =AVERAGEIFS(資産推移!C:C,資産推移!A:A,">="&A7,資産推移!A:A,"<"&A8) -> 48269301.3 | D7: =AVERAGEIFS(資産推移!D:D,資産推移!A:A,">="&A7,資産推移!A:A,"<"&A8) -> 16135249.12 | E7: =AVERAGEIFS(資産推移!E:E,資産推移!A:A,">="&A7,資産推移!A:A,"<"&A8) -> 0.3362523428 | G7: =IF(ISNA(VLOOKUP(A7,資産推移!A:I,7,FALSE)),IF(ISNA(VLOOKUP(A7-1,資産推移!A:I,7,FALSE)),IF(ISNA(VLOOKUP(A7-2,資産推移!A:I,7,FALSE)),VLOOKUP(A7-3,資産推移!A:I,7,FALSE),VLOOKUP(A7-2,資産推移!A:I,7,FALSE)),VLOOKUP(A7-1,資産推移!A:I,7,FALSE)),VLOOKUP(A7,資産推移!A:I,7,FALSE)) -> 1.099199877 | H7: =AVERAGEIFS(資産推移!H:H,資産推移!A:A,">="&A7,資産推移!A:A,"<"&A8) -> 0.04342862174 | I7: =AVERAGEIFS(資産推移!I:I,資産推移!A:A,">="&A7,資産推移!A:A,"<"&A8) -> 0.1488069299
A8: 2022-02-01 | B8: =AVERAGEIFS(資産推移!B:B,資産推移!A:A,">="&A8,資産推移!A:A,"<"&A9) -> 66176058.6 | C8: =AVERAGEIFS(資産推移!C:C,資産推移!A:A,">="&A8,資産推移!A:A,"<"&A9) -> 51540112.04 | D8: =AVERAGEIFS(資産推移!D:D,資産推移!A:A,">="&A8,資産推移!A:A,"<"&A9) -> 14635946.56 | E8: =AVERAGEIFS(資産推移!E:E,資産推移!A:A,">="&A8,資産推移!A:A,"<"&A9) -> 0.284025627 | G8: =IF(ISNA(VLOOKUP(A8,資産推移!A:I,7,FALSE)),IF(ISNA(VLOOKUP(A8-1,資産推移!A:I,7,FALSE)),IF(ISNA(VLOOKUP(A8-2,資産推移!A:I,7,FALSE)),VLOOKUP(A8-3,資産推移!A:I,7,FALSE),VLOOKUP(A8-2,資産推移!A:I,7,FALSE)),VLOOKUP(A8-1,資産推移!A:I,7,FALSE)),VLOOKUP(A8,資産推移!A:I,7,FALSE)) -> 1.099487094 | H8: =AVERAGEIFS(資産推移!H:H,資産推移!A:A,">="&A8,資産推移!A:A,"<"&A9) -> 0.04439086397 | I8: =AVERAGEIFS(資産推移!I:I,資産推移!A:A,">="&A8,資産推移!A:A,"<"&A9) -> 0.1523898901
A9: 2022-03-01 | B9: =AVERAGEIFS(資産推移!B:B,資産推移!A:A,">="&A9,資産推移!A:A,"<"&A10) -> 66432104.11 | C9: =AVERAGEIFS(資産推移!C:C,資産推移!A:A,">="&A9,資産推移!A:A,"<"&A10) -> 52173984.48 | D9: =AVERAGEIFS(資産推移!D:D,資産推移!A:A,">="&A9,資産推移!A:A,"<"&A10) -> 14258119.63 | E9: =AVERAGEIFS(資産推移!E:E,資産推移!A:A,">="&A9,資産推移!A:A,"<"&A10) -> 0.273370136 | G9: =IF(ISNA(VLOOKUP(A9,資産推移!A:I,7,FALSE)),IF(ISNA(VLOOKUP(A9-1,資産推移!A:I,7,FALSE)),IF(ISNA(VLOOKUP(A9-2,資産推移!A:I,7,FALSE)),VLOOKUP(A9-3,資産推移!A:I,7,FALSE),VLOOKUP(A9-2,資産推移!A:I,7,FALSE)),VLOOKUP(A9-1,資産推移!A:I,7,FALSE)),VLOOKUP(A9,資産推移!A:I,7,FALSE)) -> 1.095456729 | H9: =AVERAGEIFS(資産推移!H:H,資産推移!A:A,">="&A9,資産推移!A:A,"<"&A10) -> 0.04443676029 | I9: =AVERAGEIFS(資産推移!I:I,資産推移!A:A,">="&A9,資産推移!A:A,"<"&A10) -> 0.1525026947
A10: 2022-04-01 | B10: =AVERAGEIFS(資産推移!B:B,資産推移!A:A,">="&A10,資産推移!A:A,"<"&A11) -> 70023166.72 | C10: =AVERAGEIFS(資産推移!C:C,資産推移!A:A,">="&A10,資産推移!A:A,"<"&A11) -> 52339371.48 | D10: =AVERAGEIFS(資産推移!D:D,資産推移!A:A,">="&A10,資産推移!A:A,"<"&A11) -> 17683795.25 | E10: =AVERAGEIFS(資産推移!E:E,資産推移!A:A,">="&A10,資産推移!A:A,"<"&A11) -> 0.3379394651 | G10: =IF(ISNA(VLOOKUP(A10,資産推移!A:I,7,FALSE)),IF(ISNA(VLOOKUP(A10-1,資産推移!A:I,7,FALSE)),IF(ISNA(VLOOKUP(A10-2,資産推移!A:I,7,FALSE)),VLOOKUP(A10-3,資産推移!A:I,7,FALSE),VLOOKUP(A10-2,資産推移!A:I,7,FALSE)),VLOOKUP(A10-1,資産推移!A:I,7,FALSE)),VLOOKUP(A10,資産推移!A:I,7,FALSE)) -> 1.096124043 | H10: =AVERAGEIFS(資産推移!H:H,資産推移!A:A,">="&A10,資産推移!A:A,"<"&A11) -> 0.04493664873 | I10: =AVERAGEIFS(資産推移!I:I,資産推移!A:A,">="&A10,資産推移!A:A,"<"&A11) -> 0.1547823763
A11: 2022-05-01 | B11: =AVERAGEIFS(資産推移!B:B,資産推移!A:A,">="&A11,資産推移!A:A,"<"&A12) -> 66358945.71 | C11: =AVERAGEIFS(資産推移!C:C,資産推移!A:A,">="&A11,資産推移!A:A,"<"&A12) -> 53014256.25 | D11: =AVERAGEIFS(資産推移!D:D,資産推移!A:A,">="&A11,資産推移!A:A,"<"&A12) -> 13344689.46 | E11: =AVERAGEIFS(資産推移!E:E,資産推移!A:A,">="&A11,資産推移!A:A,"<"&A12) -> 0.2518169099 | G11: =IF(ISNA(VLOOKUP(A11,資産推移!A:I,7,FALSE)),IF(ISNA(VLOOKUP(A11-1,資産推移!A:I,7,FALSE)),IF(ISNA(VLOOKUP(A11-2,資産推移!A:I,7,FALSE)),VLOOKUP(A11-3,資産推移!A:I,7,FALSE),VLOOKUP(A11-2,資産推移!A:I,7,FALSE)),VLOOKUP(A11-1,資産推移!A:I,7,FALSE)),VLOOKUP(A11,資産推移!A:I,7,FALSE)) -> 1.094990289 | H11: =AVERAGEIFS(資産推移!H:H,資産推移!A:A,">="&A11,資産推移!A:A,"<"&A12) -> 0.04590631476 | I11: =AVERAGEIFS(資産推移!I:I,資産推移!A:A,">="&A11,資産推移!A:A,"<"&A12) -> 0.158010917
A12: 2022-06-01 | B12: =AVERAGEIFS(資産推移!B:B,資産推移!A:A,">="&A12,資産推移!A:A,"<"&A13) -> 67314819.53 | C12: =AVERAGEIFS(資産推移!C:C,資産推移!A:A,">="&A12,資産推移!A:A,"<"&A13) -> 53262527.66 | D12: =AVERAGEIFS(資産推移!D:D,資産推移!A:A,">="&A12,資産推移!A:A,"<"&A13) -> 14052291.87 | E12: =AVERAGEIFS(資産推移!E:E,資産推移!A:A,">="&A12,資産推移!A:A,"<"&A13) -> 0.2638550099 | G12: =IF(ISNA(VLOOKUP(A12,資産推移!A:I,7,FALSE)),IF(ISNA(VLOOKUP(A12-1,資産推移!A:I,7,FALSE)),IF(ISNA(VLOOKUP(A12-2,資産推移!A:I,7,FALSE)),VLOOKUP(A12-3,資産推移!A:I,7,FALSE),VLOOKUP(A12-2,資産推移!A:I,7,FALSE)),VLOOKUP(A12-1,資産推移!A:I,7,FALSE)),VLOOKUP(A12,資産推移!A:I,7,FALSE)) -> 1.096283248 | H12: =AVERAGEIFS(資産推移!H:H,資産推移!A:A,">="&A12,資産推移!A:A,"<"&A13) -> 0.04710444497 | I12: =AVERAGEIFS(資産推移!I:I,資産推移!A:A,">="&A12,資産推移!A:A,"<"&A13) -> 0.1627053949
A13: 2022-07-01 | B13: =AVERAGEIFS(資産推移!B:B,資産推移!A:A,">="&A13,資産推移!A:A,"<"&A14) -> 69179371.12 | C13: =AVERAGEIFS(資産推移!C:C,資産推移!A:A,">="&A13,資産推移!A:A,"<"&A14) -> 54801475.4 | D13: =AVERAGEIFS(資産推移!D:D,資産推移!A:A,">="&A13,資産推移!A:A,"<"&A14) -> 14377895.72 | E13: =AVERAGEIFS(資産推移!E:E,資産推移!A:A,">="&A13,資産推移!A:A,"<"&A14) -> 0.2622468806 | G13: =IF(ISNA(VLOOKUP(A13,資産推移!A:I,7,FALSE)),IF(ISNA(VLOOKUP(A13-1,資産推移!A:I,7,FALSE)),IF(ISNA(VLOOKUP(A13-2,資産推移!A:I,7,FALSE)),VLOOKUP(A13-3,資産推移!A:I,7,FALSE),VLOOKUP(A13-2,資産推移!A:I,7,FALSE)),VLOOKUP(A13-1,資産推移!A:I,7,FALSE)),VLOOKUP(A13,資産推移!A:I,7,FALSE)) -> 1.090702449 | H13: =AVERAGEIFS(資産推移!H:H,資産推移!A:A,">="&A13,資産推移!A:A,"<"&A14) -> 0.04745611453 | I13: =AVERAGEIFS(資産推移!I:I,資産推移!A:A,">="&A13,資産推移!A:A,"<"&A14) -> 0.1630695504
A14: 2022-08-01 | B14: =AVERAGEIFS(資産推移!B:B,資産推移!A:A,">="&A14,資産推移!A:A,"<"&A15) -> 73437106.63 | C14: =AVERAGEIFS(資産推移!C:C,資産推移!A:A,">="&A14,資産推移!A:A,"<"&A15) -> 56005373.17 | D14: =AVERAGEIFS(資産推移!D:D,資産推移!A:A,">="&A14,資産推移!A:A,"<"&A15) -> 17431733.46 | E14: =AVERAGEIFS(資産推移!E:E,資産推移!A:A,">="&A14,資産推移!A:A,"<"&A15) -> 0.3112159856 | G14: =IF(ISNA(VLOOKUP(A14,資産推移!A:I,7,FALSE)),IF(ISNA(VLOOKUP(A14-1,資産推移!A:I,7,FALSE)),IF(ISNA(VLOOKUP(A14-2,資産推移!A:I,7,FALSE)),VLOOKUP(A14-3,資産推移!A:I,7,FALSE),VLOOKUP(A14-2,資産推移!A:I,7,FALSE)),VLOOKUP(A14-1,資産推移!A:I,7,FALSE)),VLOOKUP(A14,資産推移!A:I,7,FALSE)) -> 1.102224496 | H14: =AVERAGEIFS(資産推移!H:H,資産推移!A:A,">="&A14,資産推移!A:A,"<"&A15) -> 0.04759700286 | I14: =AVERAGEIFS(資産推移!I:I,資産推移!A:A,">="&A14,資産推移!A:A,"<"&A15) -> 0.1634363734
A15: 2022-09-01 | B15: =AVERAGEIFS(資産推移!B:B,資産推移!A:A,">="&A15,資産推移!A:A,"<"&A16) -> 72161025.05 | C15: =AVERAGEIFS(資産推移!C:C,資産推移!A:A,">="&A15,資産推移!A:A,"<"&A16) -> 56544547.48 | D15: =AVERAGEIFS(資産推移!D:D,資産推移!A:A,">="&A15,資産推移!A:A,"<"&A16) -> 15616477.57 | E15: =AVERAGEIFS(資産推移!E:E,資産推移!A:A,">="&A15,資産推移!A:A,"<"&A16) -> 0.2762141934 | G15: =IF(ISNA(VLOOKUP(A15,資産推移!A:I,7,FALSE)),IF(ISNA(VLOOKUP(A15-1,資産推移!A:I,7,FALSE)),IF(ISNA(VLOOKUP(A15-2,資産推移!A:I,7,FALSE)),VLOOKUP(A15-3,資産推移!A:I,7,FALSE),VLOOKUP(A15-2,資産推移!A:I,7,FALSE)),VLOOKUP(A15-1,資産推移!A:I,7,FALSE)),VLOOKUP(A15,資産推移!A:I,7,FALSE)) -> 1.092264338 | H15: =AVERAGEIFS(資産推移!H:H,資産推移!A:A,">="&A15,資産推移!A:A,"<"&A16) -> 0.04752458044 | I15: =AVERAGEIFS(資産推移!I:I,資産推移!A:A,">="&A15,資産推移!A:A,"<"&A16) -> 0.163650709
A16: 2022-10-01 | B16: =AVERAGEIFS(資産推移!B:B,資産推移!A:A,">="&A16,資産推移!A:A,"<"&A17) -> 69897731.73 | C16: =AVERAGEIFS(資産推移!C:C,資産推移!A:A,">="&A16,資産推移!A:A,"<"&A17) -> 56421094.22 | D16: =AVERAGEIFS(資産推移!D:D,資産推移!A:A,">="&A16,資産推移!A:A,"<"&A17) -> 13476637.51 | E16: =AVERAGEIFS(資産推移!E:E,資産推移!A:A,">="&A16,資産推移!A:A,"<"&A17) -> 0.2388564711 | G16: =IF(ISNA(VLOOKUP(A16,資産推移!A:I,7,FALSE)),IF(ISNA(VLOOKUP(A16-1,資産推移!A:I,7,FALSE)),IF(ISNA(VLOOKUP(A16-2,資産推移!A:I,7,FALSE)),VLOOKUP(A16-3,資産推移!A:I,7,FALSE),VLOOKUP(A16-2,資産推移!A:I,7,FALSE)),VLOOKUP(A16-1,資産推移!A:I,7,FALSE)),VLOOKUP(A16,資産推移!A:I,7,FALSE)) -> 1.087680719 | H16: =AVERAGEIFS(資産推移!H:H,資産推移!A:A,">="&A16,資産推移!A:A,"<"&A17) -> 0.04887207177 | I16: =AVERAGEIFS(資産推移!I:I,資産推移!A:A,">="&A16,資産推移!A:A,"<"&A17) -> 0.168695874
A17: 2022-11-01 | B17: =AVERAGEIFS(資産推移!B:B,資産推移!A:A,">="&A17,資産推移!A:A,"<"&A18) -> 73635336.8 | C17: =AVERAGEIFS(資産推移!C:C,資産推移!A:A,">="&A17,資産推移!A:A,"<"&A18) -> 57279371.06 | D17: =AVERAGEIFS(資産推移!D:D,資産推移!A:A,">="&A17,資産推移!A:A,"<"&A18) -> 16355965.73 | E17: =AVERAGEIFS(資産推移!E:E,資産推移!A:A,">="&A17,資産推移!A:A,"<"&A18) -> 0.285534787 | G17: =IF(ISNA(VLOOKUP(A17,資産推移!A:I,7,FALSE)),IF(ISNA(VLOOKUP(A17-1,資産推移!A:I,7,FALSE)),IF(ISNA(VLOOKUP(A17-2,資産推移!A:I,7,FALSE)),VLOOKUP(A17-3,資産推移!A:I,7,FALSE),VLOOKUP(A17-2,資産推移!A:I,7,FALSE)),VLOOKUP(A17-1,資産推移!A:I,7,FALSE)),VLOOKUP(A17,資産推移!A:I,7,FALSE)) -> 1.094465763 | H17: =AVERAGEIFS(資産推移!H:H,資産推移!A:A,">="&A17,資産推移!A:A,"<"&A18) -> 0.04890422389 | I17: =AVERAGEIFS(資産推移!I:I,資産推移!A:A,">="&A17,資産推移!A:A,"<"&A18) -> 0.1684245264
A18: 2022-12-01 | B18: =AVERAGEIFS(資産推移!B:B,資産推移!A:A,">="&A18,資産推移!A:A,"<"&A19) -> 73280805.31 | C18: =AVERAGEIFS(資産推移!C:C,資産推移!A:A,">="&A18,資産推移!A:A,"<"&A19) -> 58770058.55 | D18: =AVERAGEIFS(資産推移!D:D,資産推移!A:A,">="&A18,資産推移!A:A,"<"&A19) -> 14510746.75 | E18: =AVERAGEIFS(資産推移!E:E,資産推移!A:A,">="&A18,資産推移!A:A,"<"&A19) -> 0.2471977371 | G18: =IF(ISNA(VLOOKUP(A18,資産推移!A:I,7,FALSE)),IF(ISNA(VLOOKUP(A18-1,資産推移!A:I,7,FALSE)),IF(ISNA(VLOOKUP(A18-2,資産推移!A:I,7,FALSE)),VLOOKUP(A18-3,資産推移!A:I,7,FALSE),VLOOKUP(A18-2,資産推移!A:I,7,FALSE)),VLOOKUP(A18-1,資産推移!A:I,7,FALSE)),VLOOKUP(A18,資産推移!A:I,7,FALSE)) -> 1.099205624 | H18: =AVERAGEIFS(資産推移!H:H,資産推移!A:A,">="&A18,資産推移!A:A,"<"&A19) -> 0.04855750404 | I18: =AVERAGEIFS(資産推移!I:I,資産推移!A:A,">="&A18,資産推移!A:A,"<"&A19) -> 0.16697518
A19: 2023-01-01 | B19: =AVERAGEIFS(資産推移!B:B,資産推移!A:A,">="&A19,資産推移!A:A,"<"&A20) -> 74293394.22 | C19: =AVERAGEIFS(資産推移!C:C,資産推移!A:A,">="&A19,資産推移!A:A,"<"&A20) -> 60355341.75 | D19: =AVERAGEIFS(資産推移!D:D,資産推移!A:A,">="&A19,資産推移!A:A,"<"&A20) -> 13938052.47 | E19: =AVERAGEIFS(資産推移!E:E,資産推移!A:A,">="&A19,資産推移!A:A,"<"&A20) -> 0.2308736792 | G19: =IF(ISNA(VLOOKUP(A19,資産推移!A:I,7,FALSE)),IF(ISNA(VLOOKUP(A19-1,資産推移!A:I,7,FALSE)),IF(ISNA(VLOOKUP(A19-2,資産推移!A:I,7,FALSE)),VLOOKUP(A19-3,資産推移!A:I,7,FALSE),VLOOKUP(A19-2,資産推移!A:I,7,FALSE)),VLOOKUP(A19-1,資産推移!A:I,7,FALSE)),VLOOKUP(A19,資産推移!A:I,7,FALSE)) -> 1.090431778 | H19: =AVERAGEIFS(資産推移!H:H,資産推移!A:A,">="&A19,資産推移!A:A,"<"&A20) -> 0.04865466156 | I19: =AVERAGEIFS(資産推移!I:I,資産推移!A:A,">="&A19,資産推移!A:A,"<"&A20) -> 0.1674894759
A20: 2023-02-01 | B20: =AVERAGEIFS(資産推移!B:B,資産推移!A:A,">="&A20,資産推移!A:A,"<"&A21) -> 77462668.57 | C20: =AVERAGEIFS(資産推移!C:C,資産推移!A:A,">="&A20,資産推移!A:A,"<"&A21) -> 60477510.19 | D20: =AVERAGEIFS(資産推移!D:D,資産推移!A:A,">="&A20,資産推移!A:A,"<"&A21) -> 16985158.38 | E20: =AVERAGEIFS(資産推移!E:E,資産推移!A:A,">="&A20,資産推移!A:A,"<"&A21) -> 0.2808560723 | G20: =IF(ISNA(VLOOKUP(A20,資産推移!A:I,7,FALSE)),IF(ISNA(VLOOKUP(A20-1,資産推移!A:I,7,FALSE)),IF(ISNA(VLOOKUP(A20-2,資産推移!A:I,7,FALSE)),VLOOKUP(A20-3,資産推移!A:I,7,FALSE),VLOOKUP(A20-2,資産推移!A:I,7,FALSE)),VLOOKUP(A20-1,資産推移!A:I,7,FALSE)),VLOOKUP(A20,資産推移!A:I,7,FALSE)) -> 1.096130321 | H20: =AVERAGEIFS(資産推移!H:H,資産推移!A:A,">="&A20,資産推移!A:A,"<"&A21) -> 0.04888268358 | I20: =AVERAGEIFS(資産推移!I:I,資産推移!A:A,">="&A20,資産推移!A:A,"<"&A21) -> 0.1683708015
A21: 2023-03-01 | B21: =AVERAGEIFS(資産推移!B:B,資産推移!A:A,">="&A21,資産推移!A:A,"<"&A22) -> 76257205.41 | C21: =AVERAGEIFS(資産推移!C:C,資産推移!A:A,">="&A21,資産推移!A:A,"<"&A22) -> 60909698.82 | D21: =AVERAGEIFS(資産推移!D:D,資産推移!A:A,">="&A21,資産推移!A:A,"<"&A22) -> 15347506.6 | E21: =AVERAGEIFS(資産推移!E:E,資産推移!A:A,">="&A21,資産推移!A:A,"<"&A22) -> 0.2520432543 | G21: =IF(ISNA(VLOOKUP(A21,資産推移!A:I,7,FALSE)),IF(ISNA(VLOOKUP(A21-1,資産推移!A:I,7,FALSE)),IF(ISNA(VLOOKUP(A21-2,資産推移!A:I,7,FALSE)),VLOOKUP(A21-3,資産推移!A:I,7,FALSE),VLOOKUP(A21-2,資産推移!A:I,7,FALSE)),VLOOKUP(A21-1,資産推移!A:I,7,FALSE)),VLOOKUP(A21,資産推移!A:I,7,FALSE)) -> 1.092194538 | H21: =AVERAGEIFS(資産推移!H:H,資産推移!A:A,">="&A21,資産推移!A:A,"<"&A22) -> 0.04869486106 | I21: =AVERAGEIFS(資産推移!I:I,資産推移!A:A,">="&A21,資産推移!A:A,"<"&A22) -> 0.1676069129
A22: 2023-04-01 | B22: =AVERAGEIFS(資産推移!B:B,資産推移!A:A,">="&A22,資産推移!A:A,"<"&A23) -> 78918320.57 | C22: =AVERAGEIFS(資産推移!C:C,資産推移!A:A,">="&A22,資産推移!A:A,"<"&A23) -> 60987502.34 | D22: =AVERAGEIFS(資産推移!D:D,資産推移!A:A,">="&A22,資産推移!A:A,"<"&A23) -> 17930818.23 | E22: =AVERAGEIFS(資産推移!E:E,資産推移!A:A,">="&A22,資産推移!A:A,"<"&A23) -> 0.2940169449 | G22: =IF(ISNA(VLOOKUP(A22,資産推移!A:I,7,FALSE)),IF(ISNA(VLOOKUP(A22-1,資産推移!A:I,7,FALSE)),IF(ISNA(VLOOKUP(A22-2,資産推移!A:I,7,FALSE)),VLOOKUP(A22-3,資産推移!A:I,7,FALSE),VLOOKUP(A22-2,資産推移!A:I,7,FALSE)),VLOOKUP(A22-1,資産推移!A:I,7,FALSE)),VLOOKUP(A22,資産推移!A:I,7,FALSE)) -> 1.096119464 | H22: =AVERAGEIFS(資産推移!H:H,資産推移!A:A,">="&A22,資産推移!A:A,"<"&A23) -> 0.04874334339 | I22: =AVERAGEIFS(資産推移!I:I,資産推移!A:A,">="&A22,資産推移!A:A,"<"&A23) -> 0.1677733524
A23: 2023-05-01 | B23: =AVERAGEIFS(資産推移!B:B,資産推移!A:A,">="&A23,資産推移!A:A,"<"&A24) -> 81845275.9 | C23: =AVERAGEIFS(資産推移!C:C,資産推移!A:A,">="&A23,資産推移!A:A,"<"&A24) -> 61640193.87 | D23: =AVERAGEIFS(資産推移!D:D,資産推移!A:A,">="&A23,資産推移!A:A,"<"&A24) -> 20205082.03 | E23: =AVERAGEIFS(資産推移!E:E,資産推移!A:A,">="&A23,資産推移!A:A,"<"&A24) -> 0.327808496 | G23: =IF(ISNA(VLOOKUP(A23,資産推移!A:I,7,FALSE)),IF(ISNA(VLOOKUP(A23-1,資産推移!A:I,7,FALSE)),IF(ISNA(VLOOKUP(A23-2,資産推移!A:I,7,FALSE)),VLOOKUP(A23-3,資産推移!A:I,7,FALSE),VLOOKUP(A23-2,資産推移!A:I,7,FALSE)),VLOOKUP(A23-1,資産推移!A:I,7,FALSE)),VLOOKUP(A23,資産推移!A:I,7,FALSE)) -> 1.096749651 | H23: =AVERAGEIFS(資産推移!H:H,資産推移!A:A,">="&A23,資産推移!A:A,"<"&A24) -> 0.04848232751 | I23: =AVERAGEIFS(資産推移!I:I,資産推移!A:A,">="&A23,資産推移!A:A,"<"&A24) -> 0.1668558448
A24: 2023-06-01 | B24: =AVERAGEIFS(資産推移!B:B,資産推移!A:A,">="&A24,資産推移!A:A,"<"&A25) -> 85949422.58 | C24: =AVERAGEIFS(資産推移!C:C,資産推移!A:A,">="&A24,資産推移!A:A,"<"&A25) -> 61702919 | D24: =AVERAGEIFS(資産推移!D:D,資産推移!A:A,">="&A24,資産推移!A:A,"<"&A25) -> 24246503.58 | E24: =AVERAGEIFS(資産推移!E:E,資産推移!A:A,">="&A24,資産推移!A:A,"<"&A25) -> 0.3929623836 | G24: =IF(ISNA(VLOOKUP(A24,資産推移!A:I,7,FALSE)),IF(ISNA(VLOOKUP(A24-1,資産推移!A:I,7,FALSE)),IF(ISNA(VLOOKUP(A24-2,資産推移!A:I,7,FALSE)),VLOOKUP(A24-3,資産推移!A:I,7,FALSE),VLOOKUP(A24-2,資産推移!A:I,7,FALSE)),VLOOKUP(A24-1,資産推移!A:I,7,FALSE)),VLOOKUP(A24,資産推移!A:I,7,FALSE)) -> 1.094108689 | H24: =AVERAGEIFS(資産推移!H:H,資産推移!A:A,">="&A24,資産推移!A:A,"<"&A25) -> 0.04865447933 | I24: =AVERAGEIFS(資産推移!I:I,資産推移!A:A,">="&A24,資産推移!A:A,"<"&A25) -> 0.1676697373
A25: 2023-07-01 | B25: =AVERAGEIFS(資産推移!B:B,資産推移!A:A,">="&A25,資産推移!A:A,"<"&A26) -> 90091652.31 | C25: =AVERAGEIFS(資産推移!C:C,資産推移!A:A,">="&A25,資産推移!A:A,"<"&A26) -> 63355195.24 | D25: =AVERAGEIFS(資産推移!D:D,資産推移!A:A,">="&A25,資産推移!A:A,"<"&A26) -> 26736457.07 | E25: =AVERAGEIFS(資産推移!E:E,資産推移!A:A,">="&A25,資産推移!A:A,"<"&A26) -> 0.4220276305 | G25: =IF(ISNA(VLOOKUP(A25,資産推移!A:I,7,FALSE)),IF(ISNA(VLOOKUP(A25-1,資産推移!A:I,7,FALSE)),IF(ISNA(VLOOKUP(A25-2,資産推移!A:I,7,FALSE)),VLOOKUP(A25-3,資産推移!A:I,7,FALSE),VLOOKUP(A25-2,資産推移!A:I,7,FALSE)),VLOOKUP(A25-1,資産推移!A:I,7,FALSE)),VLOOKUP(A25,資産推移!A:I,7,FALSE)) -> 1.097496528 | H25: =AVERAGEIFS(資産推移!H:H,資産推移!A:A,">="&A25,資産推移!A:A,"<"&A26) -> 0.04836251205 | I25: =AVERAGEIFS(資産推移!I:I,資産推移!A:A,">="&A25,資産推移!A:A,"<"&A26) -> 0.1665416114
A26: 2023-08-01 | B26: =AVERAGEIFS(資産推移!B:B,資産推移!A:A,">="&A26,資産推移!A:A,"<"&A27) -> 91994687.15 | C26: =AVERAGEIFS(資産推移!C:C,資産推移!A:A,">="&A26,資産推移!A:A,"<"&A27) -> 63634799.92 | D26: =AVERAGEIFS(資産推移!D:D,資産推移!A:A,">="&A26,資産推移!A:A,"<"&A27) -> 28359887.23 | E26: =AVERAGEIFS(資産推移!E:E,資産推移!A:A,">="&A26,資産推移!A:A,"<"&A27) -> 0.4456663219 | G26: =IF(ISNA(VLOOKUP(A26,資産推移!A:I,7,FALSE)),IF(ISNA(VLOOKUP(A26-1,資産推移!A:I,7,FALSE)),IF(ISNA(VLOOKUP(A26-2,資産推移!A:I,7,FALSE)),VLOOKUP(A26-3,資産推移!A:I,7,FALSE),VLOOKUP(A26-2,資産推移!A:I,7,FALSE)),VLOOKUP(A26-1,資産推移!A:I,7,FALSE)),VLOOKUP(A26,資産推移!A:I,7,FALSE)) -> 1.09869265 | H26: =AVERAGEIFS(資産推移!H:H,資産推移!A:A,">="&A26,資産推移!A:A,"<"&A27) -> 0.04841424388 | I26: =AVERAGEIFS(資産推移!I:I,資産推移!A:A,">="&A26,資産推移!A:A,"<"&A27) -> 0.1667328003
A27: 2023-09-01 | B27: =AVERAGEIFS(資産推移!B:B,資産推移!A:A,">="&A27,資産推移!A:A,"<"&A28) ->  | C27: =AVERAGEIFS(資産推移!C:C,資産推移!A:A,">="&A27,資産推移!A:A,"<"&A28) ->  | D27: =AVERAGEIFS(資産推移!D:D,資産推移!A:A,">="&A27,資産推移!A:A,"<"&A28) ->  | E27: =AVERAGEIFS(資産推移!E:E,資産推移!A:A,">="&A27,資産推移!A:A,"<"&A28) ->  | G27: =IF(ISNA(VLOOKUP(A27,資産推移!A:I,7,FALSE)),IF(ISNA(VLOOKUP(A27-1,資産推移!A:I,7,FALSE)),IF(ISNA(VLOOKUP(A27-2,資産推移!A:I,7,FALSE)),VLOOKUP(A27-3,資産推移!A:I,7,FALSE),VLOOKUP(A27-2,資産推移!A:I,7,FALSE)),VLOOKUP(A27-1,資産推移!A:I,7,FALSE)),VLOOKUP(A27,資産推移!A:I,7,FALSE)) ->  | H27: =AVERAGEIFS(資産推移!H:H,資産推移!A:A,">="&A27,資産推移!A:A,"<"&A28) ->  | I27: =AVERAGEIFS(資産推移!I:I,資産推移!A:A,">="&A27,資産推移!A:A,"<"&A28) -> 
A28: 2023-10-01 | B28: =AVERAGEIFS(資産推移!B:B,資産推移!A:A,">="&A28,資産推移!A:A,"<"&A29) ->  | C28: =AVERAGEIFS(資産推移!C:C,資産推移!A:A,">="&A28,資産推移!A:A,"<"&A29) ->  | D28: =AVERAGEIFS(資産推移!D:D,資産推移!A:A,">="&A28,資産推移!A:A,"<"&A29) ->  | E28: =AVERAGEIFS(資産推移!E:E,資産推移!A:A,">="&A28,資産推移!A:A,"<"&A29) ->  | G28: =IF(ISNA(VLOOKUP(A28,資産推移!A:I,7,FALSE)),IF(ISNA(VLOOKUP(A28-1,資産推移!A:I,7,FALSE)),IF(ISNA(VLOOKUP(A28-2,資産推移!A:I,7,FALSE)),VLOOKUP(A28-3,資産推移!A:I,7,FALSE),VLOOKUP(A28-2,資産推移!A:I,7,FALSE)),VLOOKUP(A28-1,資産推移!A:I,7,FALSE)),VLOOKUP(A28,資産推移!A:I,7,FALSE)) ->  | H28: =AVERAGEIFS(資産推移!H:H,資産推移!A:A,">="&A28,資産推移!A:A,"<"&A29) ->  | I28: =AVERAGEIFS(資産推移!I:I,資産推移!A:A,">="&A28,資産推移!A:A,"<"&A29) -> 
A29: 2023-11-01 | B29: =AVERAGEIFS(資産推移!B:B,資産推移!A:A,">="&A29,資産推移!A:A,"<"&A30) ->  | C29: =AVERAGEIFS(資産推移!C:C,資産推移!A:A,">="&A29,資産推移!A:A,"<"&A30) ->  | D29: =AVERAGEIFS(資産推移!D:D,資産推移!A:A,">="&A29,資産推移!A:A,"<"&A30) ->  | E29: =AVERAGEIFS(資産推移!E:E,資産推移!A:A,">="&A29,資産推移!A:A,"<"&A30) ->  | G29: =IF(ISNA(VLOOKUP(A29,資産推移!A:I,7,FALSE)),IF(ISNA(VLOOKUP(A29-1,資産推移!A:I,7,FALSE)),IF(ISNA(VLOOKUP(A29-2,資産推移!A:I,7,FALSE)),VLOOKUP(A29-3,資産推移!A:I,7,FALSE),VLOOKUP(A29-2,資産推移!A:I,7,FALSE)),VLOOKUP(A29-1,資産推移!A:I,7,FALSE)),VLOOKUP(A29,資産推移!A:I,7,FALSE)) ->  | H29: =AVERAGEIFS(資産推移!H:H,資産推移!A:A,">="&A29,資産推移!A:A,"<"&A30) ->  | I29: =AVERAGEIFS(資産推移!I:I,資産推移!A:A,">="&A29,資産推移!A:A,"<"&A30) -> 
A30: 2023-12-01 | B30: =AVERAGEIFS(資産推移!B:B,資産推移!A:A,">="&A30,資産推移!A:A,"<"&A31) ->  | C30: =AVERAGEIFS(資産推移!C:C,資産推移!A:A,">="&A30,資産推移!A:A,"<"&A31) ->  | D30: =AVERAGEIFS(資産推移!D:D,資産推移!A:A,">="&A30,資産推移!A:A,"<"&A31) ->  | E30: =AVERAGEIFS(資産推移!E:E,資産推移!A:A,">="&A30,資産推移!A:A,"<"&A31) ->  | G30: =IF(ISNA(VLOOKUP(A30,資産推移!A:I,7,FALSE)),IF(ISNA(VLOOKUP(A30-1,資産推移!A:I,7,FALSE)),IF(ISNA(VLOOKUP(A30-2,資産推移!A:I,7,FALSE)),VLOOKUP(A30-3,資産推移!A:I,7,FALSE),VLOOKUP(A30-2,資産推移!A:I,7,FALSE)),VLOOKUP(A30-1,資産推移!A:I,7,FALSE)),VLOOKUP(A30,資産推移!A:I,7,FALSE)) ->  | H30: =AVERAGEIFS(資産推移!H:H,資産推移!A:A,">="&A30,資産推移!A:A,"<"&A31) ->  | I30: =AVERAGEIFS(資産推移!I:I,資産推移!A:A,">="&A30,資産推移!A:A,"<"&A31) -> 
A31: 2024-01-01 | B31: =AVERAGEIFS(資産推移!B:B,資産推移!A:A,">="&A31,資産推移!A:A,"<"&A32) ->  | C31: =AVERAGEIFS(資産推移!C:C,資産推移!A:A,">="&A31,資産推移!A:A,"<"&A32) ->  | D31: =AVERAGEIFS(資産推移!D:D,資産推移!A:A,">="&A31,資産推移!A:A,"<"&A32) ->  | E31: =AVERAGEIFS(資産推移!E:E,資産推移!A:A,">="&A31,資産推移!A:A,"<"&A32) ->  | G31: =IF(ISNA(VLOOKUP(A31,資産推移!A:I,7,FALSE)),IF(ISNA(VLOOKUP(A31-1,資産推移!A:I,7,FALSE)),IF(ISNA(VLOOKUP(A31-2,資産推移!A:I,7,FALSE)),VLOOKUP(A31-3,資産推移!A:I,7,FALSE),VLOOKUP(A31-2,資産推移!A:I,7,FALSE)),VLOOKUP(A31-1,資産推移!A:I,7,FALSE)),VLOOKUP(A31,資産推移!A:I,7,FALSE)) ->  | H31: =AVERAGEIFS(資産推移!H:H,資産推移!A:A,">="&A31,資産推移!A:A,"<"&A32) ->  | I31: =AVERAGEIFS(資産推移!I:I,資産推移!A:A,">="&A31,資産推移!A:A,"<"&A32) -> 

Sheet 15年
A1: ■入力 | R1: ■ソルバー | S1: =S7 -> 0 | T1: =T7 -> リスク | U1: リターン | V1: 国内債券 | W1: 外国債券ﾍｯｼﾞ | X1: 外国債券 | Y1: ゴールド | Z1: 米国株 | AA1: 先進国株 | AB1: 日本株 | AC1: 新興国株 | AD1: 先進国RIET | AE1: J-RIET | AF1: 計
C3: Weight（％） | D3: σ（％） | E3: リターン％ | F3: 国内債券 | S3: 想定リスク上限（％） | T3: 0.25
A4: =メイン!$D3*100 -> 5.729193918 | B4: 国内債券 | C4: =メイン!$J37*100 -> 4.380118492 | D4: 1.8 | E4: 0.1 | F4: 1 | G4: 外国債券ﾍｯｼﾞ | P4: =メイン!$J37*100 -> 4.380118492 | Q4: =P4/100*D4 -> 0.07884213286
A5: =(メイン!$D4+メイン!$D6)*100 -> 10.63993156 | B5: 外国債券ﾍｯｼﾞ | C5: =(メイン!$J38+メイン!$J40)*100 -> 8.120869071 | D5: 9.2 | E5: =E4 -> 0.1 | F5: 0.52 | G5: 1 | H5: 外国債券 | P5: =(メイン!$J38+メイン!$J40)*100 -> 8.120869071 | Q5: =P5/100*D5 -> 0.7471199545 | R5: ■シミュレーション
A6: 0 | B6: 外国債券 | C6: 0 | D6: 9.2 | E6: =E5 -> 0.1 | F6: -0.18 | G6: -0.03 | H6: 1 | I6: ゴールド | P6: 0 | Q6: 0
A7: =メイン!$D7*100 -> 0.5062616128 | B7: ゴールド | C7: =メイン!$J41*100 -> 1.368371244 | D7: 17 | E7: =E6 -> 0.1 | F7: 0.22 | G7: 0.22 | H7: -0.1 | I7: 1 | J7: 米国株 | P7: =メイン!$J41*100 -> 1.368371244 | Q7: 0.2326231115 | T7: リスク | U7: リターン | V7: 国内債券 | W7: 外国債券ﾍｯｼﾞ | X7: 外国債券 | Y7: ゴールド | Z7: 米国株 | AA7: 先進国株 | AB7: 日本株 | AC7: 新興国株 | AD7: 先進国RIET | AE7: J-RIET | AF7: 計
A8: =メイン!$D8*100+メイン!$D9*100 -> 3.948419113 | B8: 米国株 | C8: =メイン!$J42*100+メイン!$J43*100 -> 4.608849432 | D8: 18.5 | E8: =5+E7 -> 5.1 | F8: -0.34 | G8: -0.34 | H8: 0.7 | I8: -0.09 | J8: 1 | K8: 先進国株 | P8: =メイン!$J42*100+メイン!$J43*100 -> 4.608849432 | Q8: 0.852637145 | S8: =U8/T8 -> 0.7174215146 | T8: 0.04 | U8: 0.02869686059 | V8: 55.59283471 | W8: 12.55816209 | X8: 0 | Y8: 13.23693644 | Z8: 6.218333272 | AA8: 8.437940703 | AB8: 0 | AC8: 0 | AD8: 0 | AE8: 3.955792781 | AF8: =SUM(V8:AE8) -> 100
A9: =(メイン!$D10)*100 -> 45.03756968 | B9: 先進国株 | C9: =(メイン!$J44)*100 -> 45.33506182 | D9: 19.1 | E9: =E8 -> 5.1 | F9: -0.34 | G9: -0.34 | H9: 0.73 | I9: -0.09 | J9: 0.98 | K9: 1 | L9: 日本株 | P9: =(メイン!$J44)*100 -> 45.33506182 | Q9: 8.658996808 | S9: =U9/T9 -> 0.7188451393 | T9: =T8+0.002 -> 0.042 | U9: 0.03019149585 | V9: 47.69218566 | W9: 20.74739923 | X9: 0 | Y9: 12.44852761 | Z9: 19.1118875 | AA9: 0 | AB9: 0 | AC9: 0 | AD9: 0 | AE9: 0 | AF9: 100
A10: =(メイン!$D11+メイン!$D12+メイン!$D13)*100 -> 22.08555524 | B10: 日本株 | C10: =(メイン!$J46)*100+(メイン!$J45)*100 -> 24.21580015 | D10: 17.7 | E10: =E9 -> 5.1 | F10: -0.35 | G10: -0.31 | H10: 0.64 | I10: -0.21 | J10: 0.8 | K10: 0.82 | L10: 1 | M10: 新興国株 | P10: =(メイン!$J46)*100+(メイン!$J45)*100 -> 24.21580015 | Q10: 4.286196627 | S10: 0.7041115549 | T10: 0.044 | U10: 0.03098090842 | V10: 45.51927184 | W10: 20.92825532 | X10: 0 | Y10: 13.53417363 | Z10: 20.01829922 | AA10: 0 | AB10: 0 | AC10: 0 | AD10: 0 | AE10: 0 | AF10: 100
A11: =メイン!$D14*100 -> 7.896838226 | B11: 新興国株 | C11: =メイン!$J47*100 -> 7.935770817 | D11: 23.7 | E11: =E10 -> 5.1 | F11: -0.29 | G11: -0.29 | H11: 0.64 | I11: -0.09 | J11: 0.8 | K11: 0.87 | L11: 0.73 | M11: 1 | N11: 先進国RIET | P11: =メイン!$J47*100 -> 7.935770817 | Q11: 1.880777684 | S11: 0.690383179 | T11: 0.046 | U11: 0.03175762624 | V11: 43.16271983 | W11: 21.30159878 | X11: 0 | Y11: 14.43657829 | Z11: 20.6157906 | AA11: 0 | AB11: 0 | AC11: 0 | AD11: 0 | AE11: 0.4833124971 | AF11: 100
A12: =メイン!$D15*100 -> 3.117172984 | B12: 先進国RIET | C12: =メイン!$J48*100 -> 3.036741835 | D12: 21.8 | E12: =E11 -> 5.1 | F12: -0.1 | G12: -0.03 | H12: 0.51 | I12: 0.1 | J12: 0.77 | K12: 0.76 | L12: 0.61 | M12: 0.61 | N12: 1 | O12: J-RIET | P12: =メイン!$J48*100 -> 3.036741835 | Q12: 0.66200972 | S12: 0.6776880632 | T12: 0.048 | U12: 0.03252902703 | V12: 40.72701162 | W12: 21.82223416 | X12: 0 | Y12: 15.35925924 | Z12: 21.20623324 | AA12: 0 | AB12: 0 | AC12: 0 | AD12: 0 | AE12: 0.8852617477 | AF12: 100
A13: =メイン!$D16*100 -> 1.039057661 | B13: J-RIET | C13: =メイン!$J49*100 -> 0.9984171317 | D13: 18.2 | E13: =E12 -> 5.1 | F13: 0.342 | G13: 0.34 | H13: 0.246 | I13: 0.1 | J13: 0.327 | K13: 0.327 | L13: 0.554 | M13: 0.315 | N13: 0.326 | O13: 1 | P13: =メイン!$J49*100 -> 0.9984171317 | Q13: 0.181711918 | S13: 0.6659540003 | T13: 0.05 | U13: 0.03329770002 | V13: 38.07528359 | W13: 22.6906518 | X13: 0 | Y13: 16.3139162 | Z13: 21.79282562 | AA13: 0 | AB13: 0 | AC13: 0 | AD13: 0 | AE13: 1.127322791 | AF13: 100
B14: 合計 | C14: =SUM(C4:C13) -> 100 | S14: 0.6552468237 | T14: 0.052 | U14: 0.03407283483 | V14: 34.52464712 | W14: 25.01930711 | X14: 0 | Y14: 16.82148508 | Z14: 22.96213106 | AA14: 0 | AB14: 0 | AC14: 0 | AD14: 0 | AE14: 0.6724296385 | AF14: 100
S15: 0.6451608182 | T15: 0.054 | U15: 0.03483868418 | V15: 32.11884818 | W15: 25.49063641 | X15: 0 | Y15: 17.47857304 | Z15: 23.62052334 | AA15: 0 | AB15: 0 | AC15: 0 | AD15: 0 | AE15: 1.291419029 | AF15: 100
A16: ■リターンの算出 | S16: 0.6357077658 | T16: 0.056 | U16: 0.03559963488 | V16: 29.68111496 | W16: 26.03845067 | X16: 0 | Y16: 18.33140419 | Z16: 24.18148316 | AA16: 0 | AB16: 0 | AC16: 0 | AD16: 0 | AE16: 1.767547019 | AF16: 100
G17: 15年 | I17: 15年 | S17: 0.626953268 | T17: 0.058 | U17: 0.03636328955 | V17: 26.73019193 | W17: 27.54335521 | X17: 0 | Y17: 19.05921733 | Z17: 25.3345477 | AA17: 0 | AB17: 0 | AC17: 0 | AD17: 0 | AE17: 1.332687835 | AF17: 100
C18: リターン | D18: リターン×Weight | G18: リスク | I18: 単利リターン | M18: 実質コスト | O18: リターン | S18: 0.6187055894 | T18: 0.06 | U18: 0.03712233537 | V18: 24.23976636 | W18: 28.1076383 | X18: 0 | Y18: 19.85128855 | Z18: 25.72551518 | AA18: 0 | AB18: 0 | AC18: 0 | AD18: 0 | AE18: 2.075791612 | AF18: 100
B19: 国内債券 | C19: =E4/100 -> 0.001 | D19: =C19*C4/100 -> 4.380118492e-05 | F19: 国内債券 | G19: 1.8 | I19: 1.9 | J19: =I19*15 -> 28.5 | K19: 15 | L19: =(((100+J19)/100) ^(1/K19) -1)*100 -> 1.685776299 | M19: 0.123 | N19: =M19*1.1 -> 0.1353 | O19: =L19-N19 -> 1.550476299 | P19: 国内債券 | S19: 0.6110769472 | T19: 0.062 | U19: 0.03788677073 | V19: 20.47699493 | W19: 30.77224381 | X19: 0 | Y19: 20.20567758 | Z19: 26.87523428 | AA19: 0 | AB19: 0 | AC19: 0 | AD19: 0 | AE19: 1.669849395 | AF19: 100
B20: 外国債券ﾍｯｼﾞ | C20: =E5/100 -> 0.001 | D20: =C20*C5/100 -> 8.120869071e-05 | F20: 外国債券ﾍｯｼﾞ | G20: 9.2 | I20: 3.6 | J20: =I20*15 -> 54 | K20: 15 | L20: =(((100+J20)/100) ^(1/K20) -1)*100 -> 2.920380085 | M20: 0.217 | N20: =M20*1.1 -> 0.2387 | O20: =L20-N20 -> 2.681680085 | P20: 外国債券ﾍｯｼﾞ | S20: 0.6038043668 | T20: 0.064 | U20: 0.03864347947 | V20: 18.15498291 | W20: 31.1431101 | X20: 0 | Y20: 21.01603102 | Z20: 27.40429635 | AA20: 0 | AB20: 0 | AC20: 0 | AD20: 0 | AE20: 2.281579618 | AF20: 100
B21: 外国債券 | C21: 0.001 | D21: 0 | F21: 外国債券 | G21: 9.2 | I21: 3.6 | J21: 54 | K21: 15 | L21: 2.920380085 | M21: 0.152 | N21: =M21*1.1 -> 0.1672 | O21: 2.753180085 | P21: 外国債券 | S21: 0.59693084 | T21: 0.066 | U21: 0.03939743544 | V21: 15.70621118 | W21: 31.73191441 | X21: 0 | Y21: 21.93217523 | Z21: 27.90552353 | AA21: 0 | AB21: 0 | AC21: 0 | AD21: 0 | AE21: 2.724175649 | AF21: 100
B22: ゴールド | C22: 0.001 | D22: 1.368371244e-05 | F22: ゴールド | G22: 17 | I22: 8.7 | J22: 130.5 | K22: 15 | L22: 5.725089626 | N22: 0.465 | O22: 5.260089626 | P22: ゴールド | S22: 0.5904785664 | T22: 0.068 | U22: 0.04015254252 | V22: 12.83743966 | W22: 33.19424638 | X22: 0 | Y22: 22.47154836 | Z22: 29.28627801 | AA22: 0 | AB22: 0 | AC22: 0 | AD22: 0 | AE22: 2.210487594 | AF22: 100
B23: 米国株 | C23: 0.051 | D23: 0.002350513211 | F23: 米国株 | G23: 18.5 | I23: 8.8 | J23: 132 | K23: 15 | L23: 5.770818631 | N23: 0.18 | O23: 5.590818631 | P23: 米国株 | S23: 0.5843801029 | T23: 0.07 | U23: 0.04090660721 | V23: 10.37471252 | W23: 33.70382207 | X23: 0 | Y23: 23.39080128 | Z23: 29.50515395 | AA23: 0 | AB23: 0 | AC23: 0 | AD23: 0 | AE23: 3.025510182 | AF23: 100
B24: 先進国株 | C24: 0.051 | D24: 0.02312088153 | F24: 先進国株 | G24: 19.1 | I24: 7.9 | J24: 118.5 | K24: 15 | L24: 5.348922027 | M24: 0.164 | N24: =M24*1.1 -> 0.1804 | O24: 5.168522027 | P24: 先進国株 | S24: 0.5785944813 | T24: 0.072 | U24: 0.04165880265 | V24: 7.501884315 | W24: 34.91464715 | X24: 0 | Y24: 24.2425992 | Z24: 29.94773715 | AA24: 0 | AB24: 0 | AC24: 0 | AD24: 0 | AE24: 3.39313218 | AF24: 100
B25: 日本株 | C25: 0.051 | D25: 0.01235005808 | F25: 日本株 | G25: 17.7 | I25: 4.5 | J25: 67.5 | K25: 15 | L25: 3.498563185 | M25: 0.144 | N25: =M25*1.1 -> 0.1584 | O25: 3.340163185 | P25: 日本株 | S25: 0.5731034591 | T25: 0.074 | U25: 0.04240965597 | V25: 5.240302785 | W25: 35.36620993 | X25: 0 | Y25: 24.64655323 | Z25: 31.11606571 | AA25: 0 | AB25: 0 | AC25: 0 | AD25: 0 | AE25: 3.630868341 | AF25: 100
B26: 新興国株 | C26: 0.051 | D26: 0.004047243116 | F26: 新興国株 | G26: 23.7 | I26: 8 | J26: 120 | K26: 15 | L26: 5.396982853 | M26: 0.335 | N26: =M26*1.1 -> 0.3685 | O26: 5.028482853 | P26: 新興国株 | S26: 0.5678686146 | T26: 0.076 | U26: 0.04315801471 | V26: 2.718565419 | W26: 36.03062854 | X26: 0 | Y26: 25.69952971 | Z26: 31.36592094 | AA26: 0 | AB26: 0 | AC26: 0 | AD26: 0 | AE26: 4.185355393 | AF26: 100
B27: 先進国RIET | C27: 0.051 | D27: 0.001548738336 | F27: 先進国RIET | G27: 21.8 | I27: 7.8 | J27: 117 | K27: 15 | L27: 5.300552267 | M27: 0.464 | N27: =M27*1.1 -> 0.5104 | O27: 4.790152267 | P27: 先進国RIET | S27: 0.5629565527 | T27: 0.078 | U27: 0.04391061111 | V27: 0 | W27: 37.21722426 | X27: 0 | Y27: 26.27292624 | Z27: 32.56467195 | AA27: 0 | AB27: 0 | AC27: 0 | AD27: 0 | AE27: 3.945177548 | AF27: 100
B28: J-RIET | C28: 0.051 | D28: 0.0005091927372 | F28: J-RIET | G28: 18.2 | I28: 7.3 | J28: 109.5 | K28: 15 | L28: 5.053921476 | M28: 0.207 | N28: =M28*1.1 -> 0.2277 | O28: 4.826221476 | P28: J-RIET | S28: 0.5576811905 | T28: 0.08 | U28: 0.04461449524 | V28: 0 | W28: 34.35689938 | X28: 0 | Y28: 27.76519799 | Z28: 32.90119824 | AA28: 0 | AB28: 0 | AC28: 0 | AD28: 0 | AE28: 4.976704392 | AF28: 100
B29: 合計 | D29: =SUM(D19:D28) -> 0.0440653206 | S29: 0.5522472318 | T29: 0.082 | U29: 0.04528427301 | V29: 0 | W29: 31.63832995 | X29: 0 | Y29: 29.13629954 | Z29: 33.25800798 | AA29: 0 | AB29: 0 | AC29: 0 | AD29: 0 | AE29: 5.967362523 | AF29: 100
S30: 0.5467437194 | T30: 0.084 | U30: 0.04592647243 | V30: 0 | W30: 29.02666408 | X30: 0 | Y30: 30.45696311 | Z30: 33.58259038 | AA30: 0 | AB30: 0 | AC30: 0 | AD30: 0 | AE30: 6.933782424 | AF30: 100
B31: リターン（％） | C31: =D29 -> 0.0440653206 | S31: 0.541230906 | T31: 0.086 | U31: 0.04654585791 | V31: 0 | W31: 26.50654326 | X31: 0 | Y31: 31.72730017 | Z31: 33.89411735 | AA31: 0 | AB31: 0 | AC31: 0 | AD31: 0 | AE31: 7.872039218 | AF31: 100
S32: 0.5357504252 | T32: 0.088 | U32: 0.04714603742 | V32: 0 | W32: 24.06568195 | X32: 0 | Y32: 32.95042945 | Z32: 34.2035484 | AA32: 0 | AB32: 0 | AC32: 0 | AD32: 0 | AE32: 8.780340202 | AF32: 100
S33: 0.5303312635 | T33: 0.09 | U33: 0.04772981371 | V33: 0 | W33: 21.69172386 | X33: 0 | Y33: 34.13883127 | Z33: 34.50580148 | AA33: 0 | AB33: 0 | AC33: 0 | AD33: 0 | AE33: 9.663643386 | AF33: 100
A34: ■リスクの算出 | S34: 0.524993592 | T34: 0.092 | U34: 0.04829941046 | V34: 0 | W34: 19.37811495 | X34: 0 | Y34: 35.28861716 | Z34: 34.81378322 | AA34: 0 | AB34: 0 | AC34: 0 | AD34: 0 | AE34: 10.51948468 | AF34: 100
S35: 0.5197514256 | T35: 0.094 | U35: 0.048856634 | V35: 0 | W35: 17.11028925 | X35: 0 | Y35: 36.43154663 | Z35: 35.09224177 | AA35: 0 | AB35: 0 | AC35: 0 | AD35: 0 | AE35: 11.36592235 | AF35: 100
A36: ●前半部分（相関係数を含まない項） | S36: 0.5146141135 | T36: 0.096 | U36: 0.04940295489 | V36: 0 | W36: 14.89187601 | X36: 0 | Y36: 37.53198805 | Z36: 35.3908087 | AA36: 0 | AB36: 0 | AC36: 0 | AD36: 0 | AE36: 12.18532724 | AF36: 100
C37: Weight | D37: Weight2乗 | E37: σ | F37: σ2乗 | G37: Weight2乗×σ2乗 | S37: 0.5095879106 | T37: 0.098 | U37: 0.04993961524 | V37: 0 | W37: 12.70217563 | X37: 0 | Y37: 38.65370404 | Z37: 35.63148904 | AA37: 0 | AB37: 0 | AC37: 0 | AD37: 0 | AE37: 13.01263128 | AF37: 100
B38: 国内債券 | C38: =C4/100 -> 0.04380118492 | D38: =C38^2 -> 0.001918543801 | E38: =D4/100 -> 0.018 | F38: =E38^2 -> 0.000324 | G38: =F38*D38 -> 6.216081914e-07 | S38: 0.5046764 | T38: 0.1 | U38: 0.05046764 | V38: 0 | W38: 10.55451361 | X38: 0 | Y38: 39.72579249 | Z38: 35.90529657 | AA38: 0 | AB38: 0 | AC38: 0 | AD38: 0 | AE38: 13.81439734 | AF38: 100
B39: 外国債券ﾍｯｼﾞ | C39: =C5/100 -> 0.08120869071 | D39: 0.006594851447 | E39: =D5/100 -> 0.092 | F39: 0.008464 | G39: =F39*D39 -> 5.581882265e-05 | S39: 0.4998814025 | T39: 0.102 | U39: 0.05098790306 | V39: 0 | W39: 8.438140968 | X39: 0 | Y39: 40.78761021 | Z39: 36.171179 | AA39: 0 | AB39: 0 | AC39: 0 | AD39: 0 | AE39: 14.60306982 | AF39: 100
B40: 外国債券 | C40: 0 | D40: 0 | E40: 0.092 | F40: 0.008464 | G40: 0 | S40: 0.495203447 | T40: 0.104 | U40: 0.05150115849 | V40: 0 | W40: 6.348440615 | X40: 0 | Y40: 41.84207976 | Z40: 36.42439031 | AA40: 0 | AB40: 0 | AC40: 0 | AD40: 0 | AE40: 15.38508932 | AF40: =SUM(V40:AE40) -> 100
B41: ゴールド | C41: 0.01368371244 | D41: 0.0001872439861 | E41: 0.17 | F41: 0.0289 | G41: 5.411351198e-06 | S41: 0.4906415084 | T41: =T40+0.002 -> 0.106 | U41: 0.05200799989 | V41: 0 | W41: 4.310184329 | X41: 0 | Y41: 42.78947532 | Z41: 36.79876308 | AA41: 0 | AB41: 0 | AC41: 0 | AD41: 0 | AE41: 16.10157727 | AF41: 100
B42: 米国株 | C42: 0.04608849432 | D42: 0.002124149309 | E42: 0.185 | F42: 0.034225 | G42: 7.26990101e-05 | S42: 0.4861959566 | T42: 0.108 | U42: 0.05250916331 | V42: 0 | W42: 2.249892732 | X42: 0 | Y42: 43.9055787 | Z42: 36.94133732 | AA42: 0 | AB42: 0 | AC42: 0 | AD42: 0 | AE42: 16.90319125 | AF42: 100
B43: 先進国株 | C43: 0.4533506182 | D43: 0.205526783 | E43: 0.191 | F43: 0.036481 | G43: 0.007497822572 | S43: 0.4818634512 | T43: 0.11 | U43: 0.05300497963 | V43: 0 | W43: 0.230864803 | X43: 0 | Y43: 44.91863296 | Z43: 37.18818919 | AA43: 0 | AB43: 0 | AC43: 0 | AD43: 0 | AE43: 17.66231304 | AF43: 100
B44: 日本株 | C44: 0.2421580015 | D44: 0.05864049771 | E44: 0.177 | F44: 0.031329 | G44: 0.001837148153 | S44: 0.4767939063 | T44: 0.112 | U44: 0.05340091751 | V44: 0 | W44: 0 | X44: 0 | Y44: 45.52049876 | Z44: 41.37751851 | AA44: 0 | AB44: 0 | AC44: 0 | AD44: 0 | AE44: 13.10198273 | AF44: 100
B45: 新興国株 | C45: 0.07935770817 | D45: 0.006297645845 | E45: 0.237 | F45: 0.056169 | G45: 0.0003537324695 | S45: 0.4708622545 | T45: 0.114 | U45: 0.05367829702 | V45: 0 | W45: 0 | X45: 0 | Y45: 45.94383848 | Z45: 44.76508207 | AA45: 0 | AB45: 0 | AC45: 0 | AD45: 0 | AE45: 9.291079443 | AF45: 100
B46: 先進国RIET | C46: 0.03036741835 | D46: 0.0009221800971 | E46: 0.218 | F46: 0.047524 | G46: 4.382568694e-05 | S46: 0.4647118794 | T46: 0.116 | U46: 0.05390657801 | V46: 0 | W46: 0 | X46: 0 | Y46: 46.25301925 | Z46: 47.57527599 | AA46: 0 | AB46: 0 | AC46: 0 | AD46: 0 | AE46: 6.17170476 | AF46: 100
B47: J-RIET | C47: 0.009984171317 | D47: 9.968367689e-05 | E47: 0.182 | F47: 0.033124 | G47: 3.301922113e-06 | S47: 0.4585291669 | T47: 0.118 | U47: 0.05410644169 | V47: 0 | W47: 0 | X47: 0 | Y47: 46.60855086 | Z47: 49.98750434 | AA47: 0 | AB47: 0 | AC47: 0 | AD47: 0 | AE47: 3.4039448 | AF47: 100
B48: 合計 | G48: =SUM(G38:G47) -> 0.009870381596 | H48: ← (σa)*(σa)*(Wa)*(Wa)+(σb)*(σb)*(Wb)*(Wb)+… | S48: 0.4523942011 | T48: 0.12 | U48: 0.05428730413 | V48: 0 | W48: 0 | X48: 0 | Y48: 46.89832531 | Z48: 52.1885333 | AA48: 0 | AB48: 0 | AC48: 0 | AD48: 0 | AE48: 0.9131413832 | AF48: 100
S49: 0.4462354632 | T49: 0.122 | U49: 0.0544407265 | V49: 0 | W49: 0 | X49: 0 | Y49: 44.37045981 | Z49: 55.62954019 | AA49: 0 | AB49: 0 | AC49: 0 | AD49: 0 | AE49: 0 | AF49: 100
S50: 0.439897345 | T50: 0.124 | U50: 0.05454727078 | V50: 0 | W50: 0 | X50: 0 | Y50: 41.14896196 | Z50: 58.85103804 | AA50: 0 | AB50: 0 | AC50: 0 | AD50: 0 | AE50: 0 | AF50: 100
A51: ●後半部分（相関係数を含む項） | S51: 0.4335948873 | T51: 0.126 | U51: 0.0546329558 | V51: 0 | W51: 0 | X51: 0 | Y51: 38.55816955 | Z51: 61.44183045 | AA51: 0 | AB51: 0 | AC51: 0 | AD51: 0 | AE51: 0 | AF51: 100
E52: 国内債券 | F52: 外国債券ﾍｯｼﾞ | G52: 外国債券 | H52: ゴールド | I52: 米国株 | J52: 先進国株 | K52: 日本株 | L52: 新興国株 | M52: 先進国RIET | N52: J-RIET | S52: 0.4274004857 | T52: 0.128 | U52: 0.05470726217 | V52: 0 | W52: 0 | X52: 0 | Y52: 36.31142486 | Z52: 63.68857514 | AA52: 0 | AB52: 0 | AC52: 0 | AD52: 0 | AE52: 0 | AF52: 100
C53: σ | E53: =E38 -> 0.018 | F53: =E39 -> 0.092 | G53: =E40 -> 0.092 | H53: =E41 -> 0.17 | I53: =E42 -> 0.185 | J53: =E43 -> 0.191 | K53: =E44 -> 0.177 | L53: =E45 -> 0.237 | M53: =E46 -> 0.218 | N53: =E47 -> 0.182 | S53: 0.4213390209 | T53: 0.13 | U53: 0.05477407272 | V53: 0 | W53: 0 | X53: 0 | Y53: 34.2913252 | Z53: 65.7086748 | AA53: 0 | AB53: 0 | AC53: 0 | AD53: 0 | AE53: 0 | AF53: 100
D54: Weight | E54: =C38 -> 0.04380118492 | F54: =C39 -> 0.08120869071 | G54: =C40 -> 0 | H54: =C41 -> 0.01368371244 | I54: =C42 -> 0.04608849432 | J54: =C43 -> 0.4533506182 | K54: =C44 -> 0.2421580015 | L54: =C45 -> 0.07935770817 | M54: =C46 -> 0.03036741835 | N54: =C47 -> 0.009984171317 | S54: 0.4154204774 | T54: 0.132 | U54: 0.05483550302 | V54: 0 | W54: 0 | X54: 0 | Y54: 32.43390435 | Z54: 67.56609565 | AA54: 0 | AB54: 0 | AC54: 0 | AD54: 0 | AE54: 0 | AF54: 100
B55: 国内債券 | C55: =E38 -> 0.018 | D55: =C38 -> 0.04380118492 | S55: 0.4096481218 | T55: 0.134 | U55: 0.05489284833 | V55: 0 | W55: 0 | X55: 0 | Y55: 30.69999805 | Z55: 69.30000195 | AA55: 0 | AB55: 0 | AC55: 0 | AD55: 0 | AE55: 0 | AF55: 100
B56: 外国債券ﾍｯｼﾞ | C56: =E39 -> 0.092 | D56: =C39 -> 0.08120869071 | E56: =F5*$C56*$D56*E$53*E$54 -> 3.063035597e-06 | S56: 0.4040218101 | T56: 0.136 | U56: 0.05494696618 | V56: 0 | W56: 0 | X56: 0 | Y56: 29.0636779 | Z56: 70.9363221 | AA56: 0 | AB56: 0 | AC56: 0 | AD56: 0 | AE56: 0 | AF56: 100
B57: 外国債券 | C57: 0.092 | D57: 0 | E57: =F6*$C57*$D57*E$53*E$54 -> 0 | F57: 0 | S57: 0.3985395511 | T57: 0.138 | U57: 0.05499845805 | V57: 0 | W57: 0 | X57: 0 | Y57: 27.50675756 | Z57: 72.49324244 | AA57: 0 | AB57: 0 | AC57: 0 | AD57: 0 | AE57: 0 | AF57: 100
B58: ゴールド | C58: 0.17 | D58: 0.01368371244 | E58: 4.034910497e-07 | F58: 3.823542106e-06 | G58: 0 | S58: 0.3931983182 | T58: 0.14 | U58: 0.05504776455 | V58: 0 | W58: 0 | X58: 0 | Y58: 26.01591449 | Z58: 73.98408551 | AA58: 0 | AB58: 0 | AC58: 0 | AD58: 0 | AE58: 0 | AF58: 100
B59: 米国株 | C59: 0.185 | D59: 0.04608849432 | E59: -2.285606856e-06 | F59: -2.165875565e-05 | G59: 0 | H59: -1.785087951e-06 | S59: 0.3879945039 | T59: 0.142 | U59: 0.05509521956 | V59: 0 | W59: 0 | X59: 0 | Y59: 24.58105383 | Z59: 75.41894617 | AA59: 0 | AB59: 0 | AC59: 0 | AD59: 0 | AE59: 0 | AF59: 100
B60: 先進国株 | C60: 0.191 | D60: 0.4533506182 | E60: -2.321158841e-05 | F60: -0.0002199565163 | G60: 0 | H60: -1.812854502e-05 | I60: 0.0007235322671 | S60: 0.3829241872 | T60: 0.144 | U60: 0.05514108296 | V60: 0 | W60: 0 | X60: 0 | Y60: 23.19431716 | Z60: 76.80568284 | AA60: 0 | AB60: 0 | AC60: 0 | AD60: 0 | AE60: 0 | AF60: 100
B61: 日本株 | C61: 0.177 | D61: 0.2421580015 | E61: -1.182765094e-05 | F61: -9.927139391e-05 | G61: 0 | H61: -2.093843631e-05 | I61: 0.0002923656364 | J61: 0.003043361359 | S61: 0.3779832987 | T61: 0.146 | U61: 0.0551855616 | V61: 0 | W61: 0 | X61: 0 | Y61: 21.84945047 | Z61: 78.15054953 | AA61: 0 | AB61: 0 | AC61: 0 | AD61: 0 | AE61: 0 | AF61: 100
B62: 新興国株 | C62: 0.237 | D62: 0.07935770817 | E62: -4.300251196e-06 | F62: -4.074982958e-05 | G62: 0 | H62: -3.93761121e-06 | I62: 0.0001282896732 | J62: 0.001416851372 | K62: 0.0005884809564 | S62: 0.373167724 | T62: 0.148 | U62: 0.05522882315 | V62: 0 | W62: 0 | X62: 0 | Y62: 20.54138419 | Z62: 79.45861581 | AA62: 0 | AB62: 0 | AC62: 0 | AD62: 0 | AE62: 0 | AF62: 100
B63: 先進国RIET | C63: 0.218 | D63: 0.03036741835 | E63: -5.21942583e-07 | F63: -1.483802016e-06 | G63: 0 | H63: 1.539987609e-06 | I63: 4.346296398e-05 | J63: 0.000435657844 | K63: 0.0001730877336 | L63: 7.595067957e-05 | S63: 0.368473371 | T63: 0.15 | U63: 0.05527100564 | V63: 0 | W63: 0 | X63: 0 | Y63: 19.26594442 | Z63: 80.73405558 | AA63: 0 | AB63: 0 | AC63: 0 | AD63: 0 | AE63: 0 | AF63: 100
B64: J-RIET | C64: 0.182 | D64: 0.009984171317 | E64: 4.899681871e-07 | F64: 4.615860396e-06 | G64: 0 | H64: 4.227039175e-07 | I64: 5.066352622e-06 | J64: 5.145158341e-05 | K64: 4.314845675e-05 | L64: 1.076543118e-05 | M64: 3.921618823e-06 | S64: 0.3638962123 | T64: 0.152 | U64: 0.05531222426 | V64: 0 | W64: 0 | X64: 0 | Y64: 18.01964853 | Z64: 81.98035147 | AA64: 0 | AB64: 0 | AC64: 0 | AD64: 0 | AE64: 0 | AF64: 100
B65: 合計 | D65: =SUM(D55:D64) -> 1 | N65: =SUM(E55:N64) -> 0.006579695499 | O65: ←(Pab)*(σa)*(σb)*(Wa)*(Wb)+(Pac)*(σa)*(σc)*(Wa)*(Wc)+… | S65: 0.3594324366 | T65: 0.154 | U65: 0.05535259524 | V65: 0 | W65: 0 | X65: 0 | Y65: 16.79898206 | Z65: 83.20101794 | AA65: 0 | AB65: 0 | AC65: 0 | AD65: 0 | AE65: 0 | AF65: 100
N66: =2*N65 -> 0.013159391 | O66: ←2*{(Pab)*(σa)*(σb)*(Wa)*(Wb)+(Pac)*(σa)*(σc)*(Wa)*(Wc)+…} | S66: 0.355077956 | T66: 0.156 | U66: 0.05539216114 | V66: 0 | W66: 0 | X66: 0 | Y66: 15.60265821 | Z66: 84.39734179 | AA66: 0 | AB66: 0 | AC66: 0 | AD66: 0 | AE66: 0 | AF66: 100
S67: 0.3508292088 | T67: 0.158 | U67: 0.05543101499 | V67: 0 | W67: 0 | X67: 0 | Y67: 14.42786402 | Z67: 85.57213598 | AA67: 0 | AB67: 0 | AC67: 0 | AD67: 0 | AE67: 0 | AF67: 100
B68: 分散 | C68: =G48+N66 -> 0.02302977259 | D68: ← (σa)*(σa)*(Wa)*(Wa)+(σb)*(σb)*(Wb)*(Wb)+…+2*{(Pab)*(σa)*(σb)*(Wa)*(Wb)+(Pac)*(σa)*(σc)*(Wa)*(Wc)+…} | S68: 0.346682616 | T68: 0.16 | U68: 0.05546921857 | V68: 0 | W68: 0 | X68: 0 | Y68: 13.2727318 | Z68: 86.7272682 | AA68: 0 | AB68: 0 | AC68: 0 | AD68: 0 | AE68: 0 | AF68: 100
B69: 標準偏差（σ） | C69: =SQRT(C68) -> 0.1517556345 | D69: ←√分散 | S69: 0.3426347274 | T69: 0.162 | U69: 0.05550682584 | V69: 0 | W69: 0 | X69: 0 | Y69: 12.13562961 | Z69: 87.86437039 | AA69: 0 | AB69: 0 | AC69: 0 | AD69: 0 | AE69: 0 | AF69: 100
B70: リスク（％） | C70: =C69 -> 0.1517556345 | D70: =C70*1.1 -> 0.1669311979 | S70: 0.338682221 | T70: 0.164 | U70: 0.05554388424 | V70: 0 | W70: 0 | X70: 0 | Y70: 11.01512281 | Z70: 88.98487719 | AA70: 0 | AB70: 0 | AC70: 0 | AD70: 0 | AE70: 0 | AF70: 100
S71: 0.3348219021 | T71: 0.166 | U71: 0.05558043575 | V71: 0 | W71: 0 | X71: 0 | Y71: 9.909942854 | Z71: 90.09005715 | AA71: 0 | AB71: 0 | AC71: 0 | AD71: 0 | AE71: 0 | AF71: 100
S72: 0.3310507003 | T72: 0.168 | U72: 0.05561651765 | V72: 0 | W72: 0 | X72: 0 | Y72: 8.818962131 | Z72: 91.18103787 | AA72: 0 | AB72: 0 | AC72: 0 | AD72: 0 | AE72: 0 | AF72: =SUM(V72:AE72) -> 100
S73: =U73/T73 -> 0.3273656661 | T73: =T72+0.002 -> 0.17 | U73: 0.05565216325 | V73: 0 | W73: 0 | X73: 0 | Y73: 7.741173486 | Z73: 92.25882651 | AA73: 0 | AB73: 0 | AC73: 0 | AD73: 0 | AE73: 0 | AF73: 100
A74: 本スプレッドシートは個人の非商用に限り自由にご利用いただけます。 | S74: 0.3237639676 | T74: 0.172 | U74: 0.05568740242 | V74: 0 | W74: 0 | X74: 0 | Y74: 6.675673359 | Z74: 93.32432664 | AA74: 0 | AB74: 0 | AC74: 0 | AD74: 0 | AE74: 0 | AF74: 100
A75: ただし、再配布はご遠慮ください。 | S75: 0.3202428857 | T75: 0.174 | U75: 0.05572226211 | V75: 0 | W75: 0 | X75: 0 | Y75: 5.621647842 | Z75: 94.37835216 | AA75: 0 | AB75: 0 | AC75: 0 | AD75: 0 | AE75: 0 | AF75: 100
A76: なお、作者は本スプレッドシートに関する一切の責任を負わないものとします。 | S76: 0.3167998104 | T76: 0.176 | U76: 0.05575676663 | V76: 0 | W76: 0 | X76: 0 | Y76: 4.57836101 | Z76: 95.42163899 | AA76: 0 | AB76: 0 | AC76: 0 | AD76: 0 | AE76: 0 | AF76: 100
S77: 0.3134322364 | T77: 0.178 | U77: 0.05579093807 | V77: 0 | W77: 0 | X77: 0 | Y77: 3.545145143 | Z77: 96.45485486 | AA77: 0 | AB77: 0 | AC77: 0 | AD77: 0 | AE77: 0 | AF77: 100
A78: Copyright© 初心者が失敗しない株式投資入門（雑司が谷の愚人） All Rights Reserved. | S78: 0.3101377586 | T78: 0.18 | U78: 0.05582479654 | V78: 0 | W78: 0 | X78: 0 | Y78: 2.521392438 | Z78: 97.47860756 | AA78: 0 | AB78: 0 | AC78: 0 | AD78: 0 | AE78: 0 | AF78: 100
S79: 0.3069140681 | T79: 0.182 | U79: 0.05585836039 | V79: 0 | W79: 0 | X79: 0 | Y79: 1.506547961 | Z79: 98.49345204 | AA79: 0 | AB79: 0 | AC79: 0 | AD79: 0 | AE79: 0 | AF79: 100
G80: モルガン | L80: モルガン | S80: 0.303758948 | T80: 0.184 | U80: 0.05589164643 | V80: 0 | W80: 0 | X80: 0 | Y80: 0.5001036293 | Z80: 99.49989637 | AA80: 0 | AB80: 0 | AC80: 0 | AD80: 0 | AE80: 0 | AF80: 100
G81: リスク | H81: リターン | I81: 単利リターン | L81: リターン | M81: 実質コスト | O81: リターン | S81: 0.3005816468 | T81: 0.186 | U81: 0.05590818631 | V81: 0 | W81: 0 | X81: 0 | Y81: 0 | Z81: 100 | AA81: 0 | AB81: 0 | AC81: 0 | AD81: 0 | AE81: 0 | AF81: 100
F82: 国内債券 | G82: 2 | L82: 0.75 | M82: 0.123 | N82: =M82*1.1 -> 0.1353 | O82: =L82-N82 -> 0.6147 | P82: 国内債券 | S82: 0.2973839697 | T82: 0.188 | U82: 0.05590818631 | V82: 0 | W82: 0 | X82: 0 | Y82: 0 | Z82: 100 | AA82: 0 | AB82: 0 | AC82: 0 | AD82: 0 | AE82: 0 | AF82: 100
F83: 外国債券ﾍｯｼﾞ | G83: 3.5 | L83: 1 | M83: 0.217 | N83: =M83*1.1 -> 0.2387 | O83: =L83-N83 -> 0.7613 | P83: 外国債券ﾍｯｼﾞ | S83: 0.2942536121 | T83: 0.19 | U83: 0.05590818631 | V83: 0 | W83: 0 | X83: 0 | Y83: 0 | Z83: 100 | AA83: 0 | AB83: 0 | AC83: 0 | AD83: 0 | AE83: 0 | AF83: 100
F84: 外国債券 | G84: 9.5 | L84: 1.25 | M84: 0.152 | N84: =M84*1.1 -> 0.1672 | O84: 1.0828 | P84: 外国債券 | S84: 0.2911884703 | T84: 0.192 | U84: 0.05590818631 | V84: 0 | W84: 0 | X84: 0 | Y84: 0 | Z84: 100 | AA84: 0 | AB84: 0 | AC84: 0 | AD84: 0 | AE84: 0 | AF84: 100
F85: ゴールド | G85: 15.5 | L85: 0.75 | N85: 0.465 | O85: 0.285 | P85: ゴールド | S85: 0.2881865273 | T85: 0.194 | U85: 0.05590818631 | V85: 0 | W85: 0 | X85: 0 | Y85: 0 | Z85: 100 | AA85: 0 | AB85: 0 | AC85: 0 | AD85: 0 | AE85: 0 | AF85: 100
F86: 米国株 | G86: 18.25 | L86: 3.5 | N86: 0.18 | O86: 3.32 | P86: 米国株 | S86: 0.2852458485 | T86: 0.196 | U86: 0.05590818631 | V86: 0 | W86: 0 | X86: 0 | Y86: 0 | Z86: 100 | AA86: 0 | AB86: 0 | AC86: 0 | AD86: 0 | AE86: 0 | AF86: 100
F87: 先進国株 | G87: 19.25 | L87: 4 | M87: 0.164 | N87: =M87*1.1 -> 0.1804 | O87: 3.8196 | P87: 先進国株 | S87: 0.2823645773 | T87: 0.198 | U87: 0.05590818631 | V87: 0 | W87: 0 | X87: 0 | Y87: 0 | Z87: 100 | AA87: 0 | AB87: 0 | AC87: 0 | AD87: 0 | AE87: 0 | AF87: 100
F88: 日本株 | G88: 18 | L88: 5 | M88: 0.144 | N88: =M88*1.1 -> 0.1584 | O88: 4.8416 | P88: 日本株 | S88: 0.2795409315 | T88: 0.2 | U88: 0.05590818631 | V88: 0 | W88: 0 | X88: 0 | Y88: 0 | Z88: 100 | AA88: 0 | AB88: 0 | AC88: 0 | AD88: 0 | AE88: 0 | AF88: 100
F89: 新興国株 | G89: 23 | L89: 6.75 | M89: 0.335 | N89: =M89*1.1 -> 0.3685 | O89: 6.3815 | P89: 新興国株 | S89: 0.2767731995 | T89: 0.202 | U89: 0.05590818631 | V89: 0 | W89: 0 | X89: 0 | Y89: 0 | Z89: 100 | AA89: 0 | AB89: 0 | AC89: 0 | AD89: 0 | AE89: 0 | AF89: 100
F90: 先進国RIET | G90: 17.5 | L90: 4.5 | M90: 0.464 | N90: =M90*1.1 -> 0.5104 | O90: 3.9896 | P90: 先進国RIET | S90: 0.2740597368 | T90: 0.204 | U90: 0.05590818631 | V90: 0 | W90: 0 | X90: 0 | Y90: 0 | Z90: 100 | AA90: 0 | AB90: 0 | AC90: 0 | AD90: 0 | AE90: 0 | AF90: 100
F91: J-RIET | G91: 17.5 | L91: 4.5 | M91: 0.207 | N91: =M91*1.1 -> 0.2277 | O91: 4.2723 | P91: J-RIET | S91: 0.2713989626 | T91: 0.206 | U91: 0.05590818631 | V91: 0 | W91: 0 | X91: 0 | Y91: 0 | Z91: 100 | AA91: 0 | AB91: 0 | AC91: 0 | AD91: 0 | AE91: 0 | AF91: 100
S92: 0.2687893572 | T92: 0.208 | U92: 0.05590818631 | V92: 0 | W92: 0 | X92: 0 | Y92: 0 | Z92: 100 | AA92: 0 | AB92: 0 | AC92: 0 | AD92: 0 | AE92: 0 | AF92: 100
S93: 0.2662294586 | T93: 0.21 | U93: 0.05590818631 | V93: 0 | W93: 0 | X93: 0 | Y93: 0 | Z93: 100 | AA93: 0 | AB93: 0 | AC93: 0 | AD93: 0 | AE93: 0 | AF93: 100
S94: 0.2637178599 | T94: 0.212 | U94: 0.05590818631 | V94: 0 | W94: 0 | X94: 0 | Y94: 0 | Z94: 100 | AA94: 0 | AB94: 0 | AC94: 0 | AD94: 0 | AE94: 0 | AF94: 100
S95: 0.261253207 | T95: 0.214 | U95: 0.05590818631 | V95: 0 | W95: 0 | X95: 0 | Y95: 0 | Z95: 100 | AA95: 0 | AB95: 0 | AC95: 0 | AD95: 0 | AE95: 0 | AF95: 100
S96: 0.2588341959 | T96: 0.216 | U96: 0.05590818631 | V96: 0 | W96: 0 | X96: 0 | Y96: 0 | Z96: 100 | AA96: 0 | AB96: 0 | AC96: 0 | AD96: 0 | AE96: 0 | AF96: 100
S97: 0.2564595702 | T97: 0.218 | U97: 0.05590818631 | V97: 0 | W97: 0 | X97: 0 | Y97: 0 | Z97: 100 | AA97: 0 | AB97: 0 | AC97: 0 | AD97: 0 | AE97: 0 | AF97: 100
S98: 0.2541281196 | T98: 0.22 | U98: 0.05590818631 | V98: 0 | W98: 0 | X98: 0 | Y98: 0 | Z98: 100 | AA98: 0 | AB98: 0 | AC98: 0 | AD98: 0 | AE98: 0 | AF98: 100
S99: 0.2518386771 | T99: 0.222 | U99: 0.05590818631 | V99: 0 | W99: 0 | X99: 0 | Y99: 0 | Z99: 100 | AA99: 0 | AB99: 0 | AC99: 0 | AD99: 0 | AE99: 0 | AF99: 100
S100: 0.2495901174 | T100: 0.224 | U100: 0.05590818631 | V100: 0 | W100: 0 | X100: 0 | Y100: 0 | Z100: 100 | AA100: 0 | AB100: 0 | AC100: 0 | AD100: 0 | AE100: 0 | AF100: 100
S101: 0.2473813553 | T101: 0.226 | U101: 0.05590818631 | V101: 0 | W101: 0 | X101: 0 | Y101: 0 | Z101: 100 | AA101: 0 | AB101: 0 | AC101: 0 | AD101: 0 | AE101: 0 | AF101: 100
S102: 0.2452113434 | T102: 0.228 | U102: 0.05590818631 | V102: 0 | W102: 0 | X102: 0 | Y102: 0 | Z102: 100 | AA102: 0 | AB102: 0 | AC102: 0 | AD102: 0 | AE102: 0 | AF102: 100
S103: 0.2430790709 | T103: 0.23 | U103: 0.05590818631 | V103: 0 | W103: 0 | X103: 0 | Y103: 0 | Z103: 100 | AA103: 0 | AB103: 0 | AC103: 0 | AD103: 0 | AE103: 0 | AF103: 100
S104: 0.2409835617 | T104: 0.232 | U104: 0.05590818631 | V104: 0 | W104: 0 | X104: 0 | Y104: 0 | Z104: 100 | AA104: 0 | AB104: 0 | AC104: 0 | AD104: 0 | AE104: 0 | AF104: =SUM(V104:AE104) -> 100
S105: 0.2389238731 | T105: =T104+0.002 -> 0.234 | U105: 0.05590818631 | V105: 0 | W105: 0 | X105: 0 | Y105: 0 | Z105: 100 | AA105: 0 | AB105: 0 | AC105: 0 | AD105: 0 | AE105: 0 | AF105: 100
S106: 0.2368990945 | T106: 0.236 | U106: 0.05590818631 | V106: 0 | W106: 0 | X106: 0 | Y106: 0 | Z106: 100 | AA106: 0 | AB106: 0 | AC106: 0 | AD106: 0 | AE106: 0 | AF106: 100
S107: 0.2349083458 | T107: 0.238 | U107: 0.05590818631 | V107: 0 | W107: 0 | X107: 0 | Y107: 0 | Z107: 100 | AA107: 0 | AB107: 0 | AC107: 0 | AD107: 0 | AE107: 0 | AF107: 100
S108: 0.2329507763 | T108: 0.24 | U108: 0.05590818631 | V108: 0 | W108: 0 | X108: 0 | Y108: 0 | Z108: 100 | AA108: 0 | AB108: 0 | AC108: 0 | AD108: 0 | AE108: 0 | AF108: 100
S109: 0.2310255632 | T109: 0.242 | U109: 0.05590818631 | V109: 0 | W109: 0 | X109: 0 | Y109: 0 | Z109: 100 | AA109: 0 | AB109: 0 | AC109: 0 | AD109: 0 | AE109: 0 | AF109: 100
S110: 0.2291319111 | T110: 0.244 | U110: 0.05590818631 | V110: 0 | W110: 0 | X110: 0 | Y110: 0 | Z110: 100 | AA110: 0 | AB110: 0 | AC110: 0 | AD110: 0 | AE110: 0 | AF110: 100
S111: 0.22726905 | T111: 0.246 | U111: 0.05590818631 | V111: 0 | W111: 0 | X111: 0 | Y111: 0 | Z111: 100 | AA111: 0 | AB111: 0 | AC111: 0 | AD111: 0 | AE111: 0 | AF111: 100
S112: 0.2254362351 | T112: 0.248 | U112: 0.05590818631 | V112: 0 | W112: 0 | X112: 0 | Y112: 0 | Z112: 100 | AA112: 0 | AB112: 0 | AC112: 0 | AD112: 0 | AE112: 0 | AF112: 100
S113: 0.2236327452 | T113: 0.25 | U113: 0.05590818631 | V113: 0 | W113: 0 | X113: 0 | Y113: 0 | Z113: 100 | AA113: 0 | AB113: 0 | AC113: 0 | AD113: 0 | AE113: 0 | AF113: 100

Sheet 株比率
A2: 選 択 | B2: バフェット 指数 | C2: 株比率 | F2: 株比率 | G2: 債権比率 | J2: CAPEレシオ
B3: 50 | C3: 90 | F3: 95 | G3: =100-F3 -> 5 | J3: 15
B4: 51 | C4: =C3*(1+((95/90)^(1/50)-1)) -> 90.09737364 | E4: =C4-C3 -> 0.09737363602 | F4: =F3-E4 -> 94.90262636 | G4: =100-F4 -> 5.097373636 | J4: =J3+10/50 -> 15.2
B5: 52 | C5: =C4*(1+((95/90)^(1/50)-1)) -> 90.19485262 | E5: 0.09747898741 | F5: 94.80514738 | G5: 5.194852623 | J5: =J4+10/50 -> 15.4
B6: 53 | C6: 90.29243708 | E6: 0.09758445278 | F6: 94.70756292 | G6: 5.292437076 | J6: 15.6
B7: 54 | C7: 90.39012711 | E7: 0.09769003226 | F7: 94.60987289 | G7: 5.390127108 | J7: 15.8
B8: 55 | C8: 90.48792283 | E8: 0.09779572596 | F8: 94.51207717 | G8: 5.487922834 | J8: 16
B9: 56 | C9: 90.58582437 | E9: 0.09790153402 | F9: 94.41417563 | G9: 5.585824368 | J9: 16.2
B10: 57 | C10: 90.68383183 | E10: 0.09800745656 | F10: 94.31616817 | G10: 5.683831825 | J10: 16.4
B11: 58 | C11: 90.78194532 | E11: 0.0981134937 | F11: 94.21805468 | G11: 5.781945319 | J11: 16.6
B12: 59 | C12: 90.88016496 | E12: 0.09821964556 | F12: 94.11983504 | G12: 5.880164964 | J12: 16.8
B13: 60 | C13: 90.97849088 | E13: 0.09832591227 | F13: 94.02150912 | G13: 5.978490877 | J13: 17
B14: 61 | C14: 91.07692317 | E14: 0.09843229396 | F14: 93.92307683 | G14: 6.07692317 | J14: 17.2
B15: 62 | C15: 91.17546196 | E15: 0.09853879074 | F15: 93.82453804 | G15: 6.175461961 | J15: 17.4
B16: 63 | C16: 91.27410736 | E16: 0.09864540274 | F16: 93.72589264 | G16: 6.274107364 | J16: 17.6
B17: 64 | C17: 91.37285949 | E17: 0.09875213009 | F17: 93.62714051 | G17: 6.372859494 | J17: 17.8
B18: 65 | C18: 91.47171847 | E18: 0.09885897291 | F18: 93.52828153 | G18: 6.471718467 | J18: 18
B19: 66 | C19: 91.5706844 | E19: 0.09896593133 | F19: 93.4293156 | G19: 6.570684398 | J19: 18.2
B20: 67 | C20: 91.6697574 | E20: 0.09907300547 | F20: 93.3302426 | G20: 6.669757404 | J20: 18.4
B21: 68 | C21: 91.7689376 | E21: 0.09918019546 | F21: 93.2310624 | G21: 6.768937599 | J21: 18.6
B22: 69 | C22: 91.8682251 | E22: 0.09928750142 | F22: 93.1317749 | G22: 6.868225101 | J22: 18.8
B23: 70 | C23: 91.96762002 | E23: 0.09939492347 | F23: 93.03237998 | G23: 6.967620024 | J23: 19
B24: 71 | C24: 92.06712249 | E24: 0.09950246175 | F24: 92.93287751 | G24: 7.067122486 | J24: 19.2
B25: 72 | C25: 92.1667326 | E25: 0.09961011638 | F25: 92.8332674 | G25: 7.166732602 | J25: 19.4
B26: 73 | C26: 92.26645049 | E26: 0.09971788748 | F26: 92.73354951 | G26: 7.26645049 | J26: 19.6
B27: 74 | C27: 92.36627626 | E27: 0.09982577518 | F27: 92.63372374 | G27: 7.366276265 | J27: 19.8
B28: 75 | C28: 92.46621004 | E28: 0.09993377961 | F28: 92.53378996 | G28: 7.466210045 | J28: 20
B29: 76 | C29: 92.56625195 | E29: 0.1000419009 | F29: 92.43374805 | G29: 7.566251945 | J29: 20.2
B30: 77 | C30: 92.66640208 | E30: 0.1001501392 | F30: 92.33359792 | G30: 7.666402085 | J30: 20.4
B31: 78 | C31: 92.76666058 | E31: 0.1002584945 | F31: 92.23333942 | G31: 7.766660579 | J31: 20.6
B32: 79 | C32: 92.86702755 | E32: 0.1003669671 | F32: 92.13297245 | G32: 7.867027546 | J32: 20.8
B33: 80 | C33: 92.9675031 | E33: 0.1004755571 | F33: 92.0324969 | G33: 7.967503103 | J33: 21
B34: 81 | C34: 93.06808737 | E34: 0.1005842645 | F34: 91.93191263 | G34: 8.068087368 | J34: 21.2
B35: 82 | C35: 93.16878046 | E35: 0.1006930896 | F35: 91.83121954 | G35: 8.168780457 | J35: 21.4
B36: 83 | C36: 93.26958249 | E36: =C36-C35 -> 0.1008020324 | F36: =F35-E36 -> 91.73041751 | G36: 8.26958249 | J36: 21.6
B37: 84 | C37: 93.37049358 | E37: 0.1009110931 | F37: 91.62950642 | G37: 8.370493583 | J37: 21.8
B38: 85 | C38: 93.47151385 | E38: 0.1010202717 | F38: 91.52848615 | G38: 8.471513855 | J38: 22
B39: 86 | C39: 93.57264342 | E39: 0.1011295685 | F39: 91.42735658 | G39: 8.572643423 | J39: 22.2
B40: 87 | C40: 93.67388241 | E40: 0.1012389836 | F40: 91.32611759 | G40: 8.673882407 | J40: 22.4
B41: 88 | C41: 93.77523092 | E41: 0.101348517 | F41: 91.22476908 | G41: 8.775230924 | J41: 22.6
B42: 89 | C42: 93.87668909 | E42: 0.1014581689 | F42: 91.12331091 | G42: 8.876689093 | J42: 22.8
B43: 90 | C43: 93.97825703 | E43: 0.1015679395 | F43: 91.02174297 | G43: 8.978257032 | J43: 23
B44: 91 | C44: 94.07993486 | E44: 0.1016778288 | F44: 90.92006514 | G44: 9.079934861 | J44: 23.2
B45: 92 | C45: 94.1817227 | E45: 0.101787837 | F45: 90.8182773 | G45: 9.181722698 | J45: 23.4
B46: 93 | C46: 94.28362066 | E46: 0.1018979643 | F46: 90.71637934 | G46: 9.283620662 | J46: 23.6
B47: 94 | C47: 94.38562887 | E47: 0.1020082107 | F47: 90.61437113 | G47: 9.385628873 | J47: 23.8
B48: 95 | C48: 94.48774745 | E48: 0.1021185763 | F48: 90.51225255 | G48: 9.487747449 | J48: 24
B49: 96 | C49: 94.58997651 | E49: 0.1022290614 | F49: 90.41002349 | G49: 9.589976511 | J49: 24.2
B50: 97 | C50: 94.69231618 | E50: 0.102339666 | F50: 90.30768382 | G50: 9.692316177 | J50: 24.4
B51: 98 | C51: 94.79476657 | E51: 0.1024503903 | F51: 90.20523343 | G51: 9.794766567 | J51: 24.6
B52: 99 | C52: 94.8973278 | E52: 0.1025612344 | F52: 90.1026722 | G52: 9.897327802 | J52: 24.8
B53: 100 | C53: =C52*(1+((95/90)^(1/50)-1)) -> 95 | D53: 80 | E53: 0.1026721984 | F53: 90 | G53: 10 | J53: 25
B54: 101 | D54: =D53*(1+((90/80)^(1/50)-1)) -> 80.188675 | E54: =D54-D53 -> 0.1886749969 | F54: 89.811325 | G54: 10.188675 | J54: 25.2
B55: 102 | D55: =D54*(1+((90/80)^(1/50)-1)) -> 80.37779497 | E55: =D55-D54 -> 0.1891199751 | F55: 89.62220503 | G55: 10.37779497 | J55: 25.4
B56: 103 | D56: 80.56736097 | E56: 0.1895660028 | F56: 89.43263903 | G56: 10.56736097 | J56: 25.6
B57: 104 | D57: 80.75737406 | E57: 0.1900130823 | F57: 89.24262594 | G57: 10.75737406 | J57: 25.8
B58: 105 | D58: 80.94783527 | E58: 0.1904612163 | F58: 89.05216473 | G58: 10.94783527 | J58: 26
B59: 106 | D59: 81.13874568 | E59: 0.1909104072 | F59: 88.86125432 | G59: 11.13874568 | J59: 26.2
B60: 107 | D60: 81.33010634 | E60: 0.1913606574 | F60: 88.66989366 | G60: 11.33010634 | J60: 26.4
B61: 108 | D61: 81.52191831 | E61: 0.1918119696 | F61: 88.47808169 | G61: 11.52191831 | J61: 26.6
B62: 109 | D62: 81.71418265 | E62: 0.1922643461 | F62: 88.28581735 | G62: 11.71418265 | J62: 26.8
B63: 110 | D63: 81.90690044 | E63: 0.1927177895 | F63: 88.09309956 | G63: 11.90690044 | J63: 27
B64: 111 | D64: 82.10007275 | E64: 0.1931723024 | F64: 87.89992725 | G64: 12.10007275 | J64: 27.2
B65: 112 | D65: 82.29370063 | E65: 0.1936278872 | F65: 87.70629937 | G65: 12.29370063 | J65: 27.4
B66: 113 | D66: 82.48778518 | E66: 0.1940845464 | F66: 87.51221482 | G66: 12.48778518 | J66: 27.6
B67: 114 | D67: 82.68232746 | E67: 0.1945422827 | F67: 87.31767254 | G67: 12.68232746 | J67: 27.8
B68: 115 | D68: 82.87732856 | E68: 0.1950010985 | F68: =F67-E68 -> 87.12267144 | G68: =100-F68 -> 12.87732856 | J68: 28
B69: 116 | D69: 83.07278956 | E69: 0.1954609964 | F69: 86.92721044 | G69: 13.07278956 | J69: =J68+10/50 -> 28.2
B70: 117 | D70: 83.26871154 | E70: 0.1959219789 | F70: 86.73128846 | G70: 13.26871154 | J70: 28.4
B71: 118 | D71: 83.46509558 | E71: 0.1963840487 | F71: 86.53490442 | G71: 13.46509558 | J71: 28.6
B72: 119 | D72: 83.66194279 | E72: 0.1968472082 | F72: 86.33805721 | G72: 13.66194279 | J72: 28.8
B73: 120 | D73: 83.85925425 | E73: 0.19731146 | F73: 86.14074575 | G73: 13.85925425 | J73: 29
B74: 121 | D74: 84.05703106 | E74: 0.1977768067 | F74: 85.94296894 | G74: 14.05703106 | J74: 29.2
B75: 122 | D75: 84.25527431 | E75: 0.198243251 | F75: 85.74472569 | G75: 14.25527431 | J75: 29.4
B76: 123 | D76: 84.45398511 | E76: 0.1987107953 | F76: 85.54601489 | G76: 14.45398511 | J76: 29.6
B77: 124 | D77: 84.65316455 | E77: 0.1991794423 | F77: 85.34683545 | G77: 14.65316455 | J77: 29.8
B78: 125 | D78: 84.85281374 | E78: 0.1996491945 | F78: 85.14718626 | G78: 14.85281374 | J78: 30
B79: 126 | D79: 85.0529338 | E79: 0.2001200547 | F79: 84.9470662 | G79: 15.0529338 | J79: 30.2
B80: 127 | D80: 85.25352582 | E80: 0.2005920253 | F80: 84.74647418 | G80: 15.25352582 | J80: 30.4
B81: 128 | D81: 85.45459093 | E81: 0.201065109 | F81: 84.54540907 | G81: 15.45459093 | J81: 30.6
B82: 129 | D82: 85.65613024 | E82: 0.2015393085 | F82: 84.34386976 | G82: 15.65613024 | J82: 30.8
B83: 130 | D83: 85.85814487 | E83: 0.2020146264 | F83: 84.14185513 | G83: 15.85814487 | J83: 31
B84: 131 | D84: 86.06063593 | E84: 0.2024910652 | F84: 83.93936407 | G84: 16.06063593 | J84: 31.2
B85: 132 | D85: 86.26360456 | E85: 0.2029686278 | F85: 83.73639544 | G85: 16.26360456 | J85: 31.4
B86: 133 | D86: 86.46705188 | E86: 0.2034473166 | F86: 83.53294812 | G86: 16.46705188 | J86: 31.6
B87: 134 | D87: 86.67097901 | E87: 0.2039271344 | F87: 83.32902099 | G87: 16.67097901 | J87: 31.8
A88: 1 | B88: 135 | D88: 86.87538709 | E88: 0.2044080837 | F88: 83.12461291 | G88: 16.87538709 | J88: 32
B89: 136 | D89: 87.08027726 | E89: 0.2048901674 | F89: 82.91972274 | G89: 17.08027726 | J89: 32.2
B90: 137 | D90: 87.28565065 | E90: 0.2053733881 | F90: 82.71434935 | G90: 17.28565065 | J90: 32.4
B91: 138 | D91: 87.4915084 | E91: 0.2058577484 | F91: 82.5084916 | G91: 17.4915084 | J91: 32.6
B92: 139 | D92: 87.69785165 | E92: 0.206343251 | F92: 82.30214835 | G92: 17.69785165 | J92: 32.8
B93: 140 | D93: 87.90468155 | E93: 0.2068298986 | F93: 82.09531845 | G93: 17.90468155 | J93: 33
B94: 141 | D94: 88.11199924 | E94: 0.207317694 | F94: 81.88800076 | G94: 18.11199924 | J94: 33.2
B95: 142 | D95: 88.31980588 | E95: 0.2078066398 | F95: 81.68019412 | G95: 18.31980588 | J95: 33.4
B96: 143 | D96: 88.52810262 | E96: 0.2082967388 | F96: 81.47189738 | G96: 18.52810262 | J96: 33.6
B97: 144 | D97: 88.73689061 | E97: 0.2087879936 | F97: 81.26310939 | G97: 18.73689061 | J97: 33.8
B98: 145 | D98: 88.94617102 | E98: 0.2092804071 | F98: 81.05382898 | G98: 18.94617102 | J98: 34
B99: 146 | D99: 89.155945 | E99: 0.2097739818 | F99: 80.844055 | G99: 19.155945 | J99: 34.2
B100: 147 | D100: 89.36621372 | E100: 0.2102687206 | F100: =F99-E100 -> 80.63378628 | G100: 19.36621372 | J100: 34.4
B101: 148 | D101: 89.57697835 | E101: 0.2107646263 | F101: 80.42302165 | G101: 19.57697835 | J101: 34.6
B102: 149 | D102: 89.78824005 | E102: 0.2112617015 | F102: 80.21175995 | G102: 19.78824005 | J102: 34.8
B103: 150 | D103: 90 | E103: 0.211759949 | F103: 80 | G103: 20 | J103: 35
B104: 151 | D104: 90.21225937 | E104: 0.2122593716 | F104: 79.78774063 | G104: 20.21225937 | J104: 35.2
B105: 152 | D105: 90.42501934 | E105: 0.212759972 | F105: 79.57498066 | G105: 20.42501934 | J105: 35.4
B106: 153 | D106: 90.6382811 | E106: 0.2132617531 | F106: 79.3617189 | G106: 20.6382811 | J106: 35.6
B107: 154 | D107: 90.85204581 | E107: 0.2137647176 | F107: 79.14795419 | G107: 20.85204581 | J107: 35.8
B108: 155 | D108: 91.06631468 | E108: 0.2142688683 | F108: 78.93368532 | G108: 21.06631468 | J108: 36
B109: 156 | D109: 91.28108889 | E109: 0.2147742081 | F109: 78.71891111 | G109: 21.28108889 | J109: 36.2
B110: 157 | D110: 91.49636963 | E110: 0.2152807396 | F110: 78.50363037 | G110: 21.49636963 | J110: 36.4
B111: 158 | D111: 91.7121581 | E111: 0.2157884658 | F111: 78.2878419 | G111: 21.7121581 | J111: 36.6
B112: 159 | D112: 91.92845549 | E112: 0.2162973894 | F112: 78.07154451 | G112: 21.92845549 | J112: 36.8
D113: 92.145263 | E113: =D113-D112 -> 0.2168075132 | F113: =F112-E113 -> 77.854737 | G113: =100-F113 -> 22.145263 | J113: 37
D114: 92.36258184 | E114: 0.2173188402 | F114: 77.63741816 | G114: 22.36258184 | J114: 37.2
D115: 92.58041321 | E115: 0.2178313731 | F115: 77.41958679 | G115: 22.58041321 | J115: 37.4
D116: 92.79875833 | E116: 0.2183451147 | F116: 77.20124167 | G116: 22.79875833 | J116: 37.6
D117: 93.01761839 | E117: 0.218860068 | F117: 76.98238161 | G117: 23.01761839 | J117: 37.8
D118: 93.23699463 | E118: 0.2193762358 | F118: 76.76300537 | G118: 23.23699463 | J118: 38
D119: =D118*(1+((90/80)^(1/50)-1)) -> 93.45688825 | E119: 0.219893621 | F119: 76.54311175 | G119: 23.45688825 | J119: 38.2
D120: 93.67730048 | E120: 0.2204122263 | F120: 76.32269952 | G120: 23.67730048 | J120: 38.4
D121: 93.89823253 | E121: 0.2209320548 | F121: 76.10176747 | G121: 23.89823253 | J121: 38.6
D122: 94.11968564 | E122: 0.2214531092 | F122: 75.88031436 | G122: 24.11968564 | J122: 38.8
D123: 94.34166103 | E123: 0.2219753925 | F123: 75.65833897 | G123: 24.34166103 | J123: 39
D124: 94.56415994 | E124: 0.2224989076 | F124: 75.43584006 | G124: 24.56415994 | J124: 39.2
D125: 94.7871836 | E125: 0.2230236573 | F125: 75.2128164 | G125: 24.7871836 | J125: 39.4
D126: 95.01073324 | E126: 0.2235496447 | F126: 74.98926676 | G126: 25.01073324 | J126: 39.6
D127: 95.23481012 | E127: =D127-D126 -> 0.2240768726 | F127: =F126-E127 -> 74.76518988 | G127: =100-F127 -> 25.23481012 | J127: 39.8
D128: 95.45941546 | E128: =D128-D127 -> 0.2246053438 | F128: =F127-E128 -> 74.54058454 | G128: =100-F128 -> 25.45941546 | J128: 40
D129: 95.68455052 | E129: =D129-D128 -> 0.2251350615 | F129: =F128-E129 -> 74.31544948 | G129: =100-F129 -> 25.68455052 | J129: 40.2
D130: 95.91021655 | E130: =D130-D129 -> 0.2256660285 | F130: =F129-E130 -> 74.08978345 | G130: =100-F130 -> 25.91021655 | J130: 40.4
D131: 96.1364148 | E131: 0.2261982477 | F131: 73.8635852 | G131: 26.1364148 | J131: 40.6
D132: 96.36314652 | E132: 0.2267317221 | F132: 73.63685348 | G132: 26.36314652 | J132: 40.8
D133: 96.59041297 | E133: 0.2272664547 | F133: 73.40958703 | G133: 26.59041297 | J133: =J132+10/50 -> 41
D134: 96.81821542 | E134: 0.2278024484 | F134: 73.18178458 | G134: 26.81821542 | J134: 41.2
D135: 97.04655513 | E135: 0.2283397062 | F135: 72.95344487 | G135: 27.04655513 | J135: 41.4
D136: 97.27543336 | E136: 0.2288782312 | F136: 72.72456664 | G136: 27.27543336 | J136: 41.6
D137: 97.50485139 | E137: 0.2294180261 | F137: 72.49514861 | G137: 27.50485139 | J137: 41.8
D138: 97.73481048 | E138: 0.2299590942 | F138: 72.26518952 | G138: 27.73481048 | J138: 42
D139: 97.96531192 | E139: 0.2305014384 | F139: 72.03468808 | G139: 27.96531192 | J139: 42.2
D140: 98.19635698 | E140: 0.2310450616 | F140: 71.80364302 | G140: 28.19635698 | J140: 42.4
D141: 98.42794695 | E141: 0.2315899669 | F141: 71.57205305 | G141: 28.42794695 | J141: 42.6
D142: 98.6600831 | E142: 0.2321361574 | F142: 71.3399169 | G142: 28.6600831 | J142: 42.8
D143: 98.89276674 | E143: 0.232683636 | F143: =F142-E143 -> 71.10723326 | G143: 28.89276674 | J143: 43
D144: 99.12599915 | E144: 0.2332324058 | F144: 70.87400085 | G144: 29.12599915 | J144: 43.2
D145: 99.35978162 | E145: 0.2337824698 | F145: 70.64021838 | G145: 29.35978162 | J145: 43.4
D146: 99.59411545 | E146: 0.2343338312 | F146: 70.40588455 | G146: 29.59411545 | J146: 43.6
D147: 99.82900194 | E147: 0.2348864928 | F147: 70.17099806 | G147: 29.82900194 | J147: 43.8
D148: 100.0644424 | E148: 0.2354404579 | F148: 69.9355576 | G148: 30.0644424 | J148: 44
D149: 100.3004381 | E149: 0.2359957295 | F149: 69.69956187 | G149: 30.30043813 | J149: 44.2
D150: 100.5369904 | E150: 0.2365523107 | F150: 69.46300956 | G150: 30.53699044 | J150: 44.4
D151: 100.7741006 | E151: 0.2371102045 | F151: 69.22589936 | G151: 30.77410064 | J151: 44.6
D152: 101.0117701 | E152: 0.2376694141 | F152: 68.98822994 | G152: 31.01177006 | J152: 44.8
D153: 101.25 | E153: 0.2382299426 | F153: 68.75 | G153: 31.25 | J153: 45
D154: 101.4887918 | E154: 0.238791793 | F154: 68.51120821 | G154: 31.48879179 | J154: 45.2
B157: https://www.gurufocus.com/stock-market-valuations.php | K157: https://www.multpl.com/shiller-pe

Sheet 個別履歴
A1: SBI | E1: 財形 | J1: ネオモバイル | N1: 楽天(夫)SPXL | O1: 利益
A2: 2018-10-12 | B2: ＴＯＰＩＸ連動型上場投資信託 | C2: 17550 | E2: 2021/10 | F2: 5032 | G2: 125374 | H2: =(F2+G2)*0.75 -> 97804.5 | J2: 2023 | K2: 譲渡益税徴収額合計 | L2: 0 | N2: 2021-09-11 | O2: 1661.73 | P2: USD
A3: ２０１７年 ５月 １日 | C3: -15910 | E3: 2021/4 | F3: 4976 | G3: 122778 | H3: 95815.5 | J3: 2023 | K3: 損益額合計 | L3: 0 | N3: 2022-06-06 | O3: 191.55
C4: =SUM(C2:C3) -> 1640 | E4: 2020/10 | F4: 4909 | G4: 118139 | H4: 92286 | J4: 2023 | K4: 配当所得税徴収額合計 | L4: -7399 | N4: 2022-06-30 | O4: 42.53
E5: 2020/4 | F5: 9889 | G5: 115666 | H5: 94166.25 | J5: 2023 | K5: 配当金額合計 | L5: 37104
E6: 2019/10 | F6: 14735 | G6: 113232 | H6: 95975.25 | J6: 2022 | K6: 譲渡益税徴収額合計 | L6: -53476
E7: 2019/4 | F7: 14630 | G7: 110858 | H7: 94116 | J7: 2022 | K7: 損益額合計 | L7: 0
E8: 2018/10 | F8: 14149 | G8: 108516 | H8: 91998.75 | J8: 2022 | K8: 配当所得税徴収額合計 | L8: -386
E9: 2018/4 | F9: 13571 | G9: 106232 | H9: 89852.25 | J9: 2022 | K9: 配当金額合計 | L9: 55377
J10: 2021 | K10: 譲渡益税徴収額合計 | L10: 0
J11: 2021 | K11: 損益額合計 | L11: -31880
J12: 2021 | K12: 配当所得税徴収額合計 | L12: -172
J13: 2021 | K13: 配当金額合計 | L13: 32729
J14: 2020 | K14: 譲渡益税徴収額合計 | L14: 0
J15: 2020 | K15: 損益額合計 | L15: -14039
J16: 2020 | K16: 配当所得税徴収額合計 | L16: -737
J17: 2020 | K17: 配当金額合計 | L17: 17672

Sheet 銘柄データ
A1: コード | B1: 会社名 | C1: 業種17 | D1: 業種 | E1: 評価額 | F1: 損益 | J1: 時価総額 | K1: 企業総合ｽｺｱ | L1: 財務健全性 | M1: 収益性 | N1: 割安性 | O1: 安定性 | P1: 株価ﾓﾒﾝﾀﾑ
A2: 3636 | B2: 三菱総合研究所 | C2: 情報通信・サービスその他 | D2: 情報・通信業 | E2: =IF(ISERROR(VLOOKUP(A2,ﾈｵﾓﾊﾞ一覧!A:C,3,FALSE)),"",VLOOKUP(A2,ﾈｵﾓﾊﾞ一覧!A:C,3,FALSE)) ->  | F2: =IF(ISERROR(VLOOKUP(A2,ﾈｵﾓﾊﾞ一覧!A:D,4,FALSE)),"",VLOOKUP(A2,ﾈｵﾓﾊﾞ一覧!A:D,4,FALSE)) ->  | G2: =F2/(E2-F2) ->  | H2: =E2/SUM(E:E) ->  | I2: =VLOOKUP(C2,ﾈｵﾓﾊﾞｻﾏﾘ!A:Z,12,FALSE) -> 44949.46313 | K2: 8 | L2: 5 | M2: - | N2: 6 | O2: 9 | P2: 9
A3: 4661 | B3: オリエンタルランド | C3: 情報通信・サービスその他 | D3: サービス業 | E3: =IF(ISERROR(VLOOKUP(A3,ﾈｵﾓﾊﾞ一覧!A:C,3,FALSE)),"",VLOOKUP(A3,ﾈｵﾓﾊﾞ一覧!A:C,3,FALSE)) ->  | F3: =IF(ISERROR(VLOOKUP(A3,ﾈｵﾓﾊﾞ一覧!A:D,4,FALSE)),"",VLOOKUP(A3,ﾈｵﾓﾊﾞ一覧!A:D,4,FALSE)) ->  | I3: =VLOOKUP(C3,ﾈｵﾓﾊﾞｻﾏﾘ!A:Z,12,FALSE) -> 44949.46313 | J3: 46,170億円 | K3: 9 | L3: 10 | M3: 8 | N3: 1 | O3: 8 | P3: 9
A4: 4676 | B4: フジ・メディア・ホールディングス | C4: 情報通信・サービスその他 | D4: 情報・通信業 | E4: =IF(ISERROR(VLOOKUP(A4,ﾈｵﾓﾊﾞ一覧!A:C,3,FALSE)),"",VLOOKUP(A4,ﾈｵﾓﾊﾞ一覧!A:C,3,FALSE)) ->  | F4: =IF(ISERROR(VLOOKUP(A4,ﾈｵﾓﾊﾞ一覧!A:D,4,FALSE)),"",VLOOKUP(A4,ﾈｵﾓﾊﾞ一覧!A:D,4,FALSE)) ->  | I4: =VLOOKUP(C4,ﾈｵﾓﾊﾞｻﾏﾘ!A:Z,12,FALSE) -> 44949.46313 | K4: 7 | L4: 6 | M4: 2 | N4: 7 | O4: 10 | P4: 6
A5: 4704 | B5: トレンドマイクロ | C5: 情報通信・サービスその他 | D5: 情報・通信業 | E5: =IF(ISERROR(VLOOKUP(A5,ﾈｵﾓﾊﾞ一覧!A:C,3,FALSE)),"",VLOOKUP(A5,ﾈｵﾓﾊﾞ一覧!A:C,3,FALSE)) ->  | F5: =IF(ISERROR(VLOOKUP(A5,ﾈｵﾓﾊﾞ一覧!A:D,4,FALSE)),"",VLOOKUP(A5,ﾈｵﾓﾊﾞ一覧!A:D,4,FALSE)) ->  | I5: =VLOOKUP(C5,ﾈｵﾓﾊﾞｻﾏﾘ!A:Z,12,FALSE) -> 44949.46313 | K5: 5 | L5: 7 | M5: 2 | N5: 1 | O5: 8 | P5: 9
A6: 9735 | B6: セコム | C6: 情報通信・サービスその他 | D6: サービス業 | E6: =IF(ISERROR(VLOOKUP(A6,ﾈｵﾓﾊﾞ一覧!A:C,3,FALSE)),"",VLOOKUP(A6,ﾈｵﾓﾊﾞ一覧!A:C,3,FALSE)) ->  | F6: =IF(ISERROR(VLOOKUP(A6,ﾈｵﾓﾊﾞ一覧!A:D,4,FALSE)),"",VLOOKUP(A6,ﾈｵﾓﾊﾞ一覧!A:D,4,FALSE)) ->  | I6: =VLOOKUP(C6,ﾈｵﾓﾊﾞｻﾏﾘ!A:Z,12,FALSE) -> 44949.46313 | K6: 7 | L6: 4 | M6: 6 | N6: 2 | O6: 9 | P6: 9
A7: 2475 | B7: ＷＤＢホールディングス | C7: 情報通信・サービスその他 | D7: サービス業 | E7: =IF(ISERROR(VLOOKUP(A7,ﾈｵﾓﾊﾞ一覧!A:C,3,FALSE)),"",VLOOKUP(A7,ﾈｵﾓﾊﾞ一覧!A:C,3,FALSE)) ->  | F7: =IF(ISERROR(VLOOKUP(A7,ﾈｵﾓﾊﾞ一覧!A:D,4,FALSE)),"",VLOOKUP(A7,ﾈｵﾓﾊﾞ一覧!A:D,4,FALSE)) ->  | I7: =VLOOKUP(C7,ﾈｵﾓﾊﾞｻﾏﾘ!A:Z,12,FALSE) -> 44949.46313 | K7: 8 | L7: 7 | M7: 8 | N7: 8 | O7: 7 | P7: 6
A8: 4708 | B8: りらいあコミュニケーションズ | C8: 情報通信・サービスその他 | D8: サービス業 | E8: =IF(ISERROR(VLOOKUP(A8,ﾈｵﾓﾊﾞ一覧!A:C,3,FALSE)),"",VLOOKUP(A8,ﾈｵﾓﾊﾞ一覧!A:C,3,FALSE)) ->  | F8: =IF(ISERROR(VLOOKUP(A8,ﾈｵﾓﾊﾞ一覧!A:D,4,FALSE)),"",VLOOKUP(A8,ﾈｵﾓﾊﾞ一覧!A:D,4,FALSE)) ->  | I8: =VLOOKUP(C8,ﾈｵﾓﾊﾞｻﾏﾘ!A:Z,12,FALSE) -> 44949.46313
A9: 3738 | B9: ティーガイア | C9: 情報通信・サービスその他 | D9: 情報・通信業 | E9: =IF(ISERROR(VLOOKUP(A9,ﾈｵﾓﾊﾞ一覧!A:C,3,FALSE)),"",VLOOKUP(A9,ﾈｵﾓﾊﾞ一覧!A:C,3,FALSE)) ->  | F9: =IF(ISERROR(VLOOKUP(A9,ﾈｵﾓﾊﾞ一覧!A:D,4,FALSE)),"",VLOOKUP(A9,ﾈｵﾓﾊﾞ一覧!A:D,4,FALSE)) ->  | I9: =VLOOKUP(C9,ﾈｵﾓﾊﾞｻﾏﾘ!A:Z,12,FALSE) -> 44949.46313 | K9: 5 | L9: 3 | M9: 3 | N9: 7 | O9: 9 | P9: 4
A10: 4478 | B10: フリー | C10: 情報通信・サービスその他 | D10: 情報・通信業 | E10: =IF(ISERROR(VLOOKUP(A10,ﾈｵﾓﾊﾞ一覧!A:C,3,FALSE)),"",VLOOKUP(A10,ﾈｵﾓﾊﾞ一覧!A:C,3,FALSE)) ->  | F10: =IF(ISERROR(VLOOKUP(A10,ﾈｵﾓﾊﾞ一覧!A:D,4,FALSE)),"",VLOOKUP(A10,ﾈｵﾓﾊﾞ一覧!A:D,4,FALSE)) ->  | I10: =VLOOKUP(C10,ﾈｵﾓﾊﾞｻﾏﾘ!A:Z,12,FALSE) -> 44949.46313 | K10: 2 | L10: 7 | M10: 2 | N10: 2 | O10: 2 | P10: 3
A11: 4768 | B11: 大塚商会 | C11: 情報通信・サービスその他 | D11: 情報・通信業 | E11: =IF(ISERROR(VLOOKUP(A11,ﾈｵﾓﾊﾞ一覧!A:C,3,FALSE)),"",VLOOKUP(A11,ﾈｵﾓﾊﾞ一覧!A:C,3,FALSE)) ->  | F11: =IF(ISERROR(VLOOKUP(A11,ﾈｵﾓﾊﾞ一覧!A:D,4,FALSE)),"",VLOOKUP(A11,ﾈｵﾓﾊﾞ一覧!A:D,4,FALSE)) ->  | I11: =VLOOKUP(C11,ﾈｵﾓﾊﾞｻﾏﾘ!A:Z,12,FALSE) -> 44949.46313 | K11: 6 | L11: 3 | M11: 9 | N11: 2 | O11: 9 | P11: 8
A12: 2389 | B12: デジタルホールディングス | C12: 情報通信・サービスその他 | D12: サービス業 | E12: =IF(ISERROR(VLOOKUP(A12,ﾈｵﾓﾊﾞ一覧!A:C,3,FALSE)),"",VLOOKUP(A12,ﾈｵﾓﾊﾞ一覧!A:C,3,FALSE)) ->  | F12: =IF(ISERROR(VLOOKUP(A12,ﾈｵﾓﾊﾞ一覧!A:D,4,FALSE)),"",VLOOKUP(A12,ﾈｵﾓﾊﾞ一覧!A:D,4,FALSE)) ->  | I12: =VLOOKUP(C12,ﾈｵﾓﾊﾞｻﾏﾘ!A:Z,12,FALSE) -> 44949.46313 | K12: 4 | L12: 4 | M12: 7 | N12: 6 | O12: 4 | P12: 1
A13: 7844 | B13: マーベラス | C13: 情報通信・サービスその他 | D13: 情報・通信業 | E13: =IF(ISERROR(VLOOKUP(A13,ﾈｵﾓﾊﾞ一覧!A:C,3,FALSE)),"",VLOOKUP(A13,ﾈｵﾓﾊﾞ一覧!A:C,3,FALSE)) ->  | F13: =IF(ISERROR(VLOOKUP(A13,ﾈｵﾓﾊﾞ一覧!A:D,4,FALSE)),"",VLOOKUP(A13,ﾈｵﾓﾊﾞ一覧!A:D,4,FALSE)) ->  | I13: =VLOOKUP(C13,ﾈｵﾓﾊﾞｻﾏﾘ!A:Z,12,FALSE) -> 44949.46313 | K13: 3 | L13: 2 | M13: - | N13: 3 | O13: 9 | P13: 1
A14: 9743 | B14: 丹青社 | C14: 情報通信・サービスその他 | D14: サービス業 | E14: =IF(ISERROR(VLOOKUP(A14,ﾈｵﾓﾊﾞ一覧!A:C,3,FALSE)),"",VLOOKUP(A14,ﾈｵﾓﾊﾞ一覧!A:C,3,FALSE)) ->  | F14: =IF(ISERROR(VLOOKUP(A14,ﾈｵﾓﾊﾞ一覧!A:D,4,FALSE)),"",VLOOKUP(A14,ﾈｵﾓﾊﾞ一覧!A:D,4,FALSE)) ->  | I14: =VLOOKUP(C14,ﾈｵﾓﾊﾞｻﾏﾘ!A:Z,12,FALSE) -> 44949.46313 | K14: 6 | L14: 3 | M14: 9 | N14: 3 | O14: 6 | P14: 8
A15: 1954 | B15: 日本工営 | C15: 情報通信・サービスその他 | D15: サービス業 | E15: =IF(ISERROR(VLOOKUP(A15,ﾈｵﾓﾊﾞ一覧!A:C,3,FALSE)),"",VLOOKUP(A15,ﾈｵﾓﾊﾞ一覧!A:C,3,FALSE)) ->  | F15: =IF(ISERROR(VLOOKUP(A15,ﾈｵﾓﾊﾞ一覧!A:D,4,FALSE)),"",VLOOKUP(A15,ﾈｵﾓﾊﾞ一覧!A:D,4,FALSE)) ->  | I15: =VLOOKUP(C15,ﾈｵﾓﾊﾞｻﾏﾘ!A:Z,12,FALSE) -> 44949.46313
A16: 3626 | B16: TIS | C16: 情報通信・サービスその他 | D16: 情報・通信業 | E16: =IF(ISERROR(VLOOKUP(A16,ﾈｵﾓﾊﾞ一覧!A:C,3,FALSE)),"",VLOOKUP(A16,ﾈｵﾓﾊﾞ一覧!A:C,3,FALSE)) -> 32427 | F16: =IF(ISERROR(VLOOKUP(A16,ﾈｵﾓﾊﾞ一覧!A:D,4,FALSE)),"",VLOOKUP(A16,ﾈｵﾓﾊﾞ一覧!A:D,4,FALSE)) -> 16641 | G16: 1.054161916 | H16: 0.01307519023 | I16: =VLOOKUP(C16,ﾈｵﾓﾊﾞｻﾏﾘ!A:Z,12,FALSE) -> 44949.46313 | K16: 6 | L16: 6 | M16: 5 | N16: 3 | O16: 8 | P16: 8
A17: 2309 | B17: シミックホールディングス | C17: 情報通信・サービスその他 | D17: サービス業 | E17: =IF(ISERROR(VLOOKUP(A17,ﾈｵﾓﾊﾞ一覧!A:C,3,FALSE)),"",VLOOKUP(A17,ﾈｵﾓﾊﾞ一覧!A:C,3,FALSE)) -> 25584 | F17: =IF(ISERROR(VLOOKUP(A17,ﾈｵﾓﾊﾞ一覧!A:D,4,FALSE)),"",VLOOKUP(A17,ﾈｵﾓﾊﾞ一覧!A:D,4,FALSE)) -> 4264 | G17: 0.2 | H17: 0.01031596098 | I17: =VLOOKUP(C17,ﾈｵﾓﾊﾞｻﾏﾘ!A:Z,12,FALSE) -> 44949.46313 | K17: 8 | L17: 9 | M17: 8 | N17: 10 | O17: 5 | P17: 3
A18: 3635 | B18: コーエーテクモＨＬＤＧ | C18: 情報通信・サービスその他 | D18: 情報・通信業 | E18: =IF(ISERROR(VLOOKUP(A18,ﾈｵﾓﾊﾞ一覧!A:C,3,FALSE)),"",VLOOKUP(A18,ﾈｵﾓﾊﾞ一覧!A:C,3,FALSE)) -> 24320 | F18: =IF(ISERROR(VLOOKUP(A18,ﾈｵﾓﾊﾞ一覧!A:D,4,FALSE)),"",VLOOKUP(A18,ﾈｵﾓﾊﾞ一覧!A:D,4,FALSE)) -> 14660 | G18: 1.517598344 | H18: 0.009806291865 | I18: =VLOOKUP(C18,ﾈｵﾓﾊﾞｻﾏﾘ!A:Z,12,FALSE) -> 44949.46313 | K18: 6 | L18: 4 | M18: 10 | N18: 2 | O18: 7 | P18: 7
A19: 4684 | B19: オービック | C19: 情報通信・サービスその他 | D19: 情報・通信業 | E19: =IF(ISERROR(VLOOKUP(A19,ﾈｵﾓﾊﾞ一覧!A:C,3,FALSE)),"",VLOOKUP(A19,ﾈｵﾓﾊﾞ一覧!A:C,3,FALSE)) -> 23270 | F19: =IF(ISERROR(VLOOKUP(A19,ﾈｵﾓﾊﾞ一覧!A:D,4,FALSE)),"",VLOOKUP(A19,ﾈｵﾓﾊﾞ一覧!A:D,4,FALSE)) -> 10290 | G19: 0.7927580894 | H19: 0.009382911665 | I19: =VLOOKUP(C19,ﾈｵﾓﾊﾞｻﾏﾘ!A:Z,12,FALSE) -> 44949.46313 | J19: 12,002億円 | K19: 9 | L19: 9 | M19: 10 | N19: 1 | O19: 8 | P19: 9
A20: 7832 | B20: バンダイナムコホールディングス | C20: 情報通信・サービスその他 | D20: その他製品 | E20: =IF(ISERROR(VLOOKUP(A20,ﾈｵﾓﾊﾞ一覧!A:C,3,FALSE)),"",VLOOKUP(A20,ﾈｵﾓﾊﾞ一覧!A:C,3,FALSE)) -> 19284 | F20: =IF(ISERROR(VLOOKUP(A20,ﾈｵﾓﾊﾞ一覧!A:D,4,FALSE)),"",VLOOKUP(A20,ﾈｵﾓﾊﾞ一覧!A:D,4,FALSE)) -> 9462 | G20: 0.963347587 | H20: 0.007775679783 | I20: =VLOOKUP(C20,ﾈｵﾓﾊﾞｻﾏﾘ!A:Z,12,FALSE) -> 44949.46313 | J20: 14,656億円 | K20: 5 | L20: 5 | M20: 2 | N20: 2 | O20: 8 | P20: 10
A21: 4326 | B21: インテージホールディングス | C21: 情報通信・サービスその他 | D21: 情報・通信業 | E21: =IF(ISERROR(VLOOKUP(A21,ﾈｵﾓﾊﾞ一覧!A:C,3,FALSE)),"",VLOOKUP(A21,ﾈｵﾓﾊﾞ一覧!A:C,3,FALSE)) -> 18667 | F21: =IF(ISERROR(VLOOKUP(A21,ﾈｵﾓﾊﾞ一覧!A:D,4,FALSE)),"",VLOOKUP(A21,ﾈｵﾓﾊﾞ一覧!A:D,4,FALSE)) -> 8844 | G21: 0.9003359462 | H21: 0.007526893514 | I21: =VLOOKUP(C21,ﾈｵﾓﾊﾞｻﾏﾘ!A:Z,12,FALSE) -> 44949.46313 | K21: 4 | L21: 5 | M21: 4 | N21: 3 | O21: 9 | P21: 3
A22: 9605 | B22: 東映 | C22: 情報通信・サービスその他 | D22: 情報・通信業 | E22: =IF(ISERROR(VLOOKUP(A22,ﾈｵﾓﾊﾞ一覧!A:C,3,FALSE)),"",VLOOKUP(A22,ﾈｵﾓﾊﾞ一覧!A:C,3,FALSE)) -> 18070 | F22: =IF(ISERROR(VLOOKUP(A22,ﾈｵﾓﾊﾞ一覧!A:D,4,FALSE)),"",VLOOKUP(A22,ﾈｵﾓﾊﾞ一覧!A:D,4,FALSE)) -> 4560 | G22: 0.3375277572 | H22: 0.007286171628 | I22: =VLOOKUP(C22,ﾈｵﾓﾊﾞｻﾏﾘ!A:Z,12,FALSE) -> 44949.46313 | K22: 9 | L22: 10 | M22: 10 | N22: 4 | O22: 9 | P22: 6
A23: 9433 | B23: KDDI | C23: 情報通信・サービスその他 | D23: 情報・通信業 | E23: =IF(ISERROR(VLOOKUP(A23,ﾈｵﾓﾊﾞ一覧!A:C,3,FALSE)),"",VLOOKUP(A23,ﾈｵﾓﾊﾞ一覧!A:C,3,FALSE)) -> 16748 | F23: =IF(ISERROR(VLOOKUP(A23,ﾈｵﾓﾊﾞ一覧!A:D,4,FALSE)),"",VLOOKUP(A23,ﾈｵﾓﾊﾞ一覧!A:D,4,FALSE)) -> 5256 | G23: 0.4573616429 | H23: 0.006753115796 | I23: =VLOOKUP(C23,ﾈｵﾓﾊﾞｻﾏﾘ!A:Z,12,FALSE) -> 44949.46313 | J23: 80,624億円 | K23: 3 | L23: 2 | M23: 2 | N23: 4 | O23: 8 | P23: 3
A24: 7911 | B24: 凸版印刷 | C24: 情報通信・サービスその他 | D24: その他製品 | E24: =IF(ISERROR(VLOOKUP(A24,ﾈｵﾓﾊﾞ一覧!A:C,3,FALSE)),"",VLOOKUP(A24,ﾈｵﾓﾊﾞ一覧!A:C,3,FALSE)) -> 16710 | F24: =IF(ISERROR(VLOOKUP(A24,ﾈｵﾓﾊﾞ一覧!A:D,4,FALSE)),"",VLOOKUP(A24,ﾈｵﾓﾊﾞ一覧!A:D,4,FALSE)) -> 6260 | G24: 0.5990430622 | H24: 0.006737793465 | I24: =VLOOKUP(C24,ﾈｵﾓﾊﾞｻﾏﾘ!A:Z,12,FALSE) -> 44949.46313 | K24: 6 | L24: 2 | M24: 9 | N24: 3 | O24: 9 | P24: 5
A25: 9602 | B25: 東宝 | C25: 情報通信・サービスその他 | D25: 情報・通信業 | E25: =IF(ISERROR(VLOOKUP(A25,ﾈｵﾓﾊﾞ一覧!A:C,3,FALSE)),"",VLOOKUP(A25,ﾈｵﾓﾊﾞ一覧!A:C,3,FALSE)) -> 16620 | F25: =IF(ISERROR(VLOOKUP(A25,ﾈｵﾓﾊﾞ一覧!A:D,4,FALSE)),"",VLOOKUP(A25,ﾈｵﾓﾊﾞ一覧!A:D,4,FALSE)) -> 6480 | G25: 0.6390532544 | H25: 0.006701503734 | I25: =VLOOKUP(C25,ﾈｵﾓﾊﾞｻﾏﾘ!A:Z,12,FALSE) -> 44949.46313 | K25: 7 | L25: 9 | M25: 5 | N25: 2 | O25: 8 | P25: 9
A26: 9432 | B26: 日本電信電話 | C26: 情報通信・サービスその他 | D26: 情報・通信業 | E26: =IF(ISERROR(VLOOKUP(A26,ﾈｵﾓﾊﾞ一覧!A:C,3,FALSE)),"",VLOOKUP(A26,ﾈｵﾓﾊﾞ一覧!A:C,3,FALSE)) -> 16290 | F26: =IF(ISERROR(VLOOKUP(A26,ﾈｵﾓﾊﾞ一覧!A:D,4,FALSE)),"",VLOOKUP(A26,ﾈｵﾓﾊﾞ一覧!A:D,4,FALSE)) -> 5590 | G26: 0.5224299065 | H26: 0.006568441385 | I26: =VLOOKUP(C26,ﾈｵﾓﾊﾞｻﾏﾘ!A:Z,12,FALSE) -> 44949.46313 | K26: 4 | L26: 2 | M26: 3 | N26: 6 | O26: 6 | P26: 5
A27: 9744 | B27: メイテック | C27: 情報通信・サービスその他 | D27: サービス業 | E27: =IF(ISERROR(VLOOKUP(A27,ﾈｵﾓﾊﾞ一覧!A:C,3,FALSE)),"",VLOOKUP(A27,ﾈｵﾓﾊﾞ一覧!A:C,3,FALSE)) -> 15525 | F27: =IF(ISERROR(VLOOKUP(A27,ﾈｵﾓﾊﾞ一覧!A:D,4,FALSE)),"",VLOOKUP(A27,ﾈｵﾓﾊﾞ一覧!A:D,4,FALSE)) -> 2145 | G27: 0.1603139013 | H27: 0.006259978668 | I27: =VLOOKUP(C27,ﾈｵﾓﾊﾞｻﾏﾘ!A:Z,12,FALSE) -> 44949.46313 | K27: 9 | L27: 10 | M27: 6 | N27: 4 | O27: 10 | P27: 8
A28: 3765 | B28: ガンホー・オンライン・エンターテイメント | C28: 情報通信・サービスその他 | D28: 情報・通信業 | E28: =IF(ISERROR(VLOOKUP(A28,ﾈｵﾓﾊﾞ一覧!A:C,3,FALSE)),"",VLOOKUP(A28,ﾈｵﾓﾊﾞ一覧!A:C,3,FALSE)) -> 13947.5 | F28: =IF(ISERROR(VLOOKUP(A28,ﾈｵﾓﾊﾞ一覧!A:D,4,FALSE)),"",VLOOKUP(A28,ﾈｵﾓﾊﾞ一覧!A:D,4,FALSE)) -> 3447 | G28: 0.3282700824 | H28: 0.00562390032 | I28: =VLOOKUP(C28,ﾈｵﾓﾊﾞｻﾏﾘ!A:Z,12,FALSE) -> 44949.46313 | K28: 7 | L28: 9 | M28: 8 | N28: 7 | O28: 5 | P28: 5
A29: 9759 | B29: ＮＳＤ | C29: 情報通信・サービスその他 | D29: 情報・通信業 | E29: =IF(ISERROR(VLOOKUP(A29,ﾈｵﾓﾊﾞ一覧!A:C,3,FALSE)),"",VLOOKUP(A29,ﾈｵﾓﾊﾞ一覧!A:C,3,FALSE)) -> 13915 | F29: =IF(ISERROR(VLOOKUP(A29,ﾈｵﾓﾊﾞ一覧!A:D,4,FALSE)),"",VLOOKUP(A29,ﾈｵﾓﾊﾞ一覧!A:D,4,FALSE)) -> 3575 | G29: 0.3457446809 | H29: 0.005610795695 | I29: =VLOOKUP(C29,ﾈｵﾓﾊﾞｻﾏﾘ!A:Z,12,FALSE) -> 44949.46313 | K29: 8 | L29: 8 | M29: 5 | N29: 2 | O29: 9 | P29: 10
A30: 7984 | B30: コクヨ | C30: 情報通信・サービスその他 | D30: サービス業 | E30: =IF(ISERROR(VLOOKUP(A30,ﾈｵﾓﾊﾞ一覧!A:C,3,FALSE)),"",VLOOKUP(A30,ﾈｵﾓﾊﾞ一覧!A:C,3,FALSE)) -> 13680 | F30: =IF(ISERROR(VLOOKUP(A30,ﾈｵﾓﾊﾞ一覧!A:D,4,FALSE)),"",VLOOKUP(A30,ﾈｵﾓﾊﾞ一覧!A:D,4,FALSE)) -> 3366 | G30: 0.3263525305 | H30: 0.005516039174 | I30: =VLOOKUP(C30,ﾈｵﾓﾊﾞｻﾏﾘ!A:Z,12,FALSE) -> 44949.46313 | K30: 6 | L30: 4 | M30: 6 | N30: 5 | O30: 7 | P30: 7
A31: 4665 | B31: ダスキン | C31: 情報通信・サービスその他 | D31: サービス業 | E31: =IF(ISERROR(VLOOKUP(A31,ﾈｵﾓﾊﾞ一覧!A:C,3,FALSE)),"",VLOOKUP(A31,ﾈｵﾓﾊﾞ一覧!A:C,3,FALSE)) -> 12840 | F31: =IF(ISERROR(VLOOKUP(A31,ﾈｵﾓﾊﾞ一覧!A:D,4,FALSE)),"",VLOOKUP(A31,ﾈｵﾓﾊﾞ一覧!A:D,4,FALSE)) -> 1944 | G31: 0.1784140969 | H31: 0.005177335014 | I31: =VLOOKUP(C31,ﾈｵﾓﾊﾞｻﾏﾘ!A:Z,12,FALSE) -> 44949.46313 | K31: 7 | L31: 3 | M31: 7 | N31: 3 | O31: 9 | P31: 9
A32: 4298 | B32: プロトコーポレーション | C32: 情報通信・サービスその他 | D32: 情報・通信業 | E32: =IF(ISERROR(VLOOKUP(A32,ﾈｵﾓﾊﾞ一覧!A:C,3,FALSE)),"",VLOOKUP(A32,ﾈｵﾓﾊﾞ一覧!A:C,3,FALSE)) -> 12720 | F32: =IF(ISERROR(VLOOKUP(A32,ﾈｵﾓﾊﾞ一覧!A:D,4,FALSE)),"",VLOOKUP(A32,ﾈｵﾓﾊﾞ一覧!A:D,4,FALSE)) -> 980 | G32: 0.08347529813 | H32: 0.005128948706 | I32: =VLOOKUP(C32,ﾈｵﾓﾊﾞｻﾏﾘ!A:Z,12,FALSE) -> 44949.46313 | K32: 6 | L32: 6 | M32: 4 | N32: 8 | O32: 5 | P32: 7
A33: 4318 | B33: クイック | C33: 情報通信・サービスその他 | D33: サービス業 | E33: =IF(ISERROR(VLOOKUP(A33,ﾈｵﾓﾊﾞ一覧!A:C,3,FALSE)),"",VLOOKUP(A33,ﾈｵﾓﾊﾞ一覧!A:C,3,FALSE)) -> 12175 | F33: =IF(ISERROR(VLOOKUP(A33,ﾈｵﾓﾊﾞ一覧!A:D,4,FALSE)),"",VLOOKUP(A33,ﾈｵﾓﾊﾞ一覧!A:D,4,FALSE)) -> 2175 | G33: 0.2175 | H33: 0.004909194221 | I33: =VLOOKUP(C33,ﾈｵﾓﾊﾞｻﾏﾘ!A:Z,12,FALSE) -> 44949.46313 | K33: 8 | L33: 10 | M33: - | N33: 3 | O33: 5 | P33: 10
A34: 4307 | B34: 野村総合研究所 | C34: 情報通信・サービスその他 | D34: 情報・通信業 | E34: =IF(ISERROR(VLOOKUP(A34,ﾈｵﾓﾊﾞ一覧!A:C,3,FALSE)),"",VLOOKUP(A34,ﾈｵﾓﾊﾞ一覧!A:C,3,FALSE)) -> 12093 | F34: =IF(ISERROR(VLOOKUP(A34,ﾈｵﾓﾊﾞ一覧!A:D,4,FALSE)),"",VLOOKUP(A34,ﾈｵﾓﾊﾞ一覧!A:D,4,FALSE)) -> 3492 | G34: 0.4059993024 | H34: 0.004876130244 | I34: =VLOOKUP(C34,ﾈｵﾓﾊﾞｻﾏﾘ!A:Z,12,FALSE) -> 44949.46313 | K34: 3 | L34: 2 | M34: 2 | N34: 1 | O34: 6 | P34: 8
A35: 9436 | B35: 沖縄セルラー電話 | C35: 情報通信・サービスその他 | D35: 情報・通信業 | E35: =IF(ISERROR(VLOOKUP(A35,ﾈｵﾓﾊﾞ一覧!A:C,3,FALSE)),"",VLOOKUP(A35,ﾈｵﾓﾊﾞ一覧!A:C,3,FALSE)) -> 12020 | F35: =IF(ISERROR(VLOOKUP(A35,ﾈｵﾓﾊﾞ一覧!A:D,4,FALSE)),"",VLOOKUP(A35,ﾈｵﾓﾊﾞ一覧!A:D,4,FALSE)) -> 3280 | G35: 0.3752860412 | H35: 0.004846695239 | I35: =VLOOKUP(C35,ﾈｵﾓﾊﾞｻﾏﾘ!A:Z,12,FALSE) -> 44949.46313 | K35: 6 | L35: 5 | M35: 8 | N35: 4 | O35: 10 | P35: 2
A36: 7981 | B36: タカラスタンダード | C36: 情報通信・サービスその他 | D36: その他製品 | E36: =IF(ISERROR(VLOOKUP(A36,ﾈｵﾓﾊﾞ一覧!A:C,3,FALSE)),"",VLOOKUP(A36,ﾈｵﾓﾊﾞ一覧!A:C,3,FALSE)) -> 11172 | F36: =IF(ISERROR(VLOOKUP(A36,ﾈｵﾓﾊﾞ一覧!A:D,4,FALSE)),"",VLOOKUP(A36,ﾈｵﾓﾊﾞ一覧!A:D,4,FALSE)) -> 2322 | G36: 0.2623728814 | H36: 0.004504765326 | I36: =VLOOKUP(C36,ﾈｵﾓﾊﾞｻﾏﾘ!A:Z,12,FALSE) -> 44949.46313 | K36: 7 | L36: 2 | M36: - | N36: 5 | O36: 8 | P36: 9
A37: 6028 | B37: テクノプロ・ホールディングス | C37: 情報通信・サービスその他 | D37: サービス業 | E37: =IF(ISERROR(VLOOKUP(A37,ﾈｵﾓﾊﾞ一覧!A:C,3,FALSE)),"",VLOOKUP(A37,ﾈｵﾓﾊﾞ一覧!A:C,3,FALSE)) -> 11019 | F37: =IF(ISERROR(VLOOKUP(A37,ﾈｵﾓﾊﾞ一覧!A:D,4,FALSE)),"",VLOOKUP(A37,ﾈｵﾓﾊﾞ一覧!A:D,4,FALSE)) -> 2598 | G37: 0.3085144282 | H37: 0.004443072782 | I37: =VLOOKUP(C37,ﾈｵﾓﾊﾞｻﾏﾘ!A:Z,12,FALSE) -> 44949.46313 | K37: 2 | L37: 2 | M37: 3 | N37: 2 | O37: 3 | P37: 7
A38: 9715 | B38: トランス・コスモス | C38: 情報通信・サービスその他 | D38: サービス業 | E38: =IF(ISERROR(VLOOKUP(A38,ﾈｵﾓﾊﾞ一覧!A:C,3,FALSE)),"",VLOOKUP(A38,ﾈｵﾓﾊﾞ一覧!A:C,3,FALSE)) -> 10440 | F38: =IF(ISERROR(VLOOKUP(A38,ﾈｵﾓﾊﾞ一覧!A:D,4,FALSE)),"",VLOOKUP(A38,ﾈｵﾓﾊﾞ一覧!A:D,4,FALSE)) -> 975 | G38: 0.1030110935 | H38: 0.004209608843 | I38: =VLOOKUP(C38,ﾈｵﾓﾊﾞｻﾏﾘ!A:Z,12,FALSE) -> 44949.46313 | K38: 9 | L38: 6 | M38: 6 | N38: 9 | O38: 9 | P38: 9
A39: 4671 | B39: ファルコＨＬＤＧ | C39: 情報通信・サービスその他 | D39: サービス業 | E39: =IF(ISERROR(VLOOKUP(A39,ﾈｵﾓﾊﾞ一覧!A:C,3,FALSE)),"",VLOOKUP(A39,ﾈｵﾓﾊﾞ一覧!A:C,3,FALSE)) -> 9390 | F39: =IF(ISERROR(VLOOKUP(A39,ﾈｵﾓﾊﾞ一覧!A:D,4,FALSE)),"",VLOOKUP(A39,ﾈｵﾓﾊﾞ一覧!A:D,4,FALSE)) -> -5 | G39: -0.0005321979776 | H39: 0.003786228644 | I39: =VLOOKUP(C39,ﾈｵﾓﾊﾞｻﾏﾘ!A:Z,12,FALSE) -> 44949.46313 | K39: 8 | L39: 6 | M39: 10 | N39: 8 | O39: 5 | P39: 5
A40: 4694 | B40: ビー・エム・エル | C40: 情報通信・サービスその他 | D40: サービス業 | E40: =IF(ISERROR(VLOOKUP(A40,ﾈｵﾓﾊﾞ一覧!A:C,3,FALSE)),"",VLOOKUP(A40,ﾈｵﾓﾊﾞ一覧!A:C,3,FALSE)) -> 9015 | F40: =IF(ISERROR(VLOOKUP(A40,ﾈｵﾓﾊﾞ一覧!A:D,4,FALSE)),"",VLOOKUP(A40,ﾈｵﾓﾊﾞ一覧!A:D,4,FALSE)) -> -1575 | G40: -0.1487252125 | H40: 0.003635021429 | I40: =VLOOKUP(C40,ﾈｵﾓﾊﾞｻﾏﾘ!A:Z,12,FALSE) -> 44949.46313 | K40: 6 | L40: 4 | M40: 5 | N40: 8 | O40: 8 | P40: 5
A41: 4544 | B41: Ｈ．Ｕ．グループホールディングス | C41: 情報通信・サービスその他 | D41: サービス業 | E41: =IF(ISERROR(VLOOKUP(A41,ﾈｵﾓﾊﾞ一覧!A:C,3,FALSE)),"",VLOOKUP(A41,ﾈｵﾓﾊﾞ一覧!A:C,3,FALSE)) -> 8424 | F41: =IF(ISERROR(VLOOKUP(A41,ﾈｵﾓﾊﾞ一覧!A:D,4,FALSE)),"",VLOOKUP(A41,ﾈｵﾓﾊﾞ一覧!A:D,4,FALSE)) -> -252 | G41: -0.02904564315 | H41: 0.00339671886 | I41: =VLOOKUP(C41,ﾈｵﾓﾊﾞｻﾏﾘ!A:Z,12,FALSE) -> 44949.46313 | K41: 5 | L41: 3 | M41: 5 | N41: 6 | O41: 9 | P41: 4
A42: 4553 | B42: 東和薬品 | C42: 医薬品 | D42: 医薬品 | E42: =IF(ISERROR(VLOOKUP(A42,ﾈｵﾓﾊﾞ一覧!A:C,3,FALSE)),"",VLOOKUP(A42,ﾈｵﾓﾊﾞ一覧!A:C,3,FALSE)) ->  | F42: =IF(ISERROR(VLOOKUP(A42,ﾈｵﾓﾊﾞ一覧!A:D,4,FALSE)),"",VLOOKUP(A42,ﾈｵﾓﾊﾞ一覧!A:D,4,FALSE)) ->  | I42: =VLOOKUP(C42,ﾈｵﾓﾊﾞｻﾏﾘ!A:Z,12,FALSE) -> 26246.29539 | K42: 1 | L42: 3 | M42: 1 | N42: 5 | O42: 5 | P42: 1
A43: 4516 | B43: 日本新薬 | C43: 医薬品 | D43: 医薬品 | E43: =IF(ISERROR(VLOOKUP(A43,ﾈｵﾓﾊﾞ一覧!A:C,3,FALSE)),"",VLOOKUP(A43,ﾈｵﾓﾊﾞ一覧!A:C,3,FALSE)) ->  | F43: =IF(ISERROR(VLOOKUP(A43,ﾈｵﾓﾊﾞ一覧!A:D,4,FALSE)),"",VLOOKUP(A43,ﾈｵﾓﾊﾞ一覧!A:D,4,FALSE)) ->  | I43: =VLOOKUP(C43,ﾈｵﾓﾊﾞｻﾏﾘ!A:Z,12,FALSE) -> 26246.29539
A44: 4519 | B44: 中外製薬 | C44: 医薬品 | D44: 医薬品 | E44: =IF(ISERROR(VLOOKUP(A44,ﾈｵﾓﾊﾞ一覧!A:C,3,FALSE)),"",VLOOKUP(A44,ﾈｵﾓﾊﾞ一覧!A:C,3,FALSE)) ->  | F44: =IF(ISERROR(VLOOKUP(A44,ﾈｵﾓﾊﾞ一覧!A:D,4,FALSE)),"",VLOOKUP(A44,ﾈｵﾓﾊﾞ一覧!A:D,4,FALSE)) ->  | I44: =VLOOKUP(C44,ﾈｵﾓﾊﾞｻﾏﾘ!A:Z,12,FALSE) -> 26246.29539 | J44: 65,567億円 | K44: 5 | L44: 4 | M44: 9 | N44: 3 | O44: 7 | P44: 3
A45: 4527 | B45: ロート製薬 | C45: 医薬品 | D45: 医薬品 | E45: =IF(ISERROR(VLOOKUP(A45,ﾈｵﾓﾊﾞ一覧!A:C,3,FALSE)),"",VLOOKUP(A45,ﾈｵﾓﾊﾞ一覧!A:C,3,FALSE)) -> 18180 | F45: =IF(ISERROR(VLOOKUP(A45,ﾈｵﾓﾊﾞ一覧!A:D,4,FALSE)),"",VLOOKUP(A45,ﾈｵﾓﾊﾞ一覧!A:D,4,FALSE)) -> 9162 | G45: 1.015968064 | H45: 0.007330525745 | I45: =VLOOKUP(C45,ﾈｵﾓﾊﾞｻﾏﾘ!A:Z,12,FALSE) -> 26246.29539 | K45: 8 | L45: 9 | M45: 9 | N45: 2 | O45: 7 | P45: 8
A46: 4886 | B46: あすか製薬ＨＬＤＧ | C46: 医薬品 | D46: 医薬品 | E46: =IF(ISERROR(VLOOKUP(A46,ﾈｵﾓﾊﾞ一覧!A:C,3,FALSE)),"",VLOOKUP(A46,ﾈｵﾓﾊﾞ一覧!A:C,3,FALSE)) -> 15600 | F46: =IF(ISERROR(VLOOKUP(A46,ﾈｵﾓﾊﾞ一覧!A:D,4,FALSE)),"",VLOOKUP(A46,ﾈｵﾓﾊﾞ一覧!A:D,4,FALSE)) -> 5740 | G46: 0.5821501014 | H46: 0.006290220111 | I46: =VLOOKUP(C46,ﾈｵﾓﾊﾞｻﾏﾘ!A:Z,12,FALSE) -> 26246.29539 | K46: 8 | L46: 6 | M46: 9 | N46: 8 | O46: 5 | P46: 7
A47: 4528 | B47: 小野薬品工業 | C47: 医薬品 | D47: 医薬品 | E47: =IF(ISERROR(VLOOKUP(A47,ﾈｵﾓﾊﾞ一覧!A:C,3,FALSE)),"",VLOOKUP(A47,ﾈｵﾓﾊﾞ一覧!A:C,3,FALSE)) -> 13007.5 | F47: =IF(ISERROR(VLOOKUP(A47,ﾈｵﾓﾊﾞ一覧!A:D,4,FALSE)),"",VLOOKUP(A47,ﾈｵﾓﾊﾞ一覧!A:D,4,FALSE)) -> 2567 | G47: 0.2458694507 | H47: 0.005244874237 | I47: =VLOOKUP(C47,ﾈｵﾓﾊﾞｻﾏﾘ!A:Z,12,FALSE) -> 26246.29539 | K47: 5 | L47: 10 | M47: 1 | N47: 7 | O47: 6 | P47: 1
A48: 4547 | B48: キッセイ薬品工業 | C48: 医薬品 | D48: 医薬品 | E48: =IF(ISERROR(VLOOKUP(A48,ﾈｵﾓﾊﾞ一覧!A:C,3,FALSE)),"",VLOOKUP(A48,ﾈｵﾓﾊﾞ一覧!A:C,3,FALSE)) -> 12040 | F48: =IF(ISERROR(VLOOKUP(A48,ﾈｵﾓﾊﾞ一覧!A:D,4,FALSE)),"",VLOOKUP(A48,ﾈｵﾓﾊﾞ一覧!A:D,4,FALSE)) -> 1984 | G48: 0.1972951472 | H48: 0.004854759624 | I48: =VLOOKUP(C48,ﾈｵﾓﾊﾞｻﾏﾘ!A:Z,12,FALSE) -> 26246.29539 | K48: 7 | L48: 6 | M48: 8 | N48: 5 | O48: 7 | P48: 6
A49: 4507 | B49: 塩野義製薬 | C49: 医薬品 | D49: 医薬品 | E49: =IF(ISERROR(VLOOKUP(A49,ﾈｵﾓﾊﾞ一覧!A:C,3,FALSE)),"",VLOOKUP(A49,ﾈｵﾓﾊﾞ一覧!A:C,3,FALSE)) -> 11864 | F49: =IF(ISERROR(VLOOKUP(A49,ﾈｵﾓﾊﾞ一覧!A:D,4,FALSE)),"",VLOOKUP(A49,ﾈｵﾓﾊﾞ一覧!A:D,4,FALSE)) -> 998 | G49: 0.09184612553 | H49: 0.004783793038 | I49: =VLOOKUP(C49,ﾈｵﾓﾊﾞｻﾏﾘ!A:Z,12,FALSE) -> 26246.29539 | K49: 6 | L49: 8 | M49: 5 | N49: 6 | O49: 8 | P49: 1
A50: 4521 | B50: 科研製薬 | C50: 医薬品 | D50: 医薬品 | E50: =IF(ISERROR(VLOOKUP(A50,ﾈｵﾓﾊﾞ一覧!A:C,3,FALSE)),"",VLOOKUP(A50,ﾈｵﾓﾊﾞ一覧!A:C,3,FALSE)) -> 10623 | F50: =IF(ISERROR(VLOOKUP(A50,ﾈｵﾓﾊﾞ一覧!A:D,4,FALSE)),"",VLOOKUP(A50,ﾈｵﾓﾊﾞ一覧!A:D,4,FALSE)) -> -927 | G50: -0.08025974026 | H50: 0.004283397964 | I50: =VLOOKUP(C50,ﾈｵﾓﾊﾞｻﾏﾘ!A:Z,12,FALSE) -> 26246.29539 | K50: 3 | L50: 4 | M50: 5 | N50: 2 | O50: 8 | P50: 1
A51: 4577 | B51: ダイト | C51: 医薬品 | D51: 医薬品 | E51: =IF(ISERROR(VLOOKUP(A51,ﾈｵﾓﾊﾞ一覧!A:C,3,FALSE)),"",VLOOKUP(A51,ﾈｵﾓﾊﾞ一覧!A:C,3,FALSE)) -> 9360 | F51: =IF(ISERROR(VLOOKUP(A51,ﾈｵﾓﾊﾞ一覧!A:D,4,FALSE)),"",VLOOKUP(A51,ﾈｵﾓﾊﾞ一覧!A:D,4,FALSE)) -> -1368 | G51: -0.1275167785 | H51: 0.003774132067 | I51: =VLOOKUP(C51,ﾈｵﾓﾊﾞｻﾏﾘ!A:Z,12,FALSE) -> 26246.29539 | K51: 6 | L51: 4 | M51: 10 | N51: 8 | O51: 5 | P51: 1
A52: 4548 | B52: 生化学工業 | C52: 医薬品 | D52: 医薬品 | E52: =IF(ISERROR(VLOOKUP(A52,ﾈｵﾓﾊﾞ一覧!A:C,3,FALSE)),"",VLOOKUP(A52,ﾈｵﾓﾊﾞ一覧!A:C,3,FALSE)) -> 9288 | F52: =IF(ISERROR(VLOOKUP(A52,ﾈｵﾓﾊﾞ一覧!A:D,4,FALSE)),"",VLOOKUP(A52,ﾈｵﾓﾊﾞ一覧!A:D,4,FALSE)) -> -168 | G52: -0.01776649746 | H52: 0.003745100281 | I52: =VLOOKUP(C52,ﾈｵﾓﾊﾞｻﾏﾘ!A:Z,12,FALSE) -> 26246.29539 | K52: 3 | L52: 7 | M52: 1 | N52: 4 | O52: 7 | P52: 1
A53: 4540 | B53: ツムラ | C53: 医薬品 | D53: 医薬品 | E53: =IF(ISERROR(VLOOKUP(A53,ﾈｵﾓﾊﾞ一覧!A:C,3,FALSE)),"",VLOOKUP(A53,ﾈｵﾓﾊﾞ一覧!A:C,3,FALSE)) -> 7936.5 | F53: =IF(ISERROR(VLOOKUP(A53,ﾈｵﾓﾊﾞ一覧!A:D,4,FALSE)),"",VLOOKUP(A53,ﾈｵﾓﾊﾞ一覧!A:D,4,FALSE)) -> -1303 | G53: -0.1410249472 | H53: 0.003200149481 | I53: =VLOOKUP(C53,ﾈｵﾓﾊﾞｻﾏﾘ!A:Z,12,FALSE) -> 26246.29539 | K53: 5 | L53: 4 | M53: 5 | N53: 6 | O53: 9 | P53: 1
A54: 4549 | B54: 栄研化学 | C54: 医薬品 | D54: 医薬品 | E54: =IF(ISERROR(VLOOKUP(A54,ﾈｵﾓﾊﾞ一覧!A:C,3,FALSE)),"",VLOOKUP(A54,ﾈｵﾓﾊﾞ一覧!A:C,3,FALSE)) -> 7545 | F54: =IF(ISERROR(VLOOKUP(A54,ﾈｵﾓﾊﾞ一覧!A:D,4,FALSE)),"",VLOOKUP(A54,ﾈｵﾓﾊﾞ一覧!A:D,4,FALSE)) -> -2175 | G54: -0.2237654321 | H54: 0.00304228915 | I54: =VLOOKUP(C54,ﾈｵﾓﾊﾞｻﾏﾘ!A:Z,12,FALSE) -> 26246.29539 | K54: 6 | L54: 5 | M54: 8 | N54: 6 | O54: 6 | P54: 4
A55: 7550 | B55: ゼンショーホールディングス | C55: 小売 | D55: 小売業 | E55: =IF(ISERROR(VLOOKUP(A55,ﾈｵﾓﾊﾞ一覧!A:C,3,FALSE)),"",VLOOKUP(A55,ﾈｵﾓﾊﾞ一覧!A:C,3,FALSE)) ->  | F55: =IF(ISERROR(VLOOKUP(A55,ﾈｵﾓﾊﾞ一覧!A:D,4,FALSE)),"",VLOOKUP(A55,ﾈｵﾓﾊﾞ一覧!A:D,4,FALSE)) ->  | I55: =VLOOKUP(C55,ﾈｵﾓﾊﾞｻﾏﾘ!A:Z,12,FALSE) -> 17773.61277 | K55: 4 | L55: 5 | M55: 7 | N55: 1 | O55: 5 | P55: 7
A56: 3050 | B56: ＤＣＭホールディングス | C56: 小売 | D56: 小売業 | E56: =IF(ISERROR(VLOOKUP(A56,ﾈｵﾓﾊﾞ一覧!A:C,3,FALSE)),"",VLOOKUP(A56,ﾈｵﾓﾊﾞ一覧!A:C,3,FALSE)) ->  | F56: =IF(ISERROR(VLOOKUP(A56,ﾈｵﾓﾊﾞ一覧!A:D,4,FALSE)),"",VLOOKUP(A56,ﾈｵﾓﾊﾞ一覧!A:D,4,FALSE)) ->  | I56: =VLOOKUP(C56,ﾈｵﾓﾊﾞｻﾏﾘ!A:Z,12,FALSE) -> 17773.61277 | K56: 5 | L56: 4 | M56: 3 | N56: 9 | O56: 6 | P56: 4
A57: 9956 | B57: バローホールディングス | C57: 小売 | D57: 小売業 | E57: =IF(ISERROR(VLOOKUP(A57,ﾈｵﾓﾊﾞ一覧!A:C,3,FALSE)),"",VLOOKUP(A57,ﾈｵﾓﾊﾞ一覧!A:C,3,FALSE)) ->  | F57: =IF(ISERROR(VLOOKUP(A57,ﾈｵﾓﾊﾞ一覧!A:D,4,FALSE)),"",VLOOKUP(A57,ﾈｵﾓﾊﾞ一覧!A:D,4,FALSE)) ->  | I57: =VLOOKUP(C57,ﾈｵﾓﾊﾞｻﾏﾘ!A:Z,12,FALSE) -> 17773.61277 | K57: 3 | L57: 4 | M57: 2 | N57: 8 | O57: 7 | P57: 1
A58: 8255 | B58: アクシアル リテイリング | C58: 小売 | D58: 小売業 | E58: =IF(ISERROR(VLOOKUP(A58,ﾈｵﾓﾊﾞ一覧!A:C,3,FALSE)),"",VLOOKUP(A58,ﾈｵﾓﾊﾞ一覧!A:C,3,FALSE)) ->  | F58: =IF(ISERROR(VLOOKUP(A58,ﾈｵﾓﾊﾞ一覧!A:D,4,FALSE)),"",VLOOKUP(A58,ﾈｵﾓﾊﾞ一覧!A:D,4,FALSE)) ->  | I58: =VLOOKUP(C58,ﾈｵﾓﾊﾞｻﾏﾘ!A:Z,12,FALSE) -> 17773.61277 | K58: 5 | L58: 8 | M58: 4 | N58: 7 | O58: 4 | P58: 4
A59: 7532 | B59: パン・パシフィック・インターナショナルホールディングス | C59: 小売 | D59: 小売業 | E59: =IF(ISERROR(VLOOKUP(A59,ﾈｵﾓﾊﾞ一覧!A:C,3,FALSE)),"",VLOOKUP(A59,ﾈｵﾓﾊﾞ一覧!A:C,3,FALSE)) ->  | F59: =IF(ISERROR(VLOOKUP(A59,ﾈｵﾓﾊﾞ一覧!A:D,4,FALSE)),"",VLOOKUP(A59,ﾈｵﾓﾊﾞ一覧!A:D,4,FALSE)) ->  | I59: =VLOOKUP(C59,ﾈｵﾓﾊﾞｻﾏﾘ!A:Z,12,FALSE) -> 17773.61277 | J59: 11,372億円 | K59: 5 | L59: 6 | M59: 9 | N59: 3 | O59: 4 | P59: 4
A60: 3341 | B60: 日本調剤 | C60: 小売 | D60: 小売業 | E60: =IF(ISERROR(VLOOKUP(A60,ﾈｵﾓﾊﾞ一覧!A:C,3,FALSE)),"",VLOOKUP(A60,ﾈｵﾓﾊﾞ一覧!A:C,3,FALSE)) ->  | F60: =IF(ISERROR(VLOOKUP(A60,ﾈｵﾓﾊﾞ一覧!A:D,4,FALSE)),"",VLOOKUP(A60,ﾈｵﾓﾊﾞ一覧!A:D,4,FALSE)) ->  | I60: =VLOOKUP(C60,ﾈｵﾓﾊﾞｻﾏﾘ!A:Z,12,FALSE) -> 17773.61277 | K60: 4 | L60: 4 | M60: 1 | N60: 10 | O60: 4 | P60: 5
A61: 7649 | B61: スギホールディングス | C61: 小売 | D61: 小売業 | E61: =IF(ISERROR(VLOOKUP(A61,ﾈｵﾓﾊﾞ一覧!A:C,3,FALSE)),"",VLOOKUP(A61,ﾈｵﾓﾊﾞ一覧!A:C,3,FALSE)) ->  | F61: =IF(ISERROR(VLOOKUP(A61,ﾈｵﾓﾊﾞ一覧!A:D,4,FALSE)),"",VLOOKUP(A61,ﾈｵﾓﾊﾞ一覧!A:D,4,FALSE)) ->  | I61: =VLOOKUP(C61,ﾈｵﾓﾊﾞｻﾏﾘ!A:Z,12,FALSE) -> 17773.61277 | K61: 6 | L61: 8 | M61: 8 | N61: 4 | O61: 7 | P61: 2
A62: 8282 | B62: ケーズホールディングス | C62: 小売 | D62: 小売業 | E62: =IF(ISERROR(VLOOKUP(A62,ﾈｵﾓﾊﾞ一覧!A:C,3,FALSE)),"",VLOOKUP(A62,ﾈｵﾓﾊﾞ一覧!A:C,3,FALSE)) ->  | F62: =IF(ISERROR(VLOOKUP(A62,ﾈｵﾓﾊﾞ一覧!A:D,4,FALSE)),"",VLOOKUP(A62,ﾈｵﾓﾊﾞ一覧!A:D,4,FALSE)) ->  | I62: =VLOOKUP(C62,ﾈｵﾓﾊﾞｻﾏﾘ!A:Z,12,FALSE) -> 17773.61277 | K62: 3 | L62: 1 | M62: 2 | N62: 7 | O62: 7 | P62: 2
A63: 3186 | B63: ネクステージ | C63: 小売 | D63: 小売業 | E63: =IF(ISERROR(VLOOKUP(A63,ﾈｵﾓﾊﾞ一覧!A:C,3,FALSE)),"",VLOOKUP(A63,ﾈｵﾓﾊﾞ一覧!A:C,3,FALSE)) ->  | F63: =IF(ISERROR(VLOOKUP(A63,ﾈｵﾓﾊﾞ一覧!A:D,4,FALSE)),"",VLOOKUP(A63,ﾈｵﾓﾊﾞ一覧!A:D,4,FALSE)) ->  | I63: =VLOOKUP(C63,ﾈｵﾓﾊﾞｻﾏﾘ!A:Z,12,FALSE) -> 17773.61277 | K63: 7 | L63: 6 | M63: 9 | N63: 3 | O63: 3 | P63: 10
A64: 3382 | B64: セブン＆アイ・ホールディングス | C64: 小売 | D64: 小売業 | E64: =IF(ISERROR(VLOOKUP(A64,ﾈｵﾓﾊﾞ一覧!A:C,3,FALSE)),"",VLOOKUP(A64,ﾈｵﾓﾊﾞ一覧!A:C,3,FALSE)) -> 17679 | F64: =IF(ISERROR(VLOOKUP(A64,ﾈｵﾓﾊﾞ一覧!A:D,4,FALSE)),"",VLOOKUP(A64,ﾈｵﾓﾊﾞ一覧!A:D,4,FALSE)) -> 7953 | G64: 0.8177051203 | H64: 0.007128512906 | I64: =VLOOKUP(C64,ﾈｵﾓﾊﾞｻﾏﾘ!A:Z,12,FALSE) -> 17773.61277 | J64: 37,284億円 | K64: 5 | L64: 5 | M64: 5 | N64: 5 | O64: 8 | P64: 4
A65: 2730 | B65: エディオン | C65: 小売 | D65: 小売業 | E65: =IF(ISERROR(VLOOKUP(A65,ﾈｵﾓﾊﾞ一覧!A:C,3,FALSE)),"",VLOOKUP(A65,ﾈｵﾓﾊﾞ一覧!A:C,3,FALSE)) -> 14620 | F65: =IF(ISERROR(VLOOKUP(A65,ﾈｵﾓﾊﾞ一覧!A:D,4,FALSE)),"",VLOOKUP(A65,ﾈｵﾓﾊﾞ一覧!A:D,4,FALSE)) -> 3680 | G65: 0.3363802559 | H65: 0.005895065258 | I65: =VLOOKUP(C65,ﾈｵﾓﾊﾞｻﾏﾘ!A:Z,12,FALSE) -> 17773.61277 | K65: 6 | L65: 2 | M65: 5 | N65: 7 | O65: 8 | P65: 7
A66: 8227 | B66: しまむら | C66: 小売 | D66: 小売業 | E66: =IF(ISERROR(VLOOKUP(A66,ﾈｵﾓﾊﾞ一覧!A:C,3,FALSE)),"",VLOOKUP(A66,ﾈｵﾓﾊﾞ一覧!A:C,3,FALSE)) -> 14085 | F66: =IF(ISERROR(VLOOKUP(A66,ﾈｵﾓﾊﾞ一覧!A:D,4,FALSE)),"",VLOOKUP(A66,ﾈｵﾓﾊﾞ一覧!A:D,4,FALSE)) -> 3985 | G66: =F66/(E66-F66) -> 0.3945544554 | H66: =E66/SUM(E:E) -> 0.005679342966 | I66: =VLOOKUP(C66,ﾈｵﾓﾊﾞｻﾏﾘ!A:Z,12,FALSE) -> 17773.61277 | K66: 7 | L66: 9 | M66: 5 | N66: 5 | O66: 9 | P66: 4
A67: 8276 | B67: 平和堂 | C67: 小売 | D67: 小売業 | E67: =IF(ISERROR(VLOOKUP(A67,ﾈｵﾓﾊﾞ一覧!A:C,3,FALSE)),"",VLOOKUP(A67,ﾈｵﾓﾊﾞ一覧!A:C,3,FALSE)) -> 12100 | F67: =IF(ISERROR(VLOOKUP(A67,ﾈｵﾓﾊﾞ一覧!A:D,4,FALSE)),"",VLOOKUP(A67,ﾈｵﾓﾊﾞ一覧!A:D,4,FALSE)) -> 2305 | G67: 0.235324145 | H67: 0.004878952778 | I67: =VLOOKUP(C67,ﾈｵﾓﾊﾞｻﾏﾘ!A:Z,12,FALSE) -> 17773.61277 | K67: 7 | L67: 6 | M67: 10 | N67: 5 | O67: 5 | P67: 5
A68: 8218 | B68: コメリ | C68: 小売 | D68: 小売業 | E68: =IF(ISERROR(VLOOKUP(A68,ﾈｵﾓﾊﾞ一覧!A:C,3,FALSE)),"",VLOOKUP(A68,ﾈｵﾓﾊﾞ一覧!A:C,3,FALSE)) -> 11920 | F68: =IF(ISERROR(VLOOKUP(A68,ﾈｵﾓﾊﾞ一覧!A:D,4,FALSE)),"",VLOOKUP(A68,ﾈｵﾓﾊﾞ一覧!A:D,4,FALSE)) -> 1200 | G68: 0.1119402985 | H68: 0.004806373316 | I68: =VLOOKUP(C68,ﾈｵﾓﾊﾞｻﾏﾘ!A:Z,12,FALSE) -> 17773.61277 | K68: 8 | L68: 5 | M68: 10 | N68: 9 | O68: 6 | P68: 5
A69: 2702 | B69: 日本マクドナルドホールディングス | C69: 小売 | D69: 小売業 | E69: =IF(ISERROR(VLOOKUP(A69,ﾈｵﾓﾊﾞ一覧!A:C,3,FALSE)),"",VLOOKUP(A69,ﾈｵﾓﾊﾞ一覧!A:C,3,FALSE)) -> 11200 | F69: =IF(ISERROR(VLOOKUP(A69,ﾈｵﾓﾊﾞ一覧!A:D,4,FALSE)),"",VLOOKUP(A69,ﾈｵﾓﾊﾞ一覧!A:D,4,FALSE)) -> 1440 | G69: 0.1475409836 | H69: 0.004516055464 | I69: =VLOOKUP(C69,ﾈｵﾓﾊﾞｻﾏﾘ!A:Z,12,FALSE) -> 17773.61277 | K69: 6 | L69: 5 | M69: 7 | N69: 2 | O69: 10 | P69: 4
A70: 7593 | B70: ＶＴホールディングス | C70: 小売 | D70: 小売業 | E70: =IF(ISERROR(VLOOKUP(A70,ﾈｵﾓﾊﾞ一覧!A:C,3,FALSE)),"",VLOOKUP(A70,ﾈｵﾓﾊﾞ一覧!A:C,3,FALSE)) -> 11193 | F70: =IF(ISERROR(VLOOKUP(A70,ﾈｵﾓﾊﾞ一覧!A:D,4,FALSE)),"",VLOOKUP(A70,ﾈｵﾓﾊﾞ一覧!A:D,4,FALSE)) -> 1155 | G70: 0.1150627615 | H70: 0.00451323293 | I70: =VLOOKUP(C70,ﾈｵﾓﾊﾞｻﾏﾘ!A:Z,12,FALSE) -> 17773.61277 | K70: 6 | L70: 4 | M70: 4 | N70: 10 | O70: 6 | P70: 6
A71: 8273 | B71: イズミ | C71: 小売 | D71: 小売業 | E71: =IF(ISERROR(VLOOKUP(A71,ﾈｵﾓﾊﾞ一覧!A:C,3,FALSE)),"",VLOOKUP(A71,ﾈｵﾓﾊﾞ一覧!A:C,3,FALSE)) -> 10740 | F71: =IF(ISERROR(VLOOKUP(A71,ﾈｵﾓﾊﾞ一覧!A:D,4,FALSE)),"",VLOOKUP(A71,ﾈｵﾓﾊﾞ一覧!A:D,4,FALSE)) -> 2079 | G71: 0.2400415656 | H71: 0.004330574615 | I71: =VLOOKUP(C71,ﾈｵﾓﾊﾞｻﾏﾘ!A:Z,12,FALSE) -> 17773.61277 | K71: 8 | L71: 7 | M71: 8 | N71: 7 | O71: 8 | P71: 4
A72: 7516 | B72: コーナン商事 | C72: 小売 | D72: 小売業 | E72: =IF(ISERROR(VLOOKUP(A72,ﾈｵﾓﾊﾞ一覧!A:C,3,FALSE)),"",VLOOKUP(A72,ﾈｵﾓﾊﾞ一覧!A:C,3,FALSE)) -> 10440 | F72: =IF(ISERROR(VLOOKUP(A72,ﾈｵﾓﾊﾞ一覧!A:D,4,FALSE)),"",VLOOKUP(A72,ﾈｵﾓﾊﾞ一覧!A:D,4,FALSE)) -> 120 | G72: 0.01162790698 | H72: 0.004209608843 | I72: =VLOOKUP(C72,ﾈｵﾓﾊﾞｻﾏﾘ!A:Z,12,FALSE) -> 17773.61277 | K72: 7 | L72: 3 | M72: - | N72: 9 | O72: 6 | P72: 7
A73: 3319 | B73: ゴルフダイジェスト・オンライン | C73: 小売 | D73: 小売業 | E73: =IF(ISERROR(VLOOKUP(A73,ﾈｵﾓﾊﾞ一覧!A:C,3,FALSE)),"",VLOOKUP(A73,ﾈｵﾓﾊﾞ一覧!A:C,3,FALSE)) -> 7047 | F73: =IF(ISERROR(VLOOKUP(A73,ﾈｵﾓﾊﾞ一覧!A:D,4,FALSE)),"",VLOOKUP(A73,ﾈｵﾓﾊﾞ一覧!A:D,4,FALSE)) -> -3510 | G73: -0.3324808184 | H73: 0.002841485969 | I73: =VLOOKUP(C73,ﾈｵﾓﾊﾞｻﾏﾘ!A:Z,12,FALSE) -> 17773.61277 | K73: 2 | L73: 2 | M73: 5 | N73: 5 | O73: 3 | P73: 4
A74: 2270 | B74: 雪印メグミルク | C74: 食品 | D74: 食料品 | E74: =IF(ISERROR(VLOOKUP(A74,ﾈｵﾓﾊﾞ一覧!A:C,3,FALSE)),"",VLOOKUP(A74,ﾈｵﾓﾊﾞ一覧!A:C,3,FALSE)) ->  | F74: =IF(ISERROR(VLOOKUP(A74,ﾈｵﾓﾊﾞ一覧!A:D,4,FALSE)),"",VLOOKUP(A74,ﾈｵﾓﾊﾞ一覧!A:D,4,FALSE)) ->  | I74: =VLOOKUP(C74,ﾈｵﾓﾊﾞｻﾏﾘ!A:Z,12,FALSE) -> 8896.747318 | K74: 4 | L74: 5 | M74: 4 | N74: 6 | O74: 5 | P74: 3
A75: 2587 | B75: サントリー食品インターナショナル | C75: 食品 | D75: 食料品 | E75: =IF(ISERROR(VLOOKUP(A75,ﾈｵﾓﾊﾞ一覧!A:C,3,FALSE)),"",VLOOKUP(A75,ﾈｵﾓﾊﾞ一覧!A:C,3,FALSE)) ->  | F75: =IF(ISERROR(VLOOKUP(A75,ﾈｵﾓﾊﾞ一覧!A:D,4,FALSE)),"",VLOOKUP(A75,ﾈｵﾓﾊﾞ一覧!A:D,4,FALSE)) ->  | I75: =VLOOKUP(C75,ﾈｵﾓﾊﾞｻﾏﾘ!A:Z,12,FALSE) -> 8896.747318 | K75: 7 | L75: 7 | M75: 9 | N75: 4 | O75: 9 | P75: 3
A76: 2875 | B76: 東洋水産 | C76: 食品 | D76: 食料品 | E76: =IF(ISERROR(VLOOKUP(A76,ﾈｵﾓﾊﾞ一覧!A:C,3,FALSE)),"",VLOOKUP(A76,ﾈｵﾓﾊﾞ一覧!A:C,3,FALSE)) ->  | F76: =IF(ISERROR(VLOOKUP(A76,ﾈｵﾓﾊﾞ一覧!A:D,4,FALSE)),"",VLOOKUP(A76,ﾈｵﾓﾊﾞ一覧!A:D,4,FALSE)) ->  | I76: =VLOOKUP(C76,ﾈｵﾓﾊﾞｻﾏﾘ!A:Z,12,FALSE) -> 8896.747318 | K76: 9 | L76: 9 | M76: 10 | N76: 4 | O76: 9 | P76: 5
A77: 2281 | B77: プリマハム | C77: 食品 | D77: 食料品 | E77: =IF(ISERROR(VLOOKUP(A77,ﾈｵﾓﾊﾞ一覧!A:C,3,FALSE)),"",VLOOKUP(A77,ﾈｵﾓﾊﾞ一覧!A:C,3,FALSE)) ->  | F77: =IF(ISERROR(VLOOKUP(A77,ﾈｵﾓﾊﾞ一覧!A:D,4,FALSE)),"",VLOOKUP(A77,ﾈｵﾓﾊﾞ一覧!A:D,4,FALSE)) ->  | I77: =VLOOKUP(C77,ﾈｵﾓﾊﾞｻﾏﾘ!A:Z,12,FALSE) -> 8896.747318 | K77: 2 | L77: 3 | M77: 1 | N77: 5 | O77: 7 | P77: 1
A78: 2819 | B78: エバラ食品工業 | C78: 食品 | D78: 食料品 | E78: =IF(ISERROR(VLOOKUP(A78,ﾈｵﾓﾊﾞ一覧!A:C,3,FALSE)),"",VLOOKUP(A78,ﾈｵﾓﾊﾞ一覧!A:C,3,FALSE)) -> 14775 | F78: =IF(ISERROR(VLOOKUP(A78,ﾈｵﾓﾊﾞ一覧!A:D,4,FALSE)),"",VLOOKUP(A78,ﾈｵﾓﾊﾞ一覧!A:D,4,FALSE)) -> 3800 | G78: 0.3462414579 | H78: 0.00595756424 | I78: =VLOOKUP(C78,ﾈｵﾓﾊﾞｻﾏﾘ!A:Z,12,FALSE) -> 8896.747318 | K78: 7 | L78: 7 | M78: 9 | N78: 4 | O78: 10 | P78: 1
A79: 2264 | B79: 森永乳業 | C79: 食品 | D79: 食料品 | E79: =IF(ISERROR(VLOOKUP(A79,ﾈｵﾓﾊﾞ一覧!A:C,3,FALSE)),"",VLOOKUP(A79,ﾈｵﾓﾊﾞ一覧!A:C,3,FALSE)) -> 14391 | F79: =IF(ISERROR(VLOOKUP(A79,ﾈｵﾓﾊﾞ一覧!A:D,4,FALSE)),"",VLOOKUP(A79,ﾈｵﾓﾊﾞ一覧!A:D,4,FALSE)) -> 3861 | G79: 0.3666666667 | H79: 0.005802728052 | I79: =VLOOKUP(C79,ﾈｵﾓﾊﾞｻﾏﾘ!A:Z,12,FALSE) -> 8896.747318 | K79: 3 | L79: 2 | M79: 5 | N79: 8 | O79: 5 | P79: 1
A80: 2579 | B80: コカ・コーラ ボトラーズジャパンホールディングス | C80: 食品 | D80: 食料品 | E80: =IF(ISERROR(VLOOKUP(A80,ﾈｵﾓﾊﾞ一覧!A:C,3,FALSE)),"",VLOOKUP(A80,ﾈｵﾓﾊﾞ一覧!A:C,3,FALSE)) -> 11476.5 | F80: =IF(ISERROR(VLOOKUP(A80,ﾈｵﾓﾊﾞ一覧!A:D,4,FALSE)),"",VLOOKUP(A80,ﾈｵﾓﾊﾞ一覧!A:D,4,FALSE)) -> 1151 | G80: 0.1114715994 | H80: 0.004627545584 | I80: =VLOOKUP(C80,ﾈｵﾓﾊﾞｻﾏﾘ!A:Z,12,FALSE) -> 8896.747318 | K80: 5 | L80: 5 | M80: 5 | N80: 9 | O80: 6 | P80: 2
A81: 2296 | B81: 伊藤ハム米久ＨＬＤＧ | C81: 食品 | D81: 食料品 | E81: =IF(ISERROR(VLOOKUP(A81,ﾈｵﾓﾊﾞ一覧!A:C,3,FALSE)),"",VLOOKUP(A81,ﾈｵﾓﾊﾞ一覧!A:C,3,FALSE)) -> 10830 | F81: =IF(ISERROR(VLOOKUP(A81,ﾈｵﾓﾊﾞ一覧!A:D,4,FALSE)),"",VLOOKUP(A81,ﾈｵﾓﾊﾞ一覧!A:D,4,FALSE)) -> 780 | G81: 0.0776119403 | H81: 0.004366864346 | I81: =VLOOKUP(C81,ﾈｵﾓﾊﾞｻﾏﾘ!A:Z,12,FALSE) -> 8896.747318 | K81: 4 | L81: 2 | M81: 4 | N81: 7 | O81: 8 | P81: 2
A82: 2292 | B82: Ｓ Ｆｏｏｄｓ | C82: 食品 | D82: 食料品 | E82: =IF(ISERROR(VLOOKUP(A82,ﾈｵﾓﾊﾞ一覧!A:C,3,FALSE)),"",VLOOKUP(A82,ﾈｵﾓﾊﾞ一覧!A:C,3,FALSE)) -> 10050 | F82: =IF(ISERROR(VLOOKUP(A82,ﾈｵﾓﾊﾞ一覧!A:D,4,FALSE)),"",VLOOKUP(A82,ﾈｵﾓﾊﾞ一覧!A:D,4,FALSE)) -> 1299 | G82: 0.1484401783 | H82: 0.004052353341 | I82: =VLOOKUP(C82,ﾈｵﾓﾊﾞｻﾏﾘ!A:Z,12,FALSE) -> 8896.747318 | K82: 9 | L82: 8 | M82: 9 | N82: 9 | O82: 9 | P82: 3
A83: 2922 | B83: なとり | C83: 食品 | D83: 食料品 | E83: =IF(ISERROR(VLOOKUP(A83,ﾈｵﾓﾊﾞ一覧!A:C,3,FALSE)),"",VLOOKUP(A83,ﾈｵﾓﾊﾞ一覧!A:C,3,FALSE)) -> 9820 | F83: =IF(ISERROR(VLOOKUP(A83,ﾈｵﾓﾊﾞ一覧!A:D,4,FALSE)),"",VLOOKUP(A83,ﾈｵﾓﾊﾞ一覧!A:D,4,FALSE)) -> -360 | G83: -0.03536345776 | H83: 0.003959612916 | I83: =VLOOKUP(C83,ﾈｵﾓﾊﾞｻﾏﾘ!A:Z,12,FALSE) -> 8896.747318 | K83: 3 | L83: 1 | M83: 7 | N83: 2 | O83: 9 | P83: 1
A84: 2809 | B84: キユーピー | C84: 食品 | D84: 食料品 | E84: =IF(ISERROR(VLOOKUP(A84,ﾈｵﾓﾊﾞ一覧!A:C,3,FALSE)),"",VLOOKUP(A84,ﾈｵﾓﾊﾞ一覧!A:C,3,FALSE)) -> 9230 | F84: =IF(ISERROR(VLOOKUP(A84,ﾈｵﾓﾊﾞ一覧!A:D,4,FALSE)),"",VLOOKUP(A84,ﾈｵﾓﾊﾞ一覧!A:D,4,FALSE)) -> -34 | G84: -0.003670120898 | H84: 0.003721713566 | I84: =VLOOKUP(C84,ﾈｵﾓﾊﾞｻﾏﾘ!A:Z,12,FALSE) -> 8896.747318 | K84: 4 | L84: 5 | M84: 5 | N84: 2 | O84: 8 | P84: 3
A85: 8940 | B85: インテリックス | C85: 不動産 | D85: 不動産業 | E85: =IF(ISERROR(VLOOKUP(A85,ﾈｵﾓﾊﾞ一覧!A:C,3,FALSE)),"",VLOOKUP(A85,ﾈｵﾓﾊﾞ一覧!A:C,3,FALSE)) ->  | F85: =IF(ISERROR(VLOOKUP(A85,ﾈｵﾓﾊﾞ一覧!A:D,4,FALSE)),"",VLOOKUP(A85,ﾈｵﾓﾊﾞ一覧!A:D,4,FALSE)) ->  | I85: =VLOOKUP(C85,ﾈｵﾓﾊﾞｻﾏﾘ!A:Z,12,FALSE) -> 5643.113694 | K85: 2 | L85: 1 | M85: - | N85: 5 | O85: 7 | P85: 1
A86: 8830 | B86: 住友不動産 | C86: 不動産 | D86: 不動産業 | E86: =IF(ISERROR(VLOOKUP(A86,ﾈｵﾓﾊﾞ一覧!A:C,3,FALSE)),"",VLOOKUP(A86,ﾈｵﾓﾊﾞ一覧!A:C,3,FALSE)) -> 15224 | F86: =IF(ISERROR(VLOOKUP(A86,ﾈｵﾓﾊﾞ一覧!A:D,4,FALSE)),"",VLOOKUP(A86,ﾈｵﾓﾊﾞ一覧!A:D,4,FALSE)) -> 5420 | G86: 0.5528355773 | H86: 0.006138609677 | I86: =VLOOKUP(C86,ﾈｵﾓﾊﾞｻﾏﾘ!A:Z,12,FALSE) -> 5643.113694 | J86: 15,692億円 | K86: 5 | L86: 4 | M86: 10 | N86: 6 | O86: 5 | P86: 2
A87: 3003 | B87: ヒューリック | C87: 不動産 | D87: 不動産業 | E87: =IF(ISERROR(VLOOKUP(A87,ﾈｵﾓﾊﾞ一覧!A:C,3,FALSE)),"",VLOOKUP(A87,ﾈｵﾓﾊﾞ一覧!A:C,3,FALSE)) -> 12095 | F87: =IF(ISERROR(VLOOKUP(A87,ﾈｵﾓﾊﾞ一覧!A:D,4,FALSE)),"",VLOOKUP(A87,ﾈｵﾓﾊﾞ一覧!A:D,4,FALSE)) -> 2015 | G87: 0.1999007937 | H87: 0.004876936682 | I87: =VLOOKUP(C87,ﾈｵﾓﾊﾞｻﾏﾘ!A:Z,12,FALSE) -> 5643.113694 | K87: 9 | L87: 7 | M87: 10 | N87: 6 | O87: 9 | P87: 6
A88: 8850 | B88: スターツコーポレーション | C88: 不動産 | D88: 不動産業 | E88: =IF(ISERROR(VLOOKUP(A88,ﾈｵﾓﾊﾞ一覧!A:C,3,FALSE)),"",VLOOKUP(A88,ﾈｵﾓﾊﾞ一覧!A:C,3,FALSE)) -> 11780 | F88: =IF(ISERROR(VLOOKUP(A88,ﾈｵﾓﾊﾞ一覧!A:D,4,FALSE)),"",VLOOKUP(A88,ﾈｵﾓﾊﾞ一覧!A:D,4,FALSE)) -> 1160 | G88: 0.1092278719 | H88: 0.004749922622 | I88: =VLOOKUP(C88,ﾈｵﾓﾊﾞｻﾏﾘ!A:Z,12,FALSE) -> 5643.113694 | K88: 10 | L88: 10 | M88: 8 | N88: 9 | O88: 10 | P88: 4
A89: 3252 | B89: 地主 | C89: 不動産 | D89: 不動産業 | E89: =IF(ISERROR(VLOOKUP(A89,ﾈｵﾓﾊﾞ一覧!A:C,3,FALSE)),"",VLOOKUP(A89,ﾈｵﾓﾊﾞ一覧!A:C,3,FALSE)) -> 9530 | F89: =IF(ISERROR(VLOOKUP(A89,ﾈｵﾓﾊﾞ一覧!A:D,4,FALSE)),"",VLOOKUP(A89,ﾈｵﾓﾊﾞ一覧!A:D,4,FALSE)) -> -870 | G89: -0.08365384615 | H89: 0.003842679337 | I89: =VLOOKUP(C89,ﾈｵﾓﾊﾞｻﾏﾘ!A:Z,12,FALSE) -> 5643.113694 | K89: 10 | L89: 9 | M89: 8 | N89: 7 | O89: 10 | P89: 5
A90: 9076 | B90: セイノーＨＬＤＧ | C90: 運輸・物流 | D90: 陸運業 | E90: =IF(ISERROR(VLOOKUP(A90,ﾈｵﾓﾊﾞ一覧!A:C,3,FALSE)),"",VLOOKUP(A90,ﾈｵﾓﾊﾞ一覧!A:C,3,FALSE)) ->  | F90: =IF(ISERROR(VLOOKUP(A90,ﾈｵﾓﾊﾞ一覧!A:D,4,FALSE)),"",VLOOKUP(A90,ﾈｵﾓﾊﾞ一覧!A:D,4,FALSE)) ->  | I90: =VLOOKUP(C90,ﾈｵﾓﾊﾞｻﾏﾘ!A:Z,12,FALSE) -> 5491.35866 | K90: 3 | L90: 4 | M90: 3 | N90: 3 | O90: 5 | P90: 6
A91: 9022 | B91: 東海旅客鉄道 | C91: 運輸・物流 | D91: 陸運業 | E91: =IF(ISERROR(VLOOKUP(A91,ﾈｵﾓﾊﾞ一覧!A:C,3,FALSE)),"",VLOOKUP(A91,ﾈｵﾓﾊﾞ一覧!A:C,3,FALSE)) ->  | F91: =IF(ISERROR(VLOOKUP(A91,ﾈｵﾓﾊﾞ一覧!A:D,4,FALSE)),"",VLOOKUP(A91,ﾈｵﾓﾊﾞ一覧!A:D,4,FALSE)) ->  | I91: =VLOOKUP(C91,ﾈｵﾓﾊﾞｻﾏﾘ!A:Z,12,FALSE) -> 5491.35866 | J91: 45,639億円 | K91: 8 | L91: 10 | M91: 8 | N91: 4 | O91: 8 | P91: 2
A92: 9364 | B92: 上組 | C92: 運輸・物流 | D92: 倉庫・運輸関連業 | E92: =IF(ISERROR(VLOOKUP(A92,ﾈｵﾓﾊﾞ一覧!A:C,3,FALSE)),"",VLOOKUP(A92,ﾈｵﾓﾊﾞ一覧!A:C,3,FALSE)) ->  | F92: =IF(ISERROR(VLOOKUP(A92,ﾈｵﾓﾊﾞ一覧!A:D,4,FALSE)),"",VLOOKUP(A92,ﾈｵﾓﾊﾞ一覧!A:D,4,FALSE)) ->  | I92: =VLOOKUP(C92,ﾈｵﾓﾊﾞｻﾏﾘ!A:Z,12,FALSE) -> 5491.35866 | K92: 9 | L92: 8 | M92: 9 | N92: 4 | O92: 10 | P92: 6
A93: 9099 | B93: Ｃ＆Ｆロジホールディングス | C93: 運輸・物流 | D93: 陸運業 | E93: =IF(ISERROR(VLOOKUP(A93,ﾈｵﾓﾊﾞ一覧!A:C,3,FALSE)),"",VLOOKUP(A93,ﾈｵﾓﾊﾞ一覧!A:C,3,FALSE)) ->  | F93: =IF(ISERROR(VLOOKUP(A93,ﾈｵﾓﾊﾞ一覧!A:D,4,FALSE)),"",VLOOKUP(A93,ﾈｵﾓﾊﾞ一覧!A:D,4,FALSE)) ->  | I93: =VLOOKUP(C93,ﾈｵﾓﾊﾞｻﾏﾘ!A:Z,12,FALSE) -> 5491.35866 | K93: 6 | L93: 5 | M93: 8 | N93: 8 | O93: 4 | P93: 4
A94: 2384 | B94: ＳＢＳホールディングス | C94: 運輸・物流 | D94: 陸運業 | E94: =IF(ISERROR(VLOOKUP(A94,ﾈｵﾓﾊﾞ一覧!A:C,3,FALSE)),"",VLOOKUP(A94,ﾈｵﾓﾊﾞ一覧!A:C,3,FALSE)) -> 16850 | F94: =IF(ISERROR(VLOOKUP(A94,ﾈｵﾓﾊﾞ一覧!A:D,4,FALSE)),"",VLOOKUP(A94,ﾈｵﾓﾊﾞ一覧!A:D,4,FALSE)) -> 7725 | G94: 0.8465753425 | H94: 0.006794244158 | I94: =VLOOKUP(C94,ﾈｵﾓﾊﾞｻﾏﾘ!A:Z,12,FALSE) -> 5491.35866 | K94: 9 | L94: 6 | M94: 9 | N94: 9 | O94: 6 | P94: 7
A95: 9037 | B95: ハマキョウレックス | C95: 運輸・物流 | D95: 陸運業 | E95: =IF(ISERROR(VLOOKUP(A95,ﾈｵﾓﾊﾞ一覧!A:C,3,FALSE)),"",VLOOKUP(A95,ﾈｵﾓﾊﾞ一覧!A:C,3,FALSE)) -> 15700 | F95: =IF(ISERROR(VLOOKUP(A95,ﾈｵﾓﾊﾞ一覧!A:D,4,FALSE)),"",VLOOKUP(A95,ﾈｵﾓﾊﾞ一覧!A:D,4,FALSE)) -> 4132 | G95: 0.3571922545 | H95: 0.006330542035 | I95: =VLOOKUP(C95,ﾈｵﾓﾊﾞｻﾏﾘ!A:Z,12,FALSE) -> 5491.35866 | K95: 10 | L95: 8 | M95: 10 | N95: 8 | O95: 9 | P95: 9
A96: 9072 | B96: ニッコンホールディングス | C96: 運輸・物流 | D96: 陸運業 | E96: =IF(ISERROR(VLOOKUP(A96,ﾈｵﾓﾊﾞ一覧!A:C,3,FALSE)),"",VLOOKUP(A96,ﾈｵﾓﾊﾞ一覧!A:C,3,FALSE)) -> 14927.5 | F96: =IF(ISERROR(VLOOKUP(A96,ﾈｵﾓﾊﾞ一覧!A:D,4,FALSE)),"",VLOOKUP(A96,ﾈｵﾓﾊﾞ一覧!A:D,4,FALSE)) -> 4552 | G96: 0.4387258445 | H96: 0.006019055173 | I96: =VLOOKUP(C96,ﾈｵﾓﾊﾞｻﾏﾘ!A:Z,12,FALSE) -> 5491.35866 | K96: 10 | L96: 7 | M96: 9 | N96: 5 | O96: 10 | P96: 9
A97: 9302 | B97: 三井倉庫ＨＬＤＧ | C97: 運輸・物流 | D97: 倉庫・運輸関連業 | E97: =IF(ISERROR(VLOOKUP(A97,ﾈｵﾓﾊﾞ一覧!A:C,3,FALSE)),"",VLOOKUP(A97,ﾈｵﾓﾊﾞ一覧!A:C,3,FALSE)) -> 14500 | F97: =IF(ISERROR(VLOOKUP(A97,ﾈｵﾓﾊﾞ一覧!A:D,4,FALSE)),"",VLOOKUP(A97,ﾈｵﾓﾊﾞ一覧!A:D,4,FALSE)) -> 2924 | G97: 0.2525915688 | H97: 0.005846678949 | I97: =VLOOKUP(C97,ﾈｵﾓﾊﾞｻﾏﾘ!A:Z,12,FALSE) -> 5491.35866 | K97: 9 | L97: 9 | M97: 10 | N97: 9 | O97: 6 | P97: 5
A98: 9025 | B98: 鴻池運輸 | C98: 運輸・物流 | D98: 陸運業 | E98: =IF(ISERROR(VLOOKUP(A98,ﾈｵﾓﾊﾞ一覧!A:C,3,FALSE)),"",VLOOKUP(A98,ﾈｵﾓﾊﾞ一覧!A:C,3,FALSE)) -> 14248 | F98: =IF(ISERROR(VLOOKUP(A98,ﾈｵﾓﾊﾞ一覧!A:D,4,FALSE)),"",VLOOKUP(A98,ﾈｵﾓﾊﾞ一覧!A:D,4,FALSE)) -> 3920 | G98: 0.3795507359 | H98: 0.005745067701 | I98: =VLOOKUP(C98,ﾈｵﾓﾊﾞｻﾏﾘ!A:Z,12,FALSE) -> 5491.35866 | K98: 9 | L98: 7 | M98: 5 | N98: 8 | O98: 7 | P98: 10
A99: 9069 | B99: センコーグループホールディングス | C99: 運輸・物流 | D99: 陸運業 | E99: =IF(ISERROR(VLOOKUP(A99,ﾈｵﾓﾊﾞ一覧!A:C,3,FALSE)),"",VLOOKUP(A99,ﾈｵﾓﾊﾞ一覧!A:C,3,FALSE)) -> 10290 | F99: =IF(ISERROR(VLOOKUP(A99,ﾈｵﾓﾊﾞ一覧!A:D,4,FALSE)),"",VLOOKUP(A99,ﾈｵﾓﾊﾞ一覧!A:D,4,FALSE)) -> 580 | G99: 0.05973223481 | H99: 0.004149125958 | I99: =VLOOKUP(C99,ﾈｵﾓﾊﾞｻﾏﾘ!A:Z,12,FALSE) -> 5491.35866 | K99: 7 | L99: 4 | M99: 4 | N99: 9 | O99: 10 | P99: 6
A100: 9147 | B100: ＮＩＰＰＯＮ ＥＸＰＲＥＳＳ | C100: 運輸・物流 | D100: 陸運業 | E100: =IF(ISERROR(VLOOKUP(A100,ﾈｵﾓﾊﾞ一覧!A:C,3,FALSE)),"",VLOOKUP(A100,ﾈｵﾓﾊﾞ一覧!A:C,3,FALSE)) -> 8335 | F100: =IF(ISERROR(VLOOKUP(A100,ﾈｵﾓﾊﾞ一覧!A:D,4,FALSE)),"",VLOOKUP(A100,ﾈｵﾓﾊﾞ一覧!A:D,4,FALSE)) -> 265 | G100: 0.03283767038 | H100: 0.003360832348 | I100: =VLOOKUP(C100,ﾈｵﾓﾊﾞｻﾏﾘ!A:Z,12,FALSE) -> 5491.35866 | K100: 7 | L100: 7 | M100: 5 | N100: 9 | O100: 9 | P100: 2
A101: 9502 | B101: 中部電力 | C101: 電気・ガス | D101: 電気・ガス業 | E101: =IF(ISERROR(VLOOKUP(A101,ﾈｵﾓﾊﾞ一覧!A:C,3,FALSE)),"",VLOOKUP(A101,ﾈｵﾓﾊﾞ一覧!A:C,3,FALSE)) ->  | F101: =IF(ISERROR(VLOOKUP(A101,ﾈｵﾓﾊﾞ一覧!A:D,4,FALSE)),"",VLOOKUP(A101,ﾈｵﾓﾊﾞ一覧!A:D,4,FALSE)) ->  | I101: =VLOOKUP(C101,ﾈｵﾓﾊﾞｻﾏﾘ!A:Z,12,FALSE) -> 4464.433215 | K101: 10 | L101: 10 | M101: 8 | N101: 7 | O101: 10 | P101: 6
A102: 9503 | B102: 関西電力 | C102: 電気・ガス | D102: 電気・ガス業 | E102: =IF(ISERROR(VLOOKUP(A102,ﾈｵﾓﾊﾞ一覧!A:C,3,FALSE)),"",VLOOKUP(A102,ﾈｵﾓﾊﾞ一覧!A:C,3,FALSE)) ->  | F102: =IF(ISERROR(VLOOKUP(A102,ﾈｵﾓﾊﾞ一覧!A:D,4,FALSE)),"",VLOOKUP(A102,ﾈｵﾓﾊﾞ一覧!A:D,4,FALSE)) ->  | I102: =VLOOKUP(C102,ﾈｵﾓﾊﾞｻﾏﾘ!A:Z,12,FALSE) -> 4464.433215 | J102: 11,622億円 | K102: 7 | L102: 8 | M102: 9 | N102: 5 | O102: 4 | P102: 6
A103: 9507 | B103: 四国電力 | C103: 電気・ガス | D103: 電気・ガス業 | E103: =IF(ISERROR(VLOOKUP(A103,ﾈｵﾓﾊﾞ一覧!A:C,3,FALSE)),"",VLOOKUP(A103,ﾈｵﾓﾊﾞ一覧!A:C,3,FALSE)) ->  | F103: =IF(ISERROR(VLOOKUP(A103,ﾈｵﾓﾊﾞ一覧!A:D,4,FALSE)),"",VLOOKUP(A103,ﾈｵﾓﾊﾞ一覧!A:D,4,FALSE)) ->  | I103: =VLOOKUP(C103,ﾈｵﾓﾊﾞｻﾏﾘ!A:Z,12,FALSE) -> 4464.433215 | K103: 6 | L103: 5 | M103: 4 | N103: 10 | O103: 4 | P103: 5
A104: 9534 | B104: 北海道瓦斯 | C104: 電気・ガス | D104: 電気・ガス業 | E104: =IF(ISERROR(VLOOKUP(A104,ﾈｵﾓﾊﾞ一覧!A:C,3,FALSE)),"",VLOOKUP(A104,ﾈｵﾓﾊﾞ一覧!A:C,3,FALSE)) ->  | F104: =IF(ISERROR(VLOOKUP(A104,ﾈｵﾓﾊﾞ一覧!A:D,4,FALSE)),"",VLOOKUP(A104,ﾈｵﾓﾊﾞ一覧!A:D,4,FALSE)) ->  | I104: =VLOOKUP(C104,ﾈｵﾓﾊﾞｻﾏﾘ!A:Z,12,FALSE) -> 4464.433215 | K104: 10 | L104: 8 | M104: - | N104: 10 | O104: 8 | P104: 6
A105: 9543 | B105: 静岡ガス | C105: 電気・ガス | D105: 電気・ガス業 | E105: =IF(ISERROR(VLOOKUP(A105,ﾈｵﾓﾊﾞ一覧!A:C,3,FALSE)),"",VLOOKUP(A105,ﾈｵﾓﾊﾞ一覧!A:C,3,FALSE)) ->  | F105: =IF(ISERROR(VLOOKUP(A105,ﾈｵﾓﾊﾞ一覧!A:D,4,FALSE)),"",VLOOKUP(A105,ﾈｵﾓﾊﾞ一覧!A:D,4,FALSE)) ->  | I105: =VLOOKUP(C105,ﾈｵﾓﾊﾞｻﾏﾘ!A:Z,12,FALSE) -> 4464.433215 | K105: 8 | L105: 7 | M105: - | N105: 10 | O105: 7 | P105: 3
A106: 9513 | B106: 電源開発 | C106: 電気・ガス | D106: 電気・ガス業 | E106: =IF(ISERROR(VLOOKUP(A106,ﾈｵﾓﾊﾞ一覧!A:C,3,FALSE)),"",VLOOKUP(A106,ﾈｵﾓﾊﾞ一覧!A:C,3,FALSE)) -> 6750 | F106: =IF(ISERROR(VLOOKUP(A106,ﾈｵﾓﾊﾞ一覧!A:D,4,FALSE)),"",VLOOKUP(A106,ﾈｵﾓﾊﾞ一覧!A:D,4,FALSE)) -> 816 | G106: 0.137512639 | H106: 0.002721729856 | I106: =VLOOKUP(C106,ﾈｵﾓﾊﾞｻﾏﾘ!A:Z,12,FALSE) -> 4464.433215 | K106: 9 | L106: 10 | M106: 7 | N106: 10 | O106: 7 | P106: 3
A107: 9531 | B107: 東京瓦斯 | C107: 電気・ガス | D107: 電気・ガス業 | E107: =IF(ISERROR(VLOOKUP(A107,ﾈｵﾓﾊﾞ一覧!A:C,3,FALSE)),"",VLOOKUP(A107,ﾈｵﾓﾊﾞ一覧!A:C,3,FALSE)) -> 3225 | F107: =IF(ISERROR(VLOOKUP(A107,ﾈｵﾓﾊﾞ一覧!A:D,4,FALSE)),"",VLOOKUP(A107,ﾈｵﾓﾊﾞ一覧!A:D,4,FALSE)) -> 630 | G107: 0.2427745665 | H107: 0.001300382042 | I107: =VLOOKUP(C107,ﾈｵﾓﾊﾞｻﾏﾘ!A:Z,12,FALSE) -> 4464.433215 | K107: 10 | L107: 10 | M107: 7 | N107: 9 | O107: 9 | P107: 5
A108: 9532 | B108: 大阪瓦斯 | C108: 電気・ガス | D108: 電気・ガス業 | E108: =IF(ISERROR(VLOOKUP(A108,ﾈｵﾓﾊﾞ一覧!A:C,3,FALSE)),"",VLOOKUP(A108,ﾈｵﾓﾊﾞ一覧!A:C,3,FALSE)) -> 2238 | F108: =IF(ISERROR(VLOOKUP(A108,ﾈｵﾓﾊﾞ一覧!A:D,4,FALSE)),"",VLOOKUP(A108,ﾈｵﾓﾊﾞ一覧!A:D,4,FALSE)) -> 269 | G108: 0.1366175724 | H108: 0.0009024046544 | I108: =VLOOKUP(C108,ﾈｵﾓﾊﾞｻﾏﾘ!A:Z,12,FALSE) -> 4464.433215 | K108: 5 | L108: 2 | M108: 5 | N108: 8 | O108: 8 | P108: 2
A109: 9509 | B109: 北海道電力 | C109: 電気・ガス | D109: 電気・ガス業 | E109: =IF(ISERROR(VLOOKUP(A109,ﾈｵﾓﾊﾞ一覧!A:C,3,FALSE)),"",VLOOKUP(A109,ﾈｵﾓﾊﾞ一覧!A:C,3,FALSE)) -> 1991.4 | F109: =IF(ISERROR(VLOOKUP(A109,ﾈｵﾓﾊﾞ一覧!A:D,4,FALSE)),"",VLOOKUP(A109,ﾈｵﾓﾊﾞ一覧!A:D,4,FALSE)) -> 437 | G109: 0.2811374164 | H109: 0.0008029707903 | I109: =VLOOKUP(C109,ﾈｵﾓﾊﾞｻﾏﾘ!A:Z,12,FALSE) -> 4464.433215 | K109: 7 | L109: 2 | M109: 9 | N109: 10 | O109: 6 | P109: 4
A110: 9508 | B110: 九州電力 | C110: 電気・ガス | D110: 電気・ガス業 | E110: =IF(ISERROR(VLOOKUP(A110,ﾈｵﾓﾊﾞ一覧!A:C,3,FALSE)),"",VLOOKUP(A110,ﾈｵﾓﾊﾞ一覧!A:C,3,FALSE)) -> 1932.6 | F110: =IF(ISERROR(VLOOKUP(A110,ﾈｵﾓﾊﾞ一覧!A:D,4,FALSE)),"",VLOOKUP(A110,ﾈｵﾓﾊﾞ一覧!A:D,4,FALSE)) -> 2 | G110: 0.001035947374 | H110: 0.0007792614991 | I110: =VLOOKUP(C110,ﾈｵﾓﾊﾞｻﾏﾘ!A:Z,12,FALSE) -> 4464.433215 | K110: 6 | L110: 3 | M110: 10 | N110: 10 | O110: 4 | P110: 4
A111: 9506 | B111: 東北電力 | C111: 電気・ガス | D111: 電気・ガス業 | E111: =IF(ISERROR(VLOOKUP(A111,ﾈｵﾓﾊﾞ一覧!A:C,3,FALSE)),"",VLOOKUP(A111,ﾈｵﾓﾊﾞ一覧!A:C,3,FALSE)) -> 1893 | F111: =IF(ISERROR(VLOOKUP(A111,ﾈｵﾓﾊﾞ一覧!A:D,4,FALSE)),"",VLOOKUP(A111,ﾈｵﾓﾊﾞ一覧!A:D,4,FALSE)) -> -63 | G111: -0.03220858896 | H111: 0.0007632940173 | I111: =VLOOKUP(C111,ﾈｵﾓﾊﾞｻﾏﾘ!A:Z,12,FALSE) -> 4464.433215 | K111: 5 | L111: 2 | M111: 4 | N111: 10 | O111: 3 | P111: 5
A112: 9505 | B112: 北陸電力 | C112: 電気・ガス | D112: 電気・ガス業 | E112: =IF(ISERROR(VLOOKUP(A112,ﾈｵﾓﾊﾞ一覧!A:C,3,FALSE)),"",VLOOKUP(A112,ﾈｵﾓﾊﾞ一覧!A:C,3,FALSE)) -> 1734.2 | F112: =IF(ISERROR(VLOOKUP(A112,ﾈｵﾓﾊﾞ一覧!A:D,4,FALSE)),"",VLOOKUP(A112,ﾈｵﾓﾊﾞ一覧!A:D,4,FALSE)) -> 232 | G112: 0.1544401544 | H112: 0.0006992628023 | I112: =VLOOKUP(C112,ﾈｵﾓﾊﾞｻﾏﾘ!A:Z,12,FALSE) -> 4464.433215 | K112: 4 | L112: 2 | M112: 2 | N112: 10 | O112: 4 | P112: 6
A113: 9511 | B113: 沖縄電力 | C113: 電気・ガス | D113: 電気・ガス業 | E113: =IF(ISERROR(VLOOKUP(A113,ﾈｵﾓﾊﾞ一覧!A:C,3,FALSE)),"",VLOOKUP(A113,ﾈｵﾓﾊﾞ一覧!A:C,3,FALSE)) -> 1155 | F113: =IF(ISERROR(VLOOKUP(A113,ﾈｵﾓﾊﾞ一覧!A:D,4,FALSE)),"",VLOOKUP(A113,ﾈｵﾓﾊﾞ一覧!A:D,4,FALSE)) -> -215 | G113: -0.1569343066 | H113: 0.0004657182198 | I113: =VLOOKUP(C113,ﾈｵﾓﾊﾞｻﾏﾘ!A:Z,12,FALSE) -> 4464.433215 | K113: 4 | L113: 1 | M113: - | N113: 10 | O113: 6 | P113: 1
A114: 9504 | B114: 中国電力 | C114: 電気・ガス | D114: 電気・ガス業 | E114: =IF(ISERROR(VLOOKUP(A114,ﾈｵﾓﾊﾞ一覧!A:C,3,FALSE)),"",VLOOKUP(A114,ﾈｵﾓﾊﾞ一覧!A:C,3,FALSE)) -> 986.8 | F114: =IF(ISERROR(VLOOKUP(A114,ﾈｵﾓﾊﾞ一覧!A:D,4,FALSE)),"",VLOOKUP(A114,ﾈｵﾓﾊﾞ一覧!A:D,4,FALSE)) -> -238 | G114: -0.1943174396 | H114: 0.0003978967439 | I114: =VLOOKUP(C114,ﾈｵﾓﾊﾞｻﾏﾘ!A:Z,12,FALSE) -> 4464.433215 | K114: 6 | L114: 2 | M114: 7 | N114: 10 | O114: 4 | P114: 4
A115: 5440 | B115: 共英製鋼 | C115: 鉄鋼・非鉄 | D115: 鉄鋼 | E115: =IF(ISERROR(VLOOKUP(A115,ﾈｵﾓﾊﾞ一覧!A:C,3,FALSE)),"",VLOOKUP(A115,ﾈｵﾓﾊﾞ一覧!A:C,3,FALSE)) ->  | F115: =IF(ISERROR(VLOOKUP(A115,ﾈｵﾓﾊﾞ一覧!A:D,4,FALSE)),"",VLOOKUP(A115,ﾈｵﾓﾊﾞ一覧!A:D,4,FALSE)) ->  | I115: =VLOOKUP(C115,ﾈｵﾓﾊﾞｻﾏﾘ!A:Z,12,FALSE) -> -489.4507458 | K115: 10 | L115: 7 | M115: 9 | N115: 10 | O115: 5 | P115: 10
A116: 5423 | B116: 東京製鐵 | C116: 鉄鋼・非鉄 | D116: 鉄鋼 | E116: =IF(ISERROR(VLOOKUP(A116,ﾈｵﾓﾊﾞ一覧!A:C,3,FALSE)),"",VLOOKUP(A116,ﾈｵﾓﾊﾞ一覧!A:C,3,FALSE)) ->  | F116: =IF(ISERROR(VLOOKUP(A116,ﾈｵﾓﾊﾞ一覧!A:D,4,FALSE)),"",VLOOKUP(A116,ﾈｵﾓﾊﾞ一覧!A:D,4,FALSE)) ->  | I116: =VLOOKUP(C116,ﾈｵﾓﾊﾞｻﾏﾘ!A:Z,12,FALSE) -> -489.4507458 | K116: 10 | L116: 10 | M116: 9 | N116: 9 | O116: 3 | P116: 8
A117: 5480 | B117: 日本冶金工業 | C117: 鉄鋼・非鉄 | D117: 鉄鋼 | E117: =IF(ISERROR(VLOOKUP(A117,ﾈｵﾓﾊﾞ一覧!A:C,3,FALSE)),"",VLOOKUP(A117,ﾈｵﾓﾊﾞ一覧!A:C,3,FALSE)) -> 21775 | F117: =IF(ISERROR(VLOOKUP(A117,ﾈｵﾓﾊﾞ一覧!A:D,4,FALSE)),"",VLOOKUP(A117,ﾈｵﾓﾊﾞ一覧!A:D,4,FALSE)) -> 12550 | G117: 1.360433604 | H117: 0.008780098905 | I117: =VLOOKUP(C117,ﾈｵﾓﾊﾞｻﾏﾘ!A:Z,12,FALSE) -> -489.4507458 | K117: 10 | L117: 8 | M117: 8 | N117: 10 | O117: 4 | P117: 9
A118: 5401 | B118: 日本製鉄 | C118: 鉄鋼・非鉄 | D118: 鉄鋼 | E118: =IF(ISERROR(VLOOKUP(A118,ﾈｵﾓﾊﾞ一覧!A:C,3,FALSE)),"",VLOOKUP(A118,ﾈｵﾓﾊﾞ一覧!A:C,3,FALSE)) -> 16230 | F118: =IF(ISERROR(VLOOKUP(A118,ﾈｵﾓﾊﾞ一覧!A:D,4,FALSE)),"",VLOOKUP(A118,ﾈｵﾓﾊﾞ一覧!A:D,4,FALSE)) -> 6130 | G118: 0.6069306931 | H118: 0.006544248231 | I118: =VLOOKUP(C118,ﾈｵﾓﾊﾞｻﾏﾘ!A:Z,12,FALSE) -> -489.4507458 | K118: 9 | L118: 9 | M118: 8 | N118: 9 | O118: 5 | P118: 6
A119: 5020 | B119: ＥＮＥＯＳ ＨＬＤＧ | C119: エネルギー資源 | D119: 石油・石炭製品 | E119: =IF(ISERROR(VLOOKUP(A119,ﾈｵﾓﾊﾞ一覧!A:C,3,FALSE)),"",VLOOKUP(A119,ﾈｵﾓﾊﾞ一覧!A:C,3,FALSE)) -> 11854.2 | F119: =IF(ISERROR(VLOOKUP(A119,ﾈｵﾓﾊﾞ一覧!A:D,4,FALSE)),"",VLOOKUP(A119,ﾈｵﾓﾊﾞ一覧!A:D,4,FALSE)) -> 1389 | G119: 0.1327256049 | H119: 0.00477984149 | I119: =VLOOKUP(C119,ﾈｵﾓﾊﾞｻﾏﾘ!A:Z,12,FALSE) -> -1938.021446 | K119: 5 | L119: 1 | M119: 6 | N119: 9 | O119: 9 | P119: 2
A120: 5019 | B120: 出光興産 | C120: エネルギー資源 | D120: 石油・石炭製品 | E120: =IF(ISERROR(VLOOKUP(A120,ﾈｵﾓﾊﾞ一覧!A:C,3,FALSE)),"",VLOOKUP(A120,ﾈｵﾓﾊﾞ一覧!A:C,3,FALSE)) -> 9000 | F120: =IF(ISERROR(VLOOKUP(A120,ﾈｵﾓﾊﾞ一覧!A:D,4,FALSE)),"",VLOOKUP(A120,ﾈｵﾓﾊﾞ一覧!A:D,4,FALSE)) -> -660 | G120: -0.06832298137 | H120: 0.003628973141 | I120: =VLOOKUP(C120,ﾈｵﾓﾊﾞｻﾏﾘ!A:Z,12,FALSE) -> -1938.021446 | K120: 7 | L120: 6 | M120: 4 | N120: 10 | O120: 10 | P120: 2
A121: 6460 | B121: セガサミーＨＬＤＧ | C121: 機械 | D121: 機械 | E121: =IF(ISERROR(VLOOKUP(A121,ﾈｵﾓﾊﾞ一覧!A:C,3,FALSE)),"",VLOOKUP(A121,ﾈｵﾓﾊﾞ一覧!A:C,3,FALSE)) ->  | F121: =IF(ISERROR(VLOOKUP(A121,ﾈｵﾓﾊﾞ一覧!A:D,4,FALSE)),"",VLOOKUP(A121,ﾈｵﾓﾊﾞ一覧!A:D,4,FALSE)) ->  | I121: =VLOOKUP(C121,ﾈｵﾓﾊﾞｻﾏﾘ!A:Z,12,FALSE) -> -3161.661908 | K121: 9 | L121: 8 | M121: 8 | N121: 4 | O121: 7 | P121: 10
A122: 6371 | B122: 椿本チエイン | C122: 機械 | D122: 機械 | E122: =IF(ISERROR(VLOOKUP(A122,ﾈｵﾓﾊﾞ一覧!A:C,3,FALSE)),"",VLOOKUP(A122,ﾈｵﾓﾊﾞ一覧!A:C,3,FALSE)) ->  | F122: =IF(ISERROR(VLOOKUP(A122,ﾈｵﾓﾊﾞ一覧!A:D,4,FALSE)),"",VLOOKUP(A122,ﾈｵﾓﾊﾞ一覧!A:D,4,FALSE)) ->  | I122: =VLOOKUP(C122,ﾈｵﾓﾊﾞｻﾏﾘ!A:Z,12,FALSE) -> -3161.661908 | K122: 10 | L122: 8 | M122: 9 | N122: 8 | O122: 10 | P122: 6
A123: 6143 | B123: ソディック | C123: 機械 | D123: 機械 | E123: =IF(ISERROR(VLOOKUP(A123,ﾈｵﾓﾊﾞ一覧!A:C,3,FALSE)),"",VLOOKUP(A123,ﾈｵﾓﾊﾞ一覧!A:C,3,FALSE)) ->  | F123: =IF(ISERROR(VLOOKUP(A123,ﾈｵﾓﾊﾞ一覧!A:D,4,FALSE)),"",VLOOKUP(A123,ﾈｵﾓﾊﾞ一覧!A:D,4,FALSE)) ->  | I123: =VLOOKUP(C123,ﾈｵﾓﾊﾞｻﾏﾘ!A:Z,12,FALSE) -> -3161.661908 | K123: 7 | L123: 2 | M123: 8 | N123: 9 | O123: 8 | P123: 4
A124: 6368 | B124: オルガノ | C124: 機械 | D124: 機械 | E124: =IF(ISERROR(VLOOKUP(A124,ﾈｵﾓﾊﾞ一覧!A:C,3,FALSE)),"",VLOOKUP(A124,ﾈｵﾓﾊﾞ一覧!A:C,3,FALSE)) -> 32920 | F124: =IF(ISERROR(VLOOKUP(A124,ﾈｵﾓﾊﾞ一覧!A:D,4,FALSE)),"",VLOOKUP(A124,ﾈｵﾓﾊﾞ一覧!A:D,4,FALSE)) -> 21800 | G124: 1.960431655 | H124: 0.01327397731 | I124: =VLOOKUP(C124,ﾈｵﾓﾊﾞｻﾏﾘ!A:Z,12,FALSE) -> -3161.661908 | K124: 5 | L124: 4 | M124: 2 | N124: 3 | O124: 7 | P124: 9
A125: 6367 | B125: ダイキン工業 | C125: 機械 | D125: 機械 | E125: =IF(ISERROR(VLOOKUP(A125,ﾈｵﾓﾊﾞ一覧!A:C,3,FALSE)),"",VLOOKUP(A125,ﾈｵﾓﾊﾞ一覧!A:C,3,FALSE)) -> 28690 | F125: =IF(ISERROR(VLOOKUP(A125,ﾈｵﾓﾊﾞ一覧!A:D,4,FALSE)),"",VLOOKUP(A125,ﾈｵﾓﾊﾞ一覧!A:D,4,FALSE)) -> 16530 | G125: 1.359375 | H125: 0.01156835993 | I125: =VLOOKUP(C125,ﾈｵﾓﾊﾞｻﾏﾘ!A:Z,12,FALSE) -> -3161.661908 | J125: 44,480億円 | K125: 4 | L125: 3 | M125: 2 | N125: 2 | O125: 7 | P125: 10
A126: 7004 | B126: 日立造船 | C126: 機械 | D126: 機械 | E126: =IF(ISERROR(VLOOKUP(A126,ﾈｵﾓﾊﾞ一覧!A:C,3,FALSE)),"",VLOOKUP(A126,ﾈｵﾓﾊﾞ一覧!A:C,3,FALSE)) -> 23375 | F126: =IF(ISERROR(VLOOKUP(A126,ﾈｵﾓﾊﾞ一覧!A:D,4,FALSE)),"",VLOOKUP(A126,ﾈｵﾓﾊﾞ一覧!A:D,4,FALSE)) -> 13050 | G126: 1.263922518 | H126: 0.009425249685 | I126: =VLOOKUP(C126,ﾈｵﾓﾊﾞｻﾏﾘ!A:Z,12,FALSE) -> -3161.661908 | K126: 5 | L126: 8 | M126: 2 | N126: 9 | O126: 5 | P126: 4
A127: 6420 | B127: フクシマガリレイ | C127: 機械 | D127: 機械 | E127: =IF(ISERROR(VLOOKUP(A127,ﾈｵﾓﾊﾞ一覧!A:C,3,FALSE)),"",VLOOKUP(A127,ﾈｵﾓﾊﾞ一覧!A:C,3,FALSE)) -> 15120 | F127: =IF(ISERROR(VLOOKUP(A127,ﾈｵﾓﾊﾞ一覧!A:D,4,FALSE)),"",VLOOKUP(A127,ﾈｵﾓﾊﾞ一覧!A:D,4,FALSE)) -> 5145 | G127: 0.5157894737 | H127: 0.006096674877 | I127: =VLOOKUP(C127,ﾈｵﾓﾊﾞｻﾏﾘ!A:Z,12,FALSE) -> -3161.661908 | K127: 9 | L127: 9 | M127: - | N127: 5 | O127: 6 | P127: 9
A128: 6134 | B128: ＦＵＪＩ | C128: 機械 | D128: 機械 | E128: =IF(ISERROR(VLOOKUP(A128,ﾈｵﾓﾊﾞ一覧!A:C,3,FALSE)),"",VLOOKUP(A128,ﾈｵﾓﾊﾞ一覧!A:C,3,FALSE)) -> 12997.5 | F128: =IF(ISERROR(VLOOKUP(A128,ﾈｵﾓﾊﾞ一覧!A:D,4,FALSE)),"",VLOOKUP(A128,ﾈｵﾓﾊﾞ一覧!A:D,4,FALSE)) -> 3497 | G128: 0.3680858902 | H128: 0.005240842044 | I128: =VLOOKUP(C128,ﾈｵﾓﾊﾞｻﾏﾘ!A:Z,12,FALSE) -> -3161.661908 | K128: 7 | L128: 6 | M128: 8 | N128: 3 | O128: 7 | P128: 9
A129: 6465 | B129: ホシザキ | C129: 機械 | D129: 機械 | E129: =IF(ISERROR(VLOOKUP(A129,ﾈｵﾓﾊﾞ一覧!A:C,3,FALSE)),"",VLOOKUP(A129,ﾈｵﾓﾊﾞ一覧!A:C,3,FALSE)) -> 10896 | F129: =IF(ISERROR(VLOOKUP(A129,ﾈｵﾓﾊﾞ一覧!A:D,4,FALSE)),"",VLOOKUP(A129,ﾈｵﾓﾊﾞ一覧!A:D,4,FALSE)) -> 1666 | G129: 0.1804983749 | H129: 0.004393476816 | I129: =VLOOKUP(C129,ﾈｵﾓﾊﾞｻﾏﾘ!A:Z,12,FALSE) -> -3161.661908 | K129: 6 | L129: 4 | M129: 8 | N129: 2 | O129: 9 | P129: 5
A130: 1801 | B130: 大成建設 | C130: 建設・資材 | D130: 建設業 | E130: =IF(ISERROR(VLOOKUP(A130,ﾈｵﾓﾊﾞ一覧!A:C,3,FALSE)),"",VLOOKUP(A130,ﾈｵﾓﾊﾞ一覧!A:C,3,FALSE)) ->  | F130: =IF(ISERROR(VLOOKUP(A130,ﾈｵﾓﾊﾞ一覧!A:D,4,FALSE)),"",VLOOKUP(A130,ﾈｵﾓﾊﾞ一覧!A:D,4,FALSE)) ->  | G130: =F130/(E130-F130) ->  | H130: =E130/SUM(E:E) ->  | I130: =VLOOKUP(C130,ﾈｵﾓﾊﾞｻﾏﾘ!A:Z,12,FALSE) -> -5501.230519 | K130: 5 | L130: 1 | M130: 1 | N130: 3 | O130: 10 | P130: 10
A131: 1835 | B131: 東鉄工業 | C131: 建設・資材 | D131: 建設業 | E131: =IF(ISERROR(VLOOKUP(A131,ﾈｵﾓﾊﾞ一覧!A:C,3,FALSE)),"",VLOOKUP(A131,ﾈｵﾓﾊﾞ一覧!A:C,3,FALSE)) ->  | F131: =IF(ISERROR(VLOOKUP(A131,ﾈｵﾓﾊﾞ一覧!A:D,4,FALSE)),"",VLOOKUP(A131,ﾈｵﾓﾊﾞ一覧!A:D,4,FALSE)) ->  | I131: =VLOOKUP(C131,ﾈｵﾓﾊﾞｻﾏﾘ!A:Z,12,FALSE) -> -5501.230519 | K131: 9 | L131: 5 | M131: 9 | N131: 5 | O131: 9 | P131: 8
A132: 5214 | B132: 日本電気硝子 | C132: 建設・資材 | D132: ガラス・土石製品 | E132: =IF(ISERROR(VLOOKUP(A132,ﾈｵﾓﾊﾞ一覧!A:C,3,FALSE)),"",VLOOKUP(A132,ﾈｵﾓﾊﾞ一覧!A:C,3,FALSE)) ->  | F132: =IF(ISERROR(VLOOKUP(A132,ﾈｵﾓﾊﾞ一覧!A:D,4,FALSE)),"",VLOOKUP(A132,ﾈｵﾓﾊﾞ一覧!A:D,4,FALSE)) ->  | I132: =VLOOKUP(C132,ﾈｵﾓﾊﾞｻﾏﾘ!A:Z,12,FALSE) -> -5501.230519 | K132: 5 | L132: 3 | M132: 1 | N132: 4 | O132: 9 | P132: 7
A133: 1925 | B133: 大和ハウス工業 | C133: 建設・資材 | D133: 建設業 | E133: =IF(ISERROR(VLOOKUP(A133,ﾈｵﾓﾊﾞ一覧!A:C,3,FALSE)),"",VLOOKUP(A133,ﾈｵﾓﾊﾞ一覧!A:C,3,FALSE)) -> 15448 | F133: =IF(ISERROR(VLOOKUP(A133,ﾈｵﾓﾊﾞ一覧!A:D,4,FALSE)),"",VLOOKUP(A133,ﾈｵﾓﾊﾞ一覧!A:D,4,FALSE)) -> 5840 | G133: 0.607826811 | H133: 0.006228930787 | I133: =VLOOKUP(C133,ﾈｵﾓﾊﾞｻﾏﾘ!A:Z,12,FALSE) -> -5501.230519 | J133: 19,794億円 | K133: 8 | L133: 5 | M133: 10 | N133: 8 | O133: 8 | P133: 4
A134: 1878 | B134: 大東建託 | C134: 建設・資材 | D134: 建設業 | E134: =IF(ISERROR(VLOOKUP(A134,ﾈｵﾓﾊﾞ一覧!A:C,3,FALSE)),"",VLOOKUP(A134,ﾈｵﾓﾊﾞ一覧!A:C,3,FALSE)) -> 15290 | F134: =IF(ISERROR(VLOOKUP(A134,ﾈｵﾓﾊﾞ一覧!A:D,4,FALSE)),"",VLOOKUP(A134,ﾈｵﾓﾊﾞ一覧!A:D,4,FALSE)) -> 5630 | G134: 0.582815735 | H134: 0.006165222147 | I134: =VLOOKUP(C134,ﾈｵﾓﾊﾞｻﾏﾘ!A:Z,12,FALSE) -> -5501.230519 | J134: 8,758億円 | K134: 2 | L134: 3 | M134: 2 | N134: 4 | O134: 5 | P134: 3
A135: 1942 | B135: 関電工 | C135: 建設・資材 | D135: 建設業 | E135: =IF(ISERROR(VLOOKUP(A135,ﾈｵﾓﾊﾞ一覧!A:C,3,FALSE)),"",VLOOKUP(A135,ﾈｵﾓﾊﾞ一覧!A:C,3,FALSE)) -> 14952 | F135: =IF(ISERROR(VLOOKUP(A135,ﾈｵﾓﾊﾞ一覧!A:D,4,FALSE)),"",VLOOKUP(A135,ﾈｵﾓﾊﾞ一覧!A:D,4,FALSE)) -> 4536 | G135: 0.435483871 | H135: 0.006028934045 | I135: =VLOOKUP(C135,ﾈｵﾓﾊﾞｻﾏﾘ!A:Z,12,FALSE) -> -5501.230519 | P135: 10
A136: 1802 | B136: 大林組 | C136: 建設・資材 | D136: 建設業 | E136: =IF(ISERROR(VLOOKUP(A136,ﾈｵﾓﾊﾞ一覧!A:C,3,FALSE)),"",VLOOKUP(A136,ﾈｵﾓﾊﾞ一覧!A:C,3,FALSE)) -> 14459.5 | F136: =IF(ISERROR(VLOOKUP(A136,ﾈｵﾓﾊﾞ一覧!A:D,4,FALSE)),"",VLOOKUP(A136,ﾈｵﾓﾊﾞ一覧!A:D,4,FALSE)) -> 4735 | G136: 0.4869144943 | H136: 0.00583034857 | I136: =VLOOKUP(C136,ﾈｵﾓﾊﾞｻﾏﾘ!A:Z,12,FALSE) -> -5501.230519 | K136: 7 | L136: 3 | M136: 7 | N136: 5 | O136: 8 | P136: 9
A137: 1786 | B137: オリエンタル白石 | C137: 建設・資材 | D137: 建設業 | E137: =IF(ISERROR(VLOOKUP(A137,ﾈｵﾓﾊﾞ一覧!A:C,3,FALSE)),"",VLOOKUP(A137,ﾈｵﾓﾊﾞ一覧!A:C,3,FALSE)) -> 13062 | F137: =IF(ISERROR(VLOOKUP(A137,ﾈｵﾓﾊﾞ一覧!A:D,4,FALSE)),"",VLOOKUP(A137,ﾈｵﾓﾊﾞ一覧!A:D,4,FALSE)) -> 2940 | G137: 0.2904564315 | H137: 0.005266849685 | I137: =VLOOKUP(C137,ﾈｵﾓﾊﾞｻﾏﾘ!A:Z,12,FALSE) -> -5501.230519 | K137: 9 | L137: 8 | M137: 8 | N137: 7 | O137: 7 | P137: 8
A138: 1417 | B138: ミライト・ホールディングス | C138: 建設・資材 | D138: 建設業 | E138: =IF(ISERROR(VLOOKUP(A138,ﾈｵﾓﾊﾞ一覧!A:C,3,FALSE)),"",VLOOKUP(A138,ﾈｵﾓﾊﾞ一覧!A:C,3,FALSE)) -> 12775 | F138: =IF(ISERROR(VLOOKUP(A138,ﾈｵﾓﾊﾞ一覧!A:D,4,FALSE)),"",VLOOKUP(A138,ﾈｵﾓﾊﾞ一覧!A:D,4,FALSE)) -> 2016 | G138: 0.1873780091 | H138: 0.005151125764 | I138: =VLOOKUP(C138,ﾈｵﾓﾊﾞｻﾏﾘ!A:Z,12,FALSE) -> -5501.230519 | K138: 7 | L138: 1 | M138: 8 | N138: 8 | O138: 10 | P138: 7
A139: 3861 | B139: 王子ホールディングス | C139: 素材・科学 | D139: パルプ・紙 | E139: =IF(ISERROR(VLOOKUP(A139,ﾈｵﾓﾊﾞ一覧!A:C,3,FALSE)),"",VLOOKUP(A139,ﾈｵﾓﾊﾞ一覧!A:C,3,FALSE)) ->  | F139: =IF(ISERROR(VLOOKUP(A139,ﾈｵﾓﾊﾞ一覧!A:D,4,FALSE)),"",VLOOKUP(A139,ﾈｵﾓﾊﾞ一覧!A:D,4,FALSE)) ->  | I139: =VLOOKUP(C139,ﾈｵﾓﾊﾞｻﾏﾘ!A:Z,12,FALSE) -> -10488.40208 | J139: 6,654億円 | K139: 4 | L139: 2 | M139: 4 | N139: 9 | O139: 7 | P139: 1
A140: 3401 | B140: 帝人 | C140: 素材・科学 | D140: 繊維製品 | E140: =IF(ISERROR(VLOOKUP(A140,ﾈｵﾓﾊﾞ一覧!A:C,3,FALSE)),"",VLOOKUP(A140,ﾈｵﾓﾊﾞ一覧!A:C,3,FALSE)) ->  | F140: =IF(ISERROR(VLOOKUP(A140,ﾈｵﾓﾊﾞ一覧!A:D,4,FALSE)),"",VLOOKUP(A140,ﾈｵﾓﾊﾞ一覧!A:D,4,FALSE)) ->  | I140: =VLOOKUP(C140,ﾈｵﾓﾊﾞｻﾏﾘ!A:Z,12,FALSE) -> -10488.40208 | K140: 2 | L140: 2 | M140: 1 | N140: 5 | O140: 8 | P140: 2
A141: 4912 | B141: ライオン | C141: 素材・科学 | D141: 化学 | E141: =IF(ISERROR(VLOOKUP(A141,ﾈｵﾓﾊﾞ一覧!A:C,3,FALSE)),"",VLOOKUP(A141,ﾈｵﾓﾊﾞ一覧!A:C,3,FALSE)) ->  | F141: =IF(ISERROR(VLOOKUP(A141,ﾈｵﾓﾊﾞ一覧!A:D,4,FALSE)),"",VLOOKUP(A141,ﾈｵﾓﾊﾞ一覧!A:D,4,FALSE)) ->  | I141: =VLOOKUP(C141,ﾈｵﾓﾊﾞｻﾏﾘ!A:Z,12,FALSE) -> -10488.40208 | K141: 3 | L141: 2 | M141: 7 | N141: 4 | O141: 7 | P141: 1
A142: 3002 | B142: グンゼ | C142: 素材・科学 | D142: 繊維製品 | E142: =IF(ISERROR(VLOOKUP(A142,ﾈｵﾓﾊﾞ一覧!A:C,3,FALSE)),"",VLOOKUP(A142,ﾈｵﾓﾊﾞ一覧!A:C,3,FALSE)) ->  | F142: =IF(ISERROR(VLOOKUP(A142,ﾈｵﾓﾊﾞ一覧!A:D,4,FALSE)),"",VLOOKUP(A142,ﾈｵﾓﾊﾞ一覧!A:D,4,FALSE)) ->  | I142: =VLOOKUP(C142,ﾈｵﾓﾊﾞｻﾏﾘ!A:Z,12,FALSE) -> -10488.40208 | K142: 6 | L142: 2 | M142: 8 | N142: 6 | O142: 8 | P142: 4
A143: 4043 | B143: トクヤマ | C143: 素材・科学 | D143: 化学 | E143: =IF(ISERROR(VLOOKUP(A143,ﾈｵﾓﾊﾞ一覧!A:C,3,FALSE)),"",VLOOKUP(A143,ﾈｵﾓﾊﾞ一覧!A:C,3,FALSE)) ->  | F143: =IF(ISERROR(VLOOKUP(A143,ﾈｵﾓﾊﾞ一覧!A:D,4,FALSE)),"",VLOOKUP(A143,ﾈｵﾓﾊﾞ一覧!A:D,4,FALSE)) ->  | I143: =VLOOKUP(C143,ﾈｵﾓﾊﾞｻﾏﾘ!A:Z,12,FALSE) -> -10488.40208 | K143: 6 | L143: 1 | M143: 6 | N143: 7 | O143: 7 | P143: 9
A144: 3880 | B144: 大王製紙 | C144: 素材・科学 | D144: パルプ・紙 | E144: =IF(ISERROR(VLOOKUP(A144,ﾈｵﾓﾊﾞ一覧!A:C,3,FALSE)),"",VLOOKUP(A144,ﾈｵﾓﾊﾞ一覧!A:C,3,FALSE)) ->  | F144: =IF(ISERROR(VLOOKUP(A144,ﾈｵﾓﾊﾞ一覧!A:D,4,FALSE)),"",VLOOKUP(A144,ﾈｵﾓﾊﾞ一覧!A:D,4,FALSE)) ->  | I144: =VLOOKUP(C144,ﾈｵﾓﾊﾞｻﾏﾘ!A:Z,12,FALSE) -> -10488.40208 | K144: 3 | L144: 1 | M144: 9 | N144: 5 | O144: 4 | P144: 1
A145: 4042 | B145: 東ソー | C145: 素材・科学 | D145: 化学 | E145: =IF(ISERROR(VLOOKUP(A145,ﾈｵﾓﾊﾞ一覧!A:C,3,FALSE)),"",VLOOKUP(A145,ﾈｵﾓﾊﾞ一覧!A:C,3,FALSE)) ->  | F145: =IF(ISERROR(VLOOKUP(A145,ﾈｵﾓﾊﾞ一覧!A:D,4,FALSE)),"",VLOOKUP(A145,ﾈｵﾓﾊﾞ一覧!A:D,4,FALSE)) ->  | I145: =VLOOKUP(C145,ﾈｵﾓﾊﾞｻﾏﾘ!A:Z,12,FALSE) -> -10488.40208 | K145: 6 | L145: 1 | M145: 7 | N145: 7 | O145: 9 | P145: 4
A146: 4118 | B146: カネカ | C146: 素材・科学 | D146: 化学 | E146: =IF(ISERROR(VLOOKUP(A146,ﾈｵﾓﾊﾞ一覧!A:C,3,FALSE)),"",VLOOKUP(A146,ﾈｵﾓﾊﾞ一覧!A:C,3,FALSE)) ->  | F146: =IF(ISERROR(VLOOKUP(A146,ﾈｵﾓﾊﾞ一覧!A:D,4,FALSE)),"",VLOOKUP(A146,ﾈｵﾓﾊﾞ一覧!A:D,4,FALSE)) ->  | I146: =VLOOKUP(C146,ﾈｵﾓﾊﾞｻﾏﾘ!A:Z,12,FALSE) -> -10488.40208 | K146: 9 | L146: 3 | M146: 9 | N146: 8 | O146: 10 | P146: 7
A147: 4966 | B147: 上村工業 | C147: 素材・科学 | D147: 化学 | E147: =IF(ISERROR(VLOOKUP(A147,ﾈｵﾓﾊﾞ一覧!A:C,3,FALSE)),"",VLOOKUP(A147,ﾈｵﾓﾊﾞ一覧!A:C,3,FALSE)) -> 37600 | F147: =IF(ISERROR(VLOOKUP(A147,ﾈｵﾓﾊﾞ一覧!A:D,4,FALSE)),"",VLOOKUP(A147,ﾈｵﾓﾊﾞ一覧!A:D,4,FALSE)) -> 23120 | G147: 1.596685083 | H147: 0.01516104334 | I147: =VLOOKUP(C147,ﾈｵﾓﾊﾞｻﾏﾘ!A:Z,12,FALSE) -> -10488.40208 | K147: 7 | L147: 9 | M147: 6 | N147: 2 | O147: 6 | P147: 10
A148: 4216 | B148: 旭有機材 | C148: 素材・科学 | D148: 化学 | E148: =IF(ISERROR(VLOOKUP(A148,ﾈｵﾓﾊﾞ一覧!A:C,3,FALSE)),"",VLOOKUP(A148,ﾈｵﾓﾊﾞ一覧!A:C,3,FALSE)) -> 30835 | F148: =IF(ISERROR(VLOOKUP(A148,ﾈｵﾓﾊﾞ一覧!A:D,4,FALSE)),"",VLOOKUP(A148,ﾈｵﾓﾊﾞ一覧!A:D,4,FALSE)) -> 20825 | G148: 2.08041958 | H148: 0.0124332652 | I148: =VLOOKUP(C148,ﾈｵﾓﾊﾞｻﾏﾘ!A:Z,12,FALSE) -> -10488.40208 | K148: 10 | L148: 9 | M148: 10 | N148: 7 | O148: 6 | P148: 10
A149: 4403 | B149: 日油 | C149: 素材・科学 | D149: 化学 | E149: =IF(ISERROR(VLOOKUP(A149,ﾈｵﾓﾊﾞ一覧!A:C,3,FALSE)),"",VLOOKUP(A149,ﾈｵﾓﾊﾞ一覧!A:C,3,FALSE)) -> 30655 | F149: =IF(ISERROR(VLOOKUP(A149,ﾈｵﾓﾊﾞ一覧!A:D,4,FALSE)),"",VLOOKUP(A149,ﾈｵﾓﾊﾞ一覧!A:D,4,FALSE)) -> 12295 | G149: 0.6696623094 | H149: 0.01236068574 | I149: =VLOOKUP(C149,ﾈｵﾓﾊﾞｻﾏﾘ!A:Z,12,FALSE) -> -10488.40208 | K149: 9 | L149: 8 | M149: 8 | N149: 4 | O149: 10 | P149: 8
A150: 4063 | B150: 信越化学工業 | C150: 素材・科学 | D150: 化学 | E150: =IF(ISERROR(VLOOKUP(A150,ﾈｵﾓﾊﾞ一覧!A:C,3,FALSE)),"",VLOOKUP(A150,ﾈｵﾓﾊﾞ一覧!A:C,3,FALSE)) -> 23395 | F150: =IF(ISERROR(VLOOKUP(A150,ﾈｵﾓﾊﾞ一覧!A:D,4,FALSE)),"",VLOOKUP(A150,ﾈｵﾓﾊﾞ一覧!A:D,4,FALSE)) -> 12335 | G150: 1.115280289 | H150: 0.00943331407 | I150: =VLOOKUP(C150,ﾈｵﾓﾊﾞｻﾏﾘ!A:Z,12,FALSE) -> -10488.40208 | K150: 7 | L150: 9 | M150: 5 | N150: 3 | O150: 7 | P150: 8
A151: 4046 | B151: 大阪ソーダ | C151: 素材・科学 | D151: 化学 | E151: =IF(ISERROR(VLOOKUP(A151,ﾈｵﾓﾊﾞ一覧!A:C,3,FALSE)),"",VLOOKUP(A151,ﾈｵﾓﾊﾞ一覧!A:C,3,FALSE)) -> 17340 | F151: =IF(ISERROR(VLOOKUP(A151,ﾈｵﾓﾊﾞ一覧!A:D,4,FALSE)),"",VLOOKUP(A151,ﾈｵﾓﾊﾞ一覧!A:D,4,FALSE)) -> 7725 | G151: 0.8034321373 | H151: 0.006991821585 | I151: =VLOOKUP(C151,ﾈｵﾓﾊﾞｻﾏﾘ!A:Z,12,FALSE) -> -10488.40208 | K151: 6 | L151: 7 | M151: 3 | N151: 3 | O151: 6 | P151: 10
A152: 3405 | B152: クラレ | C152: 素材・科学 | D152: 化学 | E152: =IF(ISERROR(VLOOKUP(A152,ﾈｵﾓﾊﾞ一覧!A:C,3,FALSE)),"",VLOOKUP(A152,ﾈｵﾓﾊﾞ一覧!A:C,3,FALSE)) -> 14295 | F152: =IF(ISERROR(VLOOKUP(A152,ﾈｵﾓﾊﾞ一覧!A:D,4,FALSE)),"",VLOOKUP(A152,ﾈｵﾓﾊﾞ一覧!A:D,4,FALSE)) -> 3315 | G152: 0.3019125683 | H152: 0.005764019005 | I152: =VLOOKUP(C152,ﾈｵﾓﾊﾞｻﾏﾘ!A:Z,12,FALSE) -> -10488.40208 | K152: 10 | L152: 8 | M152: 9 | N152: 9 | O152: 10 | P152: 8
A153: 3941 | B153: レンゴー | C153: 素材・科学 | D153: パルプ・紙 | E153: =IF(ISERROR(VLOOKUP(A153,ﾈｵﾓﾊﾞ一覧!A:C,3,FALSE)),"",VLOOKUP(A153,ﾈｵﾓﾊﾞ一覧!A:C,3,FALSE)) -> 12677 | F153: =IF(ISERROR(VLOOKUP(A153,ﾈｵﾓﾊﾞ一覧!A:D,4,FALSE)),"",VLOOKUP(A153,ﾈｵﾓﾊﾞ一覧!A:D,4,FALSE)) -> 1575 | G153: 0.1418663304 | H153: 0.005111610279 | I153: =VLOOKUP(C153,ﾈｵﾓﾊﾞｻﾏﾘ!A:Z,12,FALSE) -> -10488.40208 | K153: 3 | L153: 3 | M153: 1 | N153: 9 | O153: 5 | P153: 1
A154: 4078 | B154: 堺化学工業 | C154: 素材・科学 | D154: 化学 | E154: =IF(ISERROR(VLOOKUP(A154,ﾈｵﾓﾊﾞ一覧!A:C,3,FALSE)),"",VLOOKUP(A154,ﾈｵﾓﾊﾞ一覧!A:C,3,FALSE)) -> 9915 | F154: =IF(ISERROR(VLOOKUP(A154,ﾈｵﾓﾊﾞ一覧!A:D,4,FALSE)),"",VLOOKUP(A154,ﾈｵﾓﾊﾞ一覧!A:D,4,FALSE)) -> 650 | G154: 0.07015650297 | H154: 0.003997918744 | I154: =VLOOKUP(C154,ﾈｵﾓﾊﾞｻﾏﾘ!A:Z,12,FALSE) -> -10488.40208 | K154: 7 | L154: 1 | M154: 4 | N154: 8 | O154: 10 | P154: 8
A155: 4061 | B155: デンカ | C155: 素材・科学 | D155: 化学 | E155: =IF(ISERROR(VLOOKUP(A155,ﾈｵﾓﾊﾞ一覧!A:C,3,FALSE)),"",VLOOKUP(A155,ﾈｵﾓﾊﾞ一覧!A:C,3,FALSE)) -> 8416.5 | F155: =IF(ISERROR(VLOOKUP(A155,ﾈｵﾓﾊﾞ一覧!A:D,4,FALSE)),"",VLOOKUP(A155,ﾈｵﾓﾊﾞ一覧!A:D,4,FALSE)) -> -1363 | G155: -0.1393731786 | H155: 0.003393694716 | I155: =VLOOKUP(C155,ﾈｵﾓﾊﾞｻﾏﾘ!A:Z,12,FALSE) -> -10488.40208 | K155: 3 | L155: 1 | M155: 2 | N155: 6 | O155: 9 | P155: 4
A156: 6995 | B156: 東海理化電機製作所 | C156: 自動車・輸送機 | D156: 輸送用機器 | E156: =IF(ISERROR(VLOOKUP(A156,ﾈｵﾓﾊﾞ一覧!A:C,3,FALSE)),"",VLOOKUP(A156,ﾈｵﾓﾊﾞ一覧!A:C,3,FALSE)) ->  | F156: =IF(ISERROR(VLOOKUP(A156,ﾈｵﾓﾊﾞ一覧!A:D,4,FALSE)),"",VLOOKUP(A156,ﾈｵﾓﾊﾞ一覧!A:D,4,FALSE)) ->  | I156: =VLOOKUP(C156,ﾈｵﾓﾊﾞｻﾏﾘ!A:Z,12,FALSE) -> -14145.05385 | K156: 8 | L156: 7 | M156: 4 | N156: 7 | O156: 9 | P156: 8
A157: 6455 | B157: モリタホールディングス | C157: 自動車・輸送機 | D157: 輸送用機器 | E157: =IF(ISERROR(VLOOKUP(A157,ﾈｵﾓﾊﾞ一覧!A:C,3,FALSE)),"",VLOOKUP(A157,ﾈｵﾓﾊﾞ一覧!A:C,3,FALSE)) ->  | F157: =IF(ISERROR(VLOOKUP(A157,ﾈｵﾓﾊﾞ一覧!A:D,4,FALSE)),"",VLOOKUP(A157,ﾈｵﾓﾊﾞ一覧!A:D,4,FALSE)) ->  | I157: =VLOOKUP(C157,ﾈｵﾓﾊﾞｻﾏﾘ!A:Z,12,FALSE) -> -14145.05385 | K157: 5 | L157: 2 | M157: - | N157: 4 | O157: 8 | P157: 8
A158: 7272 | B158: ヤマハ発動機 | C158: 自動車・輸送機 | D158: 輸送用機器 | E158: =IF(ISERROR(VLOOKUP(A158,ﾈｵﾓﾊﾞ一覧!A:C,3,FALSE)),"",VLOOKUP(A158,ﾈｵﾓﾊﾞ一覧!A:C,3,FALSE)) ->  | F158: =IF(ISERROR(VLOOKUP(A158,ﾈｵﾓﾊﾞ一覧!A:D,4,FALSE)),"",VLOOKUP(A158,ﾈｵﾓﾊﾞ一覧!A:D,4,FALSE)) ->  | I158: =VLOOKUP(C158,ﾈｵﾓﾊﾞｻﾏﾘ!A:Z,12,FALSE) -> -14145.05385 | K158: 10 | L158: 7 | M158: 10 | N158: 9 | O158: 8 | P158: 10
A159: 7313 | B159: テイ・エス テック | C159: 自動車・輸送機 | D159: 輸送用機器 | E159: =IF(ISERROR(VLOOKUP(A159,ﾈｵﾓﾊﾞ一覧!A:C,3,FALSE)),"",VLOOKUP(A159,ﾈｵﾓﾊﾞ一覧!A:C,3,FALSE)) ->  | F159: =IF(ISERROR(VLOOKUP(A159,ﾈｵﾓﾊﾞ一覧!A:D,4,FALSE)),"",VLOOKUP(A159,ﾈｵﾓﾊﾞ一覧!A:D,4,FALSE)) ->  | I159: =VLOOKUP(C159,ﾈｵﾓﾊﾞｻﾏﾘ!A:Z,12,FALSE) -> -14145.05385 | K159: 5 | L159: 5 | M159: 2 | N159: 4 | O159: 9 | P159: 5
A160: 7259 | B160: アイシン | C160: 自動車・輸送機 | D160: 輸送用機器 | E160: =IF(ISERROR(VLOOKUP(A160,ﾈｵﾓﾊﾞ一覧!A:C,3,FALSE)),"",VLOOKUP(A160,ﾈｵﾓﾊﾞ一覧!A:C,3,FALSE)) ->  | F160: =IF(ISERROR(VLOOKUP(A160,ﾈｵﾓﾊﾞ一覧!A:D,4,FALSE)),"",VLOOKUP(A160,ﾈｵﾓﾊﾞ一覧!A:D,4,FALSE)) ->  | I160: =VLOOKUP(C160,ﾈｵﾓﾊﾞｻﾏﾘ!A:Z,12,FALSE) -> -14145.05385 | K160: 4 | L160: 3 | M160: 3 | N160: 7 | O160: 6 | P160: 4
A161: 7283 | B161: 愛三工業 | C161: 自動車・輸送機 | D161: 輸送用機器 | E161: =IF(ISERROR(VLOOKUP(A161,ﾈｵﾓﾊﾞ一覧!A:C,3,FALSE)),"",VLOOKUP(A161,ﾈｵﾓﾊﾞ一覧!A:C,3,FALSE)) ->  | F161: =IF(ISERROR(VLOOKUP(A161,ﾈｵﾓﾊﾞ一覧!A:D,4,FALSE)),"",VLOOKUP(A161,ﾈｵﾓﾊﾞ一覧!A:D,4,FALSE)) ->  | I161: =VLOOKUP(C161,ﾈｵﾓﾊﾞｻﾏﾘ!A:Z,12,FALSE) -> -14145.05385 | K161: 9 | L161: 10 | M161: 3 | N161: 10 | O161: 7 | P161: 9
A162: 7309 | B162: シマノ | C162: 自動車・輸送機 | D162: 輸送用機器 | E162: =IF(ISERROR(VLOOKUP(A162,ﾈｵﾓﾊﾞ一覧!A:C,3,FALSE)),"",VLOOKUP(A162,ﾈｵﾓﾊﾞ一覧!A:C,3,FALSE)) -> 43100 | F162: =IF(ISERROR(VLOOKUP(A162,ﾈｵﾓﾊﾞ一覧!A:D,4,FALSE)),"",VLOOKUP(A162,ﾈｵﾓﾊﾞ一覧!A:D,4,FALSE)) -> 14420 | G162: 0.5027894003 | H162: 0.01737874915 | I162: =VLOOKUP(C162,ﾈｵﾓﾊﾞｻﾏﾘ!A:Z,12,FALSE) -> -14145.05385 | J162: 14,464億円 | K162: 8 | L162: 9 | M162: 9 | N162: 3 | O162: 5 | P162: 7
A163: 7203 | B163: トヨタ自動車 | C163: 自動車・輸送機 | D163: 輸送用機器 | E163: =IF(ISERROR(VLOOKUP(A163,ﾈｵﾓﾊﾞ一覧!A:C,3,FALSE)),"",VLOOKUP(A163,ﾈｵﾓﾊﾞ一覧!A:C,3,FALSE)) -> 23860 | F163: =IF(ISERROR(VLOOKUP(A163,ﾈｵﾓﾊﾞ一覧!A:D,4,FALSE)),"",VLOOKUP(A163,ﾈｵﾓﾊﾞ一覧!A:D,4,FALSE)) -> 5910 | G163: 0.3292479109 | H163: 0.009620811016 | I163: =VLOOKUP(C163,ﾈｵﾓﾊﾞｻﾏﾘ!A:Z,12,FALSE) -> -14145.05385 | K163: 5 | L163: 2 | M163: 5 | N163: 6 | O163: 7 | P163: 7
A164: 7278 | B164: エクセディ | C164: 自動車・輸送機 | D164: 輸送用機器 | E164: =IF(ISERROR(VLOOKUP(A164,ﾈｵﾓﾊﾞ一覧!A:C,3,FALSE)),"",VLOOKUP(A164,ﾈｵﾓﾊﾞ一覧!A:C,3,FALSE)) -> 22374 | F164: =IF(ISERROR(VLOOKUP(A164,ﾈｵﾓﾊﾞ一覧!A:D,4,FALSE)),"",VLOOKUP(A164,ﾈｵﾓﾊﾞ一覧!A:D,4,FALSE)) -> 7614 | G164: 0.5158536585 | H164: 0.009021627228 | I164: =VLOOKUP(C164,ﾈｵﾓﾊﾞｻﾏﾘ!A:Z,12,FALSE) -> -14145.05385 | K164: 5 | L164: 3 | M164: 3 | N164: 5 | O164: 10 | P164: 6
A165: 7240 | B165: ＮＯＫ | C165: 自動車・輸送機 | D165: 輸送用機器 | E165: =IF(ISERROR(VLOOKUP(A165,ﾈｵﾓﾊﾞ一覧!A:C,3,FALSE)),"",VLOOKUP(A165,ﾈｵﾓﾊﾞ一覧!A:C,3,FALSE)) -> 21380 | F165: =IF(ISERROR(VLOOKUP(A165,ﾈｵﾓﾊﾞ一覧!A:D,4,FALSE)),"",VLOOKUP(A165,ﾈｵﾓﾊﾞ一覧!A:D,4,FALSE)) -> 9570 | G165: 0.8103302286 | H165: 0.008620827306 | I165: =VLOOKUP(C165,ﾈｵﾓﾊﾞｻﾏﾘ!A:Z,12,FALSE) -> -14145.05385 | K165: 6 | L165: 3 | M165: 8 | N165: 4 | O165: 6 | P165: 6
A166: 7272 | B166: ヤマハ発動機 | C166: 自動車・輸送機 | D166: 輸送用機器 | E166: =IF(ISERROR(VLOOKUP(A166,ﾈｵﾓﾊﾞ一覧!A:C,3,FALSE)),"",VLOOKUP(A166,ﾈｵﾓﾊﾞ一覧!A:C,3,FALSE)) -> 16640 | F166: =IF(ISERROR(VLOOKUP(A166,ﾈｵﾓﾊﾞ一覧!A:D,4,FALSE)),"",VLOOKUP(A166,ﾈｵﾓﾊﾞ一覧!A:D,4,FALSE)) -> 6780 | G166: 0.6876267748 | H166: 0.006709568118 | I166: =VLOOKUP(C166,ﾈｵﾓﾊﾞｻﾏﾘ!A:Z,12,FALSE) -> -14145.05385 | K166: 10 | L166: 7 | M166: 10 | N166: 9 | O166: 8 | P166: 10
A167: 7246 | B167: プレス工業 | C167: 自動車・輸送機 | D167: 輸送用機器 | E167: =IF(ISERROR(VLOOKUP(A167,ﾈｵﾓﾊﾞ一覧!A:C,3,FALSE)),"",VLOOKUP(A167,ﾈｵﾓﾊﾞ一覧!A:C,3,FALSE)) -> 15900 | F167: =IF(ISERROR(VLOOKUP(A167,ﾈｵﾓﾊﾞ一覧!A:D,4,FALSE)),"",VLOOKUP(A167,ﾈｵﾓﾊﾞ一覧!A:D,4,FALSE)) -> 5650 | G167: 0.5512195122 | H167: 0.006411185882 | I167: =VLOOKUP(C167,ﾈｵﾓﾊﾞｻﾏﾘ!A:Z,12,FALSE) -> -14145.05385 | K167: 10 | L167: 8 | M167: 9 | N167: 8 | O167: 10 | P167: 8
A168: 7224 | B168: 新明和工業 | C168: 自動車・輸送機 | D168: 輸送用機器 | E168: =IF(ISERROR(VLOOKUP(A168,ﾈｵﾓﾊﾞ一覧!A:C,3,FALSE)),"",VLOOKUP(A168,ﾈｵﾓﾊﾞ一覧!A:C,3,FALSE)) -> 14340 | F168: =IF(ISERROR(VLOOKUP(A168,ﾈｵﾓﾊﾞ一覧!A:D,4,FALSE)),"",VLOOKUP(A168,ﾈｵﾓﾊﾞ一覧!A:D,4,FALSE)) -> 3740 | G168: 0.3528301887 | H168: 0.005782163871 | I168: =VLOOKUP(C168,ﾈｵﾓﾊﾞｻﾏﾘ!A:Z,12,FALSE) -> -14145.05385 | K168: 7 | L168: 1 | M168: - | N168: 6 | O168: 10 | P168: 9
A169: 7261 | B169: マツダ | C169: 自動車・輸送機 | D169: 輸送用機器 | E169: =IF(ISERROR(VLOOKUP(A169,ﾈｵﾓﾊﾞ一覧!A:C,3,FALSE)),"",VLOOKUP(A169,ﾈｵﾓﾊﾞ一覧!A:C,3,FALSE)) -> 14055 | F169: =IF(ISERROR(VLOOKUP(A169,ﾈｵﾓﾊﾞ一覧!A:D,4,FALSE)),"",VLOOKUP(A169,ﾈｵﾓﾊﾞ一覧!A:D,4,FALSE)) -> 3315 | G169: 0.3086592179 | H169: 0.005667246388 | I169: =VLOOKUP(C169,ﾈｵﾓﾊﾞｻﾏﾘ!A:Z,12,FALSE) -> -14145.05385 | K169: 9 | L169: 9 | M169: 7 | N169: 10 | O169: 6 | P169: 5
A170: 7250 | B170: 太平洋工業 | C170: 自動車・輸送機 | D170: 輸送用機器 | E170: =IF(ISERROR(VLOOKUP(A170,ﾈｵﾓﾊﾞ一覧!A:C,3,FALSE)),"",VLOOKUP(A170,ﾈｵﾓﾊﾞ一覧!A:C,3,FALSE)) -> 13660 | F170: =IF(ISERROR(VLOOKUP(A170,ﾈｵﾓﾊﾞ一覧!A:D,4,FALSE)),"",VLOOKUP(A170,ﾈｵﾓﾊﾞ一覧!A:D,4,FALSE)) -> 3420 | G170: 0.333984375 | H170: 0.005507974789 | I170: =VLOOKUP(C170,ﾈｵﾓﾊﾞｻﾏﾘ!A:Z,12,FALSE) -> -14145.05385 | K170: 9 | L170: 7 | M170: 10 | N170: 9 | O170: 6 | P170: 5
A171: 7267 | B171: 本田技研工業 | C171: 自動車・輸送機 | D171: 輸送用機器 | E171: =IF(ISERROR(VLOOKUP(A171,ﾈｵﾓﾊﾞ一覧!A:C,3,FALSE)),"",VLOOKUP(A171,ﾈｵﾓﾊﾞ一覧!A:C,3,FALSE)) -> 13539 | F171: =IF(ISERROR(VLOOKUP(A171,ﾈｵﾓﾊﾞ一覧!A:D,4,FALSE)),"",VLOOKUP(A171,ﾈｵﾓﾊﾞ一覧!A:D,4,FALSE)) -> 3372 | G171: 0.331661257 | H171: 0.005459185262 | I171: =VLOOKUP(C171,ﾈｵﾓﾊﾞｻﾏﾘ!A:Z,12,FALSE) -> -14145.05385 | K171: 8 | L171: 7 | M171: 4 | N171: 8 | O171: 9 | P171: 7
A172: 7228 | B172: デイトナ | C172: 自動車・輸送機 | D172: 輸送用機器 | E172: =IF(ISERROR(VLOOKUP(A172,ﾈｵﾓﾊﾞ一覧!A:C,3,FALSE)),"",VLOOKUP(A172,ﾈｵﾓﾊﾞ一覧!A:C,3,FALSE)) -> 13200 | F172: =IF(ISERROR(VLOOKUP(A172,ﾈｵﾓﾊﾞ一覧!A:D,4,FALSE)),"",VLOOKUP(A172,ﾈｵﾓﾊﾞ一覧!A:D,4,FALSE)) -> 8880 | G172: 2.055555556 | H172: 0.00532249394 | I172: =VLOOKUP(C172,ﾈｵﾓﾊﾞｻﾏﾘ!A:Z,12,FALSE) -> -14145.05385 | K172: 8 | L172: 9 | M172: 6 | N172: 8 | O172: 6 | P172: 5
A173: 7296 | B173: エフ・シー・シー | C173: 自動車・輸送機 | D173: 輸送用機器 | E173: =IF(ISERROR(VLOOKUP(A173,ﾈｵﾓﾊﾞ一覧!A:C,3,FALSE)),"",VLOOKUP(A173,ﾈｵﾓﾊﾞ一覧!A:C,3,FALSE)) -> 13034 | F173: =IF(ISERROR(VLOOKUP(A173,ﾈｵﾓﾊﾞ一覧!A:D,4,FALSE)),"",VLOOKUP(A173,ﾈｵﾓﾊﾞ一覧!A:D,4,FALSE)) -> 3633 | G173: 0.3864482502 | H173: 0.005255559547 | I173: =VLOOKUP(C173,ﾈｵﾓﾊﾞｻﾏﾘ!A:Z,12,FALSE) -> -14145.05385 | K173: 10 | L173: 9 | M173: 3 | N173: 9 | O173: 10 | P173: 8
A174: 7202 | B174: いすゞ自動車 | C174: 自動車・輸送機 | D174: 輸送用機器 | E174: =IF(ISERROR(VLOOKUP(A174,ﾈｵﾓﾊﾞ一覧!A:C,3,FALSE)),"",VLOOKUP(A174,ﾈｵﾓﾊﾞ一覧!A:C,3,FALSE)) -> 12894 | F174: =IF(ISERROR(VLOOKUP(A174,ﾈｵﾓﾊﾞ一覧!A:D,4,FALSE)),"",VLOOKUP(A174,ﾈｵﾓﾊﾞ一覧!A:D,4,FALSE)) -> 2086 | G174: 0.1930051813 | H174: 0.005199108853 | I174: =VLOOKUP(C174,ﾈｵﾓﾊﾞｻﾏﾘ!A:Z,12,FALSE) -> -14145.05385 | K174: 10 | L174: 9 | M174: 10 | N174: 9 | O174: 6 | P174: 5
A175: 7226 | B175: 極東開発工業 | C175: 自動車・輸送機 | D175: 輸送用機器 | E175: =IF(ISERROR(VLOOKUP(A175,ﾈｵﾓﾊﾞ一覧!A:C,3,FALSE)),"",VLOOKUP(A175,ﾈｵﾓﾊﾞ一覧!A:C,3,FALSE)) -> 12761 | F175: =IF(ISERROR(VLOOKUP(A175,ﾈｵﾓﾊﾞ一覧!A:D,4,FALSE)),"",VLOOKUP(A175,ﾈｵﾓﾊﾞ一覧!A:D,4,FALSE)) -> 3115 | G175: 0.3229317852 | H175: 0.005145480695 | I175: =VLOOKUP(C175,ﾈｵﾓﾊﾞｻﾏﾘ!A:Z,12,FALSE) -> -14145.05385 | K175: 5 | L175: 1 | M175: - | N175: 4 | O175: 9 | P175: 9
A176: 7292 | B176: 村上開明堂 | C176: 自動車・輸送機 | D176: 輸送用機器 | E176: =IF(ISERROR(VLOOKUP(A176,ﾈｵﾓﾊﾞ一覧!A:C,3,FALSE)),"",VLOOKUP(A176,ﾈｵﾓﾊﾞ一覧!A:C,3,FALSE)) -> 5792 | F176: =IF(ISERROR(VLOOKUP(A176,ﾈｵﾓﾊﾞ一覧!A:D,4,FALSE)),"",VLOOKUP(A176,ﾈｵﾓﾊﾞ一覧!A:D,4,FALSE)) -> 1712 | G176: 0.4196078431 | H176: 0.002335445826 | I176: =VLOOKUP(C176,ﾈｵﾓﾊﾞｻﾏﾘ!A:Z,12,FALSE) -> -14145.05385 | K176: 10 | L176: 10 | M176: - | N176: 9 | O176: 8 | P176: 9
A177: 6754 | B177: アンリツ | C177: 電機・精密 | D177: 電気機器 | E177: =IF(ISERROR(VLOOKUP(A177,ﾈｵﾓﾊﾞ一覧!A:C,3,FALSE)),"",VLOOKUP(A177,ﾈｵﾓﾊﾞ一覧!A:C,3,FALSE)) ->  | F177: =IF(ISERROR(VLOOKUP(A177,ﾈｵﾓﾊﾞ一覧!A:D,4,FALSE)),"",VLOOKUP(A177,ﾈｵﾓﾊﾞ一覧!A:D,4,FALSE)) ->  | I177: =VLOOKUP(C177,ﾈｵﾓﾊﾞｻﾏﾘ!A:Z,12,FALSE) -> -14355.06891 | K177: 2 | L177: 3 | M177: 1 | N177: 5 | O177: 9 | P177: 1
A178: 6501 | B178: 日立製作所 | C178: 電機・精密 | D178: 電気機器 | E178: =IF(ISERROR(VLOOKUP(A178,ﾈｵﾓﾊﾞ一覧!A:C,3,FALSE)),"",VLOOKUP(A178,ﾈｵﾓﾊﾞ一覧!A:C,3,FALSE)) ->  | F178: =IF(ISERROR(VLOOKUP(A178,ﾈｵﾓﾊﾞ一覧!A:D,4,FALSE)),"",VLOOKUP(A178,ﾈｵﾓﾊﾞ一覧!A:D,4,FALSE)) ->  | I178: =VLOOKUP(C178,ﾈｵﾓﾊﾞｻﾏﾘ!A:Z,12,FALSE) -> -14355.06891 | J178: 40,693億円 | K178: 5 | L178: 4 | M178: 2 | N178: 5 | O178: 9 | P178: 6
A179: 6588 | B179: 東芝テック | C179: 電機・精密 | D179: 電気機器 | E179: =IF(ISERROR(VLOOKUP(A179,ﾈｵﾓﾊﾞ一覧!A:C,3,FALSE)),"",VLOOKUP(A179,ﾈｵﾓﾊﾞ一覧!A:C,3,FALSE)) ->  | F179: =IF(ISERROR(VLOOKUP(A179,ﾈｵﾓﾊﾞ一覧!A:D,4,FALSE)),"",VLOOKUP(A179,ﾈｵﾓﾊﾞ一覧!A:D,4,FALSE)) ->  | I179: =VLOOKUP(C179,ﾈｵﾓﾊﾞｻﾏﾘ!A:Z,12,FALSE) -> -14355.06891 | K179: 3 | L179: 4 | M179: 4 | N179: 6 | O179: 7 | P179: 1
A180: 6750 | B180: エレコム | C180: 電機・精密 | D180: 電気機器 | E180: =IF(ISERROR(VLOOKUP(A180,ﾈｵﾓﾊﾞ一覧!A:C,3,FALSE)),"",VLOOKUP(A180,ﾈｵﾓﾊﾞ一覧!A:C,3,FALSE)) ->  | F180: =IF(ISERROR(VLOOKUP(A180,ﾈｵﾓﾊﾞ一覧!A:D,4,FALSE)),"",VLOOKUP(A180,ﾈｵﾓﾊﾞ一覧!A:D,4,FALSE)) ->  | I180: =VLOOKUP(C180,ﾈｵﾓﾊﾞｻﾏﾘ!A:Z,12,FALSE) -> -14355.06891 | K180: 6 | L180: 5 | M180: 9 | N180: 4 | O180: 6 | P180: 4
A181: 6594 | B181: 日本電産 | C181: 電機・精密 | D181: 電気機器 | E181: =IF(ISERROR(VLOOKUP(A181,ﾈｵﾓﾊﾞ一覧!A:C,3,FALSE)),"",VLOOKUP(A181,ﾈｵﾓﾊﾞ一覧!A:C,3,FALSE)) ->  | F181: =IF(ISERROR(VLOOKUP(A181,ﾈｵﾓﾊﾞ一覧!A:D,4,FALSE)),"",VLOOKUP(A181,ﾈｵﾓﾊﾞ一覧!A:D,4,FALSE)) ->  | I181: =VLOOKUP(C181,ﾈｵﾓﾊﾞｻﾏﾘ!A:Z,12,FALSE) -> -14355.06891 | K181: 2 | L181: 1 | M181: 5 | N181: 2 | O181: 6 | P181: 3
A182: 7751 | B182: キヤノン | C182: 電機・精密 | D182: 電気機器 | E182: =IF(ISERROR(VLOOKUP(A182,ﾈｵﾓﾊﾞ一覧!A:C,3,FALSE)),"",VLOOKUP(A182,ﾈｵﾓﾊﾞ一覧!A:C,3,FALSE)) ->  | F182: =IF(ISERROR(VLOOKUP(A182,ﾈｵﾓﾊﾞ一覧!A:D,4,FALSE)),"",VLOOKUP(A182,ﾈｵﾓﾊﾞ一覧!A:D,4,FALSE)) ->  | I182: =VLOOKUP(C182,ﾈｵﾓﾊﾞｻﾏﾘ!A:Z,12,FALSE) -> -14355.06891 | K182: 8 | L182: 7 | M182: 8 | N182: 5 | O182: 9 | P182: 6
A183: 6967 | B183: 新光電気工業 | C183: 電機・精密 | D183: 電気機器 | E183: =IF(ISERROR(VLOOKUP(A183,ﾈｵﾓﾊﾞ一覧!A:C,3,FALSE)),"",VLOOKUP(A183,ﾈｵﾓﾊﾞ一覧!A:C,3,FALSE)) ->  | F183: =IF(ISERROR(VLOOKUP(A183,ﾈｵﾓﾊﾞ一覧!A:D,4,FALSE)),"",VLOOKUP(A183,ﾈｵﾓﾊﾞ一覧!A:D,4,FALSE)) ->  | I183: =VLOOKUP(C183,ﾈｵﾓﾊﾞｻﾏﾘ!A:Z,12,FALSE) -> -14355.06891 | K183: 6 | L183: 7 | M183: 7 | N183: 3 | O183: 4 | P183: 7
A184: 7735 | B184: ＳＣＲＥＥＮホールディングス | C184: 電機・精密 | D184: 電気機器 | E184: =IF(ISERROR(VLOOKUP(A184,ﾈｵﾓﾊﾞ一覧!A:C,3,FALSE)),"",VLOOKUP(A184,ﾈｵﾓﾊﾞ一覧!A:C,3,FALSE)) ->  | F184: =IF(ISERROR(VLOOKUP(A184,ﾈｵﾓﾊﾞ一覧!A:D,4,FALSE)),"",VLOOKUP(A184,ﾈｵﾓﾊﾞ一覧!A:D,4,FALSE)) ->  | I184: =VLOOKUP(C184,ﾈｵﾓﾊﾞｻﾏﾘ!A:Z,12,FALSE) -> -14355.06891 | K184: 7 | L184: 8 | M184: 3 | N184: 4 | O184: 6 | P184: 9
A185: 6753 | B185: シャープ | C185: 電機・精密 | D185: 電気機器 | E185: =IF(ISERROR(VLOOKUP(A185,ﾈｵﾓﾊﾞ一覧!A:C,3,FALSE)),"",VLOOKUP(A185,ﾈｵﾓﾊﾞ一覧!A:C,3,FALSE)) ->  | F185: =IF(ISERROR(VLOOKUP(A185,ﾈｵﾓﾊﾞ一覧!A:D,4,FALSE)),"",VLOOKUP(A185,ﾈｵﾓﾊﾞ一覧!A:D,4,FALSE)) ->  | I185: =VLOOKUP(C185,ﾈｵﾓﾊﾞｻﾏﾘ!A:Z,12,FALSE) -> -14355.06891 | K185: 1 | L185: 1 | M185: 1 | N185: 5 | O185: 2 | P185: 1
A186: 6718 | B186: アイホン | C186: 電機・精密 | D186: 電気機器 | E186: =IF(ISERROR(VLOOKUP(A186,ﾈｵﾓﾊﾞ一覧!A:C,3,FALSE)),"",VLOOKUP(A186,ﾈｵﾓﾊﾞ一覧!A:C,3,FALSE)) ->  | F186: =IF(ISERROR(VLOOKUP(A186,ﾈｵﾓﾊﾞ一覧!A:D,4,FALSE)),"",VLOOKUP(A186,ﾈｵﾓﾊﾞ一覧!A:D,4,FALSE)) ->  | I186: =VLOOKUP(C186,ﾈｵﾓﾊﾞｻﾏﾘ!A:Z,12,FALSE) -> -14355.06891 | K186: 6 | L186: 2 | M186: 9 | N186: 5 | O186: 9 | P186: 4
A187: 6737 | B187: ＥＩＺＯ | C187: 電機・精密 | D187: 電気機器 | E187: =IF(ISERROR(VLOOKUP(A187,ﾈｵﾓﾊﾞ一覧!A:C,3,FALSE)),"",VLOOKUP(A187,ﾈｵﾓﾊﾞ一覧!A:C,3,FALSE)) ->  | F187: =IF(ISERROR(VLOOKUP(A187,ﾈｵﾓﾊﾞ一覧!A:D,4,FALSE)),"",VLOOKUP(A187,ﾈｵﾓﾊﾞ一覧!A:D,4,FALSE)) ->  | I187: =VLOOKUP(C187,ﾈｵﾓﾊﾞｻﾏﾘ!A:Z,12,FALSE) -> -14355.06891 | K187: 5 | L187: 1 | M187: 9 | N187: 4 | O187: 7 | P187: 7
A188: 6875 | B188: メガチップス | C188: 電機・精密 | D188: 電気機器 | E188: =IF(ISERROR(VLOOKUP(A188,ﾈｵﾓﾊﾞ一覧!A:C,3,FALSE)),"",VLOOKUP(A188,ﾈｵﾓﾊﾞ一覧!A:C,3,FALSE)) ->  | F188: =IF(ISERROR(VLOOKUP(A188,ﾈｵﾓﾊﾞ一覧!A:D,4,FALSE)),"",VLOOKUP(A188,ﾈｵﾓﾊﾞ一覧!A:D,4,FALSE)) ->  | I188: =VLOOKUP(C188,ﾈｵﾓﾊﾞｻﾏﾘ!A:Z,12,FALSE) -> -14355.06891 | K188: 6 | L188: 3 | M188: 6 | N188: 5 | O188: 4 | P188: 10
A189: 6758 | B189: ソニー | C189: 電機・精密 | D189: 電気機器 | E189: =IF(ISERROR(VLOOKUP(A189,ﾈｵﾓﾊﾞ一覧!A:C,3,FALSE)),"",VLOOKUP(A189,ﾈｵﾓﾊﾞ一覧!A:C,3,FALSE)) -> 39945 | F189: =IF(ISERROR(VLOOKUP(A189,ﾈｵﾓﾊﾞ一覧!A:D,4,FALSE)),"",VLOOKUP(A189,ﾈｵﾓﾊﾞ一覧!A:D,4,FALSE)) -> 21813 | G189: 1.203011251 | H189: 0.01610659246 | I189: =VLOOKUP(C189,ﾈｵﾓﾊﾞｻﾏﾘ!A:Z,12,FALSE) -> -14355.06891 | J189: 92,534億円 | K189: 6 | L189: 3 | M189: 9 | N189: 3 | O189: 7 | P189: 7
A190: 6645 | B190: オムロン | C190: 電機・精密 | D190: 電気機器 | E190: =IF(ISERROR(VLOOKUP(A190,ﾈｵﾓﾊﾞ一覧!A:C,3,FALSE)),"",VLOOKUP(A190,ﾈｵﾓﾊﾞ一覧!A:C,3,FALSE)) -> 38110 | F190: =IF(ISERROR(VLOOKUP(A190,ﾈｵﾓﾊﾞ一覧!A:D,4,FALSE)),"",VLOOKUP(A190,ﾈｵﾓﾊﾞ一覧!A:D,4,FALSE)) -> 9460 | G190: 0.3301919721 | H190: 0.01536668516 | I190: =VLOOKUP(C190,ﾈｵﾓﾊﾞｻﾏﾘ!A:Z,12,FALSE) -> -14355.06891 | K190: 7 | L190: 8 | M190: 9 | N190: 3 | O190: 6 | P190: 8
A191: 6702 | B191: 富士通 | C191: 電機・精密 | D191: 電気機器 | E191: =IF(ISERROR(VLOOKUP(A191,ﾈｵﾓﾊﾞ一覧!A:C,3,FALSE)),"",VLOOKUP(A191,ﾈｵﾓﾊﾞ一覧!A:C,3,FALSE)) -> 36770 | F191: =IF(ISERROR(VLOOKUP(A191,ﾈｵﾓﾊﾞ一覧!A:D,4,FALSE)),"",VLOOKUP(A191,ﾈｵﾓﾊﾞ一覧!A:D,4,FALSE)) -> 16842 | G191: 0.845142513 | H191: 0.01482637138 | I191: =VLOOKUP(C191,ﾈｵﾓﾊﾞｻﾏﾘ!A:Z,12,FALSE) -> -14355.06891 | K191: 2 | L191: 2 | M191: 1 | N191: 4 | O191: 5 | P191: 6
A192: 6701 | B192: 日本電気 | C192: 電機・精密 | D192: 電気機器 | E192: =IF(ISERROR(VLOOKUP(A192,ﾈｵﾓﾊﾞ一覧!A:C,3,FALSE)),"",VLOOKUP(A192,ﾈｵﾓﾊﾞ一覧!A:C,3,FALSE)) -> 28732 | F192: =IF(ISERROR(VLOOKUP(A192,ﾈｵﾓﾊﾞ一覧!A:D,4,FALSE)),"",VLOOKUP(A192,ﾈｵﾓﾊﾞ一覧!A:D,4,FALSE)) -> 11740 | G192: 0.690913371 | H192: 0.01158529514 | I192: =VLOOKUP(C192,ﾈｵﾓﾊﾞｻﾏﾘ!A:Z,12,FALSE) -> -14355.06891 | K192: 6 | L192: 2 | M192: 8 | N192: 5 | O192: 4 | P192: 10
A193: 6651 | B193: 日東工業 | C193: 電機・精密 | D193: 電気機器 | E193: =IF(ISERROR(VLOOKUP(A193,ﾈｵﾓﾊﾞ一覧!A:C,3,FALSE)),"",VLOOKUP(A193,ﾈｵﾓﾊﾞ一覧!A:C,3,FALSE)) -> 21810 | F193: =IF(ISERROR(VLOOKUP(A193,ﾈｵﾓﾊﾞ一覧!A:D,4,FALSE)),"",VLOOKUP(A193,ﾈｵﾓﾊﾞ一覧!A:D,4,FALSE)) -> 12726 | G193: 1.400924703 | H193: 0.008794211578 | I193: =VLOOKUP(C193,ﾈｵﾓﾊﾞｻﾏﾘ!A:Z,12,FALSE) -> -14355.06891 | K193: 8 | L193: 5 | M193: 10 | N193: 3 | O193: 8 | P193: 8
A194: 6804 | B194: ホシデン | C194: 電機・精密 | D194: 電気機器 | E194: =IF(ISERROR(VLOOKUP(A194,ﾈｵﾓﾊﾞ一覧!A:C,3,FALSE)),"",VLOOKUP(A194,ﾈｵﾓﾊﾞ一覧!A:C,3,FALSE)) -> 18370 | F194: =IF(ISERROR(VLOOKUP(A194,ﾈｵﾓﾊﾞ一覧!A:D,4,FALSE)),"",VLOOKUP(A194,ﾈｵﾓﾊﾞ一覧!A:D,4,FALSE)) -> 7410 | G194: =F194/(E194-F194) -> 0.6760948905 | H194: =E194/SUM(E:E) -> 0.0074071374 | I194: =VLOOKUP(C194,ﾈｵﾓﾊﾞｻﾏﾘ!A:Z,12,FALSE) -> -14355.06891 | K194: 10 | L194: 8 | M194: - | N194: 7 | O194: 8 | P194: 10
A195: 6976 | B195: 太陽誘電 | C195: 電機・精密 | D195: 電気機器 | E195: =IF(ISERROR(VLOOKUP(A195,ﾈｵﾓﾊﾞ一覧!A:C,3,FALSE)),"",VLOOKUP(A195,ﾈｵﾓﾊﾞ一覧!A:C,3,FALSE)) -> 16936 | F195: =IF(ISERROR(VLOOKUP(A195,ﾈｵﾓﾊﾞ一覧!A:D,4,FALSE)),"",VLOOKUP(A195,ﾈｵﾓﾊﾞ一覧!A:D,4,FALSE)) -> 7048 | G195: 0.7127831715 | H195: 0.006828921013 | I195: =VLOOKUP(C195,ﾈｵﾓﾊﾞｻﾏﾘ!A:Z,12,FALSE) -> -14355.06891 | K195: 1 | L195: 1 | M195: 2 | N195: 2 | O195: 4 | P195: 4
A196: 6856 | B196: 堀場製作所 | C196: 電機・精密 | D196: 電気機器 | E196: =IF(ISERROR(VLOOKUP(A196,ﾈｵﾓﾊﾞ一覧!A:C,3,FALSE)),"",VLOOKUP(A196,ﾈｵﾓﾊﾞ一覧!A:C,3,FALSE)) -> 16762 | F196: =IF(ISERROR(VLOOKUP(A196,ﾈｵﾓﾊﾞ一覧!A:D,4,FALSE)),"",VLOOKUP(A196,ﾈｵﾓﾊﾞ一覧!A:D,4,FALSE)) -> 5302 | G196: 0.4626527051 | H196: 0.006758760865 | I196: =VLOOKUP(C196,ﾈｵﾓﾊﾞｻﾏﾘ!A:Z,12,FALSE) -> -14355.06891 | K196: 10 | L196: 10 | M196: 10 | N196: 7 | O196: 9 | P196: 4
A197: 6981 | B197: 村田製作所 | C197: 電機・精密 | D197: 電気機器 | E197: =IF(ISERROR(VLOOKUP(A197,ﾈｵﾓﾊﾞ一覧!A:C,3,FALSE)),"",VLOOKUP(A197,ﾈｵﾓﾊﾞ一覧!A:C,3,FALSE)) -> 16650 | F197: =IF(ISERROR(VLOOKUP(A197,ﾈｵﾓﾊﾞ一覧!A:D,4,FALSE)),"",VLOOKUP(A197,ﾈｵﾓﾊﾞ一覧!A:D,4,FALSE)) -> 7100 | G197: 0.7434554974 | H197: 0.006713600311 | I197: =VLOOKUP(C197,ﾈｵﾓﾊﾞｻﾏﾘ!A:Z,12,FALSE) -> -14355.06891 | J197: 35,142億円 | K197: 6 | L197: 5 | M197: 7 | N197: 2 | O197: 8 | P197: 7
A198: 6745 | B198: ホーチキ | C198: 電機・精密 | D198: 電気機器 | E198: =IF(ISERROR(VLOOKUP(A198,ﾈｵﾓﾊﾞ一覧!A:C,3,FALSE)),"",VLOOKUP(A198,ﾈｵﾓﾊﾞ一覧!A:C,3,FALSE)) -> 16236 | F198: =IF(ISERROR(VLOOKUP(A198,ﾈｵﾓﾊﾞ一覧!A:D,4,FALSE)),"",VLOOKUP(A198,ﾈｵﾓﾊﾞ一覧!A:D,4,FALSE)) -> 5436 | G198: 0.5033333333 | H198: 0.006546667546 | I198: =VLOOKUP(C198,ﾈｵﾓﾊﾞｻﾏﾘ!A:Z,12,FALSE) -> -14355.06891 | K198: 7 | L198: 3 | M198: - | N198: 6 | O198: 7 | P198: 9
A199: 7729 | B199: 東京精密 | C199: 電機・精密 | D199: 精密機器 | E199: =IF(ISERROR(VLOOKUP(A199,ﾈｵﾓﾊﾞ一覧!A:C,3,FALSE)),"",VLOOKUP(A199,ﾈｵﾓﾊﾞ一覧!A:C,3,FALSE)) -> 15740 | F199: =IF(ISERROR(VLOOKUP(A199,ﾈｵﾓﾊﾞ一覧!A:D,4,FALSE)),"",VLOOKUP(A199,ﾈｵﾓﾊﾞ一覧!A:D,4,FALSE)) -> 6390 | G199: 0.6834224599 | H199: 0.006346670804 | I199: =VLOOKUP(C199,ﾈｵﾓﾊﾞｻﾏﾘ!A:Z,12,FALSE) -> -14355.06891 | K199: 6 | L199: 5 | M199: 5 | N199: 3 | O199: 7 | P199: 7
A200: 6971 | B200: 京セラ | C200: 電機・精密 | D200: 電気機器 | E200: =IF(ISERROR(VLOOKUP(A200,ﾈｵﾓﾊﾞ一覧!A:C,3,FALSE)),"",VLOOKUP(A200,ﾈｵﾓﾊﾞ一覧!A:C,3,FALSE)) -> 15288 | F200: =IF(ISERROR(VLOOKUP(A200,ﾈｵﾓﾊﾞ一覧!A:D,4,FALSE)),"",VLOOKUP(A200,ﾈｵﾓﾊﾞ一覧!A:D,4,FALSE)) -> 1926 | G200: 0.1441400988 | H200: 0.006164415709 | I200: =VLOOKUP(C200,ﾈｵﾓﾊﾞｻﾏﾘ!A:Z,12,FALSE) -> -14355.06891 | K200: 6 | L200: 3 | M200: 5 | N200: 3 | O200: 10 | P200: 7
... 52 more rows

Sheet ﾈｵﾓﾊﾞｻﾏﾘ
A1: 業種別分散 | B1: 業種別分散 | G1: 時価総額 | H1: 時価総額比率 | M1: 銘柄別分散 | Q1: 時価総額別分散
A2: 情報通信・サービスその他 | B2: その他製品、情報・通信業、サービス業 | C2: その他製品 | D2: 情報・通信業 | E2: サービス業 | G2: =IF(C2<>"",VLOOKUP(C2,業種別時価総額!A:C,3,FALSE))+IF(D2<>"",VLOOKUP(D2,業種別時価総額!A:C,3,FALSE))+IF(E2<>"",VLOOKUP(E2,業種別時価総額!A:C,3,FALSE)) -> 129405089 | H2: =G2/G$19 -> 0.1819788755 | I2: =SUMIF(銘柄データ!C:C,A2,銘柄データ!E:E) -> 406365.5 | J2: =I2/SUM(I$2:I$18) -> 0.1638543872 | K2: =SUM(I$2:I$18)*H2 -> 451314.9631 | L2: =K2-I2 -> 44949.46313
A3: 医薬品 | B3: 医薬品 | C3: 医薬品 | G3: =IF(C3<>"",VLOOKUP(C3,業種別時価総額!A:C,3,FALSE))+IF(D3<>"",VLOOKUP(D3,業種別時価総額!A:C,3,FALSE))+IF(E3<>"",VLOOKUP(E3,業種別時価総額!A:C,3,FALSE)) -> 40626717 | H3: 0.05713225292 | I3: =SUMIF(銘柄データ!C:C,A3,銘柄データ!E:E) -> 115444 | J3: 0.0465492417 | K3: 141690.2954 | L3: 26246.29539
A4: 小売 | B4: 小売業 | C4: 小売業 | G4: =IF(C4<>"",VLOOKUP(C4,業種別時価総額!A:C,3,FALSE))+IF(D4<>"",VLOOKUP(D4,業種別時価総額!A:C,3,FALSE))+IF(E4<>"",VLOOKUP(E4,業種別時価総額!A:C,3,FALSE)) -> 39797301 | H4: 0.05596586764 | I4: =SUMIF(銘柄データ!C:C,A4,銘柄データ!E:E) -> 121024 | J4: 0.04879920505 | K4: 138797.6128 | L4: 17773.61277
A5: 食品 | B5: 水産・農林業、食料品 | C5: 水産・農林業 | D5: 食料品 | G5: =IF(C5<>"",VLOOKUP(C5,業種別時価総額!A:C,3,FALSE))+IF(D5<>"",VLOOKUP(D5,業種別時価総額!A:C,3,FALSE))+IF(E5<>"",VLOOKUP(E5,業種別時価総額!A:C,3,FALSE)) -> 25653428 | H5: 0.03607572172 | I5: =SUMIF(銘柄データ!C:C,A5,銘柄データ!E:E) -> 80572.5 | J5: 0.03248838204 | K5: 89469.24732 | L5: 8896.747318
A6: 不動産 | B6: 不動産業 | C6: 不動産業 | G6: =IF(C6<>"",VLOOKUP(C6,業種別時価総額!A:C,3,FALSE))+IF(D6<>"",VLOOKUP(D6,業種別時価総額!A:C,3,FALSE))+IF(E6<>"",VLOOKUP(E6,業種別時価総額!A:C,3,FALSE)) -> 15561389 | H6: 0.02188356032 | I6: =SUMIF(銘柄データ!C:C,A6,銘柄データ!E:E) -> 48629 | J6: 0.01960814832 | K6: 54272.11369 | L6: 5643.113694
A7: 運輸・物流 | B7: 陸運業、海運業、空運業、倉庫・運輸関連業 | C7: 陸運業 | D7: 海運業 | E7: 空運業 | F7: 倉庫・運輸関連業 | G7: =IF(C7<>"",VLOOKUP(C7,業種別時価総額!A:C,3,FALSE))+IF(D7<>"",VLOOKUP(D7,業種別時価総額!A:C,3,FALSE))+IF(E7<>"",VLOOKUP(E7,業種別時価総額!A:C,3,FALSE)) -> 28770921 | H7: 0.04045976778 | I7: =SUMIF(銘柄データ!C:C,A7,銘柄データ!E:E) -> 94850.5 | J7: 0.03824554632 | K7: 100341.8587 | L7: 5491.35866
A8: 電気・ガス | B8: 電気・ガス業 | C8: 電気・ガス業 | G8: =IF(C8<>"",VLOOKUP(C8,業種別時価総額!A:C,3,FALSE))+IF(D8<>"",VLOOKUP(D8,業種別時価総額!A:C,3,FALSE))+IF(E8<>"",VLOOKUP(E8,業種別時価総額!A:C,3,FALSE)) -> 7561168 | H8: 0.01063306598 | I8: =SUMIF(銘柄データ!C:C,A8,銘柄データ!E:E) -> 21906 | J8: 0.008832920625 | K8: 26370.43321 | L8: 4464.433215
A9: 鉄鋼・非鉄 | B9: 鉄鋼、非鉄金属 | C9: 鉄鋼 | D9: 非鉄金属 | G9: =IF(C9<>"",VLOOKUP(C9,業種別時価総額!A:C,3,FALSE))+IF(D9<>"",VLOOKUP(D9,業種別時価総額!A:C,3,FALSE))+IF(E9<>"",VLOOKUP(E9,業種別時価総額!A:C,3,FALSE)) -> 10756796 | H9: 0.01512699118 | I9: =SUMIF(銘柄データ!C:C,A9,銘柄データ!E:E) -> 38005 | J9: 0.01532434714 | K9: 37515.54925 | L9: -489.4507458
A10: エネルギー資源 | B10: 鉱業、石油・石炭製品 | C10: 鉱業 | D10: 石油・石炭製品 | G10: =IF(C10<>"",VLOOKUP(C10,業種別時価総額!A:C,3,FALSE))+IF(D10<>"",VLOOKUP(D10,業種別時価総額!A:C,3,FALSE))+IF(E10<>"",VLOOKUP(E10,業種別時価総額!A:C,3,FALSE)) -> 5423817 | H10: 0.0076273671 | I10: =SUMIF(銘柄データ!C:C,A10,銘柄データ!E:E) -> 20854.2 | J10: 0.008408814631 | K10: 18916.17855 | L10: -1938.021446
A11: 機械 | B11: 機械 | C11: 機械 | G11: =IF(C11<>"",VLOOKUP(C11,業種別時価総額!A:C,3,FALSE))+IF(D11<>"",VLOOKUP(D11,業種別時価総額!A:C,3,FALSE))+IF(E11<>"",VLOOKUP(E11,業種別時価総額!A:C,3,FALSE)) -> 34647426 | H11: 0.04872373776 | I11: =SUMIF(銘柄データ!C:C,A11,銘柄データ!E:E) -> 123998.5 | J11: 0.04999858067 | K11: 120836.8381 | L11: -3161.661908
A12: 建設・資材 | B12: 建設業、金属製品、ガラス・土石製品 | C12: 建設業 | D12: 金属製品 | E12: ガラス・土石製品 | G12: =IF(C12<>"",VLOOKUP(C12,業種別時価総額!A:C,3,FALSE))+IF(D12<>"",VLOOKUP(D12,業種別時価総額!A:C,3,FALSE))+IF(E12<>"",VLOOKUP(E12,業種別時価総額!A:C,3,FALSE)) -> 23077461 | H12: 0.03245320902 | I12: =SUMIF(銘柄データ!C:C,A12,銘柄データ!E:E) -> 85986.5 | J12: 0.034671411 | K12: 80485.26948 | L12: -5501.230519
A13: 素材・科学 | B13: 繊維製品、パルプ・紙、化学 | C13: 繊維製品 | D13: パルプ・紙 | E13: 化学 | G13: =IF(C13<>"",VLOOKUP(C13,業種別時価総額!A:C,3,FALSE))+IF(D13<>"",VLOOKUP(D13,業種別時価総額!A:C,3,FALSE))+IF(E13<>"",VLOOKUP(E13,業種別時価総額!A:C,3,FALSE)) -> 50074381 | H13: 0.07041824719 | I13: =SUMIF(銘柄データ!C:C,A13,銘柄データ!E:E) -> 185128.5 | J13: 0.07464737268 | K13: 174640.0979 | L13: -10488.40208
A14: 自動車・輸送機 | B14: ゴム製品、輸送用機器 | C14: ゴム製品 | D14: 輸送用機器 | G14: =IF(C14<>"",VLOOKUP(C14,業種別時価総額!A:C,3,FALSE))+IF(D14<>"",VLOOKUP(D14,業種別時価総額!A:C,3,FALSE))+IF(E14<>"",VLOOKUP(E14,業種別時価総額!A:C,3,FALSE)) -> 69498507 | H14: 0.09773387004 | I14: =SUMIF(銘柄データ!C:C,A14,銘柄データ!E:E) -> 256529 | J14: 0.1034374279 | K14: 242383.9462 | L14: -14145.05385
A15: 電機・精密 | B15: 電気機器、精密機器 | C15: 電気機器 | D15: 精密機器 | G15: =IF(C15<>"",VLOOKUP(C15,業種別時価総額!A:C,3,FALSE))+IF(D15<>"",VLOOKUP(D15,業種別時価総額!A:C,3,FALSE))+IF(E15<>"",VLOOKUP(E15,業種別時価総額!A:C,3,FALSE)) -> 127009459 | H15: 0.1786099658 | I15: =SUMIF(銘柄データ!C:C,A15,銘柄データ!E:E) -> 457315 | J15: 0.1843982058 | K15: 442959.9311 | L15: -14355.06891
A16: 金融（除く銀行） | B16: 証券、商品先物取引業、保険業、その他金融業 | C16: 証券、商品先物取引業 | D16: 保険業 | E16: その他金融業 | G16: =IF(C16<>"",VLOOKUP(C16,業種別時価総額!A:C,3,FALSE))+IF(D16<>"",VLOOKUP(D16,業種別時価総額!A:C,3,FALSE))+IF(E16<>"",VLOOKUP(E16,業種別時価総額!A:C,3,FALSE)) -> 27205470 | H16: 0.03825831639 | I16: =SUMIF(銘柄データ!C:C,A16,銘柄データ!E:E) -> 113770 | J16: 0.04587425269 | K16: 94882.17028 | L16: -18887.82972
A17: 銀行 | B17: 銀行業 | C17: 銀行業 | G17: =IF(C17<>"",VLOOKUP(C17,業種別時価総額!A:C,3,FALSE))+IF(D17<>"",VLOOKUP(D17,業種別時価総額!A:C,3,FALSE))+IF(E17<>"",VLOOKUP(E17,業種別時価総額!A:C,3,FALSE)) -> 36168374 | H17: 0.05086260578 | I17: =SUMIF(銘柄データ!C:C,A17,銘柄データ!E:E) -> 146382.2 | J17: 0.05902411912 | K17: 126141.3172 | L17: -20240.8828
A18: 商社・卸売 | B18: 卸売業 | C18: 卸売業 | G18: =IF(C18<>"",VLOOKUP(C18,業種別時価総額!A:C,3,FALSE))+IF(D18<>"",VLOOKUP(D18,業種別時価総額!A:C,3,FALSE))+IF(E18<>"",VLOOKUP(E18,業種別時価総額!A:C,3,FALSE)) -> 39861805 | H18: 0.05605657787 | I18: =SUMIF(銘柄データ!C:C,A18,銘柄データ!E:E) -> 163280 | J18: 0.06583763716 | K18: 139022.5778 | L18: -24257.4222
G19: =SUM(G2:G18) -> 711099509 | H19: =SUM(H2:H18) -> 1 | I19: =SUM(I2:I18) -> 2480040.4 | K19: =SUM(K2:K18) -> 2480040.4 | L19: =SUM(L2:L18) -> 4.074536264e-10

Sheet ﾈｵﾓﾊﾞ一覧
C2: 47988
A3: 1417 | B3: ミライト・ワン | C3: 12775 | D3: 2016 | E3: =COUNTIF(銘柄データ!A:A,A3) -> 1
A4: 1662 | B4: 石油資源開発 | C4: 29280 | D4: 19338 | E4: =COUNTIF(銘柄データ!A:A,A4) -> 1
A5: 1786 | B5: オリエンタル白石 | C5: 13062 | D5: 2940 | E5: =COUNTIF(銘柄データ!A:A,A5) -> 1
A6: 1802 | B6: 大林組 | C6: 14459.5 | D6: 4735 | E6: =COUNTIF(銘柄データ!A:A,A6) -> 1
A7: 1878 | B7: 大東建託 | C7: 15290 | D7: 5630 | E7: =COUNTIF(銘柄データ!A:A,A7) -> 1
A8: 1925 | B8: 大和ハウス工業 | C8: 15448 | D8: 5840 | E8: =COUNTIF(銘柄データ!A:A,A8) -> 1
A9: 1942 | B9: 関電工 | C9: 14952 | D9: 4536 | E9: =COUNTIF(銘柄データ!A:A,A9) -> 1
A10: 2264 | B10: 森永乳業 | C10: 14391 | D10: 3861 | E10: =COUNTIF(銘柄データ!A:A,A10) -> 1
A11: 2292 | B11: Ｓ Ｆｏｏｄｓ | C11: 10050 | D11: 1299 | E11: =COUNTIF(銘柄データ!A:A,A11) -> 1
A12: 2296 | B12: 伊藤ハム米久ホールディングス | C12: 10830 | D12: 780 | E12: =COUNTIF(銘柄データ!A:A,A12) -> 1
A13: 2309 | B13: シミックホールディングス | C13: 25584 | D13: 4264 | E13: =COUNTIF(銘柄データ!A:A,A13) -> 1
A14: 2384 | B14: ＳＢＳホールディングス | C14: 16850 | D14: 7725 | E14: =COUNTIF(銘柄データ!A:A,A14) -> 1
A15: 2579 | B15: コカ・コーラ ボトラーズジャパンホールディングス | C15: 11476.5 | D15: 1151 | E15: =COUNTIF(銘柄データ!A:A,A15) -> 1
A16: 2702 | B16: 日本マクドナルドホールディングス | C16: 11200 | D16: 1440 | E16: =COUNTIF(銘柄データ!A:A,A16) -> 1
A17: 2730 | B17: エディオン | C17: 14620 | D17: 3680 | E17: =COUNTIF(銘柄データ!A:A,A17) -> 1
A18: 2809 | B18: キユーピー | C18: 9230 | D18: -34 | E18: =COUNTIF(銘柄データ!A:A,A18) -> 1 | G18: 28285 | H18: 124987 | I18: =G18+H18 -> 153272 | J18: 153272
A19: 2819 | B19: エバラ食品工業 | C19: 14775 | D19: 3800 | E19: =COUNTIF(銘柄データ!A:A,A19) -> 1
A20: 2922 | B20: なとり | C20: 9820 | D20: -360 | E20: =COUNTIF(銘柄データ!A:A,A20) -> 1
A21: 3003 | B21: ヒューリック | C21: 12095 | D21: 2015 | E21: =COUNTIF(銘柄データ!A:A,A21) -> 1
A22: 3105 | B22: 日清紡ホールディングス | C22: 12210 | D22: 2640 | E22: =COUNTIF(銘柄データ!A:A,A22) -> 1
A23: 3132 | B23: マクニカホールディングス | C23: 23800 | D23: 13520 | E23: =COUNTIF(銘柄データ!A:A,A23) -> 1
A24: 3252 | B24: 地主 | C24: 9530 | D24: -870 | E24: =COUNTIF(銘柄データ!A:A,A24) -> 1
A25: 3319 | B25: ゴルフダイジェスト・オンライン | C25: 7047 | D25: -3510 | E25: =COUNTIF(銘柄データ!A:A,A25) -> 1
A26: 3382 | B26: セブン＆アイ・ホールディングス | C26: 17679 | D26: 7953 | E26: =COUNTIF(銘柄データ!A:A,A26) -> 1
A27: 3405 | B27: クラレ | C27: 14295 | D27: 3315 | E27: =COUNTIF(銘柄データ!A:A,A27) -> 1
A28: 3626 | B28: ＴＩＳ | C28: 32427 | D28: 16641 | E28: =COUNTIF(銘柄データ!A:A,A28) -> 1
A29: 3635 | B29: コーエーテクモホールディングス | C29: 24320 | D29: 14660 | E29: =COUNTIF(銘柄データ!A:A,A29) -> 1
A30: 3765 | B30: ガンホー・オンライン・エンターテイメント | C30: 13947.5 | D30: 3447 | E30: =COUNTIF(銘柄データ!A:A,A30) -> 1
A31: 3941 | B31: レンゴー | C31: 12677 | D31: 1575 | E31: =COUNTIF(銘柄データ!A:A,A31) -> 1
A32: 4046 | B32: 大阪ソーダ | C32: 17340 | D32: 7725 | E32: =COUNTIF(銘柄データ!A:A,A32) -> 1
A33: 4061 | B33: デンカ | C33: 8416.5 | D33: -1363 | E33: =COUNTIF(銘柄データ!A:A,A33) -> 1
A34: 4063 | B34: 信越化学工業 | C34: 23395 | D34: 12335 | E34: =COUNTIF(銘柄データ!A:A,A34) -> 1
A35: 4078 | B35: 堺化学工業 | C35: 9915 | D35: 650 | E35: =COUNTIF(銘柄データ!A:A,A35) -> 1
A36: 4216 | B36: 旭有機材 | C36: 30835 | D36: 20825 | E36: =COUNTIF(銘柄データ!A:A,A36) -> 1
A37: 4298 | B37: プロトコーポレーション | C37: 12720 | D37: 980 | E37: =COUNTIF(銘柄データ!A:A,A37) -> 1
A38: 4307 | B38: 野村総合研究所 | C38: 12093 | D38: 3492 | E38: =COUNTIF(銘柄データ!A:A,A38) -> 1
A39: 4318 | B39: クイック | C39: 12175 | D39: 2175 | E39: =COUNTIF(銘柄データ!A:A,A39) -> 1
A40: 4326 | B40: インテージホールディングス | C40: 18667 | D40: 8844 | E40: =COUNTIF(銘柄データ!A:A,A40) -> 1
A41: 4403 | B41: 日油 | C41: 30655 | D41: 12295 | E41: =COUNTIF(銘柄データ!A:A,A41) -> 1
A42: 4507 | B42: 塩野義製薬 | C42: 11864 | D42: 998 | E42: =COUNTIF(銘柄データ!A:A,A42) -> 1
A43: 4521 | B43: 科研製薬 | C43: 10623 | D43: -927 | E43: =COUNTIF(銘柄データ!A:A,A43) -> 1
A44: 4527 | B44: ロート製薬 | C44: 18180 | D44: 9162 | E44: =COUNTIF(銘柄データ!A:A,A44) -> 1
A45: 4528 | B45: 小野薬品工業 | C45: 13007.5 | D45: 2567 | E45: =COUNTIF(銘柄データ!A:A,A45) -> 1
A46: 4540 | B46: ツムラ | C46: 7936.5 | D46: -1303 | E46: =COUNTIF(銘柄データ!A:A,A46) -> 1
A47: 4543 | B47: テルモ | C47: 13953 | D47: 4911 | E47: =COUNTIF(銘柄データ!A:A,A47) -> 1
A48: 4544 | B48: Ｈ．Ｕ．グループホールディングス | C48: 8424 | D48: -252 | E48: =COUNTIF(銘柄データ!A:A,A48) -> 1
A49: 4547 | B49: キッセイ薬品工業 | C49: 12040 | D49: 1984 | E49: =COUNTIF(銘柄データ!A:A,A49) -> 1
A50: 4548 | B50: 生化学工業 | C50: 9288 | D50: -168 | E50: =COUNTIF(銘柄データ!A:A,A50) -> 1
A51: 4549 | B51: 栄研化学 | C51: 7545 | D51: -2175 | E51: =COUNTIF(銘柄データ!A:A,A51) -> 1
A52: 4577 | B52: ダイト | C52: 9360 | D52: -1368 | E52: =COUNTIF(銘柄データ!A:A,A52) -> 1
A53: 4665 | B53: ダスキン | C53: 12840 | D53: 1944 | E53: =COUNTIF(銘柄データ!A:A,A53) -> 1
A54: 4671 | B54: ファルコホールディングス | C54: 9390 | D54: -5 | E54: =COUNTIF(銘柄データ!A:A,A54) -> 1
A55: 4684 | B55: オービック | C55: 23270 | D55: 10290 | E55: =COUNTIF(銘柄データ!A:A,A55) -> 1
A56: 4694 | B56: ビー・エム・エル | C56: 9015 | D56: -1575 | E56: =COUNTIF(銘柄データ!A:A,A56) -> 1
A57: 4886 | B57: あすか製薬ホールディングス | C57: 15600 | D57: 5740 | E57: =COUNTIF(銘柄データ!A:A,A57) -> 1
A58: 4966 | B58: 上村工業 | C58: 37600 | D58: 23120 | E58: =COUNTIF(銘柄データ!A:A,A58) -> 1
A59: 5019 | B59: 出光興産 | C59: 9000 | D59: -660 | E59: =COUNTIF(銘柄データ!A:A,A59) -> 1
A60: 5020 | B60: ＥＮＥＯＳホールディングス | C60: 11854.2 | D60: 1389 | E60: =COUNTIF(銘柄データ!A:A,A60) -> 1
A61: 5401 | B61: 日本製鉄 | C61: 16230 | D61: 6130 | E61: =COUNTIF(銘柄データ!A:A,A61) -> 1
A62: 5480 | B62: 日本冶金工業 | C62: 21775 | D62: 12550 | E62: =COUNTIF(銘柄データ!A:A,A62) -> 1
A63: 6028 | B63: テクノプロ・ホールディングス | C63: 11019 | D63: 2598 | E63: =COUNTIF(銘柄データ!A:A,A63) -> 1
A64: 6134 | B64: ＦＵＪＩ | C64: 12997.5 | D64: 3497 | E64: =COUNTIF(銘柄データ!A:A,A64) -> 1
A65: 6367 | B65: ダイキン工業 | C65: 28690 | D65: 16530 | E65: =COUNTIF(銘柄データ!A:A,A65) -> 1
A66: 6368 | B66: オルガノ | C66: 32920 | D66: 21800 | E66: =COUNTIF(銘柄データ!A:A,A66) -> 1
A67: 6420 | B67: フクシマガリレイ | C67: 15120 | D67: 5145 | E67: =COUNTIF(銘柄データ!A:A,A67) -> 1
A68: 6448 | B68: ブラザー工業 | C68: 11067.5 | D68: 497 | E68: =COUNTIF(銘柄データ!A:A,A68) -> 1
A69: 6465 | B69: ホシザキ | C69: 10896 | D69: 1666 | E69: =COUNTIF(銘柄データ!A:A,A69) -> 1
A70: 6507 | B70: シンフォニアテクノロジー | C70: 12054 | D70: 1932 | E70: =COUNTIF(銘柄データ!A:A,A70) -> 1
A71: 6508 | B71: 明電舎 | C71: 12702 | D71: 2532 | E71: =COUNTIF(銘柄データ!A:A,A71) -> 1
A72: 6516 | B72: 山洋電気 | C72: 14400 | D72: 2300 | E72: =COUNTIF(銘柄データ!A:A,A72) -> 1
A73: 6622 | B73: ダイヘン | C73: 10960 | D73: 2770 | E73: =COUNTIF(銘柄データ!A:A,A73) -> 1
A74: 6645 | B74: オムロン | C74: 38110 | D74: 9460 | E74: =COUNTIF(銘柄データ!A:A,A74) -> 1
A75: 6651 | B75: 日東工業 | C75: 21810 | D75: 12726 | E75: =COUNTIF(銘柄データ!A:A,A75) -> 1
A76: 6652 | B76: ＩＤＥＣ | C76: 12080 | D76: 1216 | E76: =COUNTIF(銘柄データ!A:A,A76) -> 1
A77: 6701 | B77: 日本電気 | C77: 28732 | D77: 11740 | E77: =COUNTIF(銘柄データ!A:A,A77) -> 1
A78: 6702 | B78: 富士通 | C78: 36770 | D78: 16842 | E78: =COUNTIF(銘柄データ!A:A,A78) -> 1
A79: 6724 | B79: セイコーエプソン | C79: 11662.5 | D79: 777 | E79: =COUNTIF(銘柄データ!A:A,A79) -> 1
A80: 6745 | B80: ホーチキ | C80: 16236 | D80: 5436 | E80: =COUNTIF(銘柄データ!A:A,A80) -> 1
A81: 6758 | B81: ソニーグループ | C81: 39945 | D81: 21813 | E81: =COUNTIF(銘柄データ!A:A,A81) -> 1
A82: 6789 | B82: ローランド ディー．ジー． | C82: 14240 | D82: 2804 | E82: =COUNTIF(銘柄データ!A:A,A82) -> 1
A83: 6804 | B83: ホシデン | C83: 18370 | D83: 7410 | E83: =COUNTIF(銘柄データ!A:A,A83) -> 1
A84: 6845 | B84: アズビル | C84: 13440 | D84: 2790 | E84: =COUNTIF(銘柄データ!A:A,A84) -> 1
A85: 6856 | B85: 堀場製作所 | C85: 16762 | D85: 5302 | E85: =COUNTIF(銘柄データ!A:A,A85) -> 1
A86: 6960 | B86: フクダ電子 | C86: 9020 | D86: 1450 | E86: =COUNTIF(銘柄データ!A:A,A86) -> 1
A87: 6971 | B87: 京セラ | C87: 15288 | D87: 1926 | E87: =COUNTIF(銘柄データ!A:A,A87) -> 1
A88: 6976 | B88: 太陽誘電 | C88: 16936 | D88: 7048 | E88: =COUNTIF(銘柄データ!A:A,A88) -> 1
A89: 6981 | B89: 村田製作所 | C89: 16650 | D89: 7100 | E89: =COUNTIF(銘柄データ!A:A,A89) -> 1
A90: 7004 | B90: 日立造船 | C90: 23375 | D90: 13050 | E90: =COUNTIF(銘柄データ!A:A,A90) -> 1
A91: 7182 | B91: ゆうちょ銀行 | C91: 5915 | D91: 855 | E91: =COUNTIF(銘柄データ!A:A,A91) -> 1
A92: 7189 | B92: 西日本フィナンシャルホールディングス | C92: 10584 | D92: 5964 | E92: =COUNTIF(銘柄データ!A:A,A92) -> 1
A93: 7202 | B93: いすゞ自動車 | C93: 12894 | D93: 2086 | E93: =COUNTIF(銘柄データ!A:A,A93) -> 1
A94: 7203 | B94: トヨタ自動車 | C94: 23860 | D94: 5910 | E94: =COUNTIF(銘柄データ!A:A,A94) -> 1
A95: 7224 | B95: 新明和工業 | C95: 14340 | D95: 3740 | E95: =COUNTIF(銘柄データ!A:A,A95) -> 1
A96: 7226 | B96: 極東開発工業 | C96: 12761 | D96: 3115 | E96: =COUNTIF(銘柄データ!A:A,A96) -> 1
A97: 7228 | B97: デイトナ | C97: 13200 | D97: 8880 | E97: =COUNTIF(銘柄データ!A:A,A97) -> 1
A98: 7240 | B98: ＮＯＫ | C98: 21380 | D98: 9570 | E98: =COUNTIF(銘柄データ!A:A,A98) -> 1
A99: 7246 | B99: プレス工業 | C99: 15900 | D99: 5650 | E99: =COUNTIF(銘柄データ!A:A,A99) -> 1
A100: 7250 | B100: 太平洋工業 | C100: 13660 | D100: 3420 | E100: =COUNTIF(銘柄データ!A:A,A100) -> 1
A101: 7261 | B101: マツダ | C101: 14055 | D101: 3315 | E101: =COUNTIF(銘柄データ!A:A,A101) -> 1
A102: 7267 | B102: 本田技研工業 | C102: 13539 | D102: 3372 | E102: =COUNTIF(銘柄データ!A:A,A102) -> 1
A103: 7272 | B103: ヤマハ発動機 | C103: 16640 | D103: 6780 | E103: =COUNTIF(銘柄データ!A:A,A103) -> 1
A104: 7278 | B104: エクセディ | C104: 22374 | D104: 7614 | E104: =COUNTIF(銘柄データ!A:A,A104) -> 1
A105: 7292 | B105: 村上開明堂 | C105: 5792 | D105: 1712 | E105: =COUNTIF(銘柄データ!A:A,A105) -> 1
A106: 7296 | B106: エフ・シー・シー | C106: 13034 | D106: 3633 | E106: =COUNTIF(銘柄データ!A:A,A106) -> 1
A107: 7309 | B107: シマノ | C107: 43100 | D107: 14420 | E107: =COUNTIF(銘柄データ!A:A,A107) -> 1
A108: 7350 | B108: おきなわフィナンシャルグループ | C108: 4476 | D108: -324 | E108: =COUNTIF(銘柄データ!A:A,A108) -> 1
A109: 7516 | B109: コーナン商事 | C109: 10440 | D109: 120 | E109: =COUNTIF(銘柄データ!A:A,A109) -> 1
A110: 7593 | B110: ＶＴホールディングス | C110: 11193 | D110: 1155 | E110: =COUNTIF(銘柄データ!A:A,A110) -> 1
A111: 7729 | B111: 東京精密 | C111: 15740 | D111: 6390 | E111: =COUNTIF(銘柄データ!A:A,A111) -> 1
A112: 7740 | B112: タムロン | C112: 13485 | D112: 3315 | E112: =COUNTIF(銘柄データ!A:A,A112) -> 1
A113: 7751 | B113: キヤノン | C113: 14692 | D113: 3236 | E113: =COUNTIF(銘柄データ!A:A,A113) -> 1
A114: 7832 | B114: バンダイナムコホールディングス | C114: 19284 | D114: 9462 | E114: =COUNTIF(銘柄データ!A:A,A114) -> 1
A115: 7911 | B115: 凸版印刷 | C115: 16710 | D115: 6260 | E115: =COUNTIF(銘柄データ!A:A,A115) -> 1
A116: 7981 | B116: タカラスタンダード | C116: 11172 | D116: 2322 | E116: =COUNTIF(銘柄データ!A:A,A116) -> 1
A117: 7984 | B117: コクヨ | C117: 13680 | D117: 3366 | E117: =COUNTIF(銘柄データ!A:A,A117) -> 1
A118: 8001 | B118: 伊藤忠商事 | C118: 28750 | D118: 18695 | E118: =COUNTIF(銘柄データ!A:A,A118) -> 1
A119: 8031 | B119: 三井物産 | C119: 33246 | D119: 22488 | E119: =COUNTIF(銘柄データ!A:A,A119) -> 1
A120: 8088 | B120: 岩谷産業 | C120: 22764 | D120: 12024 | E120: =COUNTIF(銘柄データ!A:A,A120) -> 1
A121: 8154 | B121: 加賀電子 | C121: 25440 | D121: 16076 | E121: =COUNTIF(銘柄データ!A:A,A121) -> 1
A122: 8218 | B122: コメリ | C122: 11920 | D122: 1200 | E122: =COUNTIF(銘柄データ!A:A,A122) -> 1
A123: 8227 | B123: しまむら | C123: 14085 | D123: 3985 | E123: =COUNTIF(銘柄データ!A:A,A123) -> 1
A124: 8273 | B124: イズミ | C124: 10740 | D124: 2079 | E124: =COUNTIF(銘柄データ!A:A,A124) -> 1
A125: 8276 | B125: 平和堂 | C125: 12100 | D125: 2305 | E125: =COUNTIF(銘柄データ!A:A,A125) -> 1
A126: 8304 | B126: あおぞら銀行 | C126: 5843 | D126: 447 | E126: =COUNTIF(銘柄データ!A:A,A126) -> 1
A127: 8306 | B127: 三菱ＵＦＪフィナンシャル・グループ | C127: 12606 | D127: 7667 | E127: =COUNTIF(銘柄データ!A:A,A127) -> 1
A128: 8308 | B128: りそなホールディングス | C128: 16262.4 | D128: 6224 | E128: =COUNTIF(銘柄データ!A:A,A128) -> 1
A129: 8316 | B129: 三井住友フィナンシャルグループ | C129: 46858 | D129: 28210 | E129: =COUNTIF(銘柄データ!A:A,A129) -> 1
A130: 8341 | B130: 七十七銀行 | C130: 15125 | D130: 7275 | E130: =COUNTIF(銘柄データ!A:A,A130) -> 1
A131: 8410 | B131: セブン銀行 | C131: 12660.8 | D131: 2984 | E131: =COUNTIF(銘柄データ!A:A,A131) -> 1
A132: 8411 | B132: みずほフィナンシャルグループ | C132: 7212 | D132: 3288 | E132: =COUNTIF(銘柄データ!A:A,A132) -> 1
A133: 8418 | B133: 山口フィナンシャルグループ | C133: 8840 | D133: 4000 | E133: =COUNTIF(銘柄データ!A:A,A133) -> 1
A134: 8424 | B134: 芙蓉総合リース | C134: 11730 | D134: 4600 | E134: =COUNTIF(銘柄データ!A:A,A134) -> 1
A135: 8425 | B135: みずほリース | C135: 24400 | D135: 11400 | E135: =COUNTIF(銘柄データ!A:A,A135) -> 1
A136: 8593 | B136: 三菱ＨＣキャピタル | C136: 18798 | D136: 8918 | E136: =COUNTIF(銘柄データ!A:A,A136) -> 1
A137: 8616 | B137: 東海東京フィナンシャル・ホールディングス | C137: 5256 | D137: 348 | E137: =COUNTIF(銘柄データ!A:A,A137) -> 1
A138: 8630 | B138: ＳＯＭＰＯホールディングス | C138: 18873 | D138: 8013 | E138: =COUNTIF(銘柄データ!A:A,A138) -> 1
A139: 8793 | B139: ＮＥＣキャピタルソリューション | C139: 16225 | D139: 5945 | E139: =COUNTIF(銘柄データ!A:A,A139) -> 1
A140: 8795 | B140: Ｔ＆Ｄホールディングス | C140: 18488 | D140: 8840 | E140: =COUNTIF(銘柄データ!A:A,A140) -> 1
A141: 8830 | B141: 住友不動産 | C141: 15224 | D141: 5420 | E141: =COUNTIF(銘柄データ!A:A,A141) -> 1
A142: 8850 | B142: スターツコーポレーション | C142: 11780 | D142: 1160 | E142: =COUNTIF(銘柄データ!A:A,A142) -> 1
A143: 9025 | B143: 鴻池運輸 | C143: 14248 | D143: 3920 | E143: =COUNTIF(銘柄データ!A:A,A143) -> 1
A144: 9037 | B144: ハマキョウレックス | C144: 15700 | D144: 4132 | E144: =COUNTIF(銘柄データ!A:A,A144) -> 1
A145: 9069 | B145: センコーグループホールディングス | C145: 10290 | D145: 580 | E145: =COUNTIF(銘柄データ!A:A,A145) -> 1
A146: 9072 | B146: ニッコンホールディングス | C146: 14927.5 | D146: 4552 | E146: =COUNTIF(銘柄データ!A:A,A146) -> 1
A147: 9147 | B147: ＮＩＰＰＯＮ ＥＸＰＲＥＳＳホールディングス | C147: 8335 | D147: 265 | E147: =COUNTIF(銘柄データ!A:A,A147) -> 1
A148: 9161 | B148: ＩＤ＆Ｅホールディングス | C148: 10245 | D148: 1065 | E148: =COUNTIF(銘柄データ!A:A,A148) -> 0
A149: 9302 | B149: 三井倉庫ホールディングス | C149: 14500 | D149: 2924 | E149: =COUNTIF(銘柄データ!A:A,A149) -> 1
A150: 9432 | B150: 日本電信電話 | C150: 16290 | D150: 5590 | E150: =COUNTIF(銘柄データ!A:A,A150) -> 1
A151: 9433 | B151: ＫＤＤＩ | C151: 16748 | D151: 5256 | E151: =COUNTIF(銘柄データ!A:A,A151) -> 1
A152: 9436 | B152: 沖縄セルラー電話 | C152: 12020 | D152: 3280 | E152: =COUNTIF(銘柄データ!A:A,A152) -> 1
A153: 9504 | B153: 中国電力 | C153: 986.8 | D153: -238 | E153: =COUNTIF(銘柄データ!A:A,A153) -> 1
A154: 9505 | B154: 北陸電力 | C154: 1734.2 | D154: 232 | E154: =COUNTIF(銘柄データ!A:A,A154) -> 1
A155: 9506 | B155: 東北電力 | C155: 1893 | D155: -63 | E155: =COUNTIF(銘柄データ!A:A,A155) -> 1
A156: 9508 | B156: 九州電力 | C156: 1932.6 | D156: 2 | E156: =COUNTIF(銘柄データ!A:A,A156) -> 1
A157: 9509 | B157: 北海道電力 | C157: 1991.4 | D157: 437 | E157: =COUNTIF(銘柄データ!A:A,A157) -> 1
A158: 9511 | B158: 沖縄電力 | C158: 1155 | D158: -215 | E158: =COUNTIF(銘柄データ!A:A,A158) -> 1
A159: 9513 | B159: 電源開発 | C159: 6750 | D159: 816 | E159: =COUNTIF(銘柄データ!A:A,A159) -> 1
A160: 9531 | B160: 東京瓦斯 | C160: 3225 | D160: 630 | E160: =COUNTIF(銘柄データ!A:A,A160) -> 1
A161: 9532 | B161: 大阪瓦斯 | C161: 2238 | D161: 269 | E161: =COUNTIF(銘柄データ!A:A,A161) -> 1
A162: 9602 | B162: 東宝 | C162: 16620 | D162: 6480 | E162: =COUNTIF(銘柄データ!A:A,A162) -> 1
A163: 9605 | B163: 東映 | C163: 18070 | D163: 4560 | E163: =COUNTIF(銘柄データ!A:A,A163) -> 1
A164: 9715 | B164: トランス・コスモス | C164: 10440 | D164: 975 | E164: =COUNTIF(銘柄データ!A:A,A164) -> 1
A165: 9744 | B165: メイテック | C165: 15525 | D165: 2145 | E165: =COUNTIF(銘柄データ!A:A,A165) -> 1
A166: 9759 | B166: ＮＳＤ | C166: 13915 | D166: 3575 | E166: =COUNTIF(銘柄データ!A:A,A166) -> 1
E167: =COUNTIF(銘柄データ!A:A,A167) -> 0
E168: =COUNTIF(銘柄データ!A:A,A168) -> 0
E169: =COUNTIF(銘柄データ!A:A,A169) -> 0
E170: =COUNTIF(銘柄データ!A:A,A170) -> 0
E171: =COUNTIF(銘柄データ!A:A,A171) -> 0
E172: =COUNTIF(銘柄データ!A:A,A172) -> 0

Sheet 業種別時価総額
A1: 水産・農林業 | B1: 6 | C1: 658149 | D1: Fishery,Agriculture | E1: & | F1: Forestry
A2: 鉱業 | B2: 5 | C2: 2524591 | D2: Mining
A3: 建設業 | B3: 83 | C3: 14246080 | D3: Construction
A4: 食料品 | B4: 71 | C4: 24995279 | D4: Foods
A5: 繊維製品 | B5: 23 | C5: 3230380 | D5: Textiles | E5: & | F5: Apparels
A6: パルプ・紙 | B6: 10 | C6: 1352397 | D6: Pulp | E6: & | F6: Paper
A7: 化学 | B7: 136 | C7: 45491604 | D7: Chemicals
A8: 医薬品 | B8: 34 | C8: 40626717 | D8: Pharmaceutical
A9: 石油・石炭製品 | B9: 7 | C9: 2899226 | D9: Oil | E9: & | F9: Coal | G9: Products
A10: ゴム製品 | B10: 11 | C10: 5046552 | D10: Rubber | E10: Products
A11: ガラス・土石製品 | B11: 24 | C11: 5073836 | D11: Glass | E11: & | F11: Ceramics | G11: Products
A12: 鉄鋼 | B12: 23 | C12: 5823067 | D12: Iron | E12: & | F12: Steel
A13: 非鉄金属 | B13: 21 | C13: 4933729 | D13: Nonferrous | E13: Metals
A14: 金属製品 | B14: 31 | C14: 3757545 | D14: Metal | E14: Products
A15: 機械 | B15: 125 | C15: 34647426 | D15: Machinery
A16: 電気機器 | B16: 141 | C16: 110899468 | D16: Electric | E16: Appliances
A17: 輸送用機器 | B17: 50 | C17: 64451955 | D17: Transportation | E17: Equipment
A18: 精密機器 | B18: 30 | C18: 16109991 | D18: Precision | E18: Instruments
A19: その他製品 | B19: 41 | C19: 15641998 | D19: Other | E19: Products
A20: 電気・ガス業 | B20: 22 | C20: 7561168 | D20: Electric | E20: Power | F20: & | G20: Gas
A21: 陸運業 | B21: 40 | C21: 22451978 | D21: Land | E21: Transportation
A22: 海運業 | B22: 5 | C22: 3698228 | D22: Marine | E22: Transportation
A23: 空運業 | B23: 2 | C23: 2620715 | D23: Air | E23: Transportation
A24: 倉庫・運輸関連業 | B24: 15 | C24: 1200210 | D24: Warehousing | E24: & | F24: Harbor
B25: Transportation | C25: Services
A26: 情報・通信業 | B26: 207 | C26: 73488725 | D26: Information | E26: & | F26: Communication
